Workbook

Sheet Age profile chart

Sheet Forecast Ch1

Sheet Age profile summary
A1: Asset calcs | R1: Remaining life | W1: RC ($ millions) | AB1: RC (%)
R2: Very old | S2: Old | T2: moderate | U2: young | V2: new | W2: =R2 -> Very old | X2: =S2 -> Old | Y2: moderate | Z2: young | AA2: new | AB2: Very old | AC2: Old | AD2: moderate | AE2: young | AF2: new
M3: WARL | O3: WAL | Q3: WAA | R3: > | S3: > | T3: > | U3: > | V3: <=0.2 | W3: =R3 -> > | X3: > | Y3: > | Z3: > | AA3: <=0.2 | AB3: > | AC3: > | AD3: > | AE3: > | AF3: <=0.2
F4: Quantity | G4: Unit | H4: RC | I4: prop total | J4: Rank | K4: prop cat | L4: RC / unit | M4: (Rep life) | O4: Rep life | Q4: % Rep life | R4: =W4 -> 0.9 | S4: =X4 -> 0.8 | T4: =Y4 -> 0.4 | U4: =Z4 -> 0.2 | W4: 0.9 | X4: 0.8 | Y4: 0.4 | Z4: 0.2 | AA4: 0 | AB4: 0.9 | AC4: 0.8 | AD4: 0.4 | AE4: 0.2 | AF4: 0 | AG4: Std life | AH4: Std life | AI4: rep life
G5: Cost | H5: $ millions | I5: % | J5: total | K5: % | L5: $ ('000) | AG5: max | AH5: min
A6: 1 | D6: =VLOOKUP(A6,IDtable,2) -> POLES | F6: =SUMIF($A$21:$A$205,$A6,F$21:F$205) -> 744782.051 | H6: =SUMIF($A$21:$A$205,$A6,H$21:H$205)/1000 -> 2932.446723 | I6: =H6/($H$18) -> 0.1502697794 | J6: =RANK(I6,I$6:I$17) -> 3 | L6: =H6*1000/(F6+0.001) -> 3.937321953 | M6: =SUMIF($A$21:$A$205,$A6,N$21:N$205)/(H6*1000+0.000001) -> 28.2471816 | O6: =SUMIF($A$21:$A$205,$A6,P$21:P$205)/(H6*1000+0.000001) -> 71.88636398 | Q6: =(O6-M6)/(O6+0.000001) -> 0.6070578529 | R6: =$O6-R$4*$O6 -> 7.188636398 | S6: =$O6-S$4*$O6 -> 14.3772728 | T6: =$O6-T$4*$O6 -> 43.13181839 | U6: =$O6-U$4*$O6 -> 57.50909118 | V6: =$O6-V$4*$O6 -> 71.88636398 | W6: =SUMIF($A$21:$A$205,$A6,W$21:W$205)/1000 -> 145.8288437 | X6: 238.9538691 | Y6: 2011.182589 | Z6: 351.5019024 | AA6: 184.9795191 | AB6: =IF($H6=0,0,W6/$H6) -> 0.04972940943 | AC6: =IF($H6=0,0,X6/$H6) -> 0.08148617575 | AD6: =IF($H6=0,0,Y6/$H6) -> 0.6858377249 | AE6: =IF($H6=0,0,Z6/$H6) -> 0.1198664241 | AF6: =IF($H6=0,0,AA6/$H6) -> 0.06308026591 | AG6: =MAX(IF($A$21:$A$205=$A6,$O$21:$O$205)) -> 74.58328491 | AH6: =MIN(IF($A$21:$A$205=$A6,$O$21:$O$205)) -> 20 | AI6: =IF(H6=0,0,SUMIF($A$21:$A$205,$A6,$AJ$21:$AJ$205)/(H6*1000)) -> 71.88636398
A7: 2 | D7: OVERHEAD CONDUCTORS | F7: =SUMIF($A$21:$A$205,$A7,F$21:F$205) -> 174282.875 | H7: =SUMIF($A$21:$A$205,$A7,H$21:H$205)/1000 -> 4336.426245 | I7: =H7/($H$18) -> 0.2222150568 | J7: 2 | L7: 24.8815394 | M7: 31.65942614 | O7: 82.35918305 | Q7: 0.6155932395 | R7: =$O7-R$4*$O7 -> 8.235918305 | S7: 16.47183661 | T7: 49.41550983 | U7: 65.88734644 | V7: 82.35918305 | W7: 9.840366618 | X7: 141.9161916 | Y7: 3875.226816 | Z7: 209.4345778 | AA7: 100.0082932 | AB7: =IF($H7=0,0,W7/$H7) -> 0.002269234172 | AC7: =IF($H7=0,0,X7/$H7) -> 0.03272653184 | AD7: =IF($H7=0,0,Y7/$H7) -> 0.893645273 | AE7: =IF($H7=0,0,Z7/$H7) -> 0.04829658479 | AF7: =IF($H7=0,0,AA7/$H7) -> 0.02306237616 | AG7: =MAX(IF($A$21:$A$205=$A7,$O$21:$O$205)) -> 89.7606796 | AH7: =MIN(IF($A$21:$A$205=$A7,$O$21:$O$205)) -> 10.29774871 | AI7: =IF(H7=0,0,SUMIF($A$21:$A$205,$A7,$AJ$21:$AJ$205)/(H7*1000)) -> 82.35918305
A8: 3 | D8: UNDERGROUND CABLES | F8: 16918 | H8: 7864.83608 | I8: 0.4030242642 | J8: 1 | L8: 464.8797503 | M8: 38.38844435 | O8: 71.32072125 | Q8: 0.4617490662 | R8: 7.132072125 | S8: 14.26414425 | T8: 42.79243275 | U8: 57.056577 | V8: 71.32072125 | W8: 3.2608998 | X8: 150.4114501 | Y8: 5028.326508 | Z8: 658.5291341 | AA8: 2024.308088 | AB8: 0.0004146176432 | AC8: 0.0191245499 | AD8: 0.6393428238 | AE8: 0.0837308149 | AF8: 0.2573871938 | AG8: =MAX(IF($A$21:$A$205=$A8,$O$21:$O$205)) -> 89.22928383 | AH8: =MIN(IF($A$21:$A$205=$A8,$O$21:$O$205)) -> 69.34665976 | AI8: 71.32072125
A9: 4 | D9: SERVICE LINES | F9: 751851 | H9: 398.191731 | I9: 0.02040486639 | J9: 6 | L9: 0.5296152169 | M9: 28.37414589 | O9: 56.97242521 | Q9: 0.5019670254 | R9: 5.697242521 | S9: 11.39448504 | T9: 34.18345513 | U9: 45.57794017 | V9: 56.97242521 | W9: 37.739583 | X9: 27.353991 | Y9: 179.842236 | Z9: 97.486998 | AA9: 55.768923 | AB9: 0.09477741515 | AC9: 0.06869552748 | AD9: 0.4516473397 | AE9: 0.2448242653 | AF9: 0.1400554523 | AG9: =MAX(IF($A$21:$A$205=$A9,$O$21:$O$205)) -> 57.093362 | AH9: =MIN(IF($A$21:$A$205=$A9,$O$21:$O$205)) -> 56.06536246 | AI9: 56.97242521
A10: 5 | D10: TRANSFORMERS | F10: 76156 | H10: 2454.450534 | I10: 0.1257754275 | J10: 4 | L10: 32.22924657 | M10: 37.07548877 | O10: 66.08371529 | Q10: 0.4389617919 | R10: 6.608371529 | S10: 13.21674306 | T10: 39.65022918 | U10: 52.86697223 | V10: 66.08371529 | W10: 68.4228383 | X10: 147.2175196 | Y10: 1116.937719 | Z10: 606.480531 | AA10: 515.3919264 | AB10: 0.0278770492 | AC10: 0.05997982749 | AD10: 0.4550662982 | AE10: 0.2470942163 | AF10: 0.2099826088 | AG10: =MAX(IF($A$21:$A$205=$A10,$O$21:$O$205)) -> 72.9250582 | AH10: =MIN(IF($A$21:$A$205=$A10,$O$21:$O$205)) -> 49.83146604 | AI10: 66.08371529
A11: 6 | D11: SWITCHGEAR | F11: 15837 | H11: 1528.196021 | I11: 0.07831060564 | J11: 5 | L11: 96.49529103 | M11: 33.90962439 | O11: 60.31883143 | Q11: 0.4378268938 | R11: 6.031883143 | S11: 12.06376629 | T11: 36.19129886 | U11: 48.25506515 | V11: 60.31883143 | W11: 104.1427042 | X11: 130.4594411 | Y11: 516.3055199 | Z11: 190.1499331 | AA11: 587.1384223 | AB11: 0.06814747768 | AC11: 0.08536826385 | AD11: 0.3378529409 | AE11: 0.1244277112 | AF11: 0.3842036063 | AG11: =MAX(IF($A$21:$A$205=$A11,$O$21:$O$205)) -> 71.97695612 | AH11: =MIN(IF($A$21:$A$205=$A11,$O$21:$O$205)) -> 45 | AI11: 60.31883143
A12: 7 | D12: PUBLIC LIGHTING | F12: 0 | H12: 0 | I12: 0 | J12: 7 | L12: 0 | M12: 0 | O12: 0 | Q12: 0 | R12: 0 | S12: 0 | T12: 0 | U12: 0 | V12: 0 | W12: 0 | X12: 0 | Y12: 0 | Z12: 0 | AA12: 0 | AB12: 0 | AC12: 0 | AD12: 0 | AE12: 0 | AF12: 0 | AG12: =MAX(IF($A$21:$A$205=$A12,$O$21:$O$205)) -> 0 | AH12: =MIN(IF($A$21:$A$205=$A12,$O$21:$O$205)) -> 0 | AI12: 0
A13: 8 | D13: SCADA, NETWORK CONTROL AND PROTECTION | F13: 0 | H13: 0 | I13: 0 | J13: 7 | L13: 0 | M13: 0 | O13: 0 | Q13: 0 | R13: 0 | S13: 0 | T13: 0 | U13: 0 | V13: 0 | W13: 0 | X13: 0 | Y13: 0 | Z13: 0 | AA13: 0 | AB13: 0 | AC13: 0 | AD13: 0 | AE13: 0 | AF13: 0 | AG13: =MAX(IF($A$21:$A$205=$A13,$O$21:$O$205)) -> 0 | AH13: =MIN(IF($A$21:$A$205=$A13,$O$21:$O$205)) -> 0 | AI13: 0
A14: 9 | D14: =VLOOKUP(A14,IDtable,2) -> OTHER | F14: =SUMIF($A$21:$A$205,$A14,F$21:F$205) -> 0 | H14: =SUMIF($A$21:$A$205,$A14,H$21:H$205)/1000 -> 0 | I14: =H14/($H$18) -> 0 | J14: 7 | L14: 0 | M14: 0 | O14: 0 | Q14: 0 | R14: =$O14-R$4*$O14 -> 0 | S14: 0 | T14: 0 | U14: 0 | V14: 0 | W14: 0 | X14: 0 | Y14: 0 | Z14: 0 | AA14: 0 | AB14: 0 | AC14: 0 | AD14: 0 | AE14: 0 | AF14: 0 | AG14: =MAX(IF($A$21:$A$205=$A14,$O$21:$O$205)) -> 0 | AH14: =MIN(IF($A$21:$A$205=$A14,$O$21:$O$205)) -> 0 | AI14: 0
A15: 10 | D15: =VLOOKUP(A15,IDtable,2) -> unused | F15: =SUMIF($A$21:$A$205,$A15,F$21:F$205) -> 0 | H15: =SUMIF($A$21:$A$205,$A15,H$21:H$205)/1000 -> 0 | I15: =H15/($H$18) -> 0 | J15: 7 | L15: 0 | M15: 0 | O15: 0 | Q15: 0 | R15: 0 | S15: 0 | T15: 0 | U15: 0 | V15: 0 | W15: 0 | X15: 0 | Y15: 0 | Z15: 0 | AA15: 0 | AB15: 0 | AC15: 0 | AD15: 0 | AE15: 0 | AF15: 0 | AG15: =MAX(IF($A$21:$A$205=$A15,$O$21:$O$205)) -> 0 | AH15: =MIN(IF($A$21:$A$205=$A15,$O$21:$O$205)) -> 0 | AI15: 0
A16: 11 | D16: =VLOOKUP(A16,IDtable,2) -> unused | F16: =SUMIF($A$21:$A$205,$A16,F$21:F$205) -> 0 | H16: =SUMIF($A$21:$A$205,$A16,H$21:H$205)/1000 -> 0 | I16: =H16/($H$18) -> 0 | J16: 7 | L16: 0 | M16: 0 | O16: 0 | Q16: 0 | R16: 0 | S16: 0 | T16: 0 | U16: 0 | V16: 0 | W16: 0 | X16: 0 | Y16: 0 | Z16: 0 | AA16: 0 | AB16: 0 | AC16: 0 | AD16: 0 | AE16: 0 | AF16: 0 | AG16: =MAX(IF($A$21:$A$205=$A16,$O$21:$O$205)) -> 0 | AH16: =MIN(IF($A$21:$A$205=$A16,$O$21:$O$205)) -> 0 | AI16: 0
A17: 12 | D17: =VLOOKUP(A17,IDtable,2) -> unused | F17: =SUMIF($A$21:$A$205,$A17,F$21:F$205) -> 0 | H17: =SUMIF($A$21:$A$205,$A17,H$21:H$205)/1000 -> 0 | I17: =H17/($H$18) -> 0 | J17: =RANK(I17,I$6:I$17) -> 7 | L17: =H17*1000/(F17+0.001) -> 0 | M17: =SUMIF($A$21:$A$205,$A17,N$21:N$205)/(H17*1000+0.000001) -> 0 | O17: =SUMIF($A$21:$A$205,$A17,P$21:P$205)/(H17*1000+0.000001) -> 0 | Q17: =(O17-M17)/(O17+0.000001) -> 0 | R17: 0 | S17: 0 | T17: 0 | U17: 0 | V17: 0 | W17: 0 | X17: 0 | Y17: 0 | Z17: 0 | AA17: 0 | AB17: 0 | AC17: 0 | AD17: 0 | AE17: 0 | AF17: 0 | AG17: =MAX(IF($A$21:$A$205=$A17,$O$21:$O$205)) -> 0 | AH17: =MIN(IF($A$21:$A$205=$A17,$O$21:$O$205)) -> 0 | AI17: 0
D18: Total | H18: =SUM(H6:H17) -> 19514.54733 | M18: =SUMPRODUCT(M6:M17,$H6:$H17)/$H18 -> 34.64901279 | O18: =SUMPRODUCT(O6:O17,$H6:$H17)/$H18 -> 72.04560629 | Q18: =SUMPRODUCT(Q6:Q17,$H6:$H17)/$H18 -> 0.5138522804 | W18: =SUM(W6:W17) -> 369.2352356 | X18: =SUM(X6:X17) -> 836.3124625 | Y18: =SUM(Y6:Y17) -> 12727.82139 | Z18: =SUM(Z6:Z17) -> 2113.583076 | AA18: =SUM(AA6:AA17) -> 3467.595172 | AB18: =W18/$H18 -> 0.01892102488 | AC18: =X18/$H18 -> 0.04285584739 | AD18: =Y18/$H18 -> 0.6522222201 | AE18: =Z18/$H18 -> 0.108308076 | AF18: =AA18/$H18 -> 0.1776928316
D20: EDB categories
A21: ='Asset data'!A21 -> 0 | B21: ='Asset data'!B21 -> 0 | C21: ='Asset data'!C21 -> 0 | D21: ='Asset data'!E21 -> 0 | E21: =IF(A21>0,VLOOKUP(A21,IDtable,2),0) -> 0 | F21: =IF(A21>0,SUM('Asset data'!J21:CV21),0) -> 0 | G21: =IF(A21>0,'Asset data'!F21,0) -> 0 | H21: =IF(A21>0,SUM('Asset data'!CX21:GJ21),0) -> 0 | I21: =H21/$H$18/1000 -> 0 | J21: =IF(RANK(0,I$21:I$205)=RANK(I21,I$21:I$205),0,RANK(I21,I$21:I$205)) -> 0 | K21: =IF(A21>0,H21/(VLOOKUP(A21,$A$6:$H$17,8)*1000),0) -> 0 | L21: =IF($A21>0,H21/F21,0) -> 0 | M21: =IF($A21>0,SUMPRODUCT('Age profile (years)'!$CT21:$GF21,'Asset data'!$CX21:$GJ21)/H21-0.5,0) -> 0 | N21: =IF($A21>0,M21*H21,0) -> 0 | O21: =IF($A21>0,'Asset data'!G21,0) -> 0 | P21: =IF($A21>0,H21*O21,0) -> 0 | Q21: =IF($A21>0,(O21-M21)/O21,0) -> 0 | R21: =IF($A21>0,$O21-R$4*$O21,0) -> 0 | S21: 0 | T21: 0 | U21: 0 | W21: =IF($A21>0,SUMIF('Age profile (years)'!$CT21:$GF21,"<" & R21+0.5,'Asset data'!$CX21:$GJ21),0) -> 0 | X21: =IF($A21>0,SUMIF('Age profile (years)'!$CT21:$GF21,"<" & S21+0.5,'Asset data'!$CX21:$GJ21)-W21,0) -> 0 | Y21: =IF($A21>0,SUMIF('Age profile (years)'!$CT21:$GF21,"<" & T21+0.5,'Asset data'!$CX21:$GJ21)-X21-W21,0) -> 0 | Z21: =IF($A21>0,SUMIF('Age profile (years)'!$CT21:$GF21,"<" & U21+0.5,'Asset data'!$CX21:$GJ21)-Y21-X21-W21,0) -> 0 | AA21: =IF($A21>0,H21-Z21-Y21-X21-W21,0) -> 0 | AB21: =IF($A21>0,W21/$H21,0) -> 0 | AC21: 0 | AD21: 0 | AE21: 0 | AF21: 0 | AI21: =IF($A21>0,'RRR hist-forc'!K21,0) -> 0 | AJ21: =IF($A21>0,AI21*H21,0) -> 0
A22: ='Asset data'!A22 -> 1 | B22: ='Asset data'!B22 -> 0 | C22: ='Asset data'!C22 -> 0 | D22: ='Asset data'!E22 -> ˂ ≈ 11 kv ; stobie | E22: POLES | F22: =IF(A22>0,SUM('Asset data'!J22:CV22),0) -> 534982.354 | G22: =IF(A22>0,'Asset data'!F22,0) -> 3.908477964 | H22: =IF(A22>0,SUM('Asset data'!CX22:GJ22),0) -> 2090966.742 | I22: 0.1071491286 | J22: 4 | K22: =IF(A22>0,H22/(VLOOKUP(A22,$A$6:$H$17,8)*1000),0) -> 0.7130450914 | L22: =IF($A22>0,H22/F22,0) -> 3.908477964 | M22: =IF($A22>0,SUMPRODUCT('Age profile (years)'!$CT22:$GF22,'Asset data'!$CX22:$GJ22)/H22-0.5,0) -> 29.23852302 | N22: =IF($A22>0,M22*H22,0) -> 61136779.21 | O22: =IF($A22>0,'Asset data'!G22,0) -> 74.58328491 | P22: =IF($A22>0,H22*O22,0) -> 155951168.2 | Q22: =IF($A22>0,(O22-M22)/O22,0) -> 0.6079748559 | R22: 7.458328491 | S22: 14.91665698 | T22: 44.74997095 | U22: 59.66662793 | W22: =IF($A22>0,SUMIF('Age profile (years)'!$CT22:$GF22,"<" & R22+0.5,'Asset data'!$CX22:$GJ22),0) -> 112375.5188 | X22: =IF($A22>0,SUMIF('Age profile (years)'!$CT22:$GF22,"<" & S22+0.5,'Asset data'!$CX22:$GJ22)-W22,0) -> 173209.3836 | Y22: =IF($A22>0,SUMIF('Age profile (years)'!$CT22:$GF22,"<" & T22+0.5,'Asset data'!$CX22:$GJ22)-X22-W22,0) -> 1478257.719 | Z22: =IF($A22>0,SUMIF('Age profile (years)'!$CT22:$GF22,"<" & U22+0.5,'Asset data'!$CX22:$GJ22)-Y22-X22-W22,0) -> 232249.2375 | AA22: =IF($A22>0,H22-Z22-Y22-X22-W22,0) -> 94874.88266 | AB22: 0.0537433315 | AC22: 0.08283698643 | AD22: 0.7069733294 | AE22: 0.1110726598 | AF22: 0.04537369283 | AI22: =IF($A22>0,'RRR hist-forc'!K22,0) -> 74.58328491 | AJ22: =IF($A22>0,AI22*H22,0) -> 155951168.2
A23: ='Asset data'!A23 -> 1 | B23: ='Asset data'!B23 -> 0 | C23: ='Asset data'!C23 -> 0 | D23: ='Asset data'!E23 -> > 11 kv & <≈ 33 kv ; stobie | E23: =IF(A23>0,VLOOKUP(A23,IDtable,2),0) -> POLES | F23: =IF(A23>0,SUM('Asset data'!J23:CV23),0) -> 158626.051 | G23: =IF(A23>0,'Asset data'!F23,0) -> 3.728052501 | H23: =IF(A23>0,SUM('Asset data'!CX23:GJ23),0) -> 591366.2461 | I23: =H23/$H$18/1000 -> 0.03030386695 | J23: =IF(RANK(0,I$21:I$205)=RANK(I23,I$21:I$205),0,RANK(I23,I$21:I$205)) -> 8 | K23: =IF(A23>0,H23/(VLOOKUP(A23,$A$6:$H$17,8)*1000),0) -> 0.2016630827 | L23: =IF($A23>0,H23/F23,0) -> 3.728052501 | M23: =IF($A23>0,SUMPRODUCT('Age profile (years)'!$CT23:$GF23,'Asset data'!$CX23:$GJ23)/H23-0.5,0) -> 28.02564849 | N23: =IF($A23>0,M23*H23,0) -> 16573422.54 | O23: =IF($A23>0,'Asset data'!G23,0) -> 72.94889216 | P23: =IF($A23>0,H23*O23,0) -> 43139512.52 | Q23: =IF($A23>0,(O23-M23)/O23,0) -> 0.6158180384 | R23: 7.294889216 | S23: 14.58977843 | T23: 43.7693353 | U23: 58.35911373 | W23: =IF($A23>0,SUMIF('Age profile (years)'!$CT23:$GF23,"<" & R23+0.5,'Asset data'!$CX23:$GJ23),0) -> 18430.39924 | X23: =IF($A23>0,SUMIF('Age profile (years)'!$CT23:$GF23,"<" & S23+0.5,'Asset data'!$CX23:$GJ23)-W23,0) -> 42227.10265 | Y23: =IF($A23>0,SUMIF('Age profile (years)'!$CT23:$GF23,"<" & T23+0.5,'Asset data'!$CX23:$GJ23)-X23-W23,0) -> 461447.8552 | Z23: =IF($A23>0,SUMIF('Age profile (years)'!$CT23:$GF23,"<" & U23+0.5,'Asset data'!$CX23:$GJ23)-Y23-X23-W23,0) -> 56755.61031 | AA23: =IF($A23>0,H23-Z23-Y23-X23-W23,0) -> 12505.27865 | AB23: =IF($A23>0,W23/$H23,0) -> 0.03116579508 | AC23: =IF($A23>0,X23/$H23,0) -> 0.07140600758 | AD23: =IF($A23>0,Y23/$H23,0) -> 0.7803080718 | AE23: =IF($A23>0,Z23/$H23,0) -> 0.09597370611 | AF23: =IF($A23>0,AA23/$H23,0) -> 0.02114641939 | AI23: =IF($A23>0,'RRR hist-forc'!K23,0) -> 72.94889216 | AJ23: =IF($A23>0,AI23*H23,0) -> 43139512.52
A24: ='Asset data'!A24 -> 1 | B24: ='Asset data'!B24 -> 0 | C24: ='Asset data'!C24 -> 0 | D24: ='Asset data'!E24 -> > 33 kv & <≈ 66 kv ; stobie | E24: POLES | F24: =IF(A24>0,SUM('Asset data'!J24:CV24),0) -> 33189.646 | G24: =IF(A24>0,'Asset data'!F24,0) -> 3.728052501 | H24: =IF(A24>0,SUM('Asset data'!CX24:GJ24),0) -> 123732.7428 | I24: 0.006340538709 | J24: 22 | K24: 0.04219437025 | L24: 3.728052501 | M24: =IF($A24>0,SUMPRODUCT('Age profile (years)'!$CT24:$GF24,'Asset data'!$CX24:$GJ24)/H24-0.5,0) -> 24.85467537 | N24: 3075337.154 | O24: =IF($A24>0,'Asset data'!G24,0) -> 74.22959896 | P24: 9184631.873 | Q24: 0.6651648976 | R24: 7.422959896 | S24: 14.84591979 | T24: 44.53775937 | U24: 59.38367916 | W24: =IF($A24>0,SUMIF('Age profile (years)'!$CT24:$GF24,"<" & R24+0.5,'Asset data'!$CX24:$GJ24),0) -> 15022.92571 | X24: =IF($A24>0,SUMIF('Age profile (years)'!$CT24:$GF24,"<" & S24+0.5,'Asset data'!$CX24:$GJ24)-W24,0) -> 23517.3828 | Y24: =IF($A24>0,SUMIF('Age profile (years)'!$CT24:$GF24,"<" & T24+0.5,'Asset data'!$CX24:$GJ24)-X24-W24,0) -> 68455.22699 | Z24: =IF($A24>0,SUMIF('Age profile (years)'!$CT24:$GF24,"<" & U24+0.5,'Asset data'!$CX24:$GJ24)-Y24-X24-W24,0) -> 13551.12413 | AA24: 3186.08314 | AB24: 0.121414311 | AC24: 0.1900659621 | AD24: 0.5532507035 | AE24: 0.1095193061 | AF24: 0.02574971725 | AI24: =IF($A24>0,'RRR hist-forc'!K24,0) -> 74.22959896 | AJ24: 9184631.873
A25: ='Asset data'!A25 -> 0 | B25: ='Asset data'!B25 -> 0 | C25: ='Asset data'!C25 -> 0 | D25: ='Asset data'!E25 -> ˂ = 1 kv | E25: 0 | F25: =IF(A25>0,SUM('Asset data'!J25:CV25),0) -> 0 | G25: =IF(A25>0,'Asset data'!F25,0) -> 0 | H25: =IF(A25>0,SUM('Asset data'!CX25:GJ25),0) -> 0 | I25: 0 | J25: 0 | K25: 0 | L25: 0 | M25: =IF($A25>0,SUMPRODUCT('Age profile (years)'!$CT25:$GF25,'Asset data'!$CX25:$GJ25)/H25-0.5,0) -> 0 | N25: 0 | O25: =IF($A25>0,'Asset data'!G25,0) -> 0 | P25: 0 | Q25: 0 | R25: 0 | S25: 0 | T25: 0 | U25: 0 | W25: =IF($A25>0,SUMIF('Age profile (years)'!$CT25:$GF25,"<" & R25+0.5,'Asset data'!$CX25:$GJ25),0) -> 0 | X25: =IF($A25>0,SUMIF('Age profile (years)'!$CT25:$GF25,"<" & S25+0.5,'Asset data'!$CX25:$GJ25)-W25,0) -> 0 | Y25: =IF($A25>0,SUMIF('Age profile (years)'!$CT25:$GF25,"<" & T25+0.5,'Asset data'!$CX25:$GJ25)-X25-W25,0) -> 0 | Z25: =IF($A25>0,SUMIF('Age profile (years)'!$CT25:$GF25,"<" & U25+0.5,'Asset data'!$CX25:$GJ25)-Y25-X25-W25,0) -> 0 | AA25: 0 | AB25: 0 | AC25: 0 | AD25: 0 | AE25: 0 | AF25: 0 | AI25: =IF($A25>0,'RRR hist-forc'!K25,0) -> 0 | AJ25: 0
A26: ='Asset data'!A26 -> 0 | B26: ='Asset data'!B26 -> 0 | C26: ='Asset data'!C26 -> 0 | D26: ='Asset data'!E26 -> > 1 kv & < = 11 kv | E26: 0 | F26: =IF(A26>0,SUM('Asset data'!J26:CV26),0) -> 0 | G26: =IF(A26>0,'Asset data'!F26,0) -> 0 | H26: =IF(A26>0,SUM('Asset data'!CX26:GJ26),0) -> 0 | I26: 0 | J26: 0 | K26: 0 | L26: 0 | M26: =IF($A26>0,SUMPRODUCT('Age profile (years)'!$CT26:$GF26,'Asset data'!$CX26:$GJ26)/H26-0.5,0) -> 0 | N26: 0 | O26: =IF($A26>0,'Asset data'!G26,0) -> 0 | P26: 0 | Q26: 0 | R26: 0 | S26: 0 | T26: 0 | U26: 0 | W26: =IF($A26>0,SUMIF('Age profile (years)'!$CT26:$GF26,"<" & R26+0.5,'Asset data'!$CX26:$GJ26),0) -> 0 | X26: =IF($A26>0,SUMIF('Age profile (years)'!$CT26:$GF26,"<" & S26+0.5,'Asset data'!$CX26:$GJ26)-W26,0) -> 0 | Y26: =IF($A26>0,SUMIF('Age profile (years)'!$CT26:$GF26,"<" & T26+0.5,'Asset data'!$CX26:$GJ26)-X26-W26,0) -> 0 | Z26: =IF($A26>0,SUMIF('Age profile (years)'!$CT26:$GF26,"<" & U26+0.5,'Asset data'!$CX26:$GJ26)-Y26-X26-W26,0) -> 0 | AA26: 0 | AB26: 0 | AC26: 0 | AD26: 0 | AE26: 0 | AF26: 0 | AI26: =IF($A26>0,'RRR hist-forc'!K26,0) -> 0 | AJ26: 0
A27: ='Asset data'!A27 -> 0 | B27: ='Asset data'!B27 -> 0 | C27: ='Asset data'!C27 -> 0 | D27: ='Asset data'!E27 -> ˃ 11 kv & < = 22 kv | E27: 0 | F27: =IF(A27>0,SUM('Asset data'!J27:CV27),0) -> 0 | G27: =IF(A27>0,'Asset data'!F27,0) -> 0 | H27: =IF(A27>0,SUM('Asset data'!CX27:GJ27),0) -> 0 | I27: 0 | J27: 0 | K27: 0 | L27: 0 | M27: =IF($A27>0,SUMPRODUCT('Age profile (years)'!$CT27:$GF27,'Asset data'!$CX27:$GJ27)/H27-0.5,0) -> 0 | N27: 0 | O27: =IF($A27>0,'Asset data'!G27,0) -> 0 | P27: 0 | Q27: 0 | R27: 0 | S27: 0 | T27: 0 | U27: 0 | W27: =IF($A27>0,SUMIF('Age profile (years)'!$CT27:$GF27,"<" & R27+0.5,'Asset data'!$CX27:$GJ27),0) -> 0 | X27: =IF($A27>0,SUMIF('Age profile (years)'!$CT27:$GF27,"<" & S27+0.5,'Asset data'!$CX27:$GJ27)-W27,0) -> 0 | Y27: =IF($A27>0,SUMIF('Age profile (years)'!$CT27:$GF27,"<" & T27+0.5,'Asset data'!$CX27:$GJ27)-X27-W27,0) -> 0 | Z27: =IF($A27>0,SUMIF('Age profile (years)'!$CT27:$GF27,"<" & U27+0.5,'Asset data'!$CX27:$GJ27)-Y27-X27-W27,0) -> 0 | AA27: 0 | AB27: 0 | AC27: 0 | AD27: 0 | AE27: 0 | AF27: 0 | AI27: =IF($A27>0,'RRR hist-forc'!K27,0) -> 0 | AJ27: 0
A28: ='Asset data'!A28 -> 0 | B28: ='Asset data'!B28 -> 0 | C28: ='Asset data'!C28 -> 0 | D28: ='Asset data'!E28 -> > 22 kv & < = 66 kv | E28: 0 | F28: =IF(A28>0,SUM('Asset data'!J28:CV28),0) -> 0 | G28: =IF(A28>0,'Asset data'!F28,0) -> 0 | H28: =IF(A28>0,SUM('Asset data'!CX28:GJ28),0) -> 0 | I28: 0 | J28: 0 | K28: 0 | L28: 0 | M28: =IF($A28>0,SUMPRODUCT('Age profile (years)'!$CT28:$GF28,'Asset data'!$CX28:$GJ28)/H28-0.5,0) -> 0 | N28: 0 | O28: =IF($A28>0,'Asset data'!G28,0) -> 0 | P28: 0 | Q28: 0 | R28: 0 | S28: 0 | T28: 0 | U28: 0 | W28: =IF($A28>0,SUMIF('Age profile (years)'!$CT28:$GF28,"<" & R28+0.5,'Asset data'!$CX28:$GJ28),0) -> 0 | X28: =IF($A28>0,SUMIF('Age profile (years)'!$CT28:$GF28,"<" & S28+0.5,'Asset data'!$CX28:$GJ28)-W28,0) -> 0 | Y28: =IF($A28>0,SUMIF('Age profile (years)'!$CT28:$GF28,"<" & T28+0.5,'Asset data'!$CX28:$GJ28)-X28-W28,0) -> 0 | Z28: =IF($A28>0,SUMIF('Age profile (years)'!$CT28:$GF28,"<" & U28+0.5,'Asset data'!$CX28:$GJ28)-Y28-X28-W28,0) -> 0 | AA28: 0 | AB28: 0 | AC28: 0 | AD28: 0 | AE28: 0 | AF28: 0 | AI28: =IF($A28>0,'RRR hist-forc'!K28,0) -> 0 | AJ28: 0
A29: ='Asset data'!A29 -> 0 | B29: ='Asset data'!B29 -> 0 | C29: ='Asset data'!C29 -> 0 | D29: ='Asset data'!E29 -> > 66 kv & < = 132 kv | E29: 0 | F29: =IF(A29>0,SUM('Asset data'!J29:CV29),0) -> 0 | G29: =IF(A29>0,'Asset data'!F29,0) -> 0 | H29: =IF(A29>0,SUM('Asset data'!CX29:GJ29),0) -> 0 | I29: 0 | J29: 0 | K29: 0 | L29: 0 | M29: =IF($A29>0,SUMPRODUCT('Age profile (years)'!$CT29:$GF29,'Asset data'!$CX29:$GJ29)/H29-0.5,0) -> 0 | N29: 0 | O29: =IF($A29>0,'Asset data'!G29,0) -> 0 | P29: 0 | Q29: 0 | R29: 0 | S29: 0 | T29: 0 | U29: 0 | W29: =IF($A29>0,SUMIF('Age profile (years)'!$CT29:$GF29,"<" & R29+0.5,'Asset data'!$CX29:$GJ29),0) -> 0 | X29: =IF($A29>0,SUMIF('Age profile (years)'!$CT29:$GF29,"<" & S29+0.5,'Asset data'!$CX29:$GJ29)-W29,0) -> 0 | Y29: =IF($A29>0,SUMIF('Age profile (years)'!$CT29:$GF29,"<" & T29+0.5,'Asset data'!$CX29:$GJ29)-X29-W29,0) -> 0 | Z29: =IF($A29>0,SUMIF('Age profile (years)'!$CT29:$GF29,"<" & U29+0.5,'Asset data'!$CX29:$GJ29)-Y29-X29-W29,0) -> 0 | AA29: 0 | AB29: 0 | AC29: 0 | AD29: 0 | AE29: 0 | AF29: 0 | AI29: =IF($A29>0,'RRR hist-forc'!K29,0) -> 0 | AJ29: 0
A30: ='Asset data'!A30 -> 0 | B30: ='Asset data'!B30 -> 0 | C30: ='Asset data'!C30 -> 0 | D30: ='Asset data'!E30 -> > 132 kv | E30: 0 | F30: =IF(A30>0,SUM('Asset data'!J30:CV30),0) -> 0 | G30: =IF(A30>0,'Asset data'!F30,0) -> 0 | H30: =IF(A30>0,SUM('Asset data'!CX30:GJ30),0) -> 0 | I30: 0 | J30: 0 | K30: 0 | L30: 0 | M30: =IF($A30>0,SUMPRODUCT('Age profile (years)'!$CT30:$GF30,'Asset data'!$CX30:$GJ30)/H30-0.5,0) -> 0 | N30: 0 | O30: =IF($A30>0,'Asset data'!G30,0) -> 0 | P30: 0 | Q30: 0 | R30: 0 | S30: 0 | T30: 0 | U30: 0 | W30: =IF($A30>0,SUMIF('Age profile (years)'!$CT30:$GF30,"<" & R30+0.5,'Asset data'!$CX30:$GJ30),0) -> 0 | X30: =IF($A30>0,SUMIF('Age profile (years)'!$CT30:$GF30,"<" & S30+0.5,'Asset data'!$CX30:$GJ30)-W30,0) -> 0 | Y30: =IF($A30>0,SUMIF('Age profile (years)'!$CT30:$GF30,"<" & T30+0.5,'Asset data'!$CX30:$GJ30)-X30-W30,0) -> 0 | Z30: =IF($A30>0,SUMIF('Age profile (years)'!$CT30:$GF30,"<" & U30+0.5,'Asset data'!$CX30:$GJ30)-Y30-X30-W30,0) -> 0 | AA30: 0 | AB30: 0 | AC30: 0 | AD30: 0 | AE30: 0 | AF30: 0 | AI30: =IF($A30>0,'RRR hist-forc'!K30,0) -> 0 | AJ30: 0
A31: ='Asset data'!A31 -> 0 | B31: ='Asset data'!B31 -> 0 | C31: ='Asset data'!C31 -> 0 | D31: ='Asset data'!E31 -> other | E31: 0 | F31: =IF(A31>0,SUM('Asset data'!J31:CV31),0) -> 0 | G31: =IF(A31>0,'Asset data'!F31,0) -> 0 | H31: =IF(A31>0,SUM('Asset data'!CX31:GJ31),0) -> 0 | I31: 0 | J31: 0 | K31: 0 | L31: 0 | M31: =IF($A31>0,SUMPRODUCT('Age profile (years)'!$CT31:$GF31,'Asset data'!$CX31:$GJ31)/H31-0.5,0) -> 0 | N31: 0 | O31: =IF($A31>0,'Asset data'!G31,0) -> 0 | P31: 0 | Q31: 0 | R31: 0 | S31: 0 | T31: 0 | U31: 0 | W31: =IF($A31>0,SUMIF('Age profile (years)'!$CT31:$GF31,"<" & R31+0.5,'Asset data'!$CX31:$GJ31),0) -> 0 | X31: =IF($A31>0,SUMIF('Age profile (years)'!$CT31:$GF31,"<" & S31+0.5,'Asset data'!$CX31:$GJ31)-W31,0) -> 0 | Y31: =IF($A31>0,SUMIF('Age profile (years)'!$CT31:$GF31,"<" & T31+0.5,'Asset data'!$CX31:$GJ31)-X31-W31,0) -> 0 | Z31: =IF($A31>0,SUMIF('Age profile (years)'!$CT31:$GF31,"<" & U31+0.5,'Asset data'!$CX31:$GJ31)-Y31-X31-W31,0) -> 0 | AA31: 0 | AB31: 0 | AC31: 0 | AD31: 0 | AE31: 0 | AF31: 0 | AI31: =IF($A31>0,'RRR hist-forc'!K31,0) -> 0 | AJ31: 0
A32: ='Asset data'!A32 -> 2 | B32: ='Asset data'!B32 -> 0 | C32: ='Asset data'!C32 -> 0 | D32: ='Asset data'!E32 -> ˂ = 1 kv | E32: OVERHEAD CONDUCTORS | F32: =IF(A32>0,SUM('Asset data'!J32:CV32),0) -> 75829 | G32: =IF(A32>0,'Asset data'!F32,0) -> 33.8961 | H32: =IF(A32>0,SUM('Asset data'!CX32:GJ32),0) -> 2570307.367 | I32: 0.1317123745 | J32: 2 | K32: 0.5927247972 | L32: 33.8961 | M32: =IF($A32>0,SUMPRODUCT('Age profile (years)'!$CT32:$GF32,'Asset data'!$CX32:$GJ32)/H32-0.5,0) -> 34.24184019 | N32: 88012054.1 | O32: =IF($A32>0,'Asset data'!G32,0) -> 86.25613562 | P32: 221704780.8 | Q32: 0.6030213973 | R32: 8.625613562 | S32: 17.25122712 | T32: 51.75368137 | U32: 69.0049085 | W32: =IF($A32>0,SUMIF('Age profile (years)'!$CT32:$GF32,"<" & R32+0.5,'Asset data'!$CX32:$GJ32),0) -> 0 | X32: =IF($A32>0,SUMIF('Age profile (years)'!$CT32:$GF32,"<" & S32+0.5,'Asset data'!$CX32:$GJ32)-W32,0) -> 6304.6746 | Y32: =IF($A32>0,SUMIF('Age profile (years)'!$CT32:$GF32,"<" & T32+0.5,'Asset data'!$CX32:$GJ32)-X32-W32,0) -> 2392691.803 | Z32: =IF($A32>0,SUMIF('Age profile (years)'!$CT32:$GF32,"<" & U32+0.5,'Asset data'!$CX32:$GJ32)-Y32-X32-W32,0) -> 107077.7799 | AA32: 64233.1095 | AB32: 0 | AC32: 0.002452887418 | AD32: 0.9308971502 | AE32: 0.0416595234 | AF32: 0.02499043901 | AI32: =IF($A32>0,'RRR hist-forc'!K32,0) -> 86.25613562 | AJ32: 221704780.8
A33: ='Asset data'!A33 -> 2 | B33: ='Asset data'!B33 -> 0 | C33: ='Asset data'!C33 -> 0 | D33: ='Asset data'!E33 -> > 1 kv & < = 11 kv | E33: OVERHEAD CONDUCTORS | F33: =IF(A33>0,SUM('Asset data'!J33:CV33),0) -> 53170 | G33: =IF(A33>0,'Asset data'!F33,0) -> 17.7758 | H33: =IF(A33>0,SUM('Asset data'!CX33:GJ33),0) -> 945139.286 | I33: 0.04843254982 | J33: 5 | K33: 0.2179535019 | L33: 17.7758 | M33: =IF($A33>0,SUMPRODUCT('Age profile (years)'!$CT33:$GF33,'Asset data'!$CX33:$GJ33)/H33-0.5,0) -> 22.54809103 | N33: 21311086.66 | O33: =IF($A33>0,'Asset data'!G33,0) -> 73.85639696 | P33: 69804582.29 | Q33: 0.6947036146 | R33: 7.385639696 | S33: 14.77127939 | T33: 44.31383818 | U33: 59.08511757 | W33: =IF($A33>0,SUMIF('Age profile (years)'!$CT33:$GF33,"<" & R33+0.5,'Asset data'!$CX33:$GJ33),0) -> 0 | X33: =IF($A33>0,SUMIF('Age profile (years)'!$CT33:$GF33,"<" & S33+0.5,'Asset data'!$CX33:$GJ33)-W33,0) -> 119222.2906 | Y33: =IF($A33>0,SUMIF('Age profile (years)'!$CT33:$GF33,"<" & T33+0.5,'Asset data'!$CX33:$GJ33)-X33-W33,0) -> 777300.1824 | Z33: =IF($A33>0,SUMIF('Age profile (years)'!$CT33:$GF33,"<" & U33+0.5,'Asset data'!$CX33:$GJ33)-Y33-X33-W33,0) -> 34360.6214 | AA33: 14256.1916 | AB33: 0 | AC33: 0.1261425616 | AD33: 0.8224186571 | AE33: 0.03635508746 | AF33: 0.01508369381 | AI33: =IF($A33>0,'RRR hist-forc'!K33,0) -> 73.85639696 | AJ33: 69804582.29
A34: ='Asset data'!A34 -> 2 | B34: ='Asset data'!B34 -> 0 | C34: ='Asset data'!C34 -> 0 | D34: ='Asset data'!E34 -> ˃ 11 kv & < = 22 kv ; swer | E34: OVERHEAD CONDUCTORS | F34: =IF(A34>0,SUM('Asset data'!J34:CV34),0) -> 29092 | G34: =IF(A34>0,'Asset data'!F34,0) -> 15.2902 | H34: =IF(A34>0,SUM('Asset data'!CX34:GJ34),0) -> 444822.4984 | I34: 0.02279440516 | J34: 10 | K34: 0.1025781308 | L34: 15.2902 | M34: =IF($A34>0,SUMPRODUCT('Age profile (years)'!$CT34:$GF34,'Asset data'!$CX34:$GJ34)/H34-0.5,0) -> 30.9639076 | N34: 13773442.74 | O34: =IF($A34>0,'Asset data'!G34,0) -> 78.80328732 | P34: 35053475.15 | Q34: 0.6070734019 | R34: 7.880328732 | S34: 15.76065746 | T34: 47.28197239 | U34: 63.04262986 | W34: =IF($A34>0,SUMIF('Age profile (years)'!$CT34:$GF34,"<" & R34+0.5,'Asset data'!$CX34:$GJ34),0) -> 0 | X34: =IF($A34>0,SUMIF('Age profile (years)'!$CT34:$GF34,"<" & S34+0.5,'Asset data'!$CX34:$GJ34)-W34,0) -> 0 | Y34: =IF($A34>0,SUMIF('Age profile (years)'!$CT34:$GF34,"<" & T34+0.5,'Asset data'!$CX34:$GJ34)-X34-W34,0) -> 422437.6456 | Z34: =IF($A34>0,SUMIF('Age profile (years)'!$CT34:$GF34,"<" & U34+0.5,'Asset data'!$CX34:$GJ34)-Y34-X34-W34,0) -> 20993.4446 | AA34: 1391.4082 | AB34: 0 | AC34: 0 | AD34: 0.9496768871 | AE34: 0.04719510518 | AF34: 0.0031280077 | AI34: =IF($A34>0,'RRR hist-forc'!K34,0) -> 78.80328732 | AJ34: 35053475.15
A35: ='Asset data'!A35 -> 0 | B35: ='Asset data'!B35 -> 0 | C35: ='Asset data'!C35 -> 0 | D35: ='Asset data'!E35 -> ˃ 11 kv & < = 22 kv ; single-phase | E35: 0 | F35: =IF(A35>0,SUM('Asset data'!J35:CV35),0) -> 0 | G35: =IF(A35>0,'Asset data'!F35,0) -> 0 | H35: =IF(A35>0,SUM('Asset data'!CX35:GJ35),0) -> 0 | I35: 0 | J35: 0 | K35: 0 | L35: 0 | M35: =IF($A35>0,SUMPRODUCT('Age profile (years)'!$CT35:$GF35,'Asset data'!$CX35:$GJ35)/H35-0.5,0) -> 0 | N35: 0 | O35: =IF($A35>0,'Asset data'!G35,0) -> 0 | P35: 0 | Q35: 0 | R35: 0 | S35: 0 | T35: 0 | U35: 0 | W35: =IF($A35>0,SUMIF('Age profile (years)'!$CT35:$GF35,"<" & R35+0.5,'Asset data'!$CX35:$GJ35),0) -> 0 | X35: =IF($A35>0,SUMIF('Age profile (years)'!$CT35:$GF35,"<" & S35+0.5,'Asset data'!$CX35:$GJ35)-W35,0) -> 0 | Y35: =IF($A35>0,SUMIF('Age profile (years)'!$CT35:$GF35,"<" & T35+0.5,'Asset data'!$CX35:$GJ35)-X35-W35,0) -> 0 | Z35: =IF($A35>0,SUMIF('Age profile (years)'!$CT35:$GF35,"<" & U35+0.5,'Asset data'!$CX35:$GJ35)-Y35-X35-W35,0) -> 0 | AA35: 0 | AB35: 0 | AC35: 0 | AD35: 0 | AE35: 0 | AF35: 0 | AI35: =IF($A35>0,'RRR hist-forc'!K35,0) -> 0 | AJ35: 0
A36: ='Asset data'!A36 -> 0 | B36: ='Asset data'!B36 -> 0 | C36: ='Asset data'!C36 -> 0 | D36: ='Asset data'!E36 -> ˃ 11 kv & < = 22 kv ; multiple-phase | E36: 0 | F36: =IF(A36>0,SUM('Asset data'!J36:CV36),0) -> 0 | G36: =IF(A36>0,'Asset data'!F36,0) -> 0 | H36: =IF(A36>0,SUM('Asset data'!CX36:GJ36),0) -> 0 | I36: 0 | J36: 0 | K36: 0 | L36: 0 | M36: =IF($A36>0,SUMPRODUCT('Age profile (years)'!$CT36:$GF36,'Asset data'!$CX36:$GJ36)/H36-0.5,0) -> 0 | N36: 0 | O36: =IF($A36>0,'Asset data'!G36,0) -> 0 | P36: 0 | Q36: 0 | R36: 0 | S36: 0 | T36: 0 | U36: 0 | W36: =IF($A36>0,SUMIF('Age profile (years)'!$CT36:$GF36,"<" & R36+0.5,'Asset data'!$CX36:$GJ36),0) -> 0 | X36: =IF($A36>0,SUMIF('Age profile (years)'!$CT36:$GF36,"<" & S36+0.5,'Asset data'!$CX36:$GJ36)-W36,0) -> 0 | Y36: =IF($A36>0,SUMIF('Age profile (years)'!$CT36:$GF36,"<" & T36+0.5,'Asset data'!$CX36:$GJ36)-X36-W36,0) -> 0 | Z36: =IF($A36>0,SUMIF('Age profile (years)'!$CT36:$GF36,"<" & U36+0.5,'Asset data'!$CX36:$GJ36)-Y36-X36-W36,0) -> 0 | AA36: 0 | AB36: 0 | AC36: 0 | AD36: 0 | AE36: 0 | AF36: 0 | AI36: =IF($A36>0,'RRR hist-forc'!K36,0) -> 0 | AJ36: 0
A37: ='Asset data'!A37 -> 2 | B37: ='Asset data'!B37 -> 0 | C37: ='Asset data'!C37 -> 0 | D37: ='Asset data'!E37 -> > 22 kv & < = 66 kv | E37: OVERHEAD CONDUCTORS | F37: =IF(A37>0,SUM('Asset data'!J37:CV37),0) -> 16158.875 | G37: =IF(A37>0,'Asset data'!F37,0) -> 20.8002 | H37: =IF(A37>0,SUM('Asset data'!CX37:GJ37),0) -> 336107.8318 | I37: 0.01722345008 | J37: 12 | K37: 0.07750802453 | L37: 20.8002 | M37: =IF($A37>0,SUMPRODUCT('Age profile (years)'!$CT37:$GF37,'Asset data'!$CX37:$GJ37)/H37-0.5,0) -> 41.92719843 | N37: 14092059.76 | O37: =IF($A37>0,'Asset data'!G37,0) -> 89.7606796 | P37: 30169267.4 | Q37: 0.5329001672 | R37: =IF($A37>0,$O37-R$4*$O37,0) -> 8.97606796 | S37: 17.95213592 | T37: 53.85640776 | U37: 71.80854368 | W37: =IF($A37>0,SUMIF('Age profile (years)'!$CT37:$GF37,"<" & R37+0.5,'Asset data'!$CX37:$GJ37),0) -> 9840.366618 | X37: =IF($A37>0,SUMIF('Age profile (years)'!$CT37:$GF37,"<" & S37+0.5,'Asset data'!$CX37:$GJ37)-W37,0) -> 16389.22639 | Y37: =IF($A37>0,SUMIF('Age profile (years)'!$CT37:$GF37,"<" & T37+0.5,'Asset data'!$CX37:$GJ37)-X37-W37,0) -> 242747.9229 | Z37: =IF($A37>0,SUMIF('Age profile (years)'!$CT37:$GF37,"<" & U37+0.5,'Asset data'!$CX37:$GJ37)-Y37-X37-W37,0) -> 47002.73195 | AA37: 20127.58393 | AB37: 0.02927740947 | AC37: 0.04876181046 | AD37: 0.7222322717 | AE37: 0.1398442033 | AF37: 0.05988430506 | AI37: =IF($A37>0,'RRR hist-forc'!K37,0) -> 89.7606796 | AJ37: 30169267.4
A38: ='Asset data'!A38 -> 2 | B38: ='Asset data'!B38 -> 0 | C38: ='Asset data'!C38 -> 0 | D38: ='Asset data'!E38 -> > 66 kv & < = 132 kv | E38: OVERHEAD CONDUCTORS | F38: =IF(A38>0,SUM('Asset data'!J38:CV38),0) -> 33 | G38: =IF(A38>0,'Asset data'!F38,0) -> 1213.614 | H38: =IF(A38>0,SUM('Asset data'!CX38:GJ38),0) -> 40049.262 | I38: 0.002052277274 | J38: 34 | K38: 0.009235545524 | L38: 1213.614 | M38: =IF($A38>0,SUMPRODUCT('Age profile (years)'!$CT38:$GF38,'Asset data'!$CX38:$GJ38)/H38-0.5,0) -> 2.5 | N38: 100123.155 | O38: =IF($A38>0,'Asset data'!G38,0) -> 10.29774871 | P38: 412417.236 | Q38: 0.7572284903 | R38: 1.029774871 | S38: 2.059549742 | T38: 6.178649225 | U38: 8.238198966 | W38: =IF($A38>0,SUMIF('Age profile (years)'!$CT38:$GF38,"<" & R38+0.5,'Asset data'!$CX38:$GJ38),0) -> 0 | X38: =IF($A38>0,SUMIF('Age profile (years)'!$CT38:$GF38,"<" & S38+0.5,'Asset data'!$CX38:$GJ38)-W38,0) -> 0 | Y38: =IF($A38>0,SUMIF('Age profile (years)'!$CT38:$GF38,"<" & T38+0.5,'Asset data'!$CX38:$GJ38)-X38-W38,0) -> 40049.262 | Z38: =IF($A38>0,SUMIF('Age profile (years)'!$CT38:$GF38,"<" & U38+0.5,'Asset data'!$CX38:$GJ38)-Y38-X38-W38,0) -> 0 | AA38: 0 | AB38: 0 | AC38: 0 | AD38: 1 | AE38: 0 | AF38: 0 | AI38: =IF($A38>0,'RRR hist-forc'!K38,0) -> 10.29774871 | AJ38: 412417.236
A39: ='Asset data'!A39 -> 0 | B39: ='Asset data'!B39 -> 0 | C39: ='Asset data'!C39 -> 0 | D39: ='Asset data'!E39 -> > 132 kv | E39: 0 | F39: =IF(A39>0,SUM('Asset data'!J39:CV39),0) -> 0 | G39: =IF(A39>0,'Asset data'!F39,0) -> 0 | H39: =IF(A39>0,SUM('Asset data'!CX39:GJ39),0) -> 0 | I39: 0 | J39: 0 | K39: 0 | L39: 0 | M39: =IF($A39>0,SUMPRODUCT('Age profile (years)'!$CT39:$GF39,'Asset data'!$CX39:$GJ39)/H39-0.5,0) -> 0 | N39: 0 | O39: =IF($A39>0,'Asset data'!G39,0) -> 0 | P39: 0 | Q39: 0 | R39: 0 | S39: 0 | T39: 0 | U39: 0 | W39: =IF($A39>0,SUMIF('Age profile (years)'!$CT39:$GF39,"<" & R39+0.5,'Asset data'!$CX39:$GJ39),0) -> 0 | X39: =IF($A39>0,SUMIF('Age profile (years)'!$CT39:$GF39,"<" & S39+0.5,'Asset data'!$CX39:$GJ39)-W39,0) -> 0 | Y39: =IF($A39>0,SUMIF('Age profile (years)'!$CT39:$GF39,"<" & T39+0.5,'Asset data'!$CX39:$GJ39)-X39-W39,0) -> 0 | Z39: =IF($A39>0,SUMIF('Age profile (years)'!$CT39:$GF39,"<" & U39+0.5,'Asset data'!$CX39:$GJ39)-Y39-X39-W39,0) -> 0 | AA39: 0 | AB39: 0 | AC39: 0 | AD39: 0 | AE39: 0 | AF39: 0 | AI39: =IF($A39>0,'RRR hist-forc'!K39,0) -> 0 | AJ39: 0
A40: ='Asset data'!A40 -> 0 | B40: ='Asset data'!B40 -> 0 | C40: ='Asset data'!C40 -> 0 | D40: ='Asset data'!E40 -> other | E40: 0 | F40: =IF(A40>0,SUM('Asset data'!J40:CV40),0) -> 0 | G40: =IF(A40>0,'Asset data'!F40,0) -> 0 | H40: =IF(A40>0,SUM('Asset data'!CX40:GJ40),0) -> 0 | I40: 0 | J40: 0 | K40: 0 | L40: 0 | M40: =IF($A40>0,SUMPRODUCT('Age profile (years)'!$CT40:$GF40,'Asset data'!$CX40:$GJ40)/H40-0.5,0) -> 0 | N40: 0 | O40: =IF($A40>0,'Asset data'!G40,0) -> 0 | P40: 0 | Q40: 0 | R40: 0 | S40: 0 | T40: 0 | U40: 0 | W40: =IF($A40>0,SUMIF('Age profile (years)'!$CT40:$GF40,"<" & R40+0.5,'Asset data'!$CX40:$GJ40),0) -> 0 | X40: =IF($A40>0,SUMIF('Age profile (years)'!$CT40:$GF40,"<" & S40+0.5,'Asset data'!$CX40:$GJ40)-W40,0) -> 0 | Y40: =IF($A40>0,SUMIF('Age profile (years)'!$CT40:$GF40,"<" & T40+0.5,'Asset data'!$CX40:$GJ40)-X40-W40,0) -> 0 | Z40: =IF($A40>0,SUMIF('Age profile (years)'!$CT40:$GF40,"<" & U40+0.5,'Asset data'!$CX40:$GJ40)-Y40-X40-W40,0) -> 0 | AA40: 0 | AB40: 0 | AC40: 0 | AD40: 0 | AE40: 0 | AF40: 0 | AI40: =IF($A40>0,'RRR hist-forc'!K40,0) -> 0 | AJ40: 0
A41: ='Asset data'!A41 -> 3 | B41: ='Asset data'!B41 -> 0 | C41: ='Asset data'!C41 -> 0 | D41: ='Asset data'!E41 -> ˂ = 1 kv | E41: UNDERGROUND CABLES | F41: =IF(A41>0,SUM('Asset data'!J41:CV41),0) -> 12829 | G41: =IF(A41>0,'Asset data'!F41,0) -> 181.1611 | H41: =IF(A41>0,SUM('Asset data'!CX41:GJ41),0) -> 2324115.752 | I41: 0.1190965751 | J41: 3 | K41: 0.2955072081 | L41: 181.1611 | M41: =IF($A41>0,SUMPRODUCT('Age profile (years)'!$CT41:$GF41,'Asset data'!$CX41:$GJ41)/H41-0.5,0) -> 34.60632162 | N41: 80429097.18 | O41: =IF($A41>0,'Asset data'!G41,0) -> 74.36436526 | P41: 172831392.7 | Q41: 0.5346383783 | R41: 7.436436526 | S41: 14.87287305 | T41: 44.61861915 | U41: 59.49149221 | W41: =IF($A41>0,SUMIF('Age profile (years)'!$CT41:$GF41,"<" & R41+0.5,'Asset data'!$CX41:$GJ41),0) -> 3260.8998 | X41: =IF($A41>0,SUMIF('Age profile (years)'!$CT41:$GF41,"<" & S41+0.5,'Asset data'!$CX41:$GJ41)-W41,0) -> 13043.5992 | Y41: =IF($A41>0,SUMIF('Age profile (years)'!$CT41:$GF41,"<" & T41+0.5,'Asset data'!$CX41:$GJ41)-X41-W41,0) -> 1910887.283 | Z41: =IF($A41>0,SUMIF('Age profile (years)'!$CT41:$GF41,"<" & U41+0.5,'Asset data'!$CX41:$GJ41)-Y41-X41-W41,0) -> 239313.8131 | AA41: 157610.157 | AB41: 0.001403071167 | AC41: 0.005612284668 | AD41: 0.8221997038 | AE41: 0.102969834 | AF41: 0.0678151064 | AI41: =IF($A41>0,'RRR hist-forc'!K41,0) -> 74.36436526 | AJ41: 172831392.7
A42: ='Asset data'!A42 -> 3 | B42: ='Asset data'!B42 -> 0 | C42: ='Asset data'!C42 -> 0 | D42: ='Asset data'!E42 -> > 1 kv & < = 11 kv | E42: UNDERGROUND CABLES | F42: =IF(A42>0,SUM('Asset data'!J42:CV42),0) -> 3873 | G42: =IF(A42>0,'Asset data'!F42,0) -> 1356.5981 | H42: =IF(A42>0,SUM('Asset data'!CX42:GJ42),0) -> 5254104.441 | I42: 0.2692403955 | J42: 1 | K42: 0.6680500887 | L42: 1356.5981 | M42: =IF($A42>0,SUMPRODUCT('Age profile (years)'!$CT42:$GF42,'Asset data'!$CX42:$GJ42)/H42-0.5,0) -> 39.45068422 | N42: 207278015.2 | O42: =IF($A42>0,'Asset data'!G42,0) -> 69.34665976 | P42: 364354593.1 | Q42: 0.4311090922 | R42: 6.934665976 | S42: 13.86933195 | T42: 41.60799586 | U42: 55.47732781 | W42: =IF($A42>0,SUMIF('Age profile (years)'!$CT42:$GF42,"<" & R42+0.5,'Asset data'!$CX42:$GJ42),0) -> 0 | X42: =IF($A42>0,SUMIF('Age profile (years)'!$CT42:$GF42,"<" & S42+0.5,'Asset data'!$CX42:$GJ42)-W42,0) -> 128876.8195 | Y42: =IF($A42>0,SUMIF('Age profile (years)'!$CT42:$GF42,"<" & T42+0.5,'Asset data'!$CX42:$GJ42)-X42-W42,0) -> 2965523.447 | Z42: =IF($A42>0,SUMIF('Age profile (years)'!$CT42:$GF42,"<" & U42+0.5,'Asset data'!$CX42:$GJ42)-Y42-X42-W42,0) -> 394770.0471 | AA42: 1764934.128 | AB42: 0 | AC42: 0.02452878905 | AD42: 0.564420346 | AE42: 0.07513555383 | AF42: 0.3359153111 | AI42: =IF($A42>0,'RRR hist-forc'!K42,0) -> 69.34665976 | AJ42: 364354593.1
A43: ='Asset data'!A43 -> 3 | B43: ='Asset data'!B43 -> 0 | C43: ='Asset data'!C43 -> 0 | D43: ='Asset data'!E43 -> > 11 kv & < = 22 kv | E43: UNDERGROUND CABLES | F43: =IF(A43>0,SUM('Asset data'!J43:CV43),0) -> 56 | G43: =IF(A43>0,'Asset data'!F43,0) -> 2186.261 | H43: =IF(A43>0,SUM('Asset data'!CX43:GJ43),0) -> 122430.616 | I43: 0.006273812756 | J43: 23 | K43: 0.01556683633 | L43: 2186.261 | M43: =IF($A43>0,SUMPRODUCT('Age profile (years)'!$CT43:$GF43,'Asset data'!$CX43:$GJ43)/H43-0.5,0) -> 34.78571429 | N43: 4258836.428 | O43: =IF($A43>0,'Asset data'!G43,0) -> 74.24528224 | P43: 9089895.64 | Q43: 0.531475762 | R43: 7.424528224 | S43: 14.84905645 | T43: 44.54716935 | U43: 59.39622579 | W43: =IF($A43>0,SUMIF('Age profile (years)'!$CT43:$GF43,"<" & R43+0.5,'Asset data'!$CX43:$GJ43),0) -> 0 | X43: =IF($A43>0,SUMIF('Age profile (years)'!$CT43:$GF43,"<" & S43+0.5,'Asset data'!$CX43:$GJ43)-W43,0) -> 0 | Y43: =IF($A43>0,SUMIF('Age profile (years)'!$CT43:$GF43,"<" & T43+0.5,'Asset data'!$CX43:$GJ43)-X43-W43,0) -> 89636.701 | Z43: =IF($A43>0,SUMIF('Age profile (years)'!$CT43:$GF43,"<" & U43+0.5,'Asset data'!$CX43:$GJ43)-Y43-X43-W43,0) -> 13117.566 | AA43: 19676.349 | AB43: 0 | AC43: 0 | AD43: 0.7321428571 | AE43: 0.1071428571 | AF43: 0.1607142857 | AI43: =IF($A43>0,'RRR hist-forc'!K43,0) -> 74.24528224 | AJ43: 9089895.64
A44: ='Asset data'!A44 -> 3 | B44: ='Asset data'!B44 -> 0 | C44: ='Asset data'!C44 -> 0 | D44: ='Asset data'!E44 -> > 22 kv & < = 33 kv | E44: UNDERGROUND CABLES | F44: =IF(A44>0,SUM('Asset data'!J44:CV44),0) -> 116 | G44: =IF(A44>0,'Asset data'!F44,0) -> 1415.1719 | H44: =IF(A44>0,SUM('Asset data'!CX44:GJ44),0) -> 164159.9404 | I44: 0.008412182849 | J44: 19 | K44: 0.02087264613 | L44: 1415.1719 | M44: =IF($A44>0,SUMPRODUCT('Age profile (years)'!$CT44:$GF44,'Asset data'!$CX44:$GJ44)/H44-0.5,0) -> 60.62068966 | N44: 9951488.801 | O44: =IF($A44>0,'Asset data'!G44,0) -> 89.22928383 | P44: 14647873.92 | Q44: 0.3206188927 | R44: 8.922928383 | S44: 17.84585677 | T44: 53.5375703 | U44: 71.38342707 | W44: =IF($A44>0,SUMIF('Age profile (years)'!$CT44:$GF44,"<" & R44+0.5,'Asset data'!$CX44:$GJ44),0) -> 0 | X44: =IF($A44>0,SUMIF('Age profile (years)'!$CT44:$GF44,"<" & S44+0.5,'Asset data'!$CX44:$GJ44)-W44,0) -> 8491.0314 | Y44: =IF($A44>0,SUMIF('Age profile (years)'!$CT44:$GF44,"<" & T44+0.5,'Asset data'!$CX44:$GJ44)-X44-W44,0) -> 62267.5636 | Z44: =IF($A44>0,SUMIF('Age profile (years)'!$CT44:$GF44,"<" & U44+0.5,'Asset data'!$CX44:$GJ44)-Y44-X44-W44,0) -> 11321.3752 | AA44: 82079.9702 | AB44: 0 | AC44: 0.05172413793 | AD44: 0.3793103448 | AE44: 0.06896551724 | AF44: 0.5 | AI44: =IF($A44>0,'RRR hist-forc'!K44,0) -> 89.22928383 | AJ44: 14647873.92
A45: ='Asset data'!A45 -> 3 | B45: ='Asset data'!B45 -> 0 | C45: ='Asset data'!C45 -> 0 | D45: ='Asset data'!E45 -> > 33 kv & < = 66 kv | E45: UNDERGROUND CABLES | F45: =IF(A45>0,SUM('Asset data'!J45:CV45),0) -> 44 | G45: =IF(A45>0,'Asset data'!F45,0) -> 0.5757 | H45: =IF(A45>0,SUM('Asset data'!CX45:GJ45),0) -> 25.3308 | I45: 1.298047019e-06 | J45: 55 | K45: 3.220766427e-06 | L45: 0.5757 | M45: =IF($A45>0,SUMPRODUCT('Age profile (years)'!$CT45:$GF45,'Asset data'!$CX45:$GJ45)/H45-0.5,0) -> 54.65909091 | N45: 1384.5585 | O45: =IF($A45>0,'Asset data'!G45,0) -> 80 | P45: 2026.464 | Q45: 0.3167613636 | R45: 8 | S45: 16 | T45: 48 | U45: 64 | W45: =IF($A45>0,SUMIF('Age profile (years)'!$CT45:$GF45,"<" & R45+0.5,'Asset data'!$CX45:$GJ45),0) -> 0 | X45: =IF($A45>0,SUMIF('Age profile (years)'!$CT45:$GF45,"<" & S45+0.5,'Asset data'!$CX45:$GJ45)-W45,0) -> 0 | Y45: =IF($A45>0,SUMIF('Age profile (years)'!$CT45:$GF45,"<" & T45+0.5,'Asset data'!$CX45:$GJ45)-X45-W45,0) -> 11.514 | Z45: =IF($A45>0,SUMIF('Age profile (years)'!$CT45:$GF45,"<" & U45+0.5,'Asset data'!$CX45:$GJ45)-Y45-X45-W45,0) -> 6.3327 | AA45: 7.4841 | AB45: 0 | AC45: 0 | AD45: 0.4545454545 | AE45: 0.25 | AF45: 0.2954545455 | AI45: =IF($A45>0,'RRR hist-forc'!K45,0) -> 80 | AJ45: 2026.464
A46: ='Asset data'!A46 -> 0 | B46: ='Asset data'!B46 -> 0 | C46: ='Asset data'!C46 -> 0 | D46: ='Asset data'!E46 -> > 66 kv & < = 132 kv | E46: 0 | F46: =IF(A46>0,SUM('Asset data'!J46:CV46),0) -> 0 | G46: =IF(A46>0,'Asset data'!F46,0) -> 0 | H46: =IF(A46>0,SUM('Asset data'!CX46:GJ46),0) -> 0 | I46: 0 | J46: 0 | K46: 0 | L46: 0 | M46: =IF($A46>0,SUMPRODUCT('Age profile (years)'!$CT46:$GF46,'Asset data'!$CX46:$GJ46)/H46-0.5,0) -> 0 | N46: 0 | O46: =IF($A46>0,'Asset data'!G46,0) -> 0 | P46: 0 | Q46: 0 | R46: 0 | S46: 0 | T46: 0 | U46: 0 | W46: =IF($A46>0,SUMIF('Age profile (years)'!$CT46:$GF46,"<" & R46+0.5,'Asset data'!$CX46:$GJ46),0) -> 0 | X46: =IF($A46>0,SUMIF('Age profile (years)'!$CT46:$GF46,"<" & S46+0.5,'Asset data'!$CX46:$GJ46)-W46,0) -> 0 | Y46: =IF($A46>0,SUMIF('Age profile (years)'!$CT46:$GF46,"<" & T46+0.5,'Asset data'!$CX46:$GJ46)-X46-W46,0) -> 0 | Z46: =IF($A46>0,SUMIF('Age profile (years)'!$CT46:$GF46,"<" & U46+0.5,'Asset data'!$CX46:$GJ46)-Y46-X46-W46,0) -> 0 | AA46: 0 | AB46: 0 | AC46: 0 | AD46: 0 | AE46: 0 | AF46: 0 | AI46: =IF($A46>0,'RRR hist-forc'!K46,0) -> 0 | AJ46: 0
A47: ='Asset data'!A47 -> 0 | B47: ='Asset data'!B47 -> 0 | C47: ='Asset data'!C47 -> 0 | D47: ='Asset data'!E47 -> > 132 kv | E47: 0 | F47: =IF(A47>0,SUM('Asset data'!J47:CV47),0) -> 0 | G47: =IF(A47>0,'Asset data'!F47,0) -> 0 | H47: =IF(A47>0,SUM('Asset data'!CX47:GJ47),0) -> 0 | I47: 0 | J47: 0 | K47: 0 | L47: 0 | M47: =IF($A47>0,SUMPRODUCT('Age profile (years)'!$CT47:$GF47,'Asset data'!$CX47:$GJ47)/H47-0.5,0) -> 0 | N47: 0 | O47: =IF($A47>0,'Asset data'!G47,0) -> 0 | P47: 0 | Q47: 0 | R47: 0 | S47: 0 | T47: 0 | U47: 0 | W47: =IF($A47>0,SUMIF('Age profile (years)'!$CT47:$GF47,"<" & R47+0.5,'Asset data'!$CX47:$GJ47),0) -> 0 | X47: =IF($A47>0,SUMIF('Age profile (years)'!$CT47:$GF47,"<" & S47+0.5,'Asset data'!$CX47:$GJ47)-W47,0) -> 0 | Y47: =IF($A47>0,SUMIF('Age profile (years)'!$CT47:$GF47,"<" & T47+0.5,'Asset data'!$CX47:$GJ47)-X47-W47,0) -> 0 | Z47: =IF($A47>0,SUMIF('Age profile (years)'!$CT47:$GF47,"<" & U47+0.5,'Asset data'!$CX47:$GJ47)-Y47-X47-W47,0) -> 0 | AA47: 0 | AB47: 0 | AC47: 0 | AD47: 0 | AE47: 0 | AF47: 0 | AI47: =IF($A47>0,'RRR hist-forc'!K47,0) -> 0 | AJ47: 0
A48: ='Asset data'!A48 -> 0 | B48: ='Asset data'!B48 -> 0 | C48: ='Asset data'!C48 -> 0 | D48: ='Asset data'!E48 -> other | E48: 0 | F48: =IF(A48>0,SUM('Asset data'!J48:CV48),0) -> 0 | G48: =IF(A48>0,'Asset data'!F48,0) -> 0 | H48: =IF(A48>0,SUM('Asset data'!CX48:GJ48),0) -> 0 | I48: 0 | J48: 0 | K48: 0 | L48: 0 | M48: =IF($A48>0,SUMPRODUCT('Age profile (years)'!$CT48:$GF48,'Asset data'!$CX48:$GJ48)/H48-0.5,0) -> 0 | N48: 0 | O48: =IF($A48>0,'Asset data'!G48,0) -> 0 | P48: 0 | Q48: 0 | R48: 0 | S48: 0 | T48: 0 | U48: 0 | W48: =IF($A48>0,SUMIF('Age profile (years)'!$CT48:$GF48,"<" & R48+0.5,'Asset data'!$CX48:$GJ48),0) -> 0 | X48: =IF($A48>0,SUMIF('Age profile (years)'!$CT48:$GF48,"<" & S48+0.5,'Asset data'!$CX48:$GJ48)-W48,0) -> 0 | Y48: =IF($A48>0,SUMIF('Age profile (years)'!$CT48:$GF48,"<" & T48+0.5,'Asset data'!$CX48:$GJ48)-X48-W48,0) -> 0 | Z48: =IF($A48>0,SUMIF('Age profile (years)'!$CT48:$GF48,"<" & U48+0.5,'Asset data'!$CX48:$GJ48)-Y48-X48-W48,0) -> 0 | AA48: 0 | AB48: 0 | AC48: 0 | AD48: 0 | AE48: 0 | AF48: 0 | AI48: =IF($A48>0,'RRR hist-forc'!K48,0) -> 0 | AJ48: 0
A49: ='Asset data'!A49 -> 4 | B49: ='Asset data'!B49 -> 0 | C49: ='Asset data'!C49 -> 0 | D49: ='Asset data'!E49 -> ˂ = 11 kv ; residential ; simple type | E49: SERVICE LINES | F49: =IF(A49>0,SUM('Asset data'!J49:CV49),0) -> 669233 | G49: =IF(A49>0,'Asset data'!F49,0) -> 0.525 | H49: =IF(A49>0,SUM('Asset data'!CX49:GJ49),0) -> 351347.325 | I49: 0.01800437996 | J49: 11 | K49: 0.8823571602 | L49: 0.525 | M49: =IF($A49>0,SUMPRODUCT('Age profile (years)'!$CT49:$GF49,'Asset data'!$CX49:$GJ49)/H49-0.5,0) -> 28.24265316 | N49: 9922980.637 | O49: =IF($A49>0,'Asset data'!G49,0) -> 57.093362 | P49: 20059600.01 | Q49: 0.5053250997 | R49: 5.7093362 | S49: 11.4186724 | T49: 34.2560172 | U49: 45.6746896 | W49: =IF($A49>0,SUMIF('Age profile (years)'!$CT49:$GF49,"<" & R49+0.5,'Asset data'!$CX49:$GJ49),0) -> 34281.45 | X49: =IF($A49>0,SUMIF('Age profile (years)'!$CT49:$GF49,"<" & S49+0.5,'Asset data'!$CX49:$GJ49)-W49,0) -> 24307.5 | Y49: =IF($A49>0,SUMIF('Age profile (years)'!$CT49:$GF49,"<" & T49+0.5,'Asset data'!$CX49:$GJ49)-X49-W49,0) -> 158589.375 | Z49: =IF($A49>0,SUMIF('Age profile (years)'!$CT49:$GF49,"<" & U49+0.5,'Asset data'!$CX49:$GJ49)-Y49-X49-W49,0) -> 84662.025 | AA49: 49506.975 | AB49: 0.0975713989 | AC49: 0.06918367743 | AD49: 0.4513749322 | AE49: 0.2409639094 | AF49: 0.140906082 | AI49: =IF($A49>0,'RRR hist-forc'!K49,0) -> 57.093362 | AJ49: 20059600.01
A50: ='Asset data'!A50 -> 0 | B50: ='Asset data'!B50 -> 0 | C50: ='Asset data'!C50 -> 0 | D50: ='Asset data'!E50 -> ˂ = 11 kv ; commercial & industrial ; simple type | E50: 0 | F50: =IF(A50>0,SUM('Asset data'!J50:CV50),0) -> 0 | G50: =IF(A50>0,'Asset data'!F50,0) -> 0 | H50: =IF(A50>0,SUM('Asset data'!CX50:GJ50),0) -> 0 | I50: 0 | J50: 0 | K50: 0 | L50: 0 | M50: =IF($A50>0,SUMPRODUCT('Age profile (years)'!$CT50:$GF50,'Asset data'!$CX50:$GJ50)/H50-0.5,0) -> 0 | N50: 0 | O50: =IF($A50>0,'Asset data'!G50,0) -> 0 | P50: 0 | Q50: 0 | R50: 0 | S50: 0 | T50: 0 | U50: 0 | W50: =IF($A50>0,SUMIF('Age profile (years)'!$CT50:$GF50,"<" & R50+0.5,'Asset data'!$CX50:$GJ50),0) -> 0 | X50: =IF($A50>0,SUMIF('Age profile (years)'!$CT50:$GF50,"<" & S50+0.5,'Asset data'!$CX50:$GJ50)-W50,0) -> 0 | Y50: =IF($A50>0,SUMIF('Age profile (years)'!$CT50:$GF50,"<" & T50+0.5,'Asset data'!$CX50:$GJ50)-X50-W50,0) -> 0 | Z50: =IF($A50>0,SUMIF('Age profile (years)'!$CT50:$GF50,"<" & U50+0.5,'Asset data'!$CX50:$GJ50)-Y50-X50-W50,0) -> 0 | AA50: 0 | AB50: 0 | AC50: 0 | AD50: 0 | AE50: 0 | AF50: 0 | AI50: =IF($A50>0,'RRR hist-forc'!K50,0) -> 0 | AJ50: 0
A51: ='Asset data'!A51 -> 0 | B51: ='Asset data'!B51 -> 0 | C51: ='Asset data'!C51 -> 0 | D51: ='Asset data'!E51 -> ˂ = 11 kv ; residential ; complex type | E51: 0 | F51: =IF(A51>0,SUM('Asset data'!J51:CV51),0) -> 0 | G51: =IF(A51>0,'Asset data'!F51,0) -> 0 | H51: =IF(A51>0,SUM('Asset data'!CX51:GJ51),0) -> 0 | I51: 0 | J51: 0 | K51: 0 | L51: 0 | M51: =IF($A51>0,SUMPRODUCT('Age profile (years)'!$CT51:$GF51,'Asset data'!$CX51:$GJ51)/H51-0.5,0) -> 0 | N51: 0 | O51: =IF($A51>0,'Asset data'!G51,0) -> 0 | P51: 0 | Q51: 0 | R51: 0 | S51: 0 | T51: 0 | U51: 0 | W51: =IF($A51>0,SUMIF('Age profile (years)'!$CT51:$GF51,"<" & R51+0.5,'Asset data'!$CX51:$GJ51),0) -> 0 | X51: =IF($A51>0,SUMIF('Age profile (years)'!$CT51:$GF51,"<" & S51+0.5,'Asset data'!$CX51:$GJ51)-W51,0) -> 0 | Y51: =IF($A51>0,SUMIF('Age profile (years)'!$CT51:$GF51,"<" & T51+0.5,'Asset data'!$CX51:$GJ51)-X51-W51,0) -> 0 | Z51: =IF($A51>0,SUMIF('Age profile (years)'!$CT51:$GF51,"<" & U51+0.5,'Asset data'!$CX51:$GJ51)-Y51-X51-W51,0) -> 0 | AA51: 0 | AB51: 0 | AC51: 0 | AD51: 0 | AE51: 0 | AF51: 0 | AI51: =IF($A51>0,'RRR hist-forc'!K51,0) -> 0 | AJ51: 0
A52: ='Asset data'!A52 -> 4 | B52: ='Asset data'!B52 -> 0 | C52: ='Asset data'!C52 -> 0 | D52: ='Asset data'!E52 -> ˂ = 11 kv ; commercial & industrial ; complex type | E52: SERVICE LINES | F52: =IF(A52>0,SUM('Asset data'!J52:CV52),0) -> 82618 | G52: =IF(A52>0,'Asset data'!F52,0) -> 0.567 | H52: =IF(A52>0,SUM('Asset data'!CX52:GJ52),0) -> 46844.406 | I52: 0.002400486427 | J52: 32 | K52: 0.1176428398 | L52: 0.567 | M52: =IF($A52>0,SUMPRODUCT('Age profile (years)'!$CT52:$GF52,'Asset data'!$CX52:$GJ52)/H52-0.5,0) -> 29.36038151 | N52: 1375369.632 | O52: =IF($A52>0,'Asset data'!G52,0) -> 56.06536246 | P52: 2626348.602 | Q52: 0.4763187068 | R52: 5.606536246 | S52: 11.21307249 | T52: 33.63921748 | U52: 44.85228997 | W52: =IF($A52>0,SUMIF('Age profile (years)'!$CT52:$GF52,"<" & R52+0.5,'Asset data'!$CX52:$GJ52),0) -> 3458.133 | X52: =IF($A52>0,SUMIF('Age profile (years)'!$CT52:$GF52,"<" & S52+0.5,'Asset data'!$CX52:$GJ52)-W52,0) -> 3046.491 | Y52: =IF($A52>0,SUMIF('Age profile (years)'!$CT52:$GF52,"<" & T52+0.5,'Asset data'!$CX52:$GJ52)-X52-W52,0) -> 21252.861 | Z52: =IF($A52>0,SUMIF('Age profile (years)'!$CT52:$GF52,"<" & U52+0.5,'Asset data'!$CX52:$GJ52)-Y52-X52-W52,0) -> 12824.973 | AA52: 6261.948 | AB52: 0.07382168535 | AC52: 0.06503425404 | AD52: 0.4536904791 | AE52: 0.2737781113 | AF52: 0.1336754702 | AI52: =IF($A52>0,'RRR hist-forc'!K52,0) -> 56.06536246 | AJ52: 2626348.602
A53: ='Asset data'!A53 -> 0 | B53: ='Asset data'!B53 -> 0 | C53: ='Asset data'!C53 -> 0 | D53: ='Asset data'!E53 -> ˂ = 11 kv ; subdivision ; complex type | E53: 0 | F53: =IF(A53>0,SUM('Asset data'!J53:CV53),0) -> 0 | G53: =IF(A53>0,'Asset data'!F53,0) -> 0 | H53: =IF(A53>0,SUM('Asset data'!CX53:GJ53),0) -> 0 | I53: 0 | J53: 0 | K53: 0 | L53: 0 | M53: =IF($A53>0,SUMPRODUCT('Age profile (years)'!$CT53:$GF53,'Asset data'!$CX53:$GJ53)/H53-0.5,0) -> 0 | N53: 0 | O53: =IF($A53>0,'Asset data'!G53,0) -> 0 | P53: 0 | Q53: 0 | R53: 0 | S53: 0 | T53: 0 | U53: 0 | W53: =IF($A53>0,SUMIF('Age profile (years)'!$CT53:$GF53,"<" & R53+0.5,'Asset data'!$CX53:$GJ53),0) -> 0 | X53: =IF($A53>0,SUMIF('Age profile (years)'!$CT53:$GF53,"<" & S53+0.5,'Asset data'!$CX53:$GJ53)-W53,0) -> 0 | Y53: =IF($A53>0,SUMIF('Age profile (years)'!$CT53:$GF53,"<" & T53+0.5,'Asset data'!$CX53:$GJ53)-X53-W53,0) -> 0 | Z53: =IF($A53>0,SUMIF('Age profile (years)'!$CT53:$GF53,"<" & U53+0.5,'Asset data'!$CX53:$GJ53)-Y53-X53-W53,0) -> 0 | AA53: 0 | AB53: 0 | AC53: 0 | AD53: 0 | AE53: 0 | AF53: 0 | AI53: =IF($A53>0,'RRR hist-forc'!K53,0) -> 0 | AJ53: 0
A54: ='Asset data'!A54 -> 0 | B54: ='Asset data'!B54 -> 0 | C54: ='Asset data'!C54 -> 0 | D54: ='Asset data'!E54 -> > 11 kv & < = 22 kv ; commercial & industrial | E54: 0 | F54: =IF(A54>0,SUM('Asset data'!J54:CV54),0) -> 0 | G54: =IF(A54>0,'Asset data'!F54,0) -> 0 | H54: =IF(A54>0,SUM('Asset data'!CX54:GJ54),0) -> 0 | I54: 0 | J54: 0 | K54: 0 | L54: 0 | M54: =IF($A54>0,SUMPRODUCT('Age profile (years)'!$CT54:$GF54,'Asset data'!$CX54:$GJ54)/H54-0.5,0) -> 0 | N54: 0 | O54: =IF($A54>0,'Asset data'!G54,0) -> 0 | P54: 0 | Q54: 0 | R54: 0 | S54: 0 | T54: 0 | U54: 0 | W54: =IF($A54>0,SUMIF('Age profile (years)'!$CT54:$GF54,"<" & R54+0.5,'Asset data'!$CX54:$GJ54),0) -> 0 | X54: =IF($A54>0,SUMIF('Age profile (years)'!$CT54:$GF54,"<" & S54+0.5,'Asset data'!$CX54:$GJ54)-W54,0) -> 0 | Y54: =IF($A54>0,SUMIF('Age profile (years)'!$CT54:$GF54,"<" & T54+0.5,'Asset data'!$CX54:$GJ54)-X54-W54,0) -> 0 | Z54: =IF($A54>0,SUMIF('Age profile (years)'!$CT54:$GF54,"<" & U54+0.5,'Asset data'!$CX54:$GJ54)-Y54-X54-W54,0) -> 0 | AA54: 0 | AB54: 0 | AC54: 0 | AD54: 0 | AE54: 0 | AF54: 0 | AI54: =IF($A54>0,'RRR hist-forc'!K54,0) -> 0 | AJ54: 0
A55: ='Asset data'!A55 -> 0 | B55: ='Asset data'!B55 -> 0 | C55: ='Asset data'!C55 -> 0 | D55: ='Asset data'!E55 -> > 11 kv & < = 22 kv ; subdivision | E55: 0 | F55: =IF(A55>0,SUM('Asset data'!J55:CV55),0) -> 0 | G55: =IF(A55>0,'Asset data'!F55,0) -> 0 | H55: =IF(A55>0,SUM('Asset data'!CX55:GJ55),0) -> 0 | I55: 0 | J55: 0 | K55: 0 | L55: 0 | M55: =IF($A55>0,SUMPRODUCT('Age profile (years)'!$CT55:$GF55,'Asset data'!$CX55:$GJ55)/H55-0.5,0) -> 0 | N55: 0 | O55: =IF($A55>0,'Asset data'!G55,0) -> 0 | P55: 0 | Q55: 0 | R55: 0 | S55: 0 | T55: 0 | U55: 0 | W55: =IF($A55>0,SUMIF('Age profile (years)'!$CT55:$GF55,"<" & R55+0.5,'Asset data'!$CX55:$GJ55),0) -> 0 | X55: =IF($A55>0,SUMIF('Age profile (years)'!$CT55:$GF55,"<" & S55+0.5,'Asset data'!$CX55:$GJ55)-W55,0) -> 0 | Y55: =IF($A55>0,SUMIF('Age profile (years)'!$CT55:$GF55,"<" & T55+0.5,'Asset data'!$CX55:$GJ55)-X55-W55,0) -> 0 | Z55: =IF($A55>0,SUMIF('Age profile (years)'!$CT55:$GF55,"<" & U55+0.5,'Asset data'!$CX55:$GJ55)-Y55-X55-W55,0) -> 0 | AA55: 0 | AB55: 0 | AC55: 0 | AD55: 0 | AE55: 0 | AF55: 0 | AI55: =IF($A55>0,'RRR hist-forc'!K55,0) -> 0 | AJ55: 0
A56: ='Asset data'!A56 -> 0 | B56: ='Asset data'!B56 -> 0 | C56: ='Asset data'!C56 -> 0 | D56: ='Asset data'!E56 -> > 22 kv & < = 33 kv ; commercial & industrial | E56: 0 | F56: =IF(A56>0,SUM('Asset data'!J56:CV56),0) -> 0 | G56: =IF(A56>0,'Asset data'!F56,0) -> 0 | H56: =IF(A56>0,SUM('Asset data'!CX56:GJ56),0) -> 0 | I56: 0 | J56: 0 | K56: 0 | L56: 0 | M56: =IF($A56>0,SUMPRODUCT('Age profile (years)'!$CT56:$GF56,'Asset data'!$CX56:$GJ56)/H56-0.5,0) -> 0 | N56: 0 | O56: =IF($A56>0,'Asset data'!G56,0) -> 0 | P56: 0 | Q56: 0 | R56: 0 | S56: 0 | T56: 0 | U56: 0 | W56: =IF($A56>0,SUMIF('Age profile (years)'!$CT56:$GF56,"<" & R56+0.5,'Asset data'!$CX56:$GJ56),0) -> 0 | X56: =IF($A56>0,SUMIF('Age profile (years)'!$CT56:$GF56,"<" & S56+0.5,'Asset data'!$CX56:$GJ56)-W56,0) -> 0 | Y56: =IF($A56>0,SUMIF('Age profile (years)'!$CT56:$GF56,"<" & T56+0.5,'Asset data'!$CX56:$GJ56)-X56-W56,0) -> 0 | Z56: =IF($A56>0,SUMIF('Age profile (years)'!$CT56:$GF56,"<" & U56+0.5,'Asset data'!$CX56:$GJ56)-Y56-X56-W56,0) -> 0 | AA56: 0 | AB56: 0 | AC56: 0 | AD56: 0 | AE56: 0 | AF56: 0 | AI56: =IF($A56>0,'RRR hist-forc'!K56,0) -> 0 | AJ56: 0
A57: ='Asset data'!A57 -> 0 | B57: ='Asset data'!B57 -> 0 | C57: ='Asset data'!C57 -> 0 | D57: ='Asset data'!E57 -> > 22 kv & < = 33 kv ; subdivision | E57: 0 | F57: =IF(A57>0,SUM('Asset data'!J57:CV57),0) -> 0 | G57: =IF(A57>0,'Asset data'!F57,0) -> 0 | H57: =IF(A57>0,SUM('Asset data'!CX57:GJ57),0) -> 0 | I57: 0 | J57: 0 | K57: 0 | L57: 0 | M57: =IF($A57>0,SUMPRODUCT('Age profile (years)'!$CT57:$GF57,'Asset data'!$CX57:$GJ57)/H57-0.5,0) -> 0 | N57: 0 | O57: =IF($A57>0,'Asset data'!G57,0) -> 0 | P57: 0 | Q57: 0 | R57: 0 | S57: 0 | T57: 0 | U57: 0 | W57: =IF($A57>0,SUMIF('Age profile (years)'!$CT57:$GF57,"<" & R57+0.5,'Asset data'!$CX57:$GJ57),0) -> 0 | X57: =IF($A57>0,SUMIF('Age profile (years)'!$CT57:$GF57,"<" & S57+0.5,'Asset data'!$CX57:$GJ57)-W57,0) -> 0 | Y57: =IF($A57>0,SUMIF('Age profile (years)'!$CT57:$GF57,"<" & T57+0.5,'Asset data'!$CX57:$GJ57)-X57-W57,0) -> 0 | Z57: =IF($A57>0,SUMIF('Age profile (years)'!$CT57:$GF57,"<" & U57+0.5,'Asset data'!$CX57:$GJ57)-Y57-X57-W57,0) -> 0 | AA57: 0 | AB57: 0 | AC57: 0 | AD57: 0 | AE57: 0 | AF57: 0 | AI57: =IF($A57>0,'RRR hist-forc'!K57,0) -> 0 | AJ57: 0
A58: ='Asset data'!A58 -> 0 | B58: ='Asset data'!B58 -> 0 | C58: ='Asset data'!C58 -> 0 | D58: ='Asset data'!E58 -> > 33 kv & < = 66 kv ; commercial & industrial | E58: 0 | F58: =IF(A58>0,SUM('Asset data'!J58:CV58),0) -> 0 | G58: =IF(A58>0,'Asset data'!F58,0) -> 0 | H58: =IF(A58>0,SUM('Asset data'!CX58:GJ58),0) -> 0 | I58: 0 | J58: 0 | K58: 0 | L58: 0 | M58: =IF($A58>0,SUMPRODUCT('Age profile (years)'!$CT58:$GF58,'Asset data'!$CX58:$GJ58)/H58-0.5,0) -> 0 | N58: 0 | O58: =IF($A58>0,'Asset data'!G58,0) -> 0 | P58: 0 | Q58: 0 | R58: 0 | S58: 0 | T58: 0 | U58: 0 | W58: =IF($A58>0,SUMIF('Age profile (years)'!$CT58:$GF58,"<" & R58+0.5,'Asset data'!$CX58:$GJ58),0) -> 0 | X58: =IF($A58>0,SUMIF('Age profile (years)'!$CT58:$GF58,"<" & S58+0.5,'Asset data'!$CX58:$GJ58)-W58,0) -> 0 | Y58: =IF($A58>0,SUMIF('Age profile (years)'!$CT58:$GF58,"<" & T58+0.5,'Asset data'!$CX58:$GJ58)-X58-W58,0) -> 0 | Z58: =IF($A58>0,SUMIF('Age profile (years)'!$CT58:$GF58,"<" & U58+0.5,'Asset data'!$CX58:$GJ58)-Y58-X58-W58,0) -> 0 | AA58: 0 | AB58: 0 | AC58: 0 | AD58: 0 | AE58: 0 | AF58: 0 | AI58: =IF($A58>0,'RRR hist-forc'!K58,0) -> 0 | AJ58: 0
A59: ='Asset data'!A59 -> 0 | B59: ='Asset data'!B59 -> 0 | C59: ='Asset data'!C59 -> 0 | D59: ='Asset data'!E59 -> > 33 kv & < = 66 kv ; subdivision | E59: 0 | F59: =IF(A59>0,SUM('Asset data'!J59:CV59),0) -> 0 | G59: =IF(A59>0,'Asset data'!F59,0) -> 0 | H59: =IF(A59>0,SUM('Asset data'!CX59:GJ59),0) -> 0 | I59: 0 | J59: 0 | K59: 0 | L59: 0 | M59: =IF($A59>0,SUMPRODUCT('Age profile (years)'!$CT59:$GF59,'Asset data'!$CX59:$GJ59)/H59-0.5,0) -> 0 | N59: 0 | O59: =IF($A59>0,'Asset data'!G59,0) -> 0 | P59: 0 | Q59: 0 | R59: 0 | S59: 0 | T59: 0 | U59: 0 | W59: =IF($A59>0,SUMIF('Age profile (years)'!$CT59:$GF59,"<" & R59+0.5,'Asset data'!$CX59:$GJ59),0) -> 0 | X59: =IF($A59>0,SUMIF('Age profile (years)'!$CT59:$GF59,"<" & S59+0.5,'Asset data'!$CX59:$GJ59)-W59,0) -> 0 | Y59: =IF($A59>0,SUMIF('Age profile (years)'!$CT59:$GF59,"<" & T59+0.5,'Asset data'!$CX59:$GJ59)-X59-W59,0) -> 0 | Z59: =IF($A59>0,SUMIF('Age profile (years)'!$CT59:$GF59,"<" & U59+0.5,'Asset data'!$CX59:$GJ59)-Y59-X59-W59,0) -> 0 | AA59: 0 | AB59: 0 | AC59: 0 | AD59: 0 | AE59: 0 | AF59: 0 | AI59: =IF($A59>0,'RRR hist-forc'!K59,0) -> 0 | AJ59: 0
A60: ='Asset data'!A60 -> 0 | B60: ='Asset data'!B60 -> 0 | C60: ='Asset data'!C60 -> 0 | D60: ='Asset data'!E60 -> > 66 kv & < = 132 kv ; commercial & industrial | E60: 0 | F60: =IF(A60>0,SUM('Asset data'!J60:CV60),0) -> 0 | G60: =IF(A60>0,'Asset data'!F60,0) -> 0 | H60: =IF(A60>0,SUM('Asset data'!CX60:GJ60),0) -> 0 | I60: 0 | J60: 0 | K60: 0 | L60: 0 | M60: =IF($A60>0,SUMPRODUCT('Age profile (years)'!$CT60:$GF60,'Asset data'!$CX60:$GJ60)/H60-0.5,0) -> 0 | N60: 0 | O60: =IF($A60>0,'Asset data'!G60,0) -> 0 | P60: 0 | Q60: 0 | R60: 0 | S60: 0 | T60: 0 | U60: 0 | W60: =IF($A60>0,SUMIF('Age profile (years)'!$CT60:$GF60,"<" & R60+0.5,'Asset data'!$CX60:$GJ60),0) -> 0 | X60: =IF($A60>0,SUMIF('Age profile (years)'!$CT60:$GF60,"<" & S60+0.5,'Asset data'!$CX60:$GJ60)-W60,0) -> 0 | Y60: =IF($A60>0,SUMIF('Age profile (years)'!$CT60:$GF60,"<" & T60+0.5,'Asset data'!$CX60:$GJ60)-X60-W60,0) -> 0 | Z60: =IF($A60>0,SUMIF('Age profile (years)'!$CT60:$GF60,"<" & U60+0.5,'Asset data'!$CX60:$GJ60)-Y60-X60-W60,0) -> 0 | AA60: 0 | AB60: 0 | AC60: 0 | AD60: 0 | AE60: 0 | AF60: 0 | AI60: =IF($A60>0,'RRR hist-forc'!K60,0) -> 0 | AJ60: 0
A61: ='Asset data'!A61 -> 0 | B61: ='Asset data'!B61 -> 0 | C61: ='Asset data'!C61 -> 0 | D61: ='Asset data'!E61 -> > 66 kv & < = 132 kv ; subdivision | E61: 0 | F61: =IF(A61>0,SUM('Asset data'!J61:CV61),0) -> 0 | G61: =IF(A61>0,'Asset data'!F61,0) -> 0 | H61: =IF(A61>0,SUM('Asset data'!CX61:GJ61),0) -> 0 | I61: 0 | J61: 0 | K61: 0 | L61: 0 | M61: =IF($A61>0,SUMPRODUCT('Age profile (years)'!$CT61:$GF61,'Asset data'!$CX61:$GJ61)/H61-0.5,0) -> 0 | N61: 0 | O61: =IF($A61>0,'Asset data'!G61,0) -> 0 | P61: 0 | Q61: 0 | R61: 0 | S61: 0 | T61: 0 | U61: 0 | W61: =IF($A61>0,SUMIF('Age profile (years)'!$CT61:$GF61,"<" & R61+0.5,'Asset data'!$CX61:$GJ61),0) -> 0 | X61: =IF($A61>0,SUMIF('Age profile (years)'!$CT61:$GF61,"<" & S61+0.5,'Asset data'!$CX61:$GJ61)-W61,0) -> 0 | Y61: =IF($A61>0,SUMIF('Age profile (years)'!$CT61:$GF61,"<" & T61+0.5,'Asset data'!$CX61:$GJ61)-X61-W61,0) -> 0 | Z61: =IF($A61>0,SUMIF('Age profile (years)'!$CT61:$GF61,"<" & U61+0.5,'Asset data'!$CX61:$GJ61)-Y61-X61-W61,0) -> 0 | AA61: 0 | AB61: 0 | AC61: 0 | AD61: 0 | AE61: 0 | AF61: 0 | AI61: =IF($A61>0,'RRR hist-forc'!K61,0) -> 0 | AJ61: 0
A62: ='Asset data'!A62 -> 0 | B62: ='Asset data'!B62 -> 0 | C62: ='Asset data'!C62 -> 0 | D62: ='Asset data'!E62 -> > 132 kv ; commercial & industrial | E62: 0 | F62: =IF(A62>0,SUM('Asset data'!J62:CV62),0) -> 0 | G62: =IF(A62>0,'Asset data'!F62,0) -> 0 | H62: =IF(A62>0,SUM('Asset data'!CX62:GJ62),0) -> 0 | I62: 0 | J62: 0 | K62: 0 | L62: 0 | M62: =IF($A62>0,SUMPRODUCT('Age profile (years)'!$CT62:$GF62,'Asset data'!$CX62:$GJ62)/H62-0.5,0) -> 0 | N62: 0 | O62: =IF($A62>0,'Asset data'!G62,0) -> 0 | P62: 0 | Q62: 0 | R62: 0 | S62: 0 | T62: 0 | U62: 0 | W62: =IF($A62>0,SUMIF('Age profile (years)'!$CT62:$GF62,"<" & R62+0.5,'Asset data'!$CX62:$GJ62),0) -> 0 | X62: =IF($A62>0,SUMIF('Age profile (years)'!$CT62:$GF62,"<" & S62+0.5,'Asset data'!$CX62:$GJ62)-W62,0) -> 0 | Y62: =IF($A62>0,SUMIF('Age profile (years)'!$CT62:$GF62,"<" & T62+0.5,'Asset data'!$CX62:$GJ62)-X62-W62,0) -> 0 | Z62: =IF($A62>0,SUMIF('Age profile (years)'!$CT62:$GF62,"<" & U62+0.5,'Asset data'!$CX62:$GJ62)-Y62-X62-W62,0) -> 0 | AA62: 0 | AB62: 0 | AC62: 0 | AD62: 0 | AE62: 0 | AF62: 0 | AI62: =IF($A62>0,'RRR hist-forc'!K62,0) -> 0 | AJ62: 0
A63: ='Asset data'!A63 -> 0 | B63: ='Asset data'!B63 -> 0 | C63: ='Asset data'!C63 -> 0 | D63: ='Asset data'!E63 -> > 132 kv ; subdivision | E63: 0 | F63: =IF(A63>0,SUM('Asset data'!J63:CV63),0) -> 0 | G63: =IF(A63>0,'Asset data'!F63,0) -> 0 | H63: =IF(A63>0,SUM('Asset data'!CX63:GJ63),0) -> 0 | I63: 0 | J63: 0 | K63: 0 | L63: 0 | M63: =IF($A63>0,SUMPRODUCT('Age profile (years)'!$CT63:$GF63,'Asset data'!$CX63:$GJ63)/H63-0.5,0) -> 0 | N63: 0 | O63: =IF($A63>0,'Asset data'!G63,0) -> 0 | P63: 0 | Q63: 0 | R63: 0 | S63: 0 | T63: 0 | U63: 0 | W63: =IF($A63>0,SUMIF('Age profile (years)'!$CT63:$GF63,"<" & R63+0.5,'Asset data'!$CX63:$GJ63),0) -> 0 | X63: =IF($A63>0,SUMIF('Age profile (years)'!$CT63:$GF63,"<" & S63+0.5,'Asset data'!$CX63:$GJ63)-W63,0) -> 0 | Y63: =IF($A63>0,SUMIF('Age profile (years)'!$CT63:$GF63,"<" & T63+0.5,'Asset data'!$CX63:$GJ63)-X63-W63,0) -> 0 | Z63: =IF($A63>0,SUMIF('Age profile (years)'!$CT63:$GF63,"<" & U63+0.5,'Asset data'!$CX63:$GJ63)-Y63-X63-W63,0) -> 0 | AA63: 0 | AB63: 0 | AC63: 0 | AD63: 0 | AE63: 0 | AF63: 0 | AI63: =IF($A63>0,'RRR hist-forc'!K63,0) -> 0 | AJ63: 0
A64: ='Asset data'!A64 -> 0 | B64: ='Asset data'!B64 -> 0 | C64: ='Asset data'!C64 -> 0 | D64: ='Asset data'!E64 -> other | E64: 0 | F64: =IF(A64>0,SUM('Asset data'!J64:CV64),0) -> 0 | G64: =IF(A64>0,'Asset data'!F64,0) -> 0 | H64: =IF(A64>0,SUM('Asset data'!CX64:GJ64),0) -> 0 | I64: 0 | J64: 0 | K64: 0 | L64: 0 | M64: =IF($A64>0,SUMPRODUCT('Age profile (years)'!$CT64:$GF64,'Asset data'!$CX64:$GJ64)/H64-0.5,0) -> 0 | N64: 0 | O64: =IF($A64>0,'Asset data'!G64,0) -> 0 | P64: 0 | Q64: 0 | R64: 0 | S64: 0 | T64: 0 | U64: 0 | W64: =IF($A64>0,SUMIF('Age profile (years)'!$CT64:$GF64,"<" & R64+0.5,'Asset data'!$CX64:$GJ64),0) -> 0 | X64: =IF($A64>0,SUMIF('Age profile (years)'!$CT64:$GF64,"<" & S64+0.5,'Asset data'!$CX64:$GJ64)-W64,0) -> 0 | Y64: =IF($A64>0,SUMIF('Age profile (years)'!$CT64:$GF64,"<" & T64+0.5,'Asset data'!$CX64:$GJ64)-X64-W64,0) -> 0 | Z64: =IF($A64>0,SUMIF('Age profile (years)'!$CT64:$GF64,"<" & U64+0.5,'Asset data'!$CX64:$GJ64)-Y64-X64-W64,0) -> 0 | AA64: 0 | AB64: 0 | AC64: 0 | AD64: 0 | AE64: 0 | AF64: 0 | AI64: =IF($A64>0,'RRR hist-forc'!K64,0) -> 0 | AJ64: 0
A65: ='Asset data'!A65 -> 5 | B65: ='Asset data'!B65 -> 0 | C65: ='Asset data'!C65 -> 0 | D65: ='Asset data'!E65 -> pole mounted ; < = 22kv ; < = 60 kva ; single phase | E65: TRANSFORMERS | F65: =IF(A65>0,SUM('Asset data'!J65:CV65),0) -> 40616 | G65: =IF(A65>0,'Asset data'!F65,0) -> 11.963 | H65: =IF(A65>0,SUM('Asset data'!CX65:GJ65),0) -> 485889.208 | I65: 0.02489882034 | J65: 9 | K65: 0.197962518 | L65: 11.963 | M65: =IF($A65>0,SUMPRODUCT('Age profile (years)'!$CT65:$GF65,'Asset data'!$CX65:$GJ65)/H65-0.5,0) -> 32.37189777 | N65: 15729155.77 | O65: =IF($A65>0,'Asset data'!G65,0) -> 63.12693268 | P65: 30672695.32 | Q65: 0.4871935575 | R65: 6.312693268 | S65: 12.62538654 | T65: 37.87615961 | U65: 50.50154614 | W65: =IF($A65>0,SUMIF('Age profile (years)'!$CT65:$GF65,"<" & R65+0.5,'Asset data'!$CX65:$GJ65),0) -> 8661.212 | X65: =IF($A65>0,SUMIF('Age profile (years)'!$CT65:$GF65,"<" & S65+0.5,'Asset data'!$CX65:$GJ65)-W65,0) -> 42731.836 | Y65: =IF($A65>0,SUMIF('Age profile (years)'!$CT65:$GF65,"<" & T65+0.5,'Asset data'!$CX65:$GJ65)-X65-W65,0) -> 254106.083 | Z65: =IF($A65>0,SUMIF('Age profile (years)'!$CT65:$GF65,"<" & U65+0.5,'Asset data'!$CX65:$GJ65)-Y65-X65-W65,0) -> 125826.834 | AA65: 54563.243 | AB65: 0.01782548749 | AC65: 0.08794563719 | AD65: 0.5229712429 | AE65: 0.2589619854 | AF65: 0.112295647 | AI65: =IF($A65>0,'RRR hist-forc'!K65,0) -> 63.12693268 | AJ65: 30672695.32
A66: ='Asset data'!A66 -> 5 | B66: ='Asset data'!B66 -> 0 | C66: ='Asset data'!C66 -> 0 | D66: ='Asset data'!E66 -> pole mounted ; < = 22kv ; > 600 kva ; single phase | E66: TRANSFORMERS | F66: =IF(A66>0,SUM('Asset data'!J66:CV66),0) -> 221 | G66: =IF(A66>0,'Asset data'!F66,0) -> 73.1489 | H66: =IF(A66>0,SUM('Asset data'!CX66:GJ66),0) -> 16165.9069 | I66: 0.0008284028639 | J66: 39 | K66: 0.006586364922 | L66: 73.1489 | M66: =IF($A66>0,SUMPRODUCT('Age profile (years)'!$CT66:$GF66,'Asset data'!$CX66:$GJ66)/H66-0.5,0) -> 20.76244344 | N66: 335643.7277 | O66: =IF($A66>0,'Asset data'!G66,0) -> 66.1 | P66: 1068566.446 | Q66: 0.6858934427 | R66: 6.61 | S66: 13.22 | T66: 39.66 | U66: 52.88 | W66: =IF($A66>0,SUMIF('Age profile (years)'!$CT66:$GF66,"<" & R66+0.5,'Asset data'!$CX66:$GJ66),0) -> 877.7868 | X66: =IF($A66>0,SUMIF('Age profile (years)'!$CT66:$GF66,"<" & S66+0.5,'Asset data'!$CX66:$GJ66)-W66,0) -> 3364.8494 | Y66: =IF($A66>0,SUMIF('Age profile (years)'!$CT66:$GF66,"<" & T66+0.5,'Asset data'!$CX66:$GJ66)-X66-W66,0) -> 10679.7394 | Z66: =IF($A66>0,SUMIF('Age profile (years)'!$CT66:$GF66,"<" & U66+0.5,'Asset data'!$CX66:$GJ66)-Y66-X66-W66,0) -> 658.3401 | AA66: 585.1912 | AB66: 0.05429864253 | AC66: 0.2081447964 | AD66: 0.6606334842 | AE66: 0.0407239819 | AF66: 0.03619909502 | AI66: =IF($A66>0,'RRR hist-forc'!K66,0) -> 66.1 | AJ66: 1068566.446
A67: ='Asset data'!A67 -> 5 | B67: ='Asset data'!B67 -> 0 | C67: ='Asset data'!C67 -> 0 | D67: ='Asset data'!E67 -> pole mounted ; < = 22kv ; < = 60 kva ; multiple phase | E67: TRANSFORMERS | F67: =IF(A67>0,SUM('Asset data'!J67:CV67),0) -> 2485 | G67: =IF(A67>0,'Asset data'!F67,0) -> 18.5171 | H67: =IF(A67>0,SUM('Asset data'!CX67:GJ67),0) -> 46014.9935 | I67: 0.00235798416 | J67: 33 | K67: 0.0187475742 | L67: 18.5171 | M67: =IF($A67>0,SUMPRODUCT('Age profile (years)'!$CT67:$GF67,'Asset data'!$CX67:$GJ67)/H67-0.5,0) -> 24.42515091 | N67: 1123923.16 | O67: =IF($A67>0,'Asset data'!G67,0) -> 56.41729074 | P67: 2596041.267 | Q67: 0.5670626756 | R67: 5.641729074 | S67: 11.28345815 | T67: 33.85037444 | U67: 45.13383259 | W67: =IF($A67>0,SUMIF('Age profile (years)'!$CT67:$GF67,"<" & R67+0.5,'Asset data'!$CX67:$GJ67),0) -> 4536.6895 | X67: =IF($A67>0,SUMIF('Age profile (years)'!$CT67:$GF67,"<" & S67+0.5,'Asset data'!$CX67:$GJ67)-W67,0) -> 3277.5267 | Y67: =IF($A67>0,SUMIF('Age profile (years)'!$CT67:$GF67,"<" & T67+0.5,'Asset data'!$CX67:$GJ67)-X67-W67,0) -> 28368.1972 | Z67: =IF($A67>0,SUMIF('Age profile (years)'!$CT67:$GF67,"<" & U67+0.5,'Asset data'!$CX67:$GJ67)-Y67-X67-W67,0) -> 6406.9166 | AA67: 3425.6635 | AB67: 0.0985915493 | AC67: 0.07122736419 | AD67: 0.616498994 | AE67: 0.1392354125 | AF67: 0.07444668008 | AI67: =IF($A67>0,'RRR hist-forc'!K67,0) -> 56.41729074 | AJ67: 2596041.267
A68: ='Asset data'!A68 -> 5 | B68: ='Asset data'!B68 -> 0 | C68: ='Asset data'!C68 -> 0 | D68: ='Asset data'!E68 -> pole mounted ; < = 22kv ; > 60 kva and < = 600 kva ; multiple phase | E68: TRANSFORMERS | F68: =IF(A68>0,SUM('Asset data'!J68:CV68),0) -> 3555 | G68: =IF(A68>0,'Asset data'!F68,0) -> 17.7917 | H68: =IF(A68>0,SUM('Asset data'!CX68:GJ68),0) -> 63249.4935 | I68: 0.003241145819 | J68: 29 | K68: 0.0257693087 | L68: 17.7917 | M68: =IF($A68>0,SUMPRODUCT('Age profile (years)'!$CT68:$GF68,'Asset data'!$CX68:$GJ68)/H68-0.5,0) -> 34.38720113 | N68: 2174973.054 | O68: =IF($A68>0,'Asset data'!G68,0) -> 55.75119241 | P68: 3526234.682 | Q68: 0.3832024099 | R68: 5.575119241 | S68: 11.15023848 | T68: 33.45071545 | U68: 44.60095393 | W68: =IF($A68>0,SUMIF('Age profile (years)'!$CT68:$GF68,"<" & R68+0.5,'Asset data'!$CX68:$GJ68),0) -> 5177.3847 | X68: =IF($A68>0,SUMIF('Age profile (years)'!$CT68:$GF68,"<" & S68+0.5,'Asset data'!$CX68:$GJ68)-W68,0) -> 2686.5467 | Y68: =IF($A68>0,SUMIF('Age profile (years)'!$CT68:$GF68,"<" & T68+0.5,'Asset data'!$CX68:$GJ68)-X68-W68,0) -> 22542.0839 | Z68: =IF($A68>0,SUMIF('Age profile (years)'!$CT68:$GF68,"<" & U68+0.5,'Asset data'!$CX68:$GJ68)-Y68-X68-W68,0) -> 6725.2626 | AA68: 26118.2156 | AB68: 0.08185654008 | AC68: 0.04247538678 | AD68: 0.3563994374 | AE68: 0.1063291139 | AF68: 0.4129395218 | AI68: =IF($A68>0,'RRR hist-forc'!K68,0) -> 55.75119241 | AJ68: 3526234.682
A69: ='Asset data'!A69 -> 5 | B69: ='Asset data'!B69 -> 0 | C69: ='Asset data'!C69 -> 0 | D69: ='Asset data'!E69 -> pole mounted ; < = 22kv ; > 600 kva ; multiple phase | E69: TRANSFORMERS | F69: =IF(A69>0,SUM('Asset data'!J69:CV69),0) -> 28 | G69: =IF(A69>0,'Asset data'!F69,0) -> 73.1489 | H69: =IF(A69>0,SUM('Asset data'!CX69:GJ69),0) -> 2048.1692 | I69: 0.000104956019 | J69: 49 | K69: 0.0008344715739 | L69: 73.1489 | M69: =IF($A69>0,SUMPRODUCT('Age profile (years)'!$CT69:$GF69,'Asset data'!$CX69:$GJ69)/H69-0.5,0) -> 25.75 | N69: 52740.3569 | O69: =IF($A69>0,'Asset data'!G69,0) -> 66.1 | P69: 135383.9841 | Q69: 0.6104387292 | R69: 6.61 | S69: 13.22 | T69: 39.66 | U69: 52.88 | W69: =IF($A69>0,SUMIF('Age profile (years)'!$CT69:$GF69,"<" & R69+0.5,'Asset data'!$CX69:$GJ69),0) -> 73.1489 | X69: =IF($A69>0,SUMIF('Age profile (years)'!$CT69:$GF69,"<" & S69+0.5,'Asset data'!$CX69:$GJ69)-W69,0) -> 365.7445 | Y69: =IF($A69>0,SUMIF('Age profile (years)'!$CT69:$GF69,"<" & T69+0.5,'Asset data'!$CX69:$GJ69)-X69-W69,0) -> 1243.5313 | Z69: =IF($A69>0,SUMIF('Age profile (years)'!$CT69:$GF69,"<" & U69+0.5,'Asset data'!$CX69:$GJ69)-Y69-X69-W69,0) -> 73.1489 | AA69: 292.5956 | AB69: 0.03571428571 | AC69: 0.1785714286 | AD69: 0.6071428571 | AE69: 0.03571428571 | AF69: 0.1428571429 | AI69: =IF($A69>0,'RRR hist-forc'!K69,0) -> 66.1 | AJ69: 135383.9841
A70: ='Asset data'!A70 -> 5 | B70: ='Asset data'!B70 -> 0 | C70: ='Asset data'!C70 -> 0 | D70: ='Asset data'!E70 -> kiosk mounted ; < = 22kv ; < = 60 kva ; single phase | E70: TRANSFORMERS | F70: =IF(A70>0,SUM('Asset data'!J70:CV70),0) -> 310 | G70: =IF(A70>0,'Asset data'!F70,0) -> 21.1825 | H70: =IF(A70>0,SUM('Asset data'!CX70:GJ70),0) -> 6566.575 | I70: 0.0003364964038 | J70: 42 | K70: 0.002675374757 | L70: 21.1825 | M70: =IF($A70>0,SUMPRODUCT('Age profile (years)'!$CT70:$GF70,'Asset data'!$CX70:$GJ70)/H70-0.5,0) -> 27.42580645 | N70: 180093.615 | O70: =IF($A70>0,'Asset data'!G70,0) -> 49.83146604 | P70: 327222.0591 | Q70: 0.449628746 | R70: 4.983146604 | S70: 9.966293208 | T70: 29.89887962 | U70: 39.86517283 | W70: =IF($A70>0,SUMIF('Age profile (years)'!$CT70:$GF70,"<" & R70+0.5,'Asset data'!$CX70:$GJ70),0) -> 402.4675 | X70: =IF($A70>0,SUMIF('Age profile (years)'!$CT70:$GF70,"<" & S70+0.5,'Asset data'!$CX70:$GJ70)-W70,0) -> 127.095 | Y70: =IF($A70>0,SUMIF('Age profile (years)'!$CT70:$GF70,"<" & T70+0.5,'Asset data'!$CX70:$GJ70)-X70-W70,0) -> 3558.66 | Z70: =IF($A70>0,SUMIF('Age profile (years)'!$CT70:$GF70,"<" & U70+0.5,'Asset data'!$CX70:$GJ70)-Y70-X70-W70,0) -> 1546.3225 | AA70: 932.03 | AB70: 0.06129032258 | AC70: 0.01935483871 | AD70: 0.5419354839 | AE70: 0.235483871 | AF70: 0.1419354839 | AI70: =IF($A70>0,'RRR hist-forc'!K70,0) -> 49.83146604 | AJ70: 327222.0591
A71: ='Asset data'!A71 -> 5 | B71: ='Asset data'!B71 -> 0 | C71: ='Asset data'!C71 -> 0 | D71: ='Asset data'!E71 -> kiosk mounted ; < = 22kv ; > 60 kva and < = 600 kva ; single phase | E71: TRANSFORMERS | F71: =IF(A71>0,SUM('Asset data'!J71:CV71),0) -> 8915 | G71: =IF(A71>0,'Asset data'!F71,0) -> 66.476 | H71: =IF(A71>0,SUM('Asset data'!CX71:GJ71),0) -> 592633.54 | I71: 0.03036880794 | J71: 7 | K71: 0.2414526314 | L71: 66.476 | M71: =IF($A71>0,SUMPRODUCT('Age profile (years)'!$CT71:$GF71,'Asset data'!$CX71:$GJ71)/H71-0.5,0) -> 47.06264722 | N71: 27890903.23 | O71: =IF($A71>0,'Asset data'!G71,0) -> 71.61300921 | P71: 42440271.16 | Q71: 0.3428198628 | R71: 7.161300921 | S71: 14.32260184 | T71: 42.96780553 | U71: 57.29040737 | W71: =IF($A71>0,SUMIF('Age profile (years)'!$CT71:$GF71,"<" & R71+0.5,'Asset data'!$CX71:$GJ71),0) -> 0 | X71: =IF($A71>0,SUMIF('Age profile (years)'!$CT71:$GF71,"<" & S71+0.5,'Asset data'!$CX71:$GJ71)-W71,0) -> 12563.964 | Y71: =IF($A71>0,SUMIF('Age profile (years)'!$CT71:$GF71,"<" & T71+0.5,'Asset data'!$CX71:$GJ71)-X71-W71,0) -> 190387.264 | Z71: =IF($A71>0,SUMIF('Age profile (years)'!$CT71:$GF71,"<" & U71+0.5,'Asset data'!$CX71:$GJ71)-Y71-X71-W71,0) -> 230339.34 | AA71: 159342.972 | AB71: 0 | AC71: 0.02120022434 | AD71: 0.3212563096 | AE71: 0.3886707796 | AF71: 0.2688726865 | AI71: =IF($A71>0,'RRR hist-forc'!K71,0) -> 71.61300921 | AJ71: 42440271.16
A72: ='Asset data'!A72 -> 5 | B72: ='Asset data'!B72 -> 0 | C72: ='Asset data'!C72 -> 0 | D72: ='Asset data'!E72 -> kiosk mounted ; < = 22kv ; > 600 kva ; single phase | E72: TRANSFORMERS | F72: =IF(A72>0,SUM('Asset data'!J72:CV72),0) -> 1298 | G72: =IF(A72>0,'Asset data'!F72,0) -> 74.5248 | H72: =IF(A72>0,SUM('Asset data'!CX72:GJ72),0) -> 96733.1904 | I72: 0.00495697844 | J72: 25 | K72: 0.0394113424 | L72: 74.5248 | M72: =IF($A72>0,SUMPRODUCT('Age profile (years)'!$CT72:$GF72,'Asset data'!$CX72:$GJ72)/H72-0.5,0) -> 40.85824345 | N72: 3952348.243 | O72: =IF($A72>0,'Asset data'!G72,0) -> 66.1 | P72: 6394063.885 | Q72: 0.3818722625 | R72: 6.61 | S72: 13.22 | T72: 39.66 | U72: 52.88 | W72: =IF($A72>0,SUMIF('Age profile (years)'!$CT72:$GF72,"<" & R72+0.5,'Asset data'!$CX72:$GJ72),0) -> 2459.3184 | X72: =IF($A72>0,SUMIF('Age profile (years)'!$CT72:$GF72,"<" & S72+0.5,'Asset data'!$CX72:$GJ72)-W72,0) -> 7377.9552 | Y72: =IF($A72>0,SUMIF('Age profile (years)'!$CT72:$GF72,"<" & T72+0.5,'Asset data'!$CX72:$GJ72)-X72-W72,0) -> 26828.928 | Z72: =IF($A72>0,SUMIF('Age profile (years)'!$CT72:$GF72,"<" & U72+0.5,'Asset data'!$CX72:$GJ72)-Y72-X72-W72,0) -> 31151.3664 | AA72: 28915.6224 | AB72: 0.02542372881 | AC72: 0.07627118644 | AD72: 0.2773497689 | AE72: 0.3220338983 | AF72: 0.2989214176 | AI72: =IF($A72>0,'RRR hist-forc'!K72,0) -> 66.1 | AJ72: 6394063.885
A73: ='Asset data'!A73 -> 5 | B73: ='Asset data'!B73 -> 0 | C73: ='Asset data'!C73 -> 0 | D73: ='Asset data'!E73 -> kiosk mounted ; < = 22kv ; < = 60 kva ; multiple phase | E73: TRANSFORMERS | F73: =IF(A73>0,SUM('Asset data'!J73:CV73),0) -> 17 | G73: =IF(A73>0,'Asset data'!F73,0) -> 98.9126 | H73: =IF(A73>0,SUM('Asset data'!CX73:GJ73),0) -> 1681.5142 | I73: 8.616721522e-05 | J73: 51 | K73: 0.000685087834 | L73: 98.9126 | M73: =IF($A73>0,SUMPRODUCT('Age profile (years)'!$CT73:$GF73,'Asset data'!$CX73:$GJ73)/H73-0.5,0) -> 23.91176471 | N73: 40207.9719 | O73: =IF($A73>0,'Asset data'!G73,0) -> 54.87850713 | P73: 92278.98902 | Q73: 0.564278149 | R73: 5.487850713 | S73: 10.97570143 | T73: 32.92710428 | U73: 43.90280571 | W73: =IF($A73>0,SUMIF('Age profile (years)'!$CT73:$GF73,"<" & R73+0.5,'Asset data'!$CX73:$GJ73),0) -> 791.3008 | X73: =IF($A73>0,SUMIF('Age profile (years)'!$CT73:$GF73,"<" & S73+0.5,'Asset data'!$CX73:$GJ73)-W73,0) -> 0 | Y73: =IF($A73>0,SUMIF('Age profile (years)'!$CT73:$GF73,"<" & T73+0.5,'Asset data'!$CX73:$GJ73)-X73-W73,0) -> 296.7378 | Z73: =IF($A73>0,SUMIF('Age profile (years)'!$CT73:$GF73,"<" & U73+0.5,'Asset data'!$CX73:$GJ73)-Y73-X73-W73,0) -> 0 | AA73: 593.4756 | AB73: 0.4705882353 | AC73: 0 | AD73: 0.1764705882 | AE73: 0 | AF73: 0.3529411765 | AI73: =IF($A73>0,'RRR hist-forc'!K73,0) -> 54.87850713 | AJ73: 92278.98902
A74: ='Asset data'!A74 -> 5 | B74: ='Asset data'!B74 -> 0 | C74: ='Asset data'!C74 -> 0 | D74: ='Asset data'!E74 -> kiosk mounted ; < = 22kv ; > 60 kva and < = 600 kva ; multiple phase | E74: TRANSFORMERS | F74: =IF(A74>0,SUM('Asset data'!J74:CV74),0) -> 2025 | G74: =IF(A74>0,'Asset data'!F74,0) -> 23.4445 | H74: =IF(A74>0,SUM('Asset data'!CX74:GJ74),0) -> 47475.1125 | I74: 0.002432806239 | J74: 31 | K74: 0.0193424605 | L74: 23.4445 | M74: =IF($A74>0,SUMPRODUCT('Age profile (years)'!$CT74:$GF74,'Asset data'!$CX74:$GJ74)/H74-0.5,0) -> 39.49654321 | N74: 1875102.832 | O74: =IF($A74>0,'Asset data'!G74,0) -> 56.5632315 | P74: 2685345.779 | Q74: 0.3017276036 | R74: 5.65632315 | S74: 11.3126463 | T74: 33.9379389 | U74: 45.2505852 | W74: =IF($A74>0,SUMIF('Age profile (years)'!$CT74:$GF74,"<" & R74+0.5,'Asset data'!$CX74:$GJ74),0) -> 2391.339 | X74: =IF($A74>0,SUMIF('Age profile (years)'!$CT74:$GF74,"<" & S74+0.5,'Asset data'!$CX74:$GJ74)-W74,0) -> 1078.447 | Y74: =IF($A74>0,SUMIF('Age profile (years)'!$CT74:$GF74,"<" & T74+0.5,'Asset data'!$CX74:$GJ74)-X74-W74,0) -> 13433.6985 | Z74: =IF($A74>0,SUMIF('Age profile (years)'!$CT74:$GF74,"<" & U74+0.5,'Asset data'!$CX74:$GJ74)-Y74-X74-W74,0) -> 7150.5725 | AA74: 23421.0555 | AB74: 0.05037037037 | AC74: 0.02271604938 | AD74: 0.282962963 | AE74: 0.150617284 | AF74: 0.4933333333 | AI74: =IF($A74>0,'RRR hist-forc'!K74,0) -> 56.5632315 | AJ74: 2685345.779
A75: ='Asset data'!A75 -> 5 | B75: ='Asset data'!B75 -> 0 | C75: ='Asset data'!C75 -> 0 | D75: ='Asset data'!E75 -> kiosk mounted ; < = 22kv ; > 600 kva ; multiple phase | E75: TRANSFORMERS | F75: =IF(A75>0,SUM('Asset data'!J75:CV75),0) -> 320 | G75: =IF(A75>0,'Asset data'!F75,0) -> 74.5248 | H75: =IF(A75>0,SUM('Asset data'!CX75:GJ75),0) -> 23847.936 | I75: 0.0012220594 | J75: 37 | K75: 0.009716201517 | L75: 74.5248 | M75: =IF($A75>0,SUMPRODUCT('Age profile (years)'!$CT75:$GF75,'Asset data'!$CX75:$GJ75)/H75-0.5,0) -> 50.3375 | N75: 1200445.478 | O75: =IF($A75>0,'Asset data'!G75,0) -> 66.1 | P75: 1576348.57 | Q75: 0.2384644478 | R75: 6.61 | S75: 13.22 | T75: 39.66 | U75: 52.88 | W75: =IF($A75>0,SUMIF('Age profile (years)'!$CT75:$GF75,"<" & R75+0.5,'Asset data'!$CX75:$GJ75),0) -> 447.1488 | X75: =IF($A75>0,SUMIF('Age profile (years)'!$CT75:$GF75,"<" & S75+0.5,'Asset data'!$CX75:$GJ75)-W75,0) -> 1043.3472 | Y75: =IF($A75>0,SUMIF('Age profile (years)'!$CT75:$GF75,"<" & T75+0.5,'Asset data'!$CX75:$GJ75)-X75-W75,0) -> 4247.9136 | Z75: =IF($A75>0,SUMIF('Age profile (years)'!$CT75:$GF75,"<" & U75+0.5,'Asset data'!$CX75:$GJ75)-Y75-X75-W75,0) -> 3577.1904 | AA75: 14532.336 | AB75: 0.01875 | AC75: 0.04375 | AD75: 0.178125 | AE75: 0.15 | AF75: 0.609375 | AI75: =IF($A75>0,'RRR hist-forc'!K75,0) -> 66.1 | AJ75: 1576348.57
A76: ='Asset data'!A76 -> 5 | B76: ='Asset data'!B76 -> 0 | C76: ='Asset data'!C76 -> 0 | D76: ='Asset data'!E76 -> ground outdoor / indoor chamber mounted; ˂ 22 kv ; < = 60 kva ; single phase | E76: TRANSFORMERS | F76: =IF(A76>0,SUM('Asset data'!J76:CV76),0) -> 11 | G76: =IF(A76>0,'Asset data'!F76,0) -> 0.0001 | H76: =IF(A76>0,SUM('Asset data'!CX76:GJ76),0) -> 0.0011 | I76: 5.636820476e-11 | J76: 56 | K76: 4.481654793e-10 | L76: 0.0001 | M76: =IF($A76>0,SUMPRODUCT('Age profile (years)'!$CT76:$GF76,'Asset data'!$CX76:$GJ76)/H76-0.5,0) -> 23.04545455 | N76: 0.02535 | O76: =IF($A76>0,'Asset data'!G76,0) -> 66.1 | P76: 0.07271 | Q76: 0.6513546967 | R76: 6.61 | S76: 13.22 | T76: 39.66 | U76: 52.88 | W76: =IF($A76>0,SUMIF('Age profile (years)'!$CT76:$GF76,"<" & R76+0.5,'Asset data'!$CX76:$GJ76),0) -> 0.0001 | X76: =IF($A76>0,SUMIF('Age profile (years)'!$CT76:$GF76,"<" & S76+0.5,'Asset data'!$CX76:$GJ76)-W76,0) -> 0.0003 | Y76: =IF($A76>0,SUMIF('Age profile (years)'!$CT76:$GF76,"<" & T76+0.5,'Asset data'!$CX76:$GJ76)-X76-W76,0) -> 0.0007 | Z76: =IF($A76>0,SUMIF('Age profile (years)'!$CT76:$GF76,"<" & U76+0.5,'Asset data'!$CX76:$GJ76)-Y76-X76-W76,0) -> 4.065758147e-20 | AA76: 4.065758147e-20 | AB76: 0.09090909091 | AC76: 0.2727272727 | AD76: 0.6363636364 | AE76: 3.69614377e-17 | AF76: 3.69614377e-17 | AI76: =IF($A76>0,'RRR hist-forc'!K76,0) -> 66.1 | AJ76: 0.07271
A77: ='Asset data'!A77 -> 5 | B77: ='Asset data'!B77 -> 0 | C77: ='Asset data'!C77 -> 0 | D77: ='Asset data'!E77 -> ground outdoor / indoor chamber mounted; ˂ 22 kv ; > 60 kva and < = 600 kva ; single phase | E77: TRANSFORMERS | F77: =IF(A77>0,SUM('Asset data'!J77:CV77),0) -> 390 | G77: =IF(A77>0,'Asset data'!F77,0) -> 148.3687 | H77: =IF(A77>0,SUM('Asset data'!CX77:GJ77),0) -> 57863.793 | I77: 0.002965161938 | J77: 30 | K77: 0.02357504957 | L77: 148.3687 | M77: =IF($A77>0,SUMPRODUCT('Age profile (years)'!$CT77:$GF77,'Asset data'!$CX77:$GJ77)/H77-0.5,0) -> 34.45384615 | N77: 1993630.222 | O77: =IF($A77>0,'Asset data'!G77,0) -> 72.9250582 | P77: 4219720.472 | Q77: 0.5275444819 | R77: 7.29250582 | S77: 14.58501164 | T77: 43.75503492 | U77: 58.34004656 | W77: =IF($A77>0,SUMIF('Age profile (years)'!$CT77:$GF77,"<" & R77+0.5,'Asset data'!$CX77:$GJ77),0) -> 0 | X77: =IF($A77>0,SUMIF('Age profile (years)'!$CT77:$GF77,"<" & S77+0.5,'Asset data'!$CX77:$GJ77)-W77,0) -> 1632.0557 | Y77: =IF($A77>0,SUMIF('Age profile (years)'!$CT77:$GF77,"<" & T77+0.5,'Asset data'!$CX77:$GJ77)-X77-W77,0) -> 46291.0344 | Z77: =IF($A77>0,SUMIF('Age profile (years)'!$CT77:$GF77,"<" & U77+0.5,'Asset data'!$CX77:$GJ77)-Y77-X77-W77,0) -> 6824.9602 | AA77: 3115.7427 | AB77: 0 | AC77: 0.02820512821 | AD77: 0.8 | AE77: 0.1179487179 | AF77: 0.05384615385 | AI77: =IF($A77>0,'RRR hist-forc'!K77,0) -> 72.9250582 | AJ77: 4219720.472
A78: ='Asset data'!A78 -> 5 | B78: ='Asset data'!B78 -> 0 | C78: ='Asset data'!C78 -> 0 | D78: ='Asset data'!E78 -> ground outdoor / indoor chamber mounted; ˂ 22 kv ; > 600 kva ; single phase | E78: TRANSFORMERS | F78: =IF(A78>0,SUM('Asset data'!J78:CV78),0) -> 197 | G78: =IF(A78>0,'Asset data'!F78,0) -> 784.9499 | H78: =IF(A78>0,SUM('Asset data'!CX78:GJ78),0) -> 154635.1303 | I78: 0.007924095171 | J78: 20 | K78: 0.0630019339 | L78: 784.9499 | M78: =IF($A78>0,SUMPRODUCT('Age profile (years)'!$CT78:$GF78,'Asset data'!$CX78:$GJ78)/H78-0.5,0) -> 36.75380711 | N78: 5683429.751 | O78: =IF($A78>0,'Asset data'!G78,0) -> 72.12626475 | P78: 11153254.35 | Q78: 0.4904240885 | R78: 7.212626475 | S78: 14.42525295 | T78: 43.27575885 | U78: 57.7010118 | W78: =IF($A78>0,SUMIF('Age profile (years)'!$CT78:$GF78,"<" & R78+0.5,'Asset data'!$CX78:$GJ78),0) -> 0 | X78: =IF($A78>0,SUMIF('Age profile (years)'!$CT78:$GF78,"<" & S78+0.5,'Asset data'!$CX78:$GJ78)-W78,0) -> 6279.5992 | Y78: =IF($A78>0,SUMIF('Age profile (years)'!$CT78:$GF78,"<" & T78+0.5,'Asset data'!$CX78:$GJ78)-X78-W78,0) -> 98903.6874 | Z78: =IF($A78>0,SUMIF('Age profile (years)'!$CT78:$GF78,"<" & U78+0.5,'Asset data'!$CX78:$GJ78)-Y78-X78-W78,0) -> 43957.1944 | AA78: 5494.6493 | AB78: 0 | AC78: 0.04060913706 | AD78: 0.6395939086 | AE78: 0.2842639594 | AF78: 0.03553299492 | AI78: =IF($A78>0,'RRR hist-forc'!K78,0) -> 72.12626475 | AJ78: 11153254.35
A79: ='Asset data'!A79 -> 0 | B79: ='Asset data'!B79 -> 0 | C79: ='Asset data'!C79 -> 0 | D79: ='Asset data'!E79 -> ground outdoor / indoor chamber mounted; ˂ 22 kv ; < = 60 kva ; multiple phase | E79: 0 | F79: =IF(A79>0,SUM('Asset data'!J79:CV79),0) -> 0 | G79: =IF(A79>0,'Asset data'!F79,0) -> 0 | H79: =IF(A79>0,SUM('Asset data'!CX79:GJ79),0) -> 0 | I79: 0 | J79: 0 | K79: 0 | L79: 0 | M79: =IF($A79>0,SUMPRODUCT('Age profile (years)'!$CT79:$GF79,'Asset data'!$CX79:$GJ79)/H79-0.5,0) -> 0 | N79: 0 | O79: =IF($A79>0,'Asset data'!G79,0) -> 0 | P79: 0 | Q79: 0 | R79: 0 | S79: 0 | T79: 0 | U79: 0 | W79: =IF($A79>0,SUMIF('Age profile (years)'!$CT79:$GF79,"<" & R79+0.5,'Asset data'!$CX79:$GJ79),0) -> 0 | X79: =IF($A79>0,SUMIF('Age profile (years)'!$CT79:$GF79,"<" & S79+0.5,'Asset data'!$CX79:$GJ79)-W79,0) -> 0 | Y79: =IF($A79>0,SUMIF('Age profile (years)'!$CT79:$GF79,"<" & T79+0.5,'Asset data'!$CX79:$GJ79)-X79-W79,0) -> 0 | Z79: =IF($A79>0,SUMIF('Age profile (years)'!$CT79:$GF79,"<" & U79+0.5,'Asset data'!$CX79:$GJ79)-Y79-X79-W79,0) -> 0 | AA79: 0 | AB79: 0 | AC79: 0 | AD79: 0 | AE79: 0 | AF79: 0 | AI79: =IF($A79>0,'RRR hist-forc'!K79,0) -> 0 | AJ79: 0
A80: ='Asset data'!A80 -> 5 | B80: ='Asset data'!B80 -> 0 | C80: ='Asset data'!C80 -> 0 | D80: ='Asset data'!E80 -> ground outdoor / indoor chamber mounted; ˂ 22 kv ; > 60 kva and < = 600 kva ; multiple phase | E80: TRANSFORMERS | F80: =IF(A80>0,SUM('Asset data'!J80:CV80),0) -> 7 | G80: =IF(A80>0,'Asset data'!F80,0) -> 27.7312 | H80: =IF(A80>0,SUM('Asset data'!CX80:GJ80),0) -> 194.1184 | I80: 9.947368836e-06 | J80: 54 | K80: 7.908833253e-05 | L80: 27.7312 | M80: =IF($A80>0,SUMPRODUCT('Age profile (years)'!$CT80:$GF80,'Asset data'!$CX80:$GJ80)/H80-0.5,0) -> 24.21428571 | N80: 4700.4384 | O80: =IF($A80>0,'Asset data'!G80,0) -> 66.40612981 | P80: 12890.65167 | Q80: 0.6353606846 | R80: 6.640612981 | S80: 13.28122596 | T80: 39.84367789 | U80: 53.12490385 | W80: =IF($A80>0,SUMIF('Age profile (years)'!$CT80:$GF80,"<" & R80+0.5,'Asset data'!$CX80:$GJ80),0) -> 55.4624 | X80: =IF($A80>0,SUMIF('Age profile (years)'!$CT80:$GF80,"<" & S80+0.5,'Asset data'!$CX80:$GJ80)-W80,0) -> 55.4624 | Y80: =IF($A80>0,SUMIF('Age profile (years)'!$CT80:$GF80,"<" & T80+0.5,'Asset data'!$CX80:$GJ80)-X80-W80,0) -> 27.7312 | Z80: =IF($A80>0,SUMIF('Age profile (years)'!$CT80:$GF80,"<" & U80+0.5,'Asset data'!$CX80:$GJ80)-Y80-X80-W80,0) -> 0 | AA80: 55.4624 | AB80: 0.2857142857 | AC80: 0.2857142857 | AD80: 0.1428571429 | AE80: 0 | AF80: 0.2857142857 | AI80: =IF($A80>0,'RRR hist-forc'!K80,0) -> 66.40612981 | AJ80: 12890.65167
A81: ='Asset data'!A81 -> 5 | B81: ='Asset data'!B81 -> 0 | C81: ='Asset data'!C81 -> 0 | D81: ='Asset data'!E81 -> ground outdoor / indoor chamber mounted; ˂ 22 kv ; > 600 kva ; multiple phase | E81: TRANSFORMERS | F81: =IF(A81>0,SUM('Asset data'!J81:CV81),0) -> 89 | G81: =IF(A81>0,'Asset data'!F81,0) -> 357.4033 | H81: =IF(A81>0,SUM('Asset data'!CX81:GJ81),0) -> 31808.8937 | I81: 0.001630009303 | J81: 36 | K81: 0.01295968008 | L81: 357.4033 | M81: =IF($A81>0,SUMPRODUCT('Age profile (years)'!$CT81:$GF81,'Asset data'!$CX81:$GJ81)/H81-0.5,0) -> 21.53370787 | N81: 684963.4245 | O81: =IF($A81>0,'Asset data'!G81,0) -> 59.13687061 | P81: 1881078.431 | Q81: 0.6358666321 | R81: 5.913687061 | S81: 11.82737412 | T81: 35.48212237 | U81: 47.30949649 | W81: =IF($A81>0,SUMIF('Age profile (years)'!$CT81:$GF81,"<" & R81+0.5,'Asset data'!$CX81:$GJ81),0) -> 357.4033 | X81: =IF($A81>0,SUMIF('Age profile (years)'!$CT81:$GF81,"<" & S81+0.5,'Asset data'!$CX81:$GJ81)-W81,0) -> 5718.4528 | Y81: =IF($A81>0,SUMIF('Age profile (years)'!$CT81:$GF81,"<" & T81+0.5,'Asset data'!$CX81:$GJ81)-X81-W81,0) -> 23231.2145 | Z81: =IF($A81>0,SUMIF('Age profile (years)'!$CT81:$GF81,"<" & U81+0.5,'Asset data'!$CX81:$GJ81)-Y81-X81-W81,0) -> 1429.6132 | AA81: 1072.2099 | AB81: 0.01123595506 | AC81: 0.1797752809 | AD81: 0.7303370787 | AE81: 0.04494382022 | AF81: 0.03370786517 | AI81: =IF($A81>0,'RRR hist-forc'!K81,0) -> 59.13687061 | AJ81: 1881078.431
A82: ='Asset data'!A82 -> 5 | B82: ='Asset data'!B82 -> 0 | C82: ='Asset data'!C82 -> 0 | D82: ='Asset data'!E82 -> ground outdoor / indoor chamber mounted; > = 22 kv & < = 33 kv ; < = 15 mva | E82: TRANSFORMERS | F82: =IF(A82>0,SUM('Asset data'!J82:CV82),0) -> 438 | G82: =IF(A82>0,'Asset data'!F82,0) -> 417.0112 | H82: =IF(A82>0,SUM('Asset data'!CX82:GJ82),0) -> 182650.9056 | I82: 0.009359730588 | J82: 17 | K82: 0.07441620969 | L82: 417.0112 | M82: =IF($A82>0,SUMPRODUCT('Age profile (years)'!$CT82:$GF82,'Asset data'!$CX82:$GJ82)/H82-0.5,0) -> 29.10958904 | N82: 5316892.8 | O82: =IF($A82>0,'Asset data'!G82,0) -> 62.46483689 | P82: 11409259.03 | Q82: 0.5339843904 | R82: 6.246483689 | S82: 12.49296738 | T82: 37.47890214 | U82: 49.97186952 | W82: =IF($A82>0,SUMIF('Age profile (years)'!$CT82:$GF82,"<" & R82+0.5,'Asset data'!$CX82:$GJ82),0) -> 24186.6496 | X82: =IF($A82>0,SUMIF('Age profile (years)'!$CT82:$GF82,"<" & S82+0.5,'Asset data'!$CX82:$GJ82)-W82,0) -> 13344.3584 | Y82: =IF($A82>0,SUMIF('Age profile (years)'!$CT82:$GF82,"<" & T82+0.5,'Asset data'!$CX82:$GJ82)-X82-W82,0) -> 87989.3632 | Z82: =IF($A82>0,SUMIF('Age profile (years)'!$CT82:$GF82,"<" & U82+0.5,'Asset data'!$CX82:$GJ82)-Y82-X82-W82,0) -> 33360.896 | AA82: 23769.6384 | AB82: 0.1324200913 | AC82: 0.07305936073 | AD82: 0.4817351598 | AE82: 0.1826484018 | AF82: 0.1301369863 | AI82: =IF($A82>0,'RRR hist-forc'!K82,0) -> 62.46483689 | AJ82: 11409259.03
A83: ='Asset data'!A83 -> 5 | B83: ='Asset data'!B83 -> 0 | C83: ='Asset data'!C83 -> 0 | D83: ='Asset data'!E83 -> ground outdoor / indoor chamber mounted; > = 22 kv & < = 33 kv ; > 15 mva and < = 40 mva | E83: TRANSFORMERS | F83: =IF(A83>0,SUM('Asset data'!J83:CV83),0) -> 5 | G83: =IF(A83>0,'Asset data'!F83,0) -> 706.17 | H83: =IF(A83>0,SUM('Asset data'!CX83:GJ83),0) -> 3530.85 | I83: 0.0001809342507 | J83: 46 | K83: 0.001438550075 | L83: 706.17 | M83: =IF($A83>0,SUMPRODUCT('Age profile (years)'!$CT83:$GF83,'Asset data'!$CX83:$GJ83)/H83-0.5,0) -> 50.1 | N83: 176895.585 | O83: =IF($A83>0,'Asset data'!G83,0) -> 66.1 | P83: 233389.185 | Q83: 0.2420574887 | R83: 6.61 | S83: 13.22 | T83: 39.66 | U83: 52.88 | W83: =IF($A83>0,SUMIF('Age profile (years)'!$CT83:$GF83,"<" & R83+0.5,'Asset data'!$CX83:$GJ83),0) -> 0 | X83: =IF($A83>0,SUMIF('Age profile (years)'!$CT83:$GF83,"<" & S83+0.5,'Asset data'!$CX83:$GJ83)-W83,0) -> 0 | Y83: =IF($A83>0,SUMIF('Age profile (years)'!$CT83:$GF83,"<" & T83+0.5,'Asset data'!$CX83:$GJ83)-X83-W83,0) -> 1412.34 | Z83: =IF($A83>0,SUMIF('Age profile (years)'!$CT83:$GF83,"<" & U83+0.5,'Asset data'!$CX83:$GJ83)-Y83-X83-W83,0) -> 0 | AA83: 2118.51 | AB83: 0 | AC83: 0 | AD83: 0.4 | AE83: 0 | AF83: 0.6 | AI83: =IF($A83>0,'RRR hist-forc'!K83,0) -> 66.1 | AJ83: 233389.185
A84: ='Asset data'!A84 -> 0 | B84: ='Asset data'!B84 -> 0 | C84: ='Asset data'!C84 -> 0 | D84: ='Asset data'!E84 -> ground outdoor / indoor chamber mounted; > = 22 kv & < = 33 kv ; > 40 mva | E84: 0 | F84: =IF(A84>0,SUM('Asset data'!J84:CV84),0) -> 0 | G84: =IF(A84>0,'Asset data'!F84,0) -> 0 | H84: =IF(A84>0,SUM('Asset data'!CX84:GJ84),0) -> 0 | I84: 0 | J84: 0 | K84: 0 | L84: 0 | M84: =IF($A84>0,SUMPRODUCT('Age profile (years)'!$CT84:$GF84,'Asset data'!$CX84:$GJ84)/H84-0.5,0) -> 0 | N84: 0 | O84: =IF($A84>0,'Asset data'!G84,0) -> 0 | P84: 0 | Q84: 0 | R84: 0 | S84: 0 | T84: 0 | U84: 0 | W84: =IF($A84>0,SUMIF('Age profile (years)'!$CT84:$GF84,"<" & R84+0.5,'Asset data'!$CX84:$GJ84),0) -> 0 | X84: =IF($A84>0,SUMIF('Age profile (years)'!$CT84:$GF84,"<" & S84+0.5,'Asset data'!$CX84:$GJ84)-W84,0) -> 0 | Y84: =IF($A84>0,SUMIF('Age profile (years)'!$CT84:$GF84,"<" & T84+0.5,'Asset data'!$CX84:$GJ84)-X84-W84,0) -> 0 | Z84: =IF($A84>0,SUMIF('Age profile (years)'!$CT84:$GF84,"<" & U84+0.5,'Asset data'!$CX84:$GJ84)-Y84-X84-W84,0) -> 0 | AA84: 0 | AB84: 0 | AC84: 0 | AD84: 0 | AE84: 0 | AF84: 0 | AI84: =IF($A84>0,'RRR hist-forc'!K84,0) -> 0 | AJ84: 0
A85: ='Asset data'!A85 -> 5 | B85: ='Asset data'!B85 -> 0 | C85: ='Asset data'!C85 -> 0 | D85: ='Asset data'!E85 -> ground outdoor / indoor chamber mounted; > 33 kv & < = 66 kv ; < = 15 mva | E85: TRANSFORMERS | F85: =IF(A85>0,SUM('Asset data'!J85:CV85),0) -> 164 | G85: =IF(A85>0,'Asset data'!F85,0) -> 1203.2734 | H85: =IF(A85>0,SUM('Asset data'!CX85:GJ85),0) -> 197336.8376 | I85: 0.01011229388 | J85: 15 | K85: 0.08039959856 | L85: 1203.2734 | M85: =IF($A85>0,SUMPRODUCT('Age profile (years)'!$CT85:$GF85,'Asset data'!$CX85:$GJ85)/H85-0.5,0) -> 27.56097561 | N85: 5438795.768 | O85: =IF($A85>0,'Asset data'!G85,0) -> 68.65849964 | P85: 13548851.19 | Q85: 0.5985788248 | R85: 6.865849964 | S85: 13.73169993 | T85: 41.19509978 | U85: 54.92679971 | W85: =IF($A85>0,SUMIF('Age profile (years)'!$CT85:$GF85,"<" & R85+0.5,'Asset data'!$CX85:$GJ85),0) -> 4813.0936 | X85: =IF($A85>0,SUMIF('Age profile (years)'!$CT85:$GF85,"<" & S85+0.5,'Asset data'!$CX85:$GJ85)-W85,0) -> 20455.6478 | Y85: =IF($A85>0,SUMIF('Age profile (years)'!$CT85:$GF85,"<" & T85+0.5,'Asset data'!$CX85:$GJ85)-X85-W85,0) -> 132360.074 | Z85: =IF($A85>0,SUMIF('Age profile (years)'!$CT85:$GF85,"<" & U85+0.5,'Asset data'!$CX85:$GJ85)-Y85-X85-W85,0) -> 18049.101 | AA85: 21658.9212 | AB85: 0.0243902439 | AC85: 0.1036585366 | AD85: 0.6707317073 | AE85: 0.09146341463 | AF85: 0.1097560976 | AI85: =IF($A85>0,'RRR hist-forc'!K85,0) -> 68.65849964 | AJ85: 13548851.19
A86: ='Asset data'!A86 -> 5 | B86: ='Asset data'!B86 -> 0 | C86: ='Asset data'!C86 -> 0 | D86: ='Asset data'!E86 -> ground outdoor / indoor chamber mounted; > 33 kv & < = 66 kv ; > 15 mva and < = 40 mva | E86: TRANSFORMERS | F86: =IF(A86>0,SUM('Asset data'!J86:CV86),0) -> 118 | G86: =IF(A86>0,'Asset data'!F86,0) -> 2062.5258 | H86: =IF(A86>0,SUM('Asset data'!CX86:GJ86),0) -> 243378.0444 | I86: 0.01247162131 | J86: 14 | K86: 0.09915785266 | L86: 2062.5258 | M86: =IF($A86>0,SUMPRODUCT('Age profile (years)'!$CT86:$GF86,'Asset data'!$CX86:$GJ86)/H86-0.5,0) -> 34.11864407 | N86: 8303728.871 | O86: =IF($A86>0,'Asset data'!G86,0) -> 58.25358326 | P86: 14177643.17 | Q86: 0.4143082338 | R86: 5.825358326 | S86: 11.65071665 | T86: 34.95214996 | U86: 46.60286661 | W86: =IF($A86>0,SUMIF('Age profile (years)'!$CT86:$GF86,"<" & R86+0.5,'Asset data'!$CX86:$GJ86),0) -> 12375.1548 | X86: =IF($A86>0,SUMIF('Age profile (years)'!$CT86:$GF86,"<" & S86+0.5,'Asset data'!$CX86:$GJ86)-W86,0) -> 14437.6806 | Y86: =IF($A86>0,SUMIF('Age profile (years)'!$CT86:$GF86,"<" & T86+0.5,'Asset data'!$CX86:$GJ86)-X86-W86,0) -> 96938.7126 | Z86: =IF($A86>0,SUMIF('Age profile (years)'!$CT86:$GF86,"<" & U86+0.5,'Asset data'!$CX86:$GJ86)-Y86-X86-W86,0) -> 41250.516 | AA86: 78375.9804 | AB86: 0.05084745763 | AC86: 0.0593220339 | AD86: 0.3983050847 | AE86: 0.1694915254 | AF86: 0.3220338983 | AI86: =IF($A86>0,'RRR hist-forc'!K86,0) -> 58.25358326 | AJ86: 14177643.17
A87: ='Asset data'!A87 -> 0 | B87: ='Asset data'!B87 -> 0 | C87: ='Asset data'!C87 -> 0 | D87: ='Asset data'!E87 -> ground outdoor / indoor chamber mounted; > 33 kv & < = 66 kv ; > 40 mva | E87: =IF(A87>0,VLOOKUP(A87,IDtable,2),0) -> 0 | F87: =IF(A87>0,SUM('Asset data'!J87:CV87),0) -> 0 | G87: =IF(A87>0,'Asset data'!F87,0) -> 0 | H87: =IF(A87>0,SUM('Asset data'!CX87:GJ87),0) -> 0 | I87: =H87/$H$18/1000 -> 0 | J87: =IF(RANK(0,I$21:I$205)=RANK(I87,I$21:I$205),0,RANK(I87,I$21:I$205)) -> 0 | K87: =IF(A87>0,H87/(VLOOKUP(A87,$A$6:$H$17,8)*1000),0) -> 0 | L87: =IF($A87>0,H87/F87,0) -> 0 | M87: =IF($A87>0,SUMPRODUCT('Age profile (years)'!$CT87:$GF87,'Asset data'!$CX87:$GJ87)/H87-0.5,0) -> 0 | N87: =IF($A87>0,M87*H87,0) -> 0 | O87: =IF($A87>0,'Asset data'!G87,0) -> 0 | P87: =IF($A87>0,H87*O87,0) -> 0 | Q87: =IF($A87>0,(O87-M87)/O87,0) -> 0 | R87: 0 | S87: 0 | T87: 0 | U87: 0 | W87: =IF($A87>0,SUMIF('Age profile (years)'!$CT87:$GF87,"<" & R87+0.5,'Asset data'!$CX87:$GJ87),0) -> 0 | X87: =IF($A87>0,SUMIF('Age profile (years)'!$CT87:$GF87,"<" & S87+0.5,'Asset data'!$CX87:$GJ87)-W87,0) -> 0 | Y87: =IF($A87>0,SUMIF('Age profile (years)'!$CT87:$GF87,"<" & T87+0.5,'Asset data'!$CX87:$GJ87)-X87-W87,0) -> 0 | Z87: =IF($A87>0,SUMIF('Age profile (years)'!$CT87:$GF87,"<" & U87+0.5,'Asset data'!$CX87:$GJ87)-Y87-X87-W87,0) -> 0 | AA87: =IF($A87>0,H87-Z87-Y87-X87-W87,0) -> 0 | AB87: =IF($A87>0,W87/$H87,0) -> 0 | AC87: =IF($A87>0,X87/$H87,0) -> 0 | AD87: =IF($A87>0,Y87/$H87,0) -> 0 | AE87: =IF($A87>0,Z87/$H87,0) -> 0 | AF87: =IF($A87>0,AA87/$H87,0) -> 0 | AI87: =IF($A87>0,'RRR hist-forc'!K87,0) -> 0 | AJ87: =IF($A87>0,AI87*H87,0) -> 0
A88: ='Asset data'!A88 -> 0 | B88: ='Asset data'!B88 -> 0 | C88: ='Asset data'!C88 -> 0 | D88: ='Asset data'!E88 -> ground outdoor / indoor chamber mounted; > 66 kv & < = 132 kv ; < = 100 mva | E88: 0 | F88: =IF(A88>0,SUM('Asset data'!J88:CV88),0) -> 0 | G88: =IF(A88>0,'Asset data'!F88,0) -> 0 | H88: =IF(A88>0,SUM('Asset data'!CX88:GJ88),0) -> 0 | I88: 0 | J88: 0 | K88: 0 | L88: 0 | M88: =IF($A88>0,SUMPRODUCT('Age profile (years)'!$CT88:$GF88,'Asset data'!$CX88:$GJ88)/H88-0.5,0) -> 0 | N88: 0 | O88: =IF($A88>0,'Asset data'!G88,0) -> 0 | P88: 0 | Q88: 0 | R88: 0 | S88: 0 | T88: 0 | U88: 0 | W88: =IF($A88>0,SUMIF('Age profile (years)'!$CT88:$GF88,"<" & R88+0.5,'Asset data'!$CX88:$GJ88),0) -> 0 | X88: =IF($A88>0,SUMIF('Age profile (years)'!$CT88:$GF88,"<" & S88+0.5,'Asset data'!$CX88:$GJ88)-W88,0) -> 0 | Y88: =IF($A88>0,SUMIF('Age profile (years)'!$CT88:$GF88,"<" & T88+0.5,'Asset data'!$CX88:$GJ88)-X88-W88,0) -> 0 | Z88: =IF($A88>0,SUMIF('Age profile (years)'!$CT88:$GF88,"<" & U88+0.5,'Asset data'!$CX88:$GJ88)-Y88-X88-W88,0) -> 0 | AA88: 0 | AB88: 0 | AC88: 0 | AD88: 0 | AE88: 0 | AF88: 0 | AI88: =IF($A88>0,'RRR hist-forc'!K88,0) -> 0 | AJ88: 0
A89: ='Asset data'!A89 -> 0 | B89: ='Asset data'!B89 -> 0 | C89: ='Asset data'!C89 -> 0 | D89: ='Asset data'!E89 -> ground outdoor / indoor chamber mounted; > 66 kv & < = 132 kv ; > 100 mva | E89: 0 | F89: =IF(A89>0,SUM('Asset data'!J89:CV89),0) -> 0 | G89: =IF(A89>0,'Asset data'!F89,0) -> 0 | H89: =IF(A89>0,SUM('Asset data'!CX89:GJ89),0) -> 0 | I89: 0 | J89: 0 | K89: 0 | L89: 0 | M89: =IF($A89>0,SUMPRODUCT('Age profile (years)'!$CT89:$GF89,'Asset data'!$CX89:$GJ89)/H89-0.5,0) -> 0 | N89: 0 | O89: =IF($A89>0,'Asset data'!G89,0) -> 0 | P89: 0 | Q89: 0 | R89: 0 | S89: 0 | T89: 0 | U89: 0 | W89: =IF($A89>0,SUMIF('Age profile (years)'!$CT89:$GF89,"<" & R89+0.5,'Asset data'!$CX89:$GJ89),0) -> 0 | X89: =IF($A89>0,SUMIF('Age profile (years)'!$CT89:$GF89,"<" & S89+0.5,'Asset data'!$CX89:$GJ89)-W89,0) -> 0 | Y89: =IF($A89>0,SUMIF('Age profile (years)'!$CT89:$GF89,"<" & T89+0.5,'Asset data'!$CX89:$GJ89)-X89-W89,0) -> 0 | Z89: =IF($A89>0,SUMIF('Age profile (years)'!$CT89:$GF89,"<" & U89+0.5,'Asset data'!$CX89:$GJ89)-Y89-X89-W89,0) -> 0 | AA89: 0 | AB89: 0 | AC89: 0 | AD89: 0 | AE89: 0 | AF89: 0 | AI89: =IF($A89>0,'RRR hist-forc'!K89,0) -> 0 | AJ89: 0
A90: ='Asset data'!A90 -> 0 | B90: ='Asset data'!B90 -> 0 | C90: ='Asset data'!C90 -> 0 | D90: ='Asset data'!E90 -> ground outdoor / indoor chamber mounted; > 132 kv ; < = 100 mva | E90: 0 | F90: =IF(A90>0,SUM('Asset data'!J90:CV90),0) -> 0 | G90: =IF(A90>0,'Asset data'!F90,0) -> 0 | H90: =IF(A90>0,SUM('Asset data'!CX90:GJ90),0) -> 0 | I90: 0 | J90: 0 | K90: 0 | L90: 0 | M90: =IF($A90>0,SUMPRODUCT('Age profile (years)'!$CT90:$GF90,'Asset data'!$CX90:$GJ90)/H90-0.5,0) -> 0 | N90: 0 | O90: =IF($A90>0,'Asset data'!G90,0) -> 0 | P90: 0 | Q90: 0 | R90: 0 | S90: 0 | T90: 0 | U90: 0 | W90: =IF($A90>0,SUMIF('Age profile (years)'!$CT90:$GF90,"<" & R90+0.5,'Asset data'!$CX90:$GJ90),0) -> 0 | X90: =IF($A90>0,SUMIF('Age profile (years)'!$CT90:$GF90,"<" & S90+0.5,'Asset data'!$CX90:$GJ90)-W90,0) -> 0 | Y90: =IF($A90>0,SUMIF('Age profile (years)'!$CT90:$GF90,"<" & T90+0.5,'Asset data'!$CX90:$GJ90)-X90-W90,0) -> 0 | Z90: =IF($A90>0,SUMIF('Age profile (years)'!$CT90:$GF90,"<" & U90+0.5,'Asset data'!$CX90:$GJ90)-Y90-X90-W90,0) -> 0 | AA90: 0 | AB90: 0 | AC90: 0 | AD90: 0 | AE90: 0 | AF90: 0 | AI90: =IF($A90>0,'RRR hist-forc'!K90,0) -> 0 | AJ90: 0
A91: ='Asset data'!A91 -> 0 | B91: ='Asset data'!B91 -> 0 | C91: ='Asset data'!C91 -> 0 | D91: ='Asset data'!E91 -> ground outdoor / indoor chamber mounted; > 132 kv ; > 100 mva | E91: 0 | F91: =IF(A91>0,SUM('Asset data'!J91:CV91),0) -> 0 | G91: =IF(A91>0,'Asset data'!F91,0) -> 0 | H91: =IF(A91>0,SUM('Asset data'!CX91:GJ91),0) -> 0 | I91: 0 | J91: 0 | K91: 0 | L91: 0 | M91: =IF($A91>0,SUMPRODUCT('Age profile (years)'!$CT91:$GF91,'Asset data'!$CX91:$GJ91)/H91-0.5,0) -> 0 | N91: 0 | O91: =IF($A91>0,'Asset data'!G91,0) -> 0 | P91: 0 | Q91: 0 | R91: 0 | S91: 0 | T91: 0 | U91: 0 | W91: =IF($A91>0,SUMIF('Age profile (years)'!$CT91:$GF91,"<" & R91+0.5,'Asset data'!$CX91:$GJ91),0) -> 0 | X91: =IF($A91>0,SUMIF('Age profile (years)'!$CT91:$GF91,"<" & S91+0.5,'Asset data'!$CX91:$GJ91)-W91,0) -> 0 | Y91: =IF($A91>0,SUMIF('Age profile (years)'!$CT91:$GF91,"<" & T91+0.5,'Asset data'!$CX91:$GJ91)-X91-W91,0) -> 0 | Z91: =IF($A91>0,SUMIF('Age profile (years)'!$CT91:$GF91,"<" & U91+0.5,'Asset data'!$CX91:$GJ91)-Y91-X91-W91,0) -> 0 | AA91: 0 | AB91: 0 | AC91: 0 | AD91: 0 | AE91: 0 | AF91: 0 | AI91: =IF($A91>0,'RRR hist-forc'!K91,0) -> 0 | AJ91: 0
A92: ='Asset data'!A92 -> 0 | B92: ='Asset data'!B92 -> 0 | C92: ='Asset data'!C92 -> 0 | D92: ='Asset data'!E92 -> other | E92: 0 | F92: =IF(A92>0,SUM('Asset data'!J92:CV92),0) -> 0 | G92: =IF(A92>0,'Asset data'!F92,0) -> 0 | H92: =IF(A92>0,SUM('Asset data'!CX92:GJ92),0) -> 0 | I92: 0 | J92: 0 | K92: 0 | L92: 0 | M92: =IF($A92>0,SUMPRODUCT('Age profile (years)'!$CT92:$GF92,'Asset data'!$CX92:$GJ92)/H92-0.5,0) -> 0 | N92: 0 | O92: =IF($A92>0,'Asset data'!G92,0) -> 0 | P92: 0 | Q92: 0 | R92: 0 | S92: 0 | T92: 0 | U92: 0 | W92: =IF($A92>0,SUMIF('Age profile (years)'!$CT92:$GF92,"<" & R92+0.5,'Asset data'!$CX92:$GJ92),0) -> 0 | X92: =IF($A92>0,SUMIF('Age profile (years)'!$CT92:$GF92,"<" & S92+0.5,'Asset data'!$CX92:$GJ92)-W92,0) -> 0 | Y92: =IF($A92>0,SUMIF('Age profile (years)'!$CT92:$GF92,"<" & T92+0.5,'Asset data'!$CX92:$GJ92)-X92-W92,0) -> 0 | Z92: =IF($A92>0,SUMIF('Age profile (years)'!$CT92:$GF92,"<" & U92+0.5,'Asset data'!$CX92:$GJ92)-Y92-X92-W92,0) -> 0 | AA92: 0 | AB92: 0 | AC92: 0 | AD92: 0 | AE92: 0 | AF92: 0 | AI92: =IF($A92>0,'RRR hist-forc'!K92,0) -> 0 | AJ92: 0
A93: ='Asset data'!A93 -> 0 | B93: ='Asset data'!B93 -> 0 | C93: ='Asset data'!C93 -> 0 | D93: ='Asset data'!E93 -> ˂ = 11 kv ; fuse | E93: 0 | F93: =IF(A93>0,SUM('Asset data'!J93:CV93),0) -> 0 | G93: =IF(A93>0,'Asset data'!F93,0) -> 0 | H93: =IF(A93>0,SUM('Asset data'!CX93:GJ93),0) -> 0 | I93: 0 | J93: 0 | K93: 0 | L93: 0 | M93: =IF($A93>0,SUMPRODUCT('Age profile (years)'!$CT93:$GF93,'Asset data'!$CX93:$GJ93)/H93-0.5,0) -> 0 | N93: 0 | O93: =IF($A93>0,'Asset data'!G93,0) -> 0 | P93: 0 | Q93: 0 | R93: 0 | S93: 0 | T93: 0 | U93: 0 | W93: =IF($A93>0,SUMIF('Age profile (years)'!$CT93:$GF93,"<" & R93+0.5,'Asset data'!$CX93:$GJ93),0) -> 0 | X93: =IF($A93>0,SUMIF('Age profile (years)'!$CT93:$GF93,"<" & S93+0.5,'Asset data'!$CX93:$GJ93)-W93,0) -> 0 | Y93: =IF($A93>0,SUMIF('Age profile (years)'!$CT93:$GF93,"<" & T93+0.5,'Asset data'!$CX93:$GJ93)-X93-W93,0) -> 0 | Z93: =IF($A93>0,SUMIF('Age profile (years)'!$CT93:$GF93,"<" & U93+0.5,'Asset data'!$CX93:$GJ93)-Y93-X93-W93,0) -> 0 | AA93: 0 | AB93: 0 | AC93: 0 | AD93: 0 | AE93: 0 | AF93: 0 | AI93: =IF($A93>0,'RRR hist-forc'!K93,0) -> 0 | AJ93: 0
A94: ='Asset data'!A94 -> 6 | B94: ='Asset data'!B94 -> 0 | C94: ='Asset data'!C94 -> 0 | D94: ='Asset data'!E94 -> ˂ = 11 kv ; switch | E94: SWITCHGEAR | F94: =IF(A94>0,SUM('Asset data'!J94:CV94),0) -> 1511 | G94: =IF(A94>0,'Asset data'!F94,0) -> 54.7115 | H94: =IF(A94>0,SUM('Asset data'!CX94:GJ94),0) -> 82669.0765 | I94: 0.004236279483 | J94: 27 | K94: 0.05409585903 | L94: 54.7115 | M94: =IF($A94>0,SUMPRODUCT('Age profile (years)'!$CT94:$GF94,'Asset data'!$CX94:$GJ94)/H94-0.5,0) -> 31.12011913 | N94: 2572671.509 | O94: =IF($A94>0,'Asset data'!G94,0) -> 71.97695612 | P94: 5950268.492 | Q94: 0.567637744 | R94: 7.197695612 | S94: 14.39539122 | T94: 43.18617367 | U94: 57.58156489 | W94: =IF($A94>0,SUMIF('Age profile (years)'!$CT94:$GF94,"<" & R94+0.5,'Asset data'!$CX94:$GJ94),0) -> 1039.5185 | X94: =IF($A94>0,SUMIF('Age profile (years)'!$CT94:$GF94,"<" & S94+0.5,'Asset data'!$CX94:$GJ94)-W94,0) -> 2188.46 | Y94: =IF($A94>0,SUMIF('Age profile (years)'!$CT94:$GF94,"<" & T94+0.5,'Asset data'!$CX94:$GJ94)-X94-W94,0) -> 68334.6635 | Z94: =IF($A94>0,SUMIF('Age profile (years)'!$CT94:$GF94,"<" & U94+0.5,'Asset data'!$CX94:$GJ94)-Y94-X94-W94,0) -> 4978.7465 | AA94: 6127.688 | AB94: 0.012574454 | AC94: 0.02647253475 | AD94: 0.8266048974 | AE94: 0.06022501655 | AF94: 0.07412309729 | AI94: =IF($A94>0,'RRR hist-forc'!K94,0) -> 71.97695612 | AJ94: 5950268.492
A95: ='Asset data'!A95 -> 6 | B95: ='Asset data'!B95 -> 0 | C95: ='Asset data'!C95 -> 0 | D95: ='Asset data'!E95 -> ˂ = 11 kv ; circuit breaker | E95: SWITCHGEAR | F95: =IF(A95>0,SUM('Asset data'!J95:CV95),0) -> 1206 | G95: =IF(A95>0,'Asset data'!F95,0) -> 547.2727 | H95: =IF(A95>0,SUM('Asset data'!CX95:GJ95),0) -> 660010.8762 | I95: 0.0338214802 | J95: 6 | K95: 0.4318888855 | L95: 547.2727 | M95: =IF($A95>0,SUMPRODUCT('Age profile (years)'!$CT95:$GF95,'Asset data'!$CX95:$GJ95)/H95-0.5,0) -> 32.6384743 | N95: 21541748.02 | O95: =IF($A95>0,'Asset data'!G95,0) -> 62.17413287 | P95: 41035603.91 | Q95: 0.4750473744 | R95: 6.217413287 | S95: 12.43482657 | T95: 37.30447972 | U95: 49.73930629 | W95: =IF($A95>0,SUMIF('Age profile (years)'!$CT95:$GF95,"<" & R95+0.5,'Asset data'!$CX95:$GJ95),0) -> 58010.9062 | X95: =IF($A95>0,SUMIF('Age profile (years)'!$CT95:$GF95,"<" & S95+0.5,'Asset data'!$CX95:$GJ95)-W95,0) -> 77165.4507 | Y95: =IF($A95>0,SUMIF('Age profile (years)'!$CT95:$GF95,"<" & T95+0.5,'Asset data'!$CX95:$GJ95)-X95-W95,0) -> 217267.2619 | Z95: =IF($A95>0,SUMIF('Age profile (years)'!$CT95:$GF95,"<" & U95+0.5,'Asset data'!$CX95:$GJ95)-Y95-X95-W95,0) -> 89752.7228 | AA95: 217814.5346 | AB95: 0.08789386401 | AC95: 0.1169154229 | AD95: 0.3291873964 | AE95: 0.135986733 | AF95: 0.3300165837 | AI95: =IF($A95>0,'RRR hist-forc'!K95,0) -> 62.17413287 | AJ95: 41035603.91
A96: ='Asset data'!A96 -> 6 | B96: ='Asset data'!B96 -> 0 | C96: ='Asset data'!C96 -> 0 | D96: ='Asset data'!E96 -> > 11 kv & < = 22 kv ; switch | E96: SWITCHGEAR | F96: =IF(A96>0,SUM('Asset data'!J96:CV96),0) -> 10 | G96: =IF(A96>0,'Asset data'!F96,0) -> 81.0176 | H96: =IF(A96>0,SUM('Asset data'!CX96:GJ96),0) -> 810.176 | I96: 4.151651515e-05 | J96: 53 | K96: 0.0005301518844 | L96: 81.0176 | M96: =IF($A96>0,SUMPRODUCT('Age profile (years)'!$CT96:$GF96,'Asset data'!$CX96:$GJ96)/H96-0.5,0) -> 0.5 | N96: 405.088 | O96: =IF($A96>0,'Asset data'!G96,0) -> 47.70198293 | P96: 38647.00172 | Q96: 0.9895182554 | R96: 4.770198293 | S96: 9.540396586 | T96: 28.62118976 | U96: 38.16158634 | W96: =IF($A96>0,SUMIF('Age profile (years)'!$CT96:$GF96,"<" & R96+0.5,'Asset data'!$CX96:$GJ96),0) -> 810.176 | X96: =IF($A96>0,SUMIF('Age profile (years)'!$CT96:$GF96,"<" & S96+0.5,'Asset data'!$CX96:$GJ96)-W96,0) -> 0 | Y96: =IF($A96>0,SUMIF('Age profile (years)'!$CT96:$GF96,"<" & T96+0.5,'Asset data'!$CX96:$GJ96)-X96-W96,0) -> 0 | Z96: =IF($A96>0,SUMIF('Age profile (years)'!$CT96:$GF96,"<" & U96+0.5,'Asset data'!$CX96:$GJ96)-Y96-X96-W96,0) -> 0 | AA96: 0 | AB96: 1 | AC96: 0 | AD96: 0 | AE96: 0 | AF96: 0 | AI96: =IF($A96>0,'RRR hist-forc'!K96,0) -> 47.70198293 | AJ96: 38647.00172
A97: ='Asset data'!A97 -> 0 | B97: ='Asset data'!B97 -> 0 | C97: ='Asset data'!C97 -> 0 | D97: ='Asset data'!E97 -> > 11 kv & < = 22 kv ; circuit breaker | E97: 0 | F97: =IF(A97>0,SUM('Asset data'!J97:CV97),0) -> 0 | G97: =IF(A97>0,'Asset data'!F97,0) -> 0 | H97: =IF(A97>0,SUM('Asset data'!CX97:GJ97),0) -> 0 | I97: 0 | J97: 0 | K97: 0 | L97: 0 | M97: =IF($A97>0,SUMPRODUCT('Age profile (years)'!$CT97:$GF97,'Asset data'!$CX97:$GJ97)/H97-0.5,0) -> 0 | N97: 0 | O97: =IF($A97>0,'Asset data'!G97,0) -> 0 | P97: 0 | Q97: 0 | R97: 0 | S97: 0 | T97: 0 | U97: 0 | W97: =IF($A97>0,SUMIF('Age profile (years)'!$CT97:$GF97,"<" & R97+0.5,'Asset data'!$CX97:$GJ97),0) -> 0 | X97: =IF($A97>0,SUMIF('Age profile (years)'!$CT97:$GF97,"<" & S97+0.5,'Asset data'!$CX97:$GJ97)-W97,0) -> 0 | Y97: =IF($A97>0,SUMIF('Age profile (years)'!$CT97:$GF97,"<" & T97+0.5,'Asset data'!$CX97:$GJ97)-X97-W97,0) -> 0 | Z97: =IF($A97>0,SUMIF('Age profile (years)'!$CT97:$GF97,"<" & U97+0.5,'Asset data'!$CX97:$GJ97)-Y97-X97-W97,0) -> 0 | AA97: 0 | AB97: 0 | AC97: 0 | AD97: 0 | AE97: 0 | AF97: 0 | AI97: =IF($A97>0,'RRR hist-forc'!K97,0) -> 0 | AJ97: 0
A98: ='Asset data'!A98 -> 6 | B98: ='Asset data'!B98 -> 0 | C98: ='Asset data'!C98 -> 0 | D98: ='Asset data'!E98 -> > 22 kv & < = 33 kv ; switch | E98: SWITCHGEAR | F98: =IF(A98>0,SUM('Asset data'!J98:CV98),0) -> 985 | G98: =IF(A98>0,'Asset data'!F98,0) -> 88.796 | H98: =IF(A98>0,SUM('Asset data'!CX98:GJ98),0) -> 87464.06 | I98: 0.004481992767 | J98: 26 | K98: 0.05723353472 | L98: 88.796 | M98: =IF($A98>0,SUMPRODUCT('Age profile (years)'!$CT98:$GF98,'Asset data'!$CX98:$GJ98)/H98-0.5,0) -> 30.81269036 | N98: 2695002.998 | O98: =IF($A98>0,'Asset data'!G98,0) -> 63.74694407 | P98: 5575566.541 | Q98: 0.5166405103 | R98: 6.374694407 | S98: 12.74938881 | T98: 38.24816644 | U98: 50.99755526 | W98: =IF($A98>0,SUMIF('Age profile (years)'!$CT98:$GF98,"<" & R98+0.5,'Asset data'!$CX98:$GJ98),0) -> 5505.352 | X98: =IF($A98>0,SUMIF('Age profile (years)'!$CT98:$GF98,"<" & S98+0.5,'Asset data'!$CX98:$GJ98)-W98,0) -> 5860.536 | Y98: =IF($A98>0,SUMIF('Age profile (years)'!$CT98:$GF98,"<" & T98+0.5,'Asset data'!$CX98:$GJ98)-X98-W98,0) -> 45729.94 | Z98: =IF($A98>0,SUMIF('Age profile (years)'!$CT98:$GF98,"<" & U98+0.5,'Asset data'!$CX98:$GJ98)-Y98-X98-W98,0) -> 5949.332 | AA98: 24418.9 | AB98: 0.06294416244 | AC98: 0.06700507614 | AD98: 0.5228426396 | AE98: 0.06802030457 | AF98: 0.2791878173 | AI98: =IF($A98>0,'RRR hist-forc'!K98,0) -> 63.74694407 | AJ98: 5575566.541
A99: ='Asset data'!A99 -> 6 | B99: ='Asset data'!B99 -> 0 | C99: ='Asset data'!C99 -> 0 | D99: ='Asset data'!E99 -> > 22 kv & < = 33 kv ; circuit breaker | E99: SWITCHGEAR | F99: =IF(A99>0,SUM('Asset data'!J99:CV99),0) -> 251 | G99: =IF(A99>0,'Asset data'!F99,0) -> 277.8318 | H99: =IF(A99>0,SUM('Asset data'!CX99:GJ99),0) -> 69735.7818 | I99: 0.003573528025 | J99: 28 | K99: 0.04563274662 | L99: 277.8318 | M99: =IF($A99>0,SUMPRODUCT('Age profile (years)'!$CT99:$GF99,'Asset data'!$CX99:$GJ99)/H99-0.5,0) -> 35.0498008 | N99: 2444225.261 | O99: =IF($A99>0,'Asset data'!G99,0) -> 65.06674195 | P99: 4537480.119 | Q99: 0.4613254061 | R99: 6.506674195 | S99: 13.01334839 | T99: 39.04004517 | U99: 52.05339356 | W99: =IF($A99>0,SUMIF('Age profile (years)'!$CT99:$GF99,"<" & R99+0.5,'Asset data'!$CX99:$GJ99),0) -> 10001.9448 | X99: =IF($A99>0,SUMIF('Age profile (years)'!$CT99:$GF99,"<" & S99+0.5,'Asset data'!$CX99:$GJ99)-W99,0) -> 10835.4402 | Y99: =IF($A99>0,SUMIF('Age profile (years)'!$CT99:$GF99,"<" & T99+0.5,'Asset data'!$CX99:$GJ99)-X99-W99,0) -> 12502.431 | Z99: =IF($A99>0,SUMIF('Age profile (years)'!$CT99:$GF99,"<" & U99+0.5,'Asset data'!$CX99:$GJ99)-Y99-X99-W99,0) -> 4167.477 | AA99: 32228.4888 | AB99: 0.1434262948 | AC99: 0.1553784861 | AD99: 0.1792828685 | AE99: 0.05976095618 | AF99: 0.4621513944 | AI99: =IF($A99>0,'RRR hist-forc'!K99,0) -> 65.06674195 | AJ99: 4537480.119
A100: ='Asset data'!A100 -> 6 | B100: ='Asset data'!B100 -> 0 | C100: ='Asset data'!C100 -> 0 | D100: ='Asset data'!E100 -> > 33 kv & < = 66 kv ; switch | E100: SWITCHGEAR | F100: =IF(A100>0,SUM('Asset data'!J100:CV100),0) -> 1406 | G100: =IF(A100>0,'Asset data'!F100,0) -> 82.4741 | H100: =IF(A100>0,SUM('Asset data'!CX100:GJ100),0) -> 115958.5846 | I100: 0.005942161128 | J100: 24 | K100: 0.0758793918 | L100: 82.4741 | M100: =IF($A100>0,SUMPRODUCT('Age profile (years)'!$CT100:$GF100,'Asset data'!$CX100:$GJ100)/H100-0.5,0) -> 40.00142248 | N100: 4638508.332 | O100: =IF($A100>0,'Asset data'!G100,0) -> 70.59685137 | P100: 8186310.962 | Q100: 0.4333823435 | R100: 7.059685137 | S100: 14.11937027 | T100: 42.35811082 | U100: =IF($A100>0,$O100-U$4*$O100,0) -> 56.47748109 | W100: =IF($A100>0,SUMIF('Age profile (years)'!$CT100:$GF100,"<" & R100+0.5,'Asset data'!$CX100:$GJ100),0) -> 2804.1194 | X100: =IF($A100>0,SUMIF('Age profile (years)'!$CT100:$GF100,"<" & S100+0.5,'Asset data'!$CX100:$GJ100)-W100,0) -> 6103.0834 | Y100: =IF($A100>0,SUMIF('Age profile (years)'!$CT100:$GF100,"<" & T100+0.5,'Asset data'!$CX100:$GJ100)-X100-W100,0) -> 55999.9139 | Z100: =IF($A100>0,SUMIF('Age profile (years)'!$CT100:$GF100,"<" & U100+0.5,'Asset data'!$CX100:$GJ100)-Y100-X100-W100,0) -> 8989.6769 | AA100: 42061.791 | AB100: 0.02418207681 | AC100: 0.05263157895 | AD100: 0.4829302987 | AE100: 0.07752489331 | AF100: 0.3627311522 | AI100: =IF($A100>0,'RRR hist-forc'!K100,0) -> 70.59685137 | AJ100: 8186310.962
A101: ='Asset data'!A101 -> 6 | B101: ='Asset data'!B101 -> 0 | C101: ='Asset data'!C101 -> 0 | D101: ='Asset data'!E101 -> > 33 kv & < = 66 kv ; circuit breaker | E101: SWITCHGEAR | F101: =IF(A101>0,SUM('Asset data'!J101:CV101),0) -> 462 | G101: =IF(A101>0,'Asset data'!F101,0) -> 540.2065 | H101: =IF(A101>0,SUM('Asset data'!CX101:GJ101),0) -> 249575.403 | I101: 0.01278919765 | J101: 13 | K101: 0.163313737 | L101: 540.2065 | M101: =IF($A101>0,SUMPRODUCT('Age profile (years)'!$CT101:$GF101,'Asset data'!$CX101:$GJ101)/H101-0.5,0) -> 36.95670996 | N101: 9223485.781 | O101: =IF($A101>0,'Asset data'!G101,0) -> 58.15510008 | P101: 14514082.54 | Q101: 0.3645147217 | R101: 5.815510008 | S101: 11.63102002 | T101: 34.89306005 | U101: 46.52408006 | W101: =IF($A101>0,SUMIF('Age profile (years)'!$CT101:$GF101,"<" & R101+0.5,'Asset data'!$CX101:$GJ101),0) -> 16206.195 | X101: =IF($A101>0,SUMIF('Age profile (years)'!$CT101:$GF101,"<" & S101+0.5,'Asset data'!$CX101:$GJ101)-W101,0) -> 21608.26 | Y101: =IF($A101>0,SUMIF('Age profile (years)'!$CT101:$GF101,"<" & T101+0.5,'Asset data'!$CX101:$GJ101)-X101-W101,0) -> 63744.367 | Z101: =IF($A101>0,SUMIF('Age profile (years)'!$CT101:$GF101,"<" & U101+0.5,'Asset data'!$CX101:$GJ101)-Y101-X101-W101,0) -> 29711.3575 | AA101: 118305.2235 | AB101: 0.06493506494 | AC101: 0.08658008658 | AD101: 0.2554112554 | AE101: 0.119047619 | AF101: 0.474025974 | AI101: =IF($A101>0,'RRR hist-forc'!K101,0) -> 58.15510008 | AJ101: 14514082.54
A102: ='Asset data'!A102 -> 0 | B102: ='Asset data'!B102 -> 0 | C102: ='Asset data'!C102 -> 0 | D102: ='Asset data'!E102 -> > 66 kv & < = 132 kv ; switch | E102: 0 | F102: =IF(A102>0,SUM('Asset data'!J102:CV102),0) -> 0 | G102: =IF(A102>0,'Asset data'!F102,0) -> 0 | H102: =IF(A102>0,SUM('Asset data'!CX102:GJ102),0) -> 0 | I102: 0 | J102: 0 | K102: 0 | L102: 0 | M102: =IF($A102>0,SUMPRODUCT('Age profile (years)'!$CT102:$GF102,'Asset data'!$CX102:$GJ102)/H102-0.5,0) -> 0 | N102: 0 | O102: =IF($A102>0,'Asset data'!G102,0) -> 0 | P102: 0 | Q102: 0 | R102: 0 | S102: 0 | T102: 0 | U102: 0 | W102: =IF($A102>0,SUMIF('Age profile (years)'!$CT102:$GF102,"<" & R102+0.5,'Asset data'!$CX102:$GJ102),0) -> 0 | X102: =IF($A102>0,SUMIF('Age profile (years)'!$CT102:$GF102,"<" & S102+0.5,'Asset data'!$CX102:$GJ102)-W102,0) -> 0 | Y102: =IF($A102>0,SUMIF('Age profile (years)'!$CT102:$GF102,"<" & T102+0.5,'Asset data'!$CX102:$GJ102)-X102-W102,0) -> 0 | Z102: =IF($A102>0,SUMIF('Age profile (years)'!$CT102:$GF102,"<" & U102+0.5,'Asset data'!$CX102:$GJ102)-Y102-X102-W102,0) -> 0 | AA102: 0 | AB102: 0 | AC102: 0 | AD102: 0 | AE102: 0 | AF102: 0 | AI102: =IF($A102>0,'RRR hist-forc'!K102,0) -> 0 | AJ102: 0
A103: ='Asset data'!A103 -> 0 | B103: ='Asset data'!B103 -> 0 | C103: ='Asset data'!C103 -> 0 | D103: ='Asset data'!E103 -> > 66 kv & < = 132 kv ; circuit breaker | E103: 0 | F103: =IF(A103>0,SUM('Asset data'!J103:CV103),0) -> 0 | G103: =IF(A103>0,'Asset data'!F103,0) -> 0 | H103: =IF(A103>0,SUM('Asset data'!CX103:GJ103),0) -> 0 | I103: 0 | J103: 0 | K103: 0 | L103: 0 | M103: =IF($A103>0,SUMPRODUCT('Age profile (years)'!$CT103:$GF103,'Asset data'!$CX103:$GJ103)/H103-0.5,0) -> 0 | N103: 0 | O103: =IF($A103>0,'Asset data'!G103,0) -> 0 | P103: 0 | Q103: 0 | R103: 0 | S103: 0 | T103: 0 | U103: 0 | W103: =IF($A103>0,SUMIF('Age profile (years)'!$CT103:$GF103,"<" & R103+0.5,'Asset data'!$CX103:$GJ103),0) -> 0 | X103: =IF($A103>0,SUMIF('Age profile (years)'!$CT103:$GF103,"<" & S103+0.5,'Asset data'!$CX103:$GJ103)-W103,0) -> 0 | Y103: =IF($A103>0,SUMIF('Age profile (years)'!$CT103:$GF103,"<" & T103+0.5,'Asset data'!$CX103:$GJ103)-X103-W103,0) -> 0 | Z103: =IF($A103>0,SUMIF('Age profile (years)'!$CT103:$GF103,"<" & U103+0.5,'Asset data'!$CX103:$GJ103)-Y103-X103-W103,0) -> 0 | AA103: 0 | AB103: 0 | AC103: 0 | AD103: 0 | AE103: 0 | AF103: 0 | AI103: =IF($A103>0,'RRR hist-forc'!K103,0) -> 0 | AJ103: 0
A104: ='Asset data'!A104 -> 0 | B104: ='Asset data'!B104 -> 0 | C104: ='Asset data'!C104 -> 0 | D104: ='Asset data'!E104 -> > 132 kv ; switch | E104: 0 | F104: =IF(A104>0,SUM('Asset data'!J104:CV104),0) -> 0 | G104: =IF(A104>0,'Asset data'!F104,0) -> 0 | H104: =IF(A104>0,SUM('Asset data'!CX104:GJ104),0) -> 0 | I104: 0 | J104: 0 | K104: 0 | L104: 0 | M104: =IF($A104>0,SUMPRODUCT('Age profile (years)'!$CT104:$GF104,'Asset data'!$CX104:$GJ104)/H104-0.5,0) -> 0 | N104: 0 | O104: =IF($A104>0,'Asset data'!G104,0) -> 0 | P104: 0 | Q104: 0 | R104: 0 | S104: 0 | T104: 0 | U104: 0 | W104: =IF($A104>0,SUMIF('Age profile (years)'!$CT104:$GF104,"<" & R104+0.5,'Asset data'!$CX104:$GJ104),0) -> 0 | X104: =IF($A104>0,SUMIF('Age profile (years)'!$CT104:$GF104,"<" & S104+0.5,'Asset data'!$CX104:$GJ104)-W104,0) -> 0 | Y104: =IF($A104>0,SUMIF('Age profile (years)'!$CT104:$GF104,"<" & T104+0.5,'Asset data'!$CX104:$GJ104)-X104-W104,0) -> 0 | Z104: =IF($A104>0,SUMIF('Age profile (years)'!$CT104:$GF104,"<" & U104+0.5,'Asset data'!$CX104:$GJ104)-Y104-X104-W104,0) -> 0 | AA104: 0 | AB104: 0 | AC104: 0 | AD104: 0 | AE104: 0 | AF104: 0 | AI104: =IF($A104>0,'RRR hist-forc'!K104,0) -> 0 | AJ104: 0
A105: ='Asset data'!A105 -> 0 | B105: ='Asset data'!B105 -> 0 | C105: ='Asset data'!C105 -> 0 | D105: ='Asset data'!E105 -> > 132 kv ; circuit breaker | E105: 0 | F105: =IF(A105>0,SUM('Asset data'!J105:CV105),0) -> 0 | G105: =IF(A105>0,'Asset data'!F105,0) -> 0 | H105: =IF(A105>0,SUM('Asset data'!CX105:GJ105),0) -> 0 | I105: 0 | J105: 0 | K105: 0 | L105: 0 | M105: =IF($A105>0,SUMPRODUCT('Age profile (years)'!$CT105:$GF105,'Asset data'!$CX105:$GJ105)/H105-0.5,0) -> 0 | N105: 0 | O105: =IF($A105>0,'Asset data'!G105,0) -> 0 | P105: 0 | Q105: 0 | R105: 0 | S105: 0 | T105: 0 | U105: 0 | W105: =IF($A105>0,SUMIF('Age profile (years)'!$CT105:$GF105,"<" & R105+0.5,'Asset data'!$CX105:$GJ105),0) -> 0 | X105: =IF($A105>0,SUMIF('Age profile (years)'!$CT105:$GF105,"<" & S105+0.5,'Asset data'!$CX105:$GJ105)-W105,0) -> 0 | Y105: =IF($A105>0,SUMIF('Age profile (years)'!$CT105:$GF105,"<" & T105+0.5,'Asset data'!$CX105:$GJ105)-X105-W105,0) -> 0 | Z105: =IF($A105>0,SUMIF('Age profile (years)'!$CT105:$GF105,"<" & U105+0.5,'Asset data'!$CX105:$GJ105)-Y105-X105-W105,0) -> 0 | AA105: 0 | AB105: 0 | AC105: 0 | AD105: 0 | AE105: 0 | AF105: 0 | AI105: =IF($A105>0,'RRR hist-forc'!K105,0) -> 0 | AJ105: 0
A106: ='Asset data'!A106 -> 0 | B106: ='Asset data'!B106 -> 0 | C106: ='Asset data'!C106 -> 0 | D106: ='Asset data'!E106 -> other | E106: 0 | F106: =IF(A106>0,SUM('Asset data'!J106:CV106),0) -> 0 | G106: =IF(A106>0,'Asset data'!F106,0) -> 0 | H106: =IF(A106>0,SUM('Asset data'!CX106:GJ106),0) -> 0 | I106: 0 | J106: 0 | K106: 0 | L106: 0 | M106: =IF($A106>0,SUMPRODUCT('Age profile (years)'!$CT106:$GF106,'Asset data'!$CX106:$GJ106)/H106-0.5,0) -> 0 | N106: 0 | O106: =IF($A106>0,'Asset data'!G106,0) -> 0 | P106: 0 | Q106: 0 | R106: 0 | S106: 0 | T106: 0 | U106: 0 | W106: =IF($A106>0,SUMIF('Age profile (years)'!$CT106:$GF106,"<" & R106+0.5,'Asset data'!$CX106:$GJ106),0) -> 0 | X106: =IF($A106>0,SUMIF('Age profile (years)'!$CT106:$GF106,"<" & S106+0.5,'Asset data'!$CX106:$GJ106)-W106,0) -> 0 | Y106: =IF($A106>0,SUMIF('Age profile (years)'!$CT106:$GF106,"<" & T106+0.5,'Asset data'!$CX106:$GJ106)-X106-W106,0) -> 0 | Z106: =IF($A106>0,SUMIF('Age profile (years)'!$CT106:$GF106,"<" & U106+0.5,'Asset data'!$CX106:$GJ106)-Y106-X106-W106,0) -> 0 | AA106: 0 | AB106: 0 | AC106: 0 | AD106: 0 | AE106: 0 | AF106: 0 | AI106: =IF($A106>0,'RRR hist-forc'!K106,0) -> 0 | AJ106: 0
A107: ='Asset data'!A107 -> 0 | B107: ='Asset data'!B107 -> 0 | C107: ='Asset data'!C107 -> 0 | D107: ='Asset data'!E107 -> luminaires ; major road | E107: 0 | F107: =IF(A107>0,SUM('Asset data'!J107:CV107),0) -> 0 | G107: =IF(A107>0,'Asset data'!F107,0) -> 0 | H107: =IF(A107>0,SUM('Asset data'!CX107:GJ107),0) -> 0 | I107: 0 | J107: 0 | K107: 0 | L107: 0 | M107: =IF($A107>0,SUMPRODUCT('Age profile (years)'!$CT107:$GF107,'Asset data'!$CX107:$GJ107)/H107-0.5,0) -> 0 | N107: 0 | O107: =IF($A107>0,'Asset data'!G107,0) -> 0 | P107: 0 | Q107: 0 | R107: 0 | S107: 0 | T107: 0 | U107: 0 | W107: =IF($A107>0,SUMIF('Age profile (years)'!$CT107:$GF107,"<" & R107+0.5,'Asset data'!$CX107:$GJ107),0) -> 0 | X107: =IF($A107>0,SUMIF('Age profile (years)'!$CT107:$GF107,"<" & S107+0.5,'Asset data'!$CX107:$GJ107)-W107,0) -> 0 | Y107: =IF($A107>0,SUMIF('Age profile (years)'!$CT107:$GF107,"<" & T107+0.5,'Asset data'!$CX107:$GJ107)-X107-W107,0) -> 0 | Z107: =IF($A107>0,SUMIF('Age profile (years)'!$CT107:$GF107,"<" & U107+0.5,'Asset data'!$CX107:$GJ107)-Y107-X107-W107,0) -> 0 | AA107: 0 | AB107: 0 | AC107: 0 | AD107: 0 | AE107: 0 | AF107: 0 | AI107: =IF($A107>0,'RRR hist-forc'!K107,0) -> 0 | AJ107: 0
A108: ='Asset data'!A108 -> 0 | B108: ='Asset data'!B108 -> 0 | C108: ='Asset data'!C108 -> 0 | D108: ='Asset data'!E108 -> luminaires ; minor road | E108: 0 | F108: =IF(A108>0,SUM('Asset data'!J108:CV108),0) -> 0 | G108: =IF(A108>0,'Asset data'!F108,0) -> 0 | H108: =IF(A108>0,SUM('Asset data'!CX108:GJ108),0) -> 0 | I108: 0 | J108: 0 | K108: 0 | L108: 0 | M108: =IF($A108>0,SUMPRODUCT('Age profile (years)'!$CT108:$GF108,'Asset data'!$CX108:$GJ108)/H108-0.5,0) -> 0 | N108: 0 | O108: =IF($A108>0,'Asset data'!G108,0) -> 0 | P108: 0 | Q108: 0 | R108: 0 | S108: 0 | T108: 0 | U108: 0 | W108: =IF($A108>0,SUMIF('Age profile (years)'!$CT108:$GF108,"<" & R108+0.5,'Asset data'!$CX108:$GJ108),0) -> 0 | X108: =IF($A108>0,SUMIF('Age profile (years)'!$CT108:$GF108,"<" & S108+0.5,'Asset data'!$CX108:$GJ108)-W108,0) -> 0 | Y108: =IF($A108>0,SUMIF('Age profile (years)'!$CT108:$GF108,"<" & T108+0.5,'Asset data'!$CX108:$GJ108)-X108-W108,0) -> 0 | Z108: =IF($A108>0,SUMIF('Age profile (years)'!$CT108:$GF108,"<" & U108+0.5,'Asset data'!$CX108:$GJ108)-Y108-X108-W108,0) -> 0 | AA108: 0 | AB108: 0 | AC108: 0 | AD108: 0 | AE108: 0 | AF108: 0 | AI108: =IF($A108>0,'RRR hist-forc'!K108,0) -> 0 | AJ108: 0
A109: ='Asset data'!A109 -> 0 | B109: ='Asset data'!B109 -> 0 | C109: ='Asset data'!C109 -> 0 | D109: ='Asset data'!E109 -> brackets ; major road | E109: 0 | F109: =IF(A109>0,SUM('Asset data'!J109:CV109),0) -> 0 | G109: =IF(A109>0,'Asset data'!F109,0) -> 0 | H109: =IF(A109>0,SUM('Asset data'!CX109:GJ109),0) -> 0 | I109: 0 | J109: 0 | K109: 0 | L109: 0 | M109: =IF($A109>0,SUMPRODUCT('Age profile (years)'!$CT109:$GF109,'Asset data'!$CX109:$GJ109)/H109-0.5,0) -> 0 | N109: 0 | O109: =IF($A109>0,'Asset data'!G109,0) -> 0 | P109: 0 | Q109: 0 | R109: 0 | S109: 0 | T109: 0 | U109: 0 | W109: =IF($A109>0,SUMIF('Age profile (years)'!$CT109:$GF109,"<" & R109+0.5,'Asset data'!$CX109:$GJ109),0) -> 0 | X109: =IF($A109>0,SUMIF('Age profile (years)'!$CT109:$GF109,"<" & S109+0.5,'Asset data'!$CX109:$GJ109)-W109,0) -> 0 | Y109: =IF($A109>0,SUMIF('Age profile (years)'!$CT109:$GF109,"<" & T109+0.5,'Asset data'!$CX109:$GJ109)-X109-W109,0) -> 0 | Z109: =IF($A109>0,SUMIF('Age profile (years)'!$CT109:$GF109,"<" & U109+0.5,'Asset data'!$CX109:$GJ109)-Y109-X109-W109,0) -> 0 | AA109: 0 | AB109: 0 | AC109: 0 | AD109: 0 | AE109: 0 | AF109: 0 | AI109: =IF($A109>0,'RRR hist-forc'!K109,0) -> 0 | AJ109: 0
A110: ='Asset data'!A110 -> 0 | B110: ='Asset data'!B110 -> 0 | C110: ='Asset data'!C110 -> 0 | D110: ='Asset data'!E110 -> brackets ; minor road | E110: 0 | F110: =IF(A110>0,SUM('Asset data'!J110:CV110),0) -> 0 | G110: =IF(A110>0,'Asset data'!F110,0) -> 0 | H110: =IF(A110>0,SUM('Asset data'!CX110:GJ110),0) -> 0 | I110: 0 | J110: 0 | K110: 0 | L110: 0 | M110: =IF($A110>0,SUMPRODUCT('Age profile (years)'!$CT110:$GF110,'Asset data'!$CX110:$GJ110)/H110-0.5,0) -> 0 | N110: 0 | O110: =IF($A110>0,'Asset data'!G110,0) -> 0 | P110: 0 | Q110: 0 | R110: 0 | S110: 0 | T110: 0 | U110: 0 | W110: =IF($A110>0,SUMIF('Age profile (years)'!$CT110:$GF110,"<" & R110+0.5,'Asset data'!$CX110:$GJ110),0) -> 0 | X110: =IF($A110>0,SUMIF('Age profile (years)'!$CT110:$GF110,"<" & S110+0.5,'Asset data'!$CX110:$GJ110)-W110,0) -> 0 | Y110: =IF($A110>0,SUMIF('Age profile (years)'!$CT110:$GF110,"<" & T110+0.5,'Asset data'!$CX110:$GJ110)-X110-W110,0) -> 0 | Z110: =IF($A110>0,SUMIF('Age profile (years)'!$CT110:$GF110,"<" & U110+0.5,'Asset data'!$CX110:$GJ110)-Y110-X110-W110,0) -> 0 | AA110: 0 | AB110: 0 | AC110: 0 | AD110: 0 | AE110: 0 | AF110: 0 | AI110: =IF($A110>0,'RRR hist-forc'!K110,0) -> 0 | AJ110: 0
A111: ='Asset data'!A111 -> 0 | B111: ='Asset data'!B111 -> 0 | C111: ='Asset data'!C111 -> 0 | D111: ='Asset data'!E111 -> lamps ; major road | E111: 0 | F111: =IF(A111>0,SUM('Asset data'!J111:CV111),0) -> 0 | G111: =IF(A111>0,'Asset data'!F111,0) -> 0 | H111: =IF(A111>0,SUM('Asset data'!CX111:GJ111),0) -> 0 | I111: 0 | J111: 0 | K111: 0 | L111: 0 | M111: =IF($A111>0,SUMPRODUCT('Age profile (years)'!$CT111:$GF111,'Asset data'!$CX111:$GJ111)/H111-0.5,0) -> 0 | N111: 0 | O111: =IF($A111>0,'Asset data'!G111,0) -> 0 | P111: 0 | Q111: 0 | R111: 0 | S111: 0 | T111: 0 | U111: 0 | W111: =IF($A111>0,SUMIF('Age profile (years)'!$CT111:$GF111,"<" & R111+0.5,'Asset data'!$CX111:$GJ111),0) -> 0 | X111: =IF($A111>0,SUMIF('Age profile (years)'!$CT111:$GF111,"<" & S111+0.5,'Asset data'!$CX111:$GJ111)-W111,0) -> 0 | Y111: =IF($A111>0,SUMIF('Age profile (years)'!$CT111:$GF111,"<" & T111+0.5,'Asset data'!$CX111:$GJ111)-X111-W111,0) -> 0 | Z111: =IF($A111>0,SUMIF('Age profile (years)'!$CT111:$GF111,"<" & U111+0.5,'Asset data'!$CX111:$GJ111)-Y111-X111-W111,0) -> 0 | AA111: 0 | AB111: 0 | AC111: 0 | AD111: 0 | AE111: 0 | AF111: 0 | AI111: =IF($A111>0,'RRR hist-forc'!K111,0) -> 0 | AJ111: 0
A112: ='Asset data'!A112 -> 0 | B112: ='Asset data'!B112 -> 0 | C112: ='Asset data'!C112 -> 0 | D112: ='Asset data'!E112 -> lamps ; minor road | E112: 0 | F112: =IF(A112>0,SUM('Asset data'!J112:CV112),0) -> 0 | G112: =IF(A112>0,'Asset data'!F112,0) -> 0 | H112: =IF(A112>0,SUM('Asset data'!CX112:GJ112),0) -> 0 | I112: 0 | J112: 0 | K112: 0 | L112: 0 | M112: =IF($A112>0,SUMPRODUCT('Age profile (years)'!$CT112:$GF112,'Asset data'!$CX112:$GJ112)/H112-0.5,0) -> 0 | N112: 0 | O112: =IF($A112>0,'Asset data'!G112,0) -> 0 | P112: 0 | Q112: 0 | R112: 0 | S112: 0 | T112: 0 | U112: 0 | W112: =IF($A112>0,SUMIF('Age profile (years)'!$CT112:$GF112,"<" & R112+0.5,'Asset data'!$CX112:$GJ112),0) -> 0 | X112: =IF($A112>0,SUMIF('Age profile (years)'!$CT112:$GF112,"<" & S112+0.5,'Asset data'!$CX112:$GJ112)-W112,0) -> 0 | Y112: =IF($A112>0,SUMIF('Age profile (years)'!$CT112:$GF112,"<" & T112+0.5,'Asset data'!$CX112:$GJ112)-X112-W112,0) -> 0 | Z112: =IF($A112>0,SUMIF('Age profile (years)'!$CT112:$GF112,"<" & U112+0.5,'Asset data'!$CX112:$GJ112)-Y112-X112-W112,0) -> 0 | AA112: 0 | AB112: 0 | AC112: 0 | AD112: 0 | AE112: 0 | AF112: 0 | AI112: =IF($A112>0,'RRR hist-forc'!K112,0) -> 0 | AJ112: 0
A113: ='Asset data'!A113 -> 0 | B113: ='Asset data'!B113 -> 0 | C113: ='Asset data'!C113 -> 0 | D113: ='Asset data'!E113 -> poles / columns ; major road | E113: 0 | F113: =IF(A113>0,SUM('Asset data'!J113:CV113),0) -> 0 | G113: =IF(A113>0,'Asset data'!F113,0) -> 0 | H113: =IF(A113>0,SUM('Asset data'!CX113:GJ113),0) -> 0 | I113: 0 | J113: 0 | K113: 0 | L113: 0 | M113: =IF($A113>0,SUMPRODUCT('Age profile (years)'!$CT113:$GF113,'Asset data'!$CX113:$GJ113)/H113-0.5,0) -> 0 | N113: 0 | O113: =IF($A113>0,'Asset data'!G113,0) -> 0 | P113: 0 | Q113: 0 | R113: 0 | S113: 0 | T113: 0 | U113: 0 | W113: =IF($A113>0,SUMIF('Age profile (years)'!$CT113:$GF113,"<" & R113+0.5,'Asset data'!$CX113:$GJ113),0) -> 0 | X113: =IF($A113>0,SUMIF('Age profile (years)'!$CT113:$GF113,"<" & S113+0.5,'Asset data'!$CX113:$GJ113)-W113,0) -> 0 | Y113: =IF($A113>0,SUMIF('Age profile (years)'!$CT113:$GF113,"<" & T113+0.5,'Asset data'!$CX113:$GJ113)-X113-W113,0) -> 0 | Z113: =IF($A113>0,SUMIF('Age profile (years)'!$CT113:$GF113,"<" & U113+0.5,'Asset data'!$CX113:$GJ113)-Y113-X113-W113,0) -> 0 | AA113: 0 | AB113: 0 | AC113: 0 | AD113: 0 | AE113: 0 | AF113: 0 | AI113: =IF($A113>0,'RRR hist-forc'!K113,0) -> 0 | AJ113: 0
A114: ='Asset data'!A114 -> 0 | B114: ='Asset data'!B114 -> 0 | C114: ='Asset data'!C114 -> 0 | D114: ='Asset data'!E114 -> poles / columns ; minor road | E114: 0 | F114: =IF(A114>0,SUM('Asset data'!J114:CV114),0) -> 0 | G114: =IF(A114>0,'Asset data'!F114,0) -> 0 | H114: =IF(A114>0,SUM('Asset data'!CX114:GJ114),0) -> 0 | I114: 0 | J114: 0 | K114: 0 | L114: 0 | M114: =IF($A114>0,SUMPRODUCT('Age profile (years)'!$CT114:$GF114,'Asset data'!$CX114:$GJ114)/H114-0.5,0) -> 0 | N114: 0 | O114: =IF($A114>0,'Asset data'!G114,0) -> 0 | P114: 0 | Q114: 0 | R114: 0 | S114: 0 | T114: 0 | U114: 0 | W114: =IF($A114>0,SUMIF('Age profile (years)'!$CT114:$GF114,"<" & R114+0.5,'Asset data'!$CX114:$GJ114),0) -> 0 | X114: =IF($A114>0,SUMIF('Age profile (years)'!$CT114:$GF114,"<" & S114+0.5,'Asset data'!$CX114:$GJ114)-W114,0) -> 0 | Y114: =IF($A114>0,SUMIF('Age profile (years)'!$CT114:$GF114,"<" & T114+0.5,'Asset data'!$CX114:$GJ114)-X114-W114,0) -> 0 | Z114: =IF($A114>0,SUMIF('Age profile (years)'!$CT114:$GF114,"<" & U114+0.5,'Asset data'!$CX114:$GJ114)-Y114-X114-W114,0) -> 0 | AA114: 0 | AB114: 0 | AC114: 0 | AD114: 0 | AE114: 0 | AF114: 0 | AI114: =IF($A114>0,'RRR hist-forc'!K114,0) -> 0 | AJ114: 0
A115: ='Asset data'!A115 -> 0 | B115: ='Asset data'!B115 -> 0 | C115: ='Asset data'!C115 -> 0 | D115: ='Asset data'!E115 -> other | E115: 0 | F115: =IF(A115>0,SUM('Asset data'!J115:CV115),0) -> 0 | G115: =IF(A115>0,'Asset data'!F115,0) -> 0 | H115: =IF(A115>0,SUM('Asset data'!CX115:GJ115),0) -> 0 | I115: 0 | J115: 0 | K115: 0 | L115: 0 | M115: =IF($A115>0,SUMPRODUCT('Age profile (years)'!$CT115:$GF115,'Asset data'!$CX115:$GJ115)/H115-0.5,0) -> 0 | N115: 0 | O115: =IF($A115>0,'Asset data'!G115,0) -> 0 | P115: 0 | Q115: 0 | R115: 0 | S115: 0 | T115: 0 | U115: 0 | W115: =IF($A115>0,SUMIF('Age profile (years)'!$CT115:$GF115,"<" & R115+0.5,'Asset data'!$CX115:$GJ115),0) -> 0 | X115: =IF($A115>0,SUMIF('Age profile (years)'!$CT115:$GF115,"<" & S115+0.5,'Asset data'!$CX115:$GJ115)-W115,0) -> 0 | Y115: =IF($A115>0,SUMIF('Age profile (years)'!$CT115:$GF115,"<" & T115+0.5,'Asset data'!$CX115:$GJ115)-X115-W115,0) -> 0 | Z115: =IF($A115>0,SUMIF('Age profile (years)'!$CT115:$GF115,"<" & U115+0.5,'Asset data'!$CX115:$GJ115)-Y115-X115-W115,0) -> 0 | AA115: 0 | AB115: 0 | AC115: 0 | AD115: 0 | AE115: 0 | AF115: 0 | AI115: =IF($A115>0,'RRR hist-forc'!K115,0) -> 0 | AJ115: 0
A116: ='Asset data'!A116 -> 0 | B116: ='Asset data'!B116 -> 0 | C116: ='Asset data'!C116 -> 0 | D116: ='Asset data'!E116 -> field devices | E116: 0 | F116: =IF(A116>0,SUM('Asset data'!J116:CV116),0) -> 0 | G116: =IF(A116>0,'Asset data'!F116,0) -> 0 | H116: =IF(A116>0,SUM('Asset data'!CX116:GJ116),0) -> 0 | I116: 0 | J116: 0 | K116: 0 | L116: 0 | M116: =IF($A116>0,SUMPRODUCT('Age profile (years)'!$CT116:$GF116,'Asset data'!$CX116:$GJ116)/H116-0.5,0) -> 0 | N116: 0 | O116: =IF($A116>0,'Asset data'!G116,0) -> 0 | P116: 0 | Q116: 0 | R116: 0 | S116: 0 | T116: 0 | U116: 0 | W116: =IF($A116>0,SUMIF('Age profile (years)'!$CT116:$GF116,"<" & R116+0.5,'Asset data'!$CX116:$GJ116),0) -> 0 | X116: =IF($A116>0,SUMIF('Age profile (years)'!$CT116:$GF116,"<" & S116+0.5,'Asset data'!$CX116:$GJ116)-W116,0) -> 0 | Y116: =IF($A116>0,SUMIF('Age profile (years)'!$CT116:$GF116,"<" & T116+0.5,'Asset data'!$CX116:$GJ116)-X116-W116,0) -> 0 | Z116: =IF($A116>0,SUMIF('Age profile (years)'!$CT116:$GF116,"<" & U116+0.5,'Asset data'!$CX116:$GJ116)-Y116-X116-W116,0) -> 0 | AA116: 0 | AB116: 0 | AC116: 0 | AD116: 0 | AE116: 0 | AF116: 0 | AI116: =IF($A116>0,'RRR hist-forc'!K116,0) -> 0 | AJ116: 0
A117: ='Asset data'!A117 -> 0 | B117: ='Asset data'!B117 -> 0 | C117: ='Asset data'!C117 -> 0 | D117: ='Asset data'!E117 -> local network wiring assets | E117: 0 | F117: =IF(A117>0,SUM('Asset data'!J117:CV117),0) -> 0 | G117: =IF(A117>0,'Asset data'!F117,0) -> 0 | H117: =IF(A117>0,SUM('Asset data'!CX117:GJ117),0) -> 0 | I117: 0 | J117: 0 | K117: 0 | L117: 0 | M117: =IF($A117>0,SUMPRODUCT('Age profile (years)'!$CT117:$GF117,'Asset data'!$CX117:$GJ117)/H117-0.5,0) -> 0 | N117: 0 | O117: =IF($A117>0,'Asset data'!G117,0) -> 0 | P117: 0 | Q117: 0 | R117: 0 | S117: 0 | T117: 0 | U117: 0 | W117: =IF($A117>0,SUMIF('Age profile (years)'!$CT117:$GF117,"<" & R117+0.5,'Asset data'!$CX117:$GJ117),0) -> 0 | X117: =IF($A117>0,SUMIF('Age profile (years)'!$CT117:$GF117,"<" & S117+0.5,'Asset data'!$CX117:$GJ117)-W117,0) -> 0 | Y117: =IF($A117>0,SUMIF('Age profile (years)'!$CT117:$GF117,"<" & T117+0.5,'Asset data'!$CX117:$GJ117)-X117-W117,0) -> 0 | Z117: =IF($A117>0,SUMIF('Age profile (years)'!$CT117:$GF117,"<" & U117+0.5,'Asset data'!$CX117:$GJ117)-Y117-X117-W117,0) -> 0 | AA117: 0 | AB117: 0 | AC117: 0 | AD117: 0 | AE117: 0 | AF117: 0 | AI117: =IF($A117>0,'RRR hist-forc'!K117,0) -> 0 | AJ117: 0
A118: ='Asset data'!A118 -> 0 | B118: ='Asset data'!B118 -> 0 | C118: ='Asset data'!C118 -> 0 | D118: ='Asset data'!E118 -> communications network assets | E118: 0 | F118: =IF(A118>0,SUM('Asset data'!J118:CV118),0) -> 0 | G118: =IF(A118>0,'Asset data'!F118,0) -> 0 | H118: =IF(A118>0,SUM('Asset data'!CX118:GJ118),0) -> 0 | I118: 0 | J118: 0 | K118: 0 | L118: 0 | M118: =IF($A118>0,SUMPRODUCT('Age profile (years)'!$CT118:$GF118,'Asset data'!$CX118:$GJ118)/H118-0.5,0) -> 0 | N118: 0 | O118: =IF($A118>0,'Asset data'!G118,0) -> 0 | P118: 0 | Q118: 0 | R118: 0 | S118: 0 | T118: 0 | U118: 0 | W118: =IF($A118>0,SUMIF('Age profile (years)'!$CT118:$GF118,"<" & R118+0.5,'Asset data'!$CX118:$GJ118),0) -> 0 | X118: =IF($A118>0,SUMIF('Age profile (years)'!$CT118:$GF118,"<" & S118+0.5,'Asset data'!$CX118:$GJ118)-W118,0) -> 0 | Y118: =IF($A118>0,SUMIF('Age profile (years)'!$CT118:$GF118,"<" & T118+0.5,'Asset data'!$CX118:$GJ118)-X118-W118,0) -> 0 | Z118: =IF($A118>0,SUMIF('Age profile (years)'!$CT118:$GF118,"<" & U118+0.5,'Asset data'!$CX118:$GJ118)-Y118-X118-W118,0) -> 0 | AA118: 0 | AB118: 0 | AC118: 0 | AD118: 0 | AE118: 0 | AF118: 0 | AI118: =IF($A118>0,'RRR hist-forc'!K118,0) -> 0 | AJ118: 0
A119: ='Asset data'!A119 -> 0 | B119: ='Asset data'!B119 -> 0 | C119: ='Asset data'!C119 -> 0 | D119: ='Asset data'!E119 -> master station assets | E119: 0 | F119: =IF(A119>0,SUM('Asset data'!J119:CV119),0) -> 0 | G119: =IF(A119>0,'Asset data'!F119,0) -> 0 | H119: =IF(A119>0,SUM('Asset data'!CX119:GJ119),0) -> 0 | I119: 0 | J119: 0 | K119: 0 | L119: 0 | M119: =IF($A119>0,SUMPRODUCT('Age profile (years)'!$CT119:$GF119,'Asset data'!$CX119:$GJ119)/H119-0.5,0) -> 0 | N119: 0 | O119: =IF($A119>0,'Asset data'!G119,0) -> 0 | P119: 0 | Q119: 0 | R119: 0 | S119: 0 | T119: 0 | U119: 0 | W119: =IF($A119>0,SUMIF('Age profile (years)'!$CT119:$GF119,"<" & R119+0.5,'Asset data'!$CX119:$GJ119),0) -> 0 | X119: =IF($A119>0,SUMIF('Age profile (years)'!$CT119:$GF119,"<" & S119+0.5,'Asset data'!$CX119:$GJ119)-W119,0) -> 0 | Y119: =IF($A119>0,SUMIF('Age profile (years)'!$CT119:$GF119,"<" & T119+0.5,'Asset data'!$CX119:$GJ119)-X119-W119,0) -> 0 | Z119: =IF($A119>0,SUMIF('Age profile (years)'!$CT119:$GF119,"<" & U119+0.5,'Asset data'!$CX119:$GJ119)-Y119-X119-W119,0) -> 0 | AA119: 0 | AB119: 0 | AC119: 0 | AD119: 0 | AE119: 0 | AF119: 0 | AI119: =IF($A119>0,'RRR hist-forc'!K119,0) -> 0 | AJ119: 0
A120: ='Asset data'!A120 -> 0 | B120: ='Asset data'!B120 -> 0 | C120: ='Asset data'!C120 -> 0 | D120: ='Asset data'!E120 -> other | E120: 0 | F120: =IF(A120>0,SUM('Asset data'!J120:CV120),0) -> 0 | G120: =IF(A120>0,'Asset data'!F120,0) -> 0 | H120: =IF(A120>0,SUM('Asset data'!CX120:GJ120),0) -> 0 | I120: 0 | J120: 0 | K120: 0 | L120: 0 | M120: =IF($A120>0,SUMPRODUCT('Age profile (years)'!$CT120:$GF120,'Asset data'!$CX120:$GJ120)/H120-0.5,0) -> 0 | N120: 0 | O120: =IF($A120>0,'Asset data'!G120,0) -> 0 | P120: 0 | Q120: 0 | R120: 0 | S120: 0 | T120: 0 | U120: 0 | W120: =IF($A120>0,SUMIF('Age profile (years)'!$CT120:$GF120,"<" & R120+0.5,'Asset data'!$CX120:$GJ120),0) -> 0 | X120: =IF($A120>0,SUMIF('Age profile (years)'!$CT120:$GF120,"<" & S120+0.5,'Asset data'!$CX120:$GJ120)-W120,0) -> 0 | Y120: =IF($A120>0,SUMIF('Age profile (years)'!$CT120:$GF120,"<" & T120+0.5,'Asset data'!$CX120:$GJ120)-X120-W120,0) -> 0 | Z120: =IF($A120>0,SUMIF('Age profile (years)'!$CT120:$GF120,"<" & U120+0.5,'Asset data'!$CX120:$GJ120)-Y120-X120-W120,0) -> 0 | AA120: 0 | AB120: 0 | AC120: 0 | AD120: 0 | AE120: 0 | AF120: 0 | AI120: =IF($A120>0,'RRR hist-forc'!K120,0) -> 0 | AJ120: 0
A121: ='Asset data'!A121 -> 6 | B121: ='Asset data'!B121 -> 0 | C121: ='Asset data'!C121 -> 0 | D121: ='Asset data'!E121 -> ˂ = 11 kv ; circuit breaker refurbished | E121: SWITCHGEAR | F121: =IF(A121>0,SUM('Asset data'!J121:CV121),0) -> 1206 | G121: =IF(A121>0,'Asset data'!F121,0) -> 14.1928 | H121: =IF(A121>0,SUM('Asset data'!CX121:GJ121),0) -> 17116.5168 | I121: 0.0008771157489 | J121: 38 | K121: 0.01120047204 | L121: 14.1928 | M121: =IF($A121>0,SUMPRODUCT('Age profile (years)'!$CT121:$GF121,'Asset data'!$CX121:$GJ121)/H121-0.5,0) -> 35.6384743 | N121: 610006.544 | O121: =IF($A121>0,'Asset data'!G121,0) -> 65 | P121: 1112573.592 | Q121: 0.4517157801 | R121: 6.5 | S121: 13 | T121: 39 | U121: 52 | W121: =IF($A121>0,SUMIF('Age profile (years)'!$CT121:$GF121,"<" & R121+0.5,'Asset data'!$CX121:$GJ121),0) -> 667.0616 | X121: =IF($A121>0,SUMIF('Age profile (years)'!$CT121:$GF121,"<" & S121+0.5,'Asset data'!$CX121:$GJ121)-W121,0) -> 1348.316 | Y121: =IF($A121>0,SUMIF('Age profile (years)'!$CT121:$GF121,"<" & T121+0.5,'Asset data'!$CX121:$GJ121)-X121-W121,0) -> 7124.7856 | Z121: =IF($A121>0,SUMIF('Age profile (years)'!$CT121:$GF121,"<" & U121+0.5,'Asset data'!$CX121:$GJ121)-Y121-X121-W121,0) -> 1887.6424 | AA121: 6088.7112 | AB121: 0.03897180763 | AC121: 0.07877280265 | AD121: 0.416252073 | AE121: 0.1102819237 | AF121: 0.355721393 | AI121: =IF($A121>0,'RRR hist-forc'!K121,0) -> 65 | AJ121: 1112573.592
A122: ='Asset data'!A122 -> 6 | B122: ='Asset data'!B122 -> 0 | C122: ='Asset data'!C122 -> 0 | D122: ='Asset data'!E122 -> > 22 kv & < = 33 kv ; circuit breaker refurbished | E122: SWITCHGEAR | F122: =IF(A122>0,SUM('Asset data'!J122:CV122),0) -> 251 | G122: =IF(A122>0,'Asset data'!F122,0) -> 12.1509 | H122: =IF(A122>0,SUM('Asset data'!CX122:GJ122),0) -> 3049.8759 | I122: 0.0001562872993 | J122: 47 | K122: 0.001995736057 | L122: 12.1509 | M122: =IF($A122>0,SUMPRODUCT('Age profile (years)'!$CT122:$GF122,'Asset data'!$CX122:$GJ122)/H122-0.5,0) -> 35.0498008 | N122: 106897.5428 | O122: =IF($A122>0,'Asset data'!G122,0) -> 65 | P122: 198241.9335 | Q122: 0.4607722954 | R122: 6.5 | S122: 13 | T122: 39 | U122: 52 | W122: =IF($A122>0,SUMIF('Age profile (years)'!$CT122:$GF122,"<" & R122+0.5,'Asset data'!$CX122:$GJ122),0) -> 437.4324 | X122: =IF($A122>0,SUMIF('Age profile (years)'!$CT122:$GF122,"<" & S122+0.5,'Asset data'!$CX122:$GJ122)-W122,0) -> 473.8851 | Y122: =IF($A122>0,SUMIF('Age profile (years)'!$CT122:$GF122,"<" & T122+0.5,'Asset data'!$CX122:$GJ122)-X122-W122,0) -> 546.7905 | Z122: =IF($A122>0,SUMIF('Age profile (years)'!$CT122:$GF122,"<" & U122+0.5,'Asset data'!$CX122:$GJ122)-Y122-X122-W122,0) -> 182.2635 | AA122: 1409.5044 | AB122: 0.1434262948 | AC122: 0.1553784861 | AD122: 0.1792828685 | AE122: 0.05976095618 | AF122: 0.4621513944 | AI122: =IF($A122>0,'RRR hist-forc'!K122,0) -> 65 | AJ122: 198241.9335
A123: ='Asset data'!A123 -> 0 | B123: ='Asset data'!B123 -> 0 | C123: ='Asset data'!C123 -> 0 | D123: ='Asset data'!E123 -> > 22 kv & < ≈ 33 kv ; load break switch; ground level (switching cubical);switchgear | E123: 0 | F123: =IF(A123>0,SUM('Asset data'!J123:CV123),0) -> 0 | G123: =IF(A123>0,'Asset data'!F123,0) -> 0 | H123: =IF(A123>0,SUM('Asset data'!CX123:GJ123),0) -> 0 | I123: 0 | J123: 0 | K123: 0 | L123: 0 | M123: =IF($A123>0,SUMPRODUCT('Age profile (years)'!$CT123:$GF123,'Asset data'!$CX123:$GJ123)/H123-0.5,0) -> 0 | N123: 0 | O123: =IF($A123>0,'Asset data'!G123,0) -> 0 | P123: 0 | Q123: 0 | R123: 0 | S123: 0 | T123: 0 | U123: 0 | W123: =IF($A123>0,SUMIF('Age profile (years)'!$CT123:$GF123,"<" & R123+0.5,'Asset data'!$CX123:$GJ123),0) -> 0 | X123: =IF($A123>0,SUMIF('Age profile (years)'!$CT123:$GF123,"<" & S123+0.5,'Asset data'!$CX123:$GJ123)-W123,0) -> 0 | Y123: =IF($A123>0,SUMIF('Age profile (years)'!$CT123:$GF123,"<" & T123+0.5,'Asset data'!$CX123:$GJ123)-X123-W123,0) -> 0 | Z123: =IF($A123>0,SUMIF('Age profile (years)'!$CT123:$GF123,"<" & U123+0.5,'Asset data'!$CX123:$GJ123)-Y123-X123-W123,0) -> 0 | AA123: 0 | AB123: 0 | AC123: 0 | AD123: 0 | AE123: 0 | AF123: 0 | AI123: =IF($A123>0,'RRR hist-forc'!K123,0) -> 0 | AJ123: 0
A124: ='Asset data'!A124 -> 6 | B124: ='Asset data'!B124 -> 0 | C124: ='Asset data'!C124 -> 0 | D124: ='Asset data'!E124 -> > 33 kv & < = 66 kv ; circuit breaker refurbished | E124: SWITCHGEAR | F124: =IF(A124>0,SUM('Asset data'!J124:CV124),0) -> 462 | G124: =IF(A124>0,'Asset data'!F124,0) -> 13.9587 | H124: =IF(A124>0,SUM('Asset data'!CX124:GJ124),0) -> 6448.9194 | I124: 0.0003304672811 | J124: 43 | K124: 0.004219955629 | L124: 13.9587 | M124: =IF($A124>0,SUMPRODUCT('Age profile (years)'!$CT124:$GF124,'Asset data'!$CX124:$GJ124)/H124-0.5,0) -> 43.95670996 | N124: 283473.2796 | O124: =IF($A124>0,'Asset data'!G124,0) -> 65 | P124: 419179.761 | Q124: 0.3237429237 | R124: 6.5 | S124: 13 | T124: 39 | U124: 52 | W124: =IF($A124>0,SUMIF('Age profile (years)'!$CT124:$GF124,"<" & R124+0.5,'Asset data'!$CX124:$GJ124),0) -> 293.1327 | X124: =IF($A124>0,SUMIF('Age profile (years)'!$CT124:$GF124,"<" & S124+0.5,'Asset data'!$CX124:$GJ124)-W124,0) -> 125.6283 | Y124: =IF($A124>0,SUMIF('Age profile (years)'!$CT124:$GF124,"<" & T124+0.5,'Asset data'!$CX124:$GJ124)-X124-W124,0) -> 1912.3419 | Z124: =IF($A124>0,SUMIF('Age profile (years)'!$CT124:$GF124,"<" & U124+0.5,'Asset data'!$CX124:$GJ124)-Y124-X124-W124,0) -> 711.8937 | AA124: 3405.9228 | AB124: 0.04545454545 | AC124: 0.01948051948 | AD124: 0.2965367965 | AE124: 0.1103896104 | AF124: 0.5281385281 | AI124: =IF($A124>0,'RRR hist-forc'!K124,0) -> 65 | AJ124: 419179.761
A125: ='Asset data'!A125 -> 6 | B125: ='Asset data'!B125 -> 0 | C125: ='Asset data'!C125 -> 0 | D125: ='Asset data'!E125 -> >= 11 kv & < ≈ 22 kv ; load break switch; ground level (switching cubical);switchgear | E125: SWITCHGEAR | F125: =IF(A125>0,SUM('Asset data'!J125:CV125),0) -> 5322 | G125: =IF(A125>0,'Asset data'!F125,0) -> 36.9282 | H125: =IF(A125>0,SUM('Asset data'!CX125:GJ125),0) -> 196531.8804 | I125: 0.0100710448 | J125: 16 | K125: 0.1286038425 | L125: 36.9282 | M125: =IF($A125>0,SUMPRODUCT('Age profile (years)'!$CT125:$GF125,'Asset data'!$CX125:$GJ125)/H125-0.5,0) -> 32.97012401 | N125: 6479680.469 | O125: =IF($A125>0,'Asset data'!G125,0) -> 45 | P125: 8843934.618 | Q125: 0.2673305775 | R125: 4.5 | S125: 9 | T125: 27 | U125: 36 | W125: =IF($A125>0,SUMIF('Age profile (years)'!$CT125:$GF125,"<" & R125+0.5,'Asset data'!$CX125:$GJ125),0) -> 4726.8096 | X125: =IF($A125>0,SUMIF('Age profile (years)'!$CT125:$GF125,"<" & S125+0.5,'Asset data'!$CX125:$GJ125)-W125,0) -> 3397.3944 | Y125: =IF($A125>0,SUMIF('Age profile (years)'!$CT125:$GF125,"<" & T125+0.5,'Asset data'!$CX125:$GJ125)-X125-W125,0) -> 36300.4206 | Z125: =IF($A125>0,SUMIF('Age profile (years)'!$CT125:$GF125,"<" & U125+0.5,'Asset data'!$CX125:$GJ125)-Y125-X125-W125,0) -> 38553.0408 | AA125: 113554.215 | AB125: 0.02405110861 | AC125: 0.01728673431 | AD125: 0.1847049981 | AE125: 0.1961668546 | AF125: 0.5777903044 | AI125: =IF($A125>0,'RRR hist-forc'!K125,0) -> 45 | AJ125: 8843934.618
A126: ='Asset data'!A126 -> 5 | B126: ='Asset data'!B126 -> 0 | C126: ='Asset data'!C126 -> 0 | D126: ='Asset data'!E126 -> ground outdoor / indoor chamber mounted; > = 22 kv & < = 33 kv ; < = 15 mva refurbished | E126: TRANSFORMERS | F126: =IF(A126>0,SUM('Asset data'!J126:CV126),0) -> 315 | G126: =IF(A126>0,'Asset data'!F126,0) -> 16.3666 | H126: =IF(A126>0,SUM('Asset data'!CX126:GJ126),0) -> 5155.479 | I126: 0.0002641864508 | J126: 45 | K126: 0.002100461561 | L126: 16.3666 | M126: =IF($A126>0,SUMPRODUCT('Age profile (years)'!$CT126:$GF126,'Asset data'!$CX126:$GJ126)/H126-0.5,0) -> 31.76031746 | N126: 163739.6497 | O126: =IF($A126>0,'Asset data'!G126,0) -> 65 | P126: 335106.135 | Q126: 0.5113797314 | R126: 6.5 | S126: 13 | T126: 39 | U126: 52 | W126: =IF($A126>0,SUMIF('Age profile (years)'!$CT126:$GF126,"<" & R126+0.5,'Asset data'!$CX126:$GJ126),0) -> 310.9654 | X126: =IF($A126>0,SUMIF('Age profile (years)'!$CT126:$GF126,"<" & S126+0.5,'Asset data'!$CX126:$GJ126)-W126,0) -> 671.0306 | Y126: =IF($A126>0,SUMIF('Age profile (years)'!$CT126:$GF126,"<" & T126+0.5,'Asset data'!$CX126:$GJ126)-X126-W126,0) -> 2504.0898 | Z126: =IF($A126>0,SUMIF('Age profile (years)'!$CT126:$GF126,"<" & U126+0.5,'Asset data'!$CX126:$GJ126)-Y126-X126-W126,0) -> 638.2974 | AA126: 1031.0958 | AB126: 0.06031746032 | AC126: 0.1301587302 | AD126: 0.4857142857 | AE126: 0.1238095238 | AF126: 0.2 | AI126: =IF($A126>0,'RRR hist-forc'!K126,0) -> 65 | AJ126: 335106.135
A127: ='Asset data'!A127 -> 5 | B127: ='Asset data'!B127 -> 0 | C127: ='Asset data'!C127 -> 0 | D127: ='Asset data'!E127 -> ground outdoor / indoor chamber mounted; > 33 kv & < = 66 kv ; < = 15 mva refurbished | E127: TRANSFORMERS | F127: =IF(A127>0,SUM('Asset data'!J127:CV127),0) -> 164 | G127: =IF(A127>0,'Asset data'!F127,0) -> 16.3665 | H127: =IF(A127>0,SUM('Asset data'!CX127:GJ127),0) -> 2684.106 | I127: 0.0001375438515 | J127: 48 | K127: 0.001093566956 | L127: 16.3665 | M127: =IF($A127>0,SUMPRODUCT('Age profile (years)'!$CT127:$GF127,'Asset data'!$CX127:$GJ127)/H127-0.5,0) -> 23.56097561 | N127: 63240.156 | O127: =IF($A127>0,'Asset data'!G127,0) -> 65 | P127: 174466.89 | Q127: 0.6375234522 | R127: 6.5 | S127: 13 | T127: 39 | U127: 52 | W127: =IF($A127>0,SUMIF('Age profile (years)'!$CT127:$GF127,"<" & R127+0.5,'Asset data'!$CX127:$GJ127),0) -> 196.398 | X127: =IF($A127>0,SUMIF('Age profile (years)'!$CT127:$GF127,"<" & S127+0.5,'Asset data'!$CX127:$GJ127)-W127,0) -> 458.262 | Y127: =IF($A127>0,SUMIF('Age profile (years)'!$CT127:$GF127,"<" & T127+0.5,'Asset data'!$CX127:$GJ127)-X127-W127,0) -> 1603.917 | Z127: =IF($A127>0,SUMIF('Age profile (years)'!$CT127:$GF127,"<" & U127+0.5,'Asset data'!$CX127:$GJ127)-Y127-X127-W127,0) -> 212.7645 | AA127: 212.7645 | AB127: 0.07317073171 | AC127: 0.1707317073 | AD127: 0.5975609756 | AE127: 0.07926829268 | AF127: 0.07926829268 | AI127: =IF($A127>0,'RRR hist-forc'!K127,0) -> 65 | AJ127: 174466.89
A128: ='Asset data'!A128 -> 5 | B128: ='Asset data'!B128 -> 0 | C128: ='Asset data'!C128 -> 0 | D128: ='Asset data'!E128 -> ground outdoor / indoor chamber mounted; > 33 kv & < = 66 kv ; > 15 mva and < = 40 mva refurbished | E128: TRANSFORMERS | F128: =IF(A128>0,SUM('Asset data'!J128:CV128),0) -> 118 | G128: =IF(A128>0,'Asset data'!F128,0) -> 16.3666 | H128: =IF(A128>0,SUM('Asset data'!CX128:GJ128),0) -> 1931.2588 | I128: 9.896508317e-05 | J128: 50 | K128: 0.0007868395689 | L128: 16.3666 | M128: =IF($A128>0,SUMPRODUCT('Age profile (years)'!$CT128:$GF128,'Asset data'!$CX128:$GJ128)/H128-0.5,0) -> 41.11864407 | N128: 79410.7432 | O128: =IF($A128>0,'Asset data'!G128,0) -> 65 | P128: 125531.822 | Q128: 0.3674054759 | R128: 6.5 | S128: 13 | T128: 39 | U128: 52 | W128: =IF($A128>0,SUMIF('Age profile (years)'!$CT128:$GF128,"<" & R128+0.5,'Asset data'!$CX128:$GJ128),0) -> 0 | X128: =IF($A128>0,SUMIF('Age profile (years)'!$CT128:$GF128,"<" & S128+0.5,'Asset data'!$CX128:$GJ128)-W128,0) -> 98.1996 | Y128: =IF($A128>0,SUMIF('Age profile (years)'!$CT128:$GF128,"<" & T128+0.5,'Asset data'!$CX128:$GJ128)-X128-W128,0) -> 736.497 | Z128: =IF($A128>0,SUMIF('Age profile (years)'!$CT128:$GF128,"<" & U128+0.5,'Asset data'!$CX128:$GJ128)-Y128-X128-W128,0) -> 327.332 | AA128: 769.2302 | AB128: 0 | AC128: 0.05084745763 | AD128: 0.3813559322 | AE128: 0.1694915254 | AF128: 0.3983050847 | AI128: =IF($A128>0,'RRR hist-forc'!K128,0) -> 65 | AJ128: 125531.822
A129: ='Asset data'!A129 -> 5 | B129: ='Asset data'!B129 -> 0 | C129: ='Asset data'!C129 -> 0 | D129: ='Asset data'!E129 -> kiosk mounted transformer; > 22 kv ; > 60 kva and < ≈ 600 kva | E129: TRANSFORMERS | F129: =IF(A129>0,SUM('Asset data'!J129:CV129),0) -> 47 | G129: =IF(A129>0,'Asset data'!F129,0) -> 32.1647 | H129: =IF(A129>0,SUM('Asset data'!CX129:GJ129),0) -> 1511.7409 | I129: 7.746738236e-05 | J129: 52 | K129: 0.0006159182591 | L129: 32.1647 | M129: =IF($A129>0,SUMPRODUCT('Age profile (years)'!$CT129:$GF129,'Asset data'!$CX129:$GJ129)/H129-0.5,0) -> 52.64893617 | N129: 79591.55015 | O129: =IF($A129>0,'Asset data'!G129,0) -> 66.1 | P129: 99926.07349 | Q129: 0.2034956706 | R129: 6.61 | S129: 13.22 | T129: 39.66 | U129: 52.88 | W129: =IF($A129>0,SUMIF('Age profile (years)'!$CT129:$GF129,"<" & R129+0.5,'Asset data'!$CX129:$GJ129),0) -> 0 | X129: =IF($A129>0,SUMIF('Age profile (years)'!$CT129:$GF129,"<" & S129+0.5,'Asset data'!$CX129:$GJ129)-W129,0) -> 0 | Y129: =IF($A129>0,SUMIF('Age profile (years)'!$CT129:$GF129,"<" & T129+0.5,'Asset data'!$CX129:$GJ129)-X129-W129,0) -> 225.1529 | Z129: =IF($A129>0,SUMIF('Age profile (years)'!$CT129:$GF129,"<" & U129+0.5,'Asset data'!$CX129:$GJ129)-Y129-X129-W129,0) -> 385.9764 | AA129: 900.6116 | AB129: 0 | AC129: 0 | AD129: 0.1489361702 | AE129: 0.2553191489 | AF129: 0.5957446809 | AI129: =IF($A129>0,'RRR hist-forc'!K129,0) -> 66.1 | AJ129: 99926.07349
A130: ='Asset data'!A130 -> 0 | B130: ='Asset data'!B130 -> 0 | C130: ='Asset data'!C130 -> 0 | D130: ='Asset data'!E130 -> pipe buswork substations | E130: 0 | F130: =IF(A130>0,SUM('Asset data'!J130:CV130),0) -> 0 | G130: =IF(A130>0,'Asset data'!F130,0) -> 0 | H130: =IF(A130>0,SUM('Asset data'!CX130:GJ130),0) -> 0 | I130: 0 | J130: 0 | K130: 0 | L130: 0 | M130: =IF($A130>0,SUMPRODUCT('Age profile (years)'!$CT130:$GF130,'Asset data'!$CX130:$GJ130)/H130-0.5,0) -> 0 | N130: 0 | O130: =IF($A130>0,'Asset data'!G130,0) -> 0 | P130: 0 | Q130: 0 | R130: 0 | S130: 0 | T130: 0 | U130: 0 | W130: =IF($A130>0,SUMIF('Age profile (years)'!$CT130:$GF130,"<" & R130+0.5,'Asset data'!$CX130:$GJ130),0) -> 0 | X130: =IF($A130>0,SUMIF('Age profile (years)'!$CT130:$GF130,"<" & S130+0.5,'Asset data'!$CX130:$GJ130)-W130,0) -> 0 | Y130: =IF($A130>0,SUMIF('Age profile (years)'!$CT130:$GF130,"<" & T130+0.5,'Asset data'!$CX130:$GJ130)-X130-W130,0) -> 0 | Z130: =IF($A130>0,SUMIF('Age profile (years)'!$CT130:$GF130,"<" & U130+0.5,'Asset data'!$CX130:$GJ130)-Y130-X130-W130,0) -> 0 | AA130: 0 | AB130: 0 | AC130: 0 | AD130: 0 | AE130: 0 | AF130: 0 | AI130: =IF($A130>0,'RRR hist-forc'!K130,0) -> 0 | AJ130: 0
A131: ='Asset data'!A131 -> 5 | B131: ='Asset data'!B131 -> 0 | C131: ='Asset data'!C131 -> 0 | D131: ='Asset data'!E131 -> pole mounted transformer ; > 22 kv ; > 60 kva and < ≈ 600 kva | E131: TRANSFORMERS | F131: =IF(A131>0,SUM('Asset data'!J131:CV131),0) -> 644 | G131: =IF(A131>0,'Asset data'!F131,0) -> 21.5396 | H131: =IF(A131>0,SUM('Asset data'!CX131:GJ131),0) -> 13871.5024 | I131: 0.000710828807 | J131: 40 | K131: 0.005651571384 | L131: 21.5396 | M131: =IF($A131>0,SUMPRODUCT('Age profile (years)'!$CT131:$GF131,'Asset data'!$CX131:$GJ131)/H131-0.5,0) -> 41.86024845 | N131: 580664.5368 | O131: =IF($A131>0,'Asset data'!G131,0) -> 66.1 | P131: 916906.3086 | Q131: 0.3667133367 | R131: 6.61 | S131: 13.22 | T131: 39.66 | U131: 52.88 | W131: =IF($A131>0,SUMIF('Age profile (years)'!$CT131:$GF131,"<" & R131+0.5,'Asset data'!$CX131:$GJ131),0) -> 86.1584 | X131: =IF($A131>0,SUMIF('Age profile (years)'!$CT131:$GF131,"<" & S131+0.5,'Asset data'!$CX131:$GJ131)-W131,0) -> 366.1732 | Y131: =IF($A131>0,SUMIF('Age profile (years)'!$CT131:$GF131,"<" & T131+0.5,'Asset data'!$CX131:$GJ131)-X131-W131,0) -> 5212.5832 | Z131: =IF($A131>0,SUMIF('Age profile (years)'!$CT131:$GF131,"<" & U131+0.5,'Asset data'!$CX131:$GJ131)-Y131-X131-W131,0) -> 3920.2072 | AA131: 4286.3804 | AB131: 0.006211180124 | AC131: 0.02639751553 | AD131: 0.3757763975 | AE131: 0.2826086957 | AF131: 0.3090062112 | AI131: =IF($A131>0,'RRR hist-forc'!K131,0) -> 66.1 | AJ131: 916906.3086
A132: ='Asset data'!A132 -> 5 | B132: ='Asset data'!B132 -> 0 | C132: ='Asset data'!C132 -> 0 | D132: ='Asset data'!E132 -> pole mounted transformer; > 22 kv ; < ≈ 60 kva | E132: TRANSFORMERS | F132: =IF(A132>0,SUM('Asset data'!J132:CV132),0) -> 993 | G132: =IF(A132>0,'Asset data'!F132,0) -> 7.6031 | H132: =IF(A132>0,SUM('Asset data'!CX132:GJ132),0) -> 7549.8783 | I132: 0.0003868846236 | J132: 41 | K132: 0.003075995297 | L132: 7.6031 | M132: =IF($A132>0,SUMPRODUCT('Age profile (years)'!$CT132:$GF132,'Asset data'!$CX132:$GJ132)/H132-0.5,0) -> 37.17673716 | N132: 280679.8411 | O132: =IF($A132>0,'Asset data'!G132,0) -> 66.1 | P132: 499046.9556 | Q132: 0.4375682729 | R132: 6.61 | S132: 13.22 | T132: 39.66 | U132: 52.88 | W132: =IF($A132>0,SUMIF('Age profile (years)'!$CT132:$GF132,"<" & R132+0.5,'Asset data'!$CX132:$GJ132),0) -> 38.0155 | X132: =IF($A132>0,SUMIF('Age profile (years)'!$CT132:$GF132,"<" & S132+0.5,'Asset data'!$CX132:$GJ132)-W132,0) -> 326.9333 | Y132: =IF($A132>0,SUMIF('Age profile (years)'!$CT132:$GF132,"<" & T132+0.5,'Asset data'!$CX132:$GJ132)-X132-W132,0) -> 3588.6632 | Z132: =IF($A132>0,SUMIF('Age profile (years)'!$CT132:$GF132,"<" & U132+0.5,'Asset data'!$CX132:$GJ132)-Y132-X132-W132,0) -> 2349.3579 | AA132: 1246.9084 | AB132: 0.005035246727 | AC132: 0.04330312185 | AD132: 0.475327291 | AE132: 0.3111782477 | AF132: 0.1651560926 | AI132: =IF($A132>0,'RRR hist-forc'!K132,0) -> 66.1 | AJ132: 499046.9556
A133: ='Asset data'!A133 -> 1 | B133: ='Asset data'!B133 -> 0 | C133: ='Asset data'!C133 -> 0 | D133: ='Asset data'!E133 -> pole refurbished; stobie | E133: POLES | F133: =IF(A133>0,SUM('Asset data'!J133:CV133),0) -> 17984 | G133: =IF(A133>0,'Asset data'!F133,0) -> 7.027412844 | H133: =IF(A133>0,SUM('Asset data'!CX133:GJ133),0) -> 126380.9926 | I133: 0.006476245153 | J133: 21 | K133: 0.04309745565 | L133: 7.027412844 | M133: =IF($A133>0,SUMPRODUCT('Age profile (years)'!$CT133:$GF133,'Asset data'!$CX133:$GJ133)/H133-0.5,0) -> 16.20351423 | N133: 2047816.212 | O133: =IF($A133>0,'Asset data'!G133,0) -> 20 | P133: 2527619.852 | Q133: 0.1898242883 | R133: 2 | S133: 4 | T133: 12 | U133: 16 | W133: =IF($A133>0,SUMIF('Age profile (years)'!$CT133:$GF133,"<" & R133+0.5,'Asset data'!$CX133:$GJ133),0) -> 0 | X133: =IF($A133>0,SUMIF('Age profile (years)'!$CT133:$GF133,"<" & S133+0.5,'Asset data'!$CX133:$GJ133)-W133,0) -> 0 | Y133: =IF($A133>0,SUMIF('Age profile (years)'!$CT133:$GF133,"<" & T133+0.5,'Asset data'!$CX133:$GJ133)-X133-W133,0) -> 3021.787523 | Z133: =IF($A133>0,SUMIF('Age profile (years)'!$CT133:$GF133,"<" & U133+0.5,'Asset data'!$CX133:$GJ133)-Y133-X133-W133,0) -> 48945.93046 | AA133: 74413.27461 | AB133: 0 | AC133: 0 | AD133: 0.02391014235 | AE133: 0.3872887011 | AF133: 0.5888011566 | AI133: =IF($A133>0,'RRR hist-forc'!K133,0) -> 20 | AJ133: 2527619.852
A134: ='Asset data'!A134 -> 6 | B134: ='Asset data'!B134 -> 0 | C134: ='Asset data'!C134 -> 0 | D134: ='Asset data'!E134 -> recloser | E134: SWITCHGEAR | F134: =IF(A134>0,SUM('Asset data'!J134:CV134),0) -> 2065 | G134: =IF(A134>0,'Asset data'!F134,0) -> 16.298 | H134: =IF(A134>0,SUM('Asset data'!CX134:GJ134),0) -> 33655.37 | I134: 0.001724629807 | J134: 35 | K134: 0.02202294048 | L134: 16.298 | M134: =IF($A134>0,SUMPRODUCT('Age profile (years)'!$CT134:$GF134,'Asset data'!$CX134:$GJ134)/H134-0.5,0) -> 31.87530266 | N134: 1072775.105 | O134: =IF($A134>0,'Asset data'!G134,0) -> 45.01576495 | P134: 1515022.225 | Q134: 0.2919080083 | R134: 4.501576495 | S134: 9.00315299 | T134: 27.00945897 | U134: 36.01261196 | W134: =IF($A134>0,SUMIF('Age profile (years)'!$CT134:$GF134,"<" & R134+0.5,'Asset data'!$CX134:$GJ134),0) -> 3536.666 | X134: =IF($A134>0,SUMIF('Age profile (years)'!$CT134:$GF134,"<" & S134+0.5,'Asset data'!$CX134:$GJ134)-W134,0) -> 961.582 | Y134: =IF($A134>0,SUMIF('Age profile (years)'!$CT134:$GF134,"<" & T134+0.5,'Asset data'!$CX134:$GJ134)-X134-W134,0) -> 4612.334 | Z134: =IF($A134>0,SUMIF('Age profile (years)'!$CT134:$GF134,"<" & U134+0.5,'Asset data'!$CX134:$GJ134)-Y134-X134-W134,0) -> 4807.91 | AA134: 19736.878 | AB134: 0.1050847458 | AC134: 0.02857142857 | AD134: 0.1370460048 | AE134: 0.1428571429 | AF134: 0.586440678 | AI134: =IF($A134>0,'RRR hist-forc'!K134,0) -> 45.01576495 | AJ134: 1515022.225
A135: ='Asset data'!A135 -> 6 | B135: ='Asset data'!B135 -> 0 | C135: ='Asset data'!C135 -> 0 | D135: ='Asset data'!E135 -> sectionalizer | E135: SWITCHGEAR | F135: =IF(A135>0,SUM('Asset data'!J135:CV135),0) -> 700 | G135: =IF(A135>0,'Asset data'!F135,0) -> 7.385 | H135: =IF(A135>0,SUM('Asset data'!CX135:GJ135),0) -> 5169.5 | I135: 0.0002649049405 | J135: 44 | K135: 0.00338274667 | L135: 7.385 | M135: =IF($A135>0,SUMPRODUCT('Age profile (years)'!$CT135:$GF135,'Asset data'!$CX135:$GJ135)/H135-0.5,0) -> 29.34 | N135: 151673.13 | O135: =IF($A135>0,'Asset data'!G135,0) -> 48.7641876 | P135: 252086.4678 | Q135: 0.3983289491 | R135: 4.87641876 | S135: 9.75283752 | T135: 29.25851256 | U135: 39.01135008 | W135: =IF($A135>0,SUMIF('Age profile (years)'!$CT135:$GF135,"<" & R135+0.5,'Asset data'!$CX135:$GJ135),0) -> 103.39 | X135: =IF($A135>0,SUMIF('Age profile (years)'!$CT135:$GF135,"<" & S135+0.5,'Asset data'!$CX135:$GJ135)-W135,0) -> 391.405 | Y135: =IF($A135>0,SUMIF('Age profile (years)'!$CT135:$GF135,"<" & T135+0.5,'Asset data'!$CX135:$GJ135)-X135-W135,0) -> 2230.27 | Z135: =IF($A135>0,SUMIF('Age profile (years)'!$CT135:$GF135,"<" & U135+0.5,'Asset data'!$CX135:$GJ135)-Y135-X135-W135,0) -> 457.87 | AA135: 1986.565 | AB135: 0.02 | AC135: 0.07571428571 | AD135: 0.4314285714 | AE135: 0.08857142857 | AF135: 0.3842857143 | AI135: =IF($A135>0,'RRR hist-forc'!K135,0) -> 48.7641876 | AJ135: 252086.4678
A136: ='Asset data'!A136 -> 0 | B136: ='Asset data'!B136 -> 0 | C136: ='Asset data'!C136 -> 0 | D136: ='Asset data'!E136 -> 0 | E136: 0 | F136: =IF(A136>0,SUM('Asset data'!J136:CV136),0) -> 0 | G136: =IF(A136>0,'Asset data'!F136,0) -> 0 | H136: =IF(A136>0,SUM('Asset data'!CX136:GJ136),0) -> 0 | I136: 0 | J136: 0 | K136: 0 | L136: 0 | M136: =IF($A136>0,SUMPRODUCT('Age profile (years)'!$CT136:$GF136,'Asset data'!$CX136:$GJ136)/H136-0.5,0) -> 0 | N136: 0 | O136: =IF($A136>0,'Asset data'!G136,0) -> 0 | P136: 0 | Q136: 0 | R136: 0 | S136: 0 | T136: 0 | U136: 0 | W136: =IF($A136>0,SUMIF('Age profile (years)'!$CT136:$GF136,"<" & R136+0.5,'Asset data'!$CX136:$GJ136),0) -> 0 | X136: =IF($A136>0,SUMIF('Age profile (years)'!$CT136:$GF136,"<" & S136+0.5,'Asset data'!$CX136:$GJ136)-W136,0) -> 0 | Y136: =IF($A136>0,SUMIF('Age profile (years)'!$CT136:$GF136,"<" & T136+0.5,'Asset data'!$CX136:$GJ136)-X136-W136,0) -> 0 | Z136: =IF($A136>0,SUMIF('Age profile (years)'!$CT136:$GF136,"<" & U136+0.5,'Asset data'!$CX136:$GJ136)-Y136-X136-W136,0) -> 0 | AA136: 0 | AB136: 0 | AC136: 0 | AD136: 0 | AE136: 0 | AF136: 0 | AI136: =IF($A136>0,'RRR hist-forc'!K136,0) -> 0 | AJ136: 0
A137: ='Asset data'!A137 -> 0 | B137: ='Asset data'!B137 -> 0 | C137: ='Asset data'!C137 -> 0 | D137: ='Asset data'!E137 -> 0 | E137: 0 | F137: =IF(A137>0,SUM('Asset data'!J137:CV137),0) -> 0 | G137: =IF(A137>0,'Asset data'!F137,0) -> 0 | H137: =IF(A137>0,SUM('Asset data'!CX137:GJ137),0) -> 0 | I137: 0 | J137: 0 | K137: 0 | L137: 0 | M137: =IF($A137>0,SUMPRODUCT('Age profile (years)'!$CT137:$GF137,'Asset data'!$CX137:$GJ137)/H137-0.5,0) -> 0 | N137: 0 | O137: =IF($A137>0,'Asset data'!G137,0) -> 0 | P137: 0 | Q137: 0 | R137: 0 | S137: 0 | T137: 0 | U137: 0 | W137: =IF($A137>0,SUMIF('Age profile (years)'!$CT137:$GF137,"<" & R137+0.5,'Asset data'!$CX137:$GJ137),0) -> 0 | X137: =IF($A137>0,SUMIF('Age profile (years)'!$CT137:$GF137,"<" & S137+0.5,'Asset data'!$CX137:$GJ137)-W137,0) -> 0 | Y137: =IF($A137>0,SUMIF('Age profile (years)'!$CT137:$GF137,"<" & T137+0.5,'Asset data'!$CX137:$GJ137)-X137-W137,0) -> 0 | Z137: =IF($A137>0,SUMIF('Age profile (years)'!$CT137:$GF137,"<" & U137+0.5,'Asset data'!$CX137:$GJ137)-Y137-X137-W137,0) -> 0 | AA137: 0 | AB137: 0 | AC137: 0 | AD137: 0 | AE137: 0 | AF137: 0 | AI137: =IF($A137>0,'RRR hist-forc'!K137,0) -> 0 | AJ137: 0
A138: ='Asset data'!A138 -> 0 | B138: ='Asset data'!B138 -> 0 | C138: ='Asset data'!C138 -> 0 | D138: ='Asset data'!E138 -> 0 | E138: 0 | F138: =IF(A138>0,SUM('Asset data'!J138:CV138),0) -> 0 | G138: =IF(A138>0,'Asset data'!F138,0) -> 0 | H138: =IF(A138>0,SUM('Asset data'!CX138:GJ138),0) -> 0 | I138: 0 | J138: 0 | K138: 0 | L138: 0 | M138: =IF($A138>0,SUMPRODUCT('Age profile (years)'!$CT138:$GF138,'Asset data'!$CX138:$GJ138)/H138-0.5,0) -> 0 | N138: 0 | O138: =IF($A138>0,'Asset data'!G138,0) -> 0 | P138: 0 | Q138: 0 | R138: 0 | S138: 0 | T138: 0 | U138: 0 | W138: =IF($A138>0,SUMIF('Age profile (years)'!$CT138:$GF138,"<" & R138+0.5,'Asset data'!$CX138:$GJ138),0) -> 0 | X138: =IF($A138>0,SUMIF('Age profile (years)'!$CT138:$GF138,"<" & S138+0.5,'Asset data'!$CX138:$GJ138)-W138,0) -> 0 | Y138: =IF($A138>0,SUMIF('Age profile (years)'!$CT138:$GF138,"<" & T138+0.5,'Asset data'!$CX138:$GJ138)-X138-W138,0) -> 0 | Z138: =IF($A138>0,SUMIF('Age profile (years)'!$CT138:$GF138,"<" & U138+0.5,'Asset data'!$CX138:$GJ138)-Y138-X138-W138,0) -> 0 | AA138: 0 | AB138: 0 | AC138: 0 | AD138: 0 | AE138: 0 | AF138: 0 | AI138: =IF($A138>0,'RRR hist-forc'!K138,0) -> 0 | AJ138: 0
A139: ='Asset data'!A139 -> 5 | B139: ='Asset data'!B139 -> 0 | C139: ='Asset data'!C139 -> 0 | D139: ='Asset data'!E139 -> pole mounted ; < = 22kv ; > 60 kva and < = 600 kva ; single phase | E139: TRANSFORMERS | F139: =IF(A139>0,SUM('Asset data'!J139:CV139),0) -> 12666 | G139: =IF(A139>0,'Asset data'!F139,0) -> 13.2672 | H139: =IF(A139>0,SUM('Asset data'!CX139:GJ139),0) -> 168042.3552 | I139: 0.008611132624 | J139: 18 | K139: 0.06846434788 | L139: 13.2672 | M139: =IF($A139>0,SUMPRODUCT('Age profile (years)'!$CT139:$GF139,'Asset data'!$CX139:$GJ139)/H139-0.5,0) -> 45.19129954 | N139: 7594052.41 | O139: =IF($A139>0,'Asset data'!G139,0) -> 70.80171774 | P139: 11897687.4 | Q139: 0.3617202946 | R139: 7.080171774 | S139: 14.16034355 | T139: 42.48103065 | U139: 56.64137419 | W139: =IF($A139>0,SUMIF('Age profile (years)'!$CT139:$GF139,"<" & R139+0.5,'Asset data'!$CX139:$GJ139),0) -> 185.7408 | X139: =IF($A139>0,SUMIF('Age profile (years)'!$CT139:$GF139,"<" & S139+0.5,'Asset data'!$CX139:$GJ139)-W139,0) -> 8756.352 | Y139: =IF($A139>0,SUMIF('Age profile (years)'!$CT139:$GF139,"<" & T139+0.5,'Asset data'!$CX139:$GJ139)-X139-W139,0) -> 60219.8208 | Z139: =IF($A139>0,SUMIF('Age profile (years)'!$CT139:$GF139,"<" & U139+0.5,'Asset data'!$CX139:$GJ139)-Y139-X139-W139,0) -> 40319.0208 | AA139: 58561.4208 | AB139: 0.001105321333 | AC139: 0.05210800568 | AD139: 0.3583609664 | AE139: 0.2399336807 | AF139: 0.3484920259 | AI139: =IF($A139>0,'RRR hist-forc'!K139,0) -> 70.80171774 | AJ139: 11897687.4
A140: ='Asset data'!A140 -> 0 | B140: ='Asset data'!B140 -> 0 | C140: ='Asset data'!C140 -> 0 | D140: ='Asset data'!E140 -> 0 | E140: 0 | F140: =IF(A140>0,SUM('Asset data'!J140:CV140),0) -> 0 | G140: =IF(A140>0,'Asset data'!F140,0) -> 0 | H140: =IF(A140>0,SUM('Asset data'!CX140:GJ140),0) -> 0 | I140: 0 | J140: 0 | K140: 0 | L140: 0 | M140: =IF($A140>0,SUMPRODUCT('Age profile (years)'!$CT140:$GF140,'Asset data'!$CX140:$GJ140)/H140-0.5,0) -> 0 | N140: 0 | O140: =IF($A140>0,'Asset data'!G140,0) -> 0 | P140: 0 | Q140: 0 | R140: 0 | S140: 0 | T140: 0 | U140: 0 | W140: =IF($A140>0,SUMIF('Age profile (years)'!$CT140:$GF140,"<" & R140+0.5,'Asset data'!$CX140:$GJ140),0) -> 0 | X140: =IF($A140>0,SUMIF('Age profile (years)'!$CT140:$GF140,"<" & S140+0.5,'Asset data'!$CX140:$GJ140)-W140,0) -> 0 | Y140: =IF($A140>0,SUMIF('Age profile (years)'!$CT140:$GF140,"<" & T140+0.5,'Asset data'!$CX140:$GJ140)-X140-W140,0) -> 0 | Z140: =IF($A140>0,SUMIF('Age profile (years)'!$CT140:$GF140,"<" & U140+0.5,'Asset data'!$CX140:$GJ140)-Y140-X140-W140,0) -> 0 | AA140: 0 | AB140: 0 | AC140: 0 | AD140: 0 | AE140: 0 | AF140: 0 | AI140: =IF($A140>0,'RRR hist-forc'!K140,0) -> 0 | AJ140: 0
A141: ='Asset data'!A141 -> 0 | B141: ='Asset data'!B141 -> 0 | C141: ='Asset data'!C141 -> 0 | D141: ='Asset data'!E141 -> 0 | E141: 0 | F141: =IF(A141>0,SUM('Asset data'!J141:CV141),0) -> 0 | G141: =IF(A141>0,'Asset data'!F141,0) -> 0 | H141: =IF(A141>0,SUM('Asset data'!CX141:GJ141),0) -> 0 | I141: 0 | J141: 0 | K141: 0 | L141: 0 | M141: =IF($A141>0,SUMPRODUCT('Age profile (years)'!$CT141:$GF141,'Asset data'!$CX141:$GJ141)/H141-0.5,0) -> 0 | N141: 0 | O141: =IF($A141>0,'Asset data'!G141,0) -> 0 | P141: 0 | Q141: 0 | R141: 0 | S141: 0 | T141: 0 | U141: 0 | W141: =IF($A141>0,SUMIF('Age profile (years)'!$CT141:$GF141,"<" & R141+0.5,'Asset data'!$CX141:$GJ141),0) -> 0 | X141: =IF($A141>0,SUMIF('Age profile (years)'!$CT141:$GF141,"<" & S141+0.5,'Asset data'!$CX141:$GJ141)-W141,0) -> 0 | Y141: =IF($A141>0,SUMIF('Age profile (years)'!$CT141:$GF141,"<" & T141+0.5,'Asset data'!$CX141:$GJ141)-X141-W141,0) -> 0 | Z141: =IF($A141>0,SUMIF('Age profile (years)'!$CT141:$GF141,"<" & U141+0.5,'Asset data'!$CX141:$GJ141)-Y141-X141-W141,0) -> 0 | AA141: 0 | AB141: 0 | AC141: 0 | AD141: 0 | AE141: 0 | AF141: 0 | AI141: =IF($A141>0,'RRR hist-forc'!K141,0) -> 0 | AJ141: 0
A142: ='Asset data'!A142 -> 0 | B142: ='Asset data'!B142 -> 0 | C142: ='Asset data'!C142 -> 0 | D142: ='Asset data'!E142 -> 0 | E142: 0 | F142: =IF(A142>0,SUM('Asset data'!J142:CV142),0) -> 0 | G142: =IF(A142>0,'Asset data'!F142,0) -> 0 | H142: =IF(A142>0,SUM('Asset data'!CX142:GJ142),0) -> 0 | I142: 0 | J142: 0 | K142: 0 | L142: 0 | M142: =IF($A142>0,SUMPRODUCT('Age profile (years)'!$CT142:$GF142,'Asset data'!$CX142:$GJ142)/H142-0.5,0) -> 0 | N142: 0 | O142: =IF($A142>0,'Asset data'!G142,0) -> 0 | P142: 0 | Q142: 0 | R142: 0 | S142: 0 | T142: 0 | U142: 0 | W142: =IF($A142>0,SUMIF('Age profile (years)'!$CT142:$GF142,"<" & R142+0.5,'Asset data'!$CX142:$GJ142),0) -> 0 | X142: =IF($A142>0,SUMIF('Age profile (years)'!$CT142:$GF142,"<" & S142+0.5,'Asset data'!$CX142:$GJ142)-W142,0) -> 0 | Y142: =IF($A142>0,SUMIF('Age profile (years)'!$CT142:$GF142,"<" & T142+0.5,'Asset data'!$CX142:$GJ142)-X142-W142,0) -> 0 | Z142: =IF($A142>0,SUMIF('Age profile (years)'!$CT142:$GF142,"<" & U142+0.5,'Asset data'!$CX142:$GJ142)-Y142-X142-W142,0) -> 0 | AA142: 0 | AB142: 0 | AC142: 0 | AD142: 0 | AE142: 0 | AF142: 0 | AI142: =IF($A142>0,'RRR hist-forc'!K142,0) -> 0 | AJ142: 0
AI206: =IF($A206>0,'RRR hist-forc'!K206,0) -> 0 | AJ206: =IF($A206>0,AI206*H206,0) -> 0

Sheet Asset data
A1: Meth all | D1: 3 | E1: =IF(D1=2,"all normal",IF(D1=1,"all deterministic","individual")) -> individual | L1: Profile type: | M1: 3 | N1: =VLOOKUP(APtype,IDtable,4) -> Installation date
F3: Unit | J3: Quantities | CX3: Replacement Cost (NOT depreciated)
F4: Cost | G4: Replacement life | I4: Rep | J4: =VLOOKUP(APtype,IDtable,4) -> Installation date | CX4: =VLOOKUP(APtype,IDtable,4) -> Installation date
A5: ID | B5: ID | C5: ID | D5: Asset category | E5: Asset ID | F5: $ ('000) | G5: mean | H5: SD | I5: Meth | J5: =IF(OR(APtype=1,APtype=2),0,IF(APtype=3,Now,9999)) -> 2013 | K5: =IF(OR(APtype=1,APtype=2),J5+1,IF(APtype=3,J5-1,9999)) -> 2012 | L5: 2011 | M5: 2010 | N5: 2009 | O5: 2008 | P5: 2007 | Q5: 2006 | R5: 2005 | S5: 2004 | T5: 2003 | U5: 2002 | V5: 2001 | W5: 2000 | X5: 1999 | Y5: 1998 | Z5: 1997 | AA5: 1996 | AB5: 1995 | AC5: 1994 | AD5: 1993 | AE5: 1992 | AF5: 1991 | AG5: 1990 | AH5: 1989 | AI5: 1988 | AJ5: 1987 | AK5: 1986 | AL5: 1985 | AM5: 1984 | AN5: 1983 | AO5: 1982 | AP5: 1981 | AQ5: =IF(OR(APtype=1,APtype=2),AP5+1,IF(APtype=3,AP5-1,9999)) -> 1980 | AR5: 1979 | AS5: 1978 | AT5: 1977 | AU5: 1976 | AV5: 1975 | AW5: 1974 | AX5: 1973 | AY5: 1972 | AZ5: 1971 | BA5: 1970 | BB5: 1969 | BC5: 1968 | BD5: 1967 | BE5: 1966 | BF5: 1965 | BG5: 1964 | BH5: 1963 | BI5: 1962 | BJ5: 1961 | BK5: 1960 | BL5: 1959 | BM5: 1958 | BN5: 1957 | BO5: 1956 | BP5: 1955 | BQ5: 1954 | BR5: 1953 | BS5: 1952 | BT5: 1951 | BU5: 1950 | BV5: 1949 | BW5: =IF(OR(APtype=1,APtype=2),BV5+1,IF(APtype=3,BV5-1,9999)) -> 1948 | BX5: 1947 | BY5: 1946 | BZ5: 1945 | CA5: 1944 | CB5: 1943 | CC5: 1942 | CD5: 1941 | CE5: 1940 | CF5: 1939 | CG5: 1938 | CH5: 1937 | CI5: 1936 | CJ5: 1935 | CK5: 1934 | CL5: 1933 | CM5: 1932 | CN5: 1931 | CO5: 1930 | CP5: 1929 | CQ5: 1928 | CR5: 1927 | CS5: 1926 | CT5: 1925 | CU5: 1924 | CV5: 1923 | CX5: =J5 -> 2013 | CY5: =K5 -> 2012 | CZ5: 2011 | DA5: 2010 | DB5: 2009 | DC5: 2008 | DD5: 2007 | DE5: 2006 | DF5: 2005 | DG5: 2004 | DH5: 2003 | DI5: 2002 | DJ5: 2001 | DK5: 2000 | DL5: 1999 | DM5: 1998 | DN5: 1997 | DO5: 1996 | DP5: 1995 | DQ5: 1994 | DR5: 1993 | DS5: 1992 | DT5: 1991 | DU5: 1990 | DV5: 1989 | DW5: 1988 | DX5: 1987 | DY5: 1986 | DZ5: 1985 | EA5: 1984 | EB5: 1983 | EC5: 1982 | ED5: 1981 | EE5: 1980 | EF5: 1979 | EG5: 1978 | EH5: 1977 | EI5: 1976 | EJ5: 1975 | EK5: 1974 | EL5: 1973 | EM5: 1972 | EN5: 1971 | EO5: 1970 | EP5: 1969 | EQ5: 1968 | ER5: 1967 | ES5: 1966 | ET5: 1965 | EU5: 1964 | EV5: 1963 | EW5: 1962 | EX5: 1961 | EY5: 1960 | EZ5: 1959 | FA5: 1958 | FB5: 1957 | FC5: 1956 | FD5: 1955 | FE5: 1954 | FF5: 1953 | FG5: 1952 | FH5: 1951 | FI5: 1950 | FJ5: 1949 | FK5: =BW5 -> 1948 | FL5: 1947 | FM5: 1946 | FN5: 1945 | FO5: 1944 | FP5: 1943 | FQ5: 1942 | FR5: 1941 | FS5: 1940 | FT5: 1939 | FU5: 1938 | FV5: 1937 | FW5: 1936 | FX5: 1935 | FY5: 1934 | FZ5: 1933 | GA5: 1932 | GB5: 1931 | GC5: 1930 | GD5: 1929 | GE5: 1928 | GF5: 1927 | GG5: 1926 | GH5: 1925 | GI5: 1924 | GJ5: 1923
CX21: =$F21*J21 -> 0 | CY21: =$F21*K21 -> 0 | CZ21: 0 | DA21: 0 | DB21: 0 | DC21: 0 | DD21: 0 | DE21: 0 | DF21: 0 | DG21: 0 | DH21: 0 | DI21: 0 | DJ21: 0 | DK21: 0 | DL21: 0 | DM21: 0 | DN21: 0 | DO21: 0 | DP21: 0 | DQ21: 0 | DR21: 0 | DS21: 0 | DT21: 0 | DU21: 0 | DV21: 0 | DW21: 0 | DX21: 0 | DY21: 0 | DZ21: 0 | EA21: 0 | EB21: 0 | EC21: 0 | ED21: 0 | EE21: 0 | EF21: 0 | EG21: 0 | EH21: 0 | EI21: 0 | EJ21: 0 | EK21: 0 | EL21: 0 | EM21: 0 | EN21: 0 | EO21: 0 | EP21: 0 | EQ21: 0 | ER21: 0 | ES21: 0 | ET21: 0 | EU21: 0 | EV21: 0 | EW21: 0 | EX21: 0 | EY21: 0 | EZ21: 0 | FA21: 0 | FB21: 0 | FC21: 0 | FD21: 0 | FE21: 0 | FF21: 0 | FG21: 0 | FH21: 0 | FI21: 0 | FJ21: 0 | FK21: =$F21*BW21 -> 0 | FL21: 0 | FM21: 0 | FN21: 0 | FO21: 0 | FP21: 0 | FQ21: 0 | FR21: 0 | FS21: 0 | FT21: 0 | FU21: 0 | FV21: 0 | FW21: 0 | FX21: 0 | FY21: 0 | FZ21: 0 | GA21: 0 | GB21: 0 | GC21: 0 | GD21: 0 | GE21: 0 | GF21: 0 | GG21: 0 | GH21: 0 | GI21: 0 | GJ21: 0
A22: 1 | D22: POLES | E22: ˂ ≈ 11 kv ; stobie | F22: 3.908477964 | G22: 74.58328491 | H22: 8.636161469 | I22: 2 | J22: 3118.927 | K22: 3112.915 | L22: 1993.789 | M22: 1559.964 | N22: 1445.747 | O22: 1466.787 | P22: 1412.684 | Q22: 1208.296 | R22: 1094.079 | S22: 1080.052 | T22: 1174.231 | U22: 1072.037 | V22: 1287.446 | W22: 1555.957 | X22: 1691.214 | Y22: 1136.159 | Z22: 487.927 | AA22: 1844.505 | AB22: 2412.584 | AC22: 2367.499 | AD22: 2510.771 | AE22: 3998.598 | AF22: 5189.862 | AG22: 5085.664 | AH22: 5647.732 | AI22: 6167.72 | AJ22: 4892.296 | AK22: 5154.795 | AL22: 5933.274 | AM22: 6592.527 | AN22: 7126.542 | AO22: 6336.04 | AP22: 6316.002 | AQ22: 7011.323 | AR22: 7329.928 | AS22: 7993.189 | AT22: 9486.025 | AU22: 9609.074 | AV22: 9119.706 | AW22: 9902.193 | AX22: 9405.937 | AY22: 9480.83 | AZ22: 11946.89 | BA22: 13189.751 | BB22: 12548.554 | BC22: 12556.67 | BD22: 12348.378 | BE22: 15675.252 | BF22: 18258.491 | BG22: 17340.035 | BH22: 18396.018 | BI22: 19045.041 | BJ22: 18428.752 | BK22: 17925.989 | BL22: 15561.551 | BM22: 15189.106 | BN22: 14543.556 | BO22: 14752.201 | BP22: 17498.787 | BQ22: 13896.445 | BR22: 11800.038 | BS22: 12374.751 | BT22: 8180.365 | BU22: 4478.211 | BV22: 3632.607 | BW22: 1552.537 | BX22: 1170.464 | BY22: 1127.353 | BZ22: 1198.075 | CA22: 1197.395 | CB22: 836.281 | CC22: 1051.935 | CD22: 1721.049 | CE22: 2563.232 | CF22: 3099.07 | CG22: 3056.588 | CH22: 2451.477 | CI22: 3392.114 | CJ22: 3857.584 | CK22: 2555.238 | CL22: 1253.86 | CM22: 467.41 | CN22: 50.426 | CO22: 0 | CP22: 0 | CQ22: 0 | CR22: 0 | CS22: 0 | CT22: 0 | CU22: 0 | CV22: 0 | CX22: =$F22*J22 -> 12190.25745 | CY22: =$F22*K22 -> 12166.75968 | CZ22: =$F22*L22 -> 7792.680372 | DA22: =$F22*M22 -> 6097.084919 | DB22: =$F22*N22 -> 5650.670291 | DC22: =$F22*O22 -> 5732.904668 | DD22: =$F22*P22 -> 5521.444284 | DE22: =$F22*Q22 -> 4722.59829 | DF22: =$F22*R22 -> 4276.183663 | DG22: =$F22*S22 -> 4221.359442 | DH22: =$F22*T22 -> 4589.455988 | DI22: =$F22*U22 -> 4190.032991 | DJ22: =$F22*V22 -> 5031.954321 | DK22: =$F22*W22 -> 6081.423648 | DL22: =$F22*X22 -> 6610.072652 | DM22: =$F22*Y22 -> 4440.652415 | DN22: =$F22*Z22 -> 1907.051928 | DO22: =$F22*AA22 -> 7209.207147 | DP22: =$F22*AB22 -> 9429.531401 | DQ22: =$F22*AC22 -> 9253.317672 | DR22: =$F22*AD22 -> 9813.293126 | DS22: =$F22*AE22 -> 15628.43217 | DT22: =$F22*AF22 -> 20284.46126 | DU22: =$F22*AG22 -> 19877.20568 | DV22: =$F22*AH22 -> 22074.03607 | DW22: =$F22*AI22 -> 24106.39771 | DX22: =$F22*AJ22 -> 19121.43111 | DY22: =$F22*AK22 -> 20147.40267 | DZ22: =$F22*AL22 -> 23190.07068 | EA22: =$F22*AM22 -> 25766.74651 | EB22: =$F22*AN22 -> 27853.93237 | EC22: =$F22*AO22 -> 24764.27272 | ED22: =$F22*AP22 -> 24685.95464 | EE22: =$F22*AQ22 -> 27403.60144 | EF22: =$F22*AR22 -> 28648.86207 | EG22: =$F22*AS22 -> 31241.20307 | EH22: =$F22*AT22 -> 37075.91968 | EI22: =$F22*AU22 -> 37556.85398 | EJ22: =$F22*AV22 -> 35644.16994 | EK22: =$F22*AW22 -> 38702.50314 | EL22: =$F22*AX22 -> 36762.8975 | EM22: =$F22*AY22 -> 37055.61514 | EN22: =$F22*AZ22 -> 46694.1563 | EO22: =$F22*BA22 -> 51551.85114 | EP22: =$F22*BB22 -> 49045.74679 | EQ22: =$F22*BC22 -> 49077.468 | ER22: =$F22*BD22 -> 48263.36331 | ES22: =$F22*BE22 -> 61266.37702 | ET22: =$F22*BF22 -> 71362.90973 | EU22: =$F22*BG22 -> 67773.14469 | EV22: =$F22*BH22 -> 71900.43098 | EW22: =$F22*BI22 -> 74437.12307 | EX22: =$F22*BJ22 -> 72028.3711 | EY22: =$F22*BK22 -> 70063.33299 | EZ22: =$F22*BL22 -> 60821.97917 | FA22: =$F22*BM22 -> 59366.2861 | FB22: =$F22*BN22 -> 56843.16815 | FC22: =$F22*BO22 -> 57658.65253 | FD22: =$F22*BP22 -> 68393.62339 | FE22: =$F22*BQ22 -> 54313.94906 | FF22: =$F22*BR22 -> 46120.1885 | FG22: =$F22*BS22 -> 48366.4416 | FH22: =$F22*BT22 -> 31972.77634 | FI22: =$F22*BU22 -> 17502.98901 | FJ22: =$F22*BV22 -> 14197.96441 | FK22: =$F22*BW22 -> 6068.056653 | FL22: =$F22*BX22 -> 4574.732752 | FM22: =$F22*BY22 -> 4406.234358 | FN22: =$F22*BZ22 -> 4682.649737 | FO22: =$F22*CA22 -> 4679.991972 | FP22: =$F22*CB22 -> 3268.58586 | FQ22: =$F22*CC22 -> 4111.464767 | FR22: =$F22*CD22 -> 6726.682092 | FS22: =$F22*CE22 -> 10018.33579 | FT22: =$F22*CF22 -> 12112.6468 | FU22: =$F22*CG22 -> 11946.60684 | FV22: =$F22*CH22 -> 9581.543834 | FW22: =$F22*CI22 -> 13258.00282 | FX22: =$F22*CJ22 -> 15077.28206 | FY22: =$F22*CK22 -> 9987.091416 | FZ22: =$F22*CL22 -> 4900.68418 | GA22: =$F22*CM22 -> 1826.861685 | GB22: =$F22*CN22 -> 197.0889098 | GC22: =$F22*CO22 -> 0 | GD22: =$F22*CP22 -> 0 | GE22: =$F22*CQ22 -> 0 | GF22: =$F22*CR22 -> 0 | GG22: =$F22*CS22 -> 0 | GH22: =$F22*CT22 -> 0 | GI22: =$F22*CU22 -> 0 | GJ22: =$F22*CV22 -> 0
A23: 1 | D23: POLES | E23: > 11 kv & <≈ 33 kv ; stobie | F23: 3.728052501 | G23: 72.94889216 | H23: 8.541012362 | I23: 2 | J23: 298.567 | K23: 250.476 | L23: 344.655 | M23: 267.508 | N23: 228.434 | O23: 269.512 | P23: 307.584 | Q23: 303.577 | R23: 124.236 | S23: 147.28 | T23: 146.278 | U23: 157.299 | V23: 142.27 | W23: 149.284 | X23: 217.413 | Y23: 148.282 | Z23: 38.072 | AA23: 480.914 | AB23: 876.666 | AC23: 884.681 | AD23: 560.064 | AE23: 1113.115 | AF23: 1492.837 | AG23: 1420.7 | AH23: 1588.018 | AI23: 1543.934 | AJ23: 1368.601 | AK23: 1612.063 | AL23: 2095.983 | AM23: 2115.019 | AN23: 1716.261 | AO23: 1637.111 | AP23: 1708.246 | AQ23: 1652.139 | AR23: 1379.622 | AS23: 1213.306 | AT23: 1564.974 | AU23: 2468.031 | AV23: 4433.918 | AW23: 4952.904 | AX23: 4810.085 | AY23: 4844.547 | AZ23: 5110.958 | BA23: 6318.369 | BB23: 6361.68 | BC23: 6078.392 | BD23: 6073.017 | BE23: 6724.446 | BF23: 6690.911 | BG23: 5865.106 | BH23: 7270.434 | BI23: 8182.092 | BJ23: 6351.822 | BK23: 5252.514 | BL23: 5271.631 | BM23: 3874.465 | BN23: 2168.798 | BO23: 1686.39 | BP23: 1559.301 | BQ23: 1143.941 | BR23: 1047.274 | BS23: 1135.505 | BT23: 3113.69 | BU23: 2905.31 | BV23: 380.134 | BW23: 41.698 | BX23: 79.518 | BY23: 116.733 | BZ23: 141.191 | CA23: 68.549 | CB23: 27.001 | CC23: 290.617 | CD23: 507.836 | CE23: 262.105 | CF23: 184.108 | CG23: 516.866 | CH23: 830.089 | CI23: 616.748 | CJ23: 324.859 | CK23: 405.347 | CL23: 236.614 | CM23: 185.218 | CN23: 150.308 | CO23: 0 | CP23: 0 | CQ23: 0 | CR23: 0 | CS23: 0 | CT23: 0 | CU23: 0 | CV23: 0 | CX23: 1113.073451 | CY23: 933.7876782 | CZ23: 1284.891935 | DA23: 997.2838683 | DB23: 851.6139449 | DC23: 1004.754886 | DD23: 1146.6893 | DE23: 1131.750994 | DF23: 463.1583305 | DG23: 549.0675723 | DH23: 545.3320637 | DI23: 586.4189303 | DJ23: 530.3900293 | DK23: 556.5385895 | DL23: 810.5270783 | DM23: 552.8030809 | DN23: 141.9344148 | DO23: 1792.87264 | DP23: 3268.256874 | DQ23: 3298.137214 | DR23: 2087.947996 | DS23: 4149.751159 | DT23: 5565.374711 | DU23: 5296.444188 | DV23: 5920.214476 | DW23: 5755.86701 | DX23: 5102.21638 | DY23: 6009.855498 | DZ23: 7813.934664 | EA23: 7884.901872 | EB23: 6398.311113 | EC23: 6103.235757 | ED23: 6368.430772 | EE23: 6159.26093 | EF23: 5143.303247 | EG23: 4523.268467 | EH23: 5834.305234 | EI23: 9200.949141 | EJ23: 16529.87909 | EK23: 18464.68614 | EL23: 17932.24941 | EM23: 18060.72556 | EN23: 19053.91975 | EO23: 23555.21135 | EP23: 23716.67703 | EQ23: 22660.5645 | ER23: 22640.52621 | ES23: 25069.08773 | ET23: 24944.06749 | EU23: 21865.42309 | EV23: 27104.55965 | EW23: 30503.26854 | EX23: 23679.92589 | EY23: 19581.64795 | EZ23: 19652.91713 | FA23: 14444.20893 | FB23: 8085.392807 | FC23: 6286.950457 | FD23: 5813.155992 | FE23: 4264.672106 | FF23: 3904.292455 | FG23: 4233.222255 | FH23: 11607.99979 | FI23: 10831.14821 | FJ23: 1417.159509 | FK23: 155.4523332 | FL23: 296.4472787 | FM23: 435.1867526 | FN23: 526.3674606 | FO23: 255.5542709 | FP23: 100.6611456 | FQ23: 1083.435434 | FR23: 1893.23927 | FS23: 977.1412007 | FT23: 686.3642898 | FU23: 1926.903584 | FV23: 3094.615372 | FW23: 2299.268924 | FX23: 1211.091407 | FY23: 1511.154897 | FZ23: 882.1094144 | GA23: 690.5024281 | GB23: 560.3561153 | GC23: 0 | GD23: 0 | GE23: 0 | GF23: 0 | GG23: 0 | GH23: 0 | GI23: 0 | GJ23: 0
A24: 1 | D24: POLES | E24: > 33 kv & <≈ 66 kv ; stobie | F24: 3.728052501 | G24: 74.22959896 | H24: 8.6156601 | I24: 2 | J24: 36.069 | K24: 61.116 | L24: 103.196 | M24: 96.183 | N24: 79.15 | O24: 60.114 | P24: 82.156 | Q24: 80.152 | R24: 39.074 | S24: 33.063 | T24: 29.055 | U24: 65.124 | V24: 13.025 | W24: 55.105 | X24: 22.042 | Y24: 2.004 | Z24: 3.006 | AA24: 104.198 | AB24: 175.333 | AC24: 225.428 | AD24: 292.556 | AE24: 418.796 | AF24: 375.714 | AG24: 289.55 | AH24: 368.701 | AI24: 423.805 | AJ24: 394.75 | AK24: 345.657 | AL24: 215.409 | AM24: 164.312 | AN24: 160.305 | AO24: 214.407 | AP24: 219.417 | AQ24: 254.484 | AR24: 221.421 | AS24: 153.291 | AT24: 418.796 | AU24: 1106.96 | AV24: 871.525 | AW24: 314.467 | AX24: 389.649 | AY24: 576.952 | AZ24: 778.414 | BA24: 876.518 | BB24: 809.41 | BC24: 635.985 | BD24: 651.921 | BE24: 951.082 | BF24: 1120.483 | BG24: 1064.907 | BH24: 997.76 | BI24: 925.293 | BJ24: 869.9 | BK24: 596.384 | BL24: 372.52 | BM24: 363.727 | BN24: 439.458 | BO24: 629.486 | BP24: 1212.961 | BQ24: 1204.929 | BR24: 726.537 | BS24: 2043.849 | BT24: 1785.98 | BU24: 128.974 | BV24: 75.639 | BW24: 114.428 | BX24: 227.886 | BY24: 349.05 | BZ24: 382.925 | CA24: 169.676 | CB24: 180.357 | CC24: 298.651 | CD24: 229.8 | CE24: 199.62 | CF24: 432.408 | CG24: 674.932 | CH24: 567.292 | CI24: 227.886 | CJ24: 79.518 | CK24: 67.881 | CL24: 34.91 | CM24: 84.366 | CN24: 50.426 | CO24: 0 | CP24: 0 | CQ24: 0 | CR24: 0 | CS24: 0 | CT24: 0 | CU24: 0 | CV24: 0 | CX24: 134.4671256 | CY24: 227.8436566 | CZ24: 384.7201059 | DA24: 358.5752737 | DB24: 295.0753554 | DC24: 224.108148 | DD24: 306.2818812 | DE24: 298.810864 | DF24: 145.6699234 | DG24: 123.2605998 | DH24: 108.3185654 | DI24: 242.7856911 | DJ24: 48.55788382 | DK24: 205.434333 | DL24: 82.17373322 | DM24: 7.471017211 | DN24: 11.20652582 | DO24: 388.4556145 | DP24: 653.6506291 | DQ24: 840.4074191 | DR24: 1090.664127 | DS24: 1561.293475 | DT24: 1400.681517 | DU24: 1079.457602 | DV24: 1374.536685 | DW24: 1579.96729 | DX24: 1471.648725 | DY24: 1288.627443 | DZ24: 803.0560611 | EA24: 612.5637625 | EB24: 597.6254561 | EC24: 799.3205525 | ED24: 817.9980955 | EE24: 948.7297126 | EF24: 825.4691127 | EG24: 571.4768959 | EH24: 1561.293475 | EI24: 4126.804996 | EJ24: 3249.090956 | EK24: 1172.349486 | EL24: 1452.631929 | EM24: 2150.907346 | EN24: 2901.968259 | EO24: 3267.705122 | EP24: 3017.522975 | EQ24: 2370.98547 | ER24: 2430.395714 | ES24: 3545.683628 | ET24: 4177.21945 | EU24: 3970.029204 | EV24: 3719.701663 | EW24: 3449.540882 | EX24: 3243.03287 | EY24: 2223.350863 | EZ24: 1388.774118 | FA24: 1355.993352 | FB24: 1638.322496 | FC24: 2346.756856 | FD24: 4521.982289 | FE24: 4492.038572 | FF24: 2708.56808 | FG24: 7619.576375 | FH24: 6658.227205 | FI24: 480.8218432 | FJ24: 281.9861631 | FK24: 426.5935915 | FL24: 849.5709722 | FM24: 1301.276725 | FN24: 1427.564504 | FO24: 632.5610361 | FP24: 672.3803649 | FQ24: 1113.386607 | FR24: 856.7064646 | FS24: 744.1938402 | FT24: 1612.039726 | FU24: 2516.18193 | FV24: 2114.894359 | FW24: 849.5709722 | FX24: 296.4472787 | FY24: 253.0639318 | FZ24: 130.1463128 | GA24: 314.5208773 | GB24: 187.9907754 | GC24: 0 | GD24: 0 | GE24: 0 | GF24: 0 | GG24: 0 | GH24: 0 | GI24: 0 | GJ24: 0
E25: ˂ = 1 kv | F25: 0 | G25: 50 | H25: 7.071067812 | I25: 2 | J25: 11590.424 | K25: 11590.424 | L25: 11590.424 | M25: 11590.424 | N25: 11590.424 | O25: 11590.424 | P25: 11590.424 | Q25: 11590.424 | R25: 14802.111 | S25: 18013.798 | T25: 27275.536 | U25: 36537.275 | V25: 26945.658 | W25: 19432.669 | X25: 20137.531 | Y25: 18763.766 | Z25: 19530.572 | AA25: 20297.377 | AB25: 36521.893 | AC25: 52746.409 | AD25: 50190.529 | AE25: 47634.649 | AF25: 47377.523 | AG25: 58635.991 | AH25: 70096.501 | AI25: 70041.417 | AJ25: 70041.417 | AK25: 70041.417 | AL25: 73891.035 | AM25: 77740.652 | AN25: 77740.652 | AO25: 77740.652 | AP25: 77740.652 | AQ25: 96789.19 | AR25: 115837.729 | AS25: 115837.729 | AT25: 115837.729 | AU25: 115837.729 | AV25: 167720.26 | AW25: 219602.791 | AX25: 219602.791 | AY25: 219602.791 | AZ25: 219602.791 | BA25: 228196.667 | BB25: 235987.361 | BC25: 235184.18 | BD25: 235184.18 | BE25: 235184.18 | BF25: 233679.254 | BG25: 232174.328 | BH25: 232174.328 | BI25: 232174.328 | BJ25: 232174.328 | BK25: 213358.596 | BL25: 194542.863 | BM25: 194542.863 | BN25: 194542.863 | BO25: 194542.863 | BP25: 164868.384 | BQ25: 135193.904 | BR25: 135193.904 | BS25: 135193.904 | BT25: 135193.904 | BU25: 68503.233 | BV25: 1812.563 | BW25: 1812.563 | BX25: 1812.563 | BY25: 1812.563 | BZ25: 1513.24 | CA25: 1213.918 | CB25: 1213.918 | CC25: 1213.918 | CD25: 1213.918 | CE25: 1396.837 | CF25: 1579.757 | CG25: 1579.757 | CH25: 1579.757 | CI25: 1579.757 | CJ25: 789.878 | CK25: 0 | CL25: 0 | CM25: 0 | CN25: 0 | CO25: 0 | CP25: 0 | CQ25: 0 | CR25: 0 | CS25: 0 | CT25: 0 | CU25: 0 | CV25: 0 | CX25: 0 | CY25: 0 | CZ25: 0 | DA25: 0 | DB25: 0 | DC25: 0 | DD25: 0 | DE25: 0 | DF25: 0 | DG25: 0 | DH25: 0 | DI25: 0 | DJ25: 0 | DK25: 0 | DL25: 0 | DM25: 0 | DN25: 0 | DO25: 0 | DP25: 0 | DQ25: 0 | DR25: 0 | DS25: 0 | DT25: 0 | DU25: 0 | DV25: 0 | DW25: 0 | DX25: 0 | DY25: 0 | DZ25: 0 | EA25: 0 | EB25: 0 | EC25: 0 | ED25: 0 | EE25: 0 | EF25: 0 | EG25: 0 | EH25: 0 | EI25: 0 | EJ25: 0 | EK25: 0 | EL25: 0 | EM25: 0 | EN25: 0 | EO25: 0 | EP25: 0 | EQ25: 0 | ER25: 0 | ES25: 0 | ET25: 0 | EU25: 0 | EV25: 0 | EW25: 0 | EX25: 0 | EY25: 0 | EZ25: 0 | FA25: 0 | FB25: 0 | FC25: 0 | FD25: 0 | FE25: 0 | FF25: 0 | FG25: 0 | FH25: 0 | FI25: 0 | FJ25: 0 | FK25: 0 | FL25: 0 | FM25: 0 | FN25: 0 | FO25: 0 | FP25: 0 | FQ25: 0 | FR25: 0 | FS25: 0 | FT25: 0 | FU25: 0 | FV25: 0 | FW25: 0 | FX25: 0 | FY25: 0 | FZ25: 0 | GA25: 0 | GB25: 0 | GC25: 0 | GD25: 0 | GE25: 0 | GF25: 0 | GG25: 0 | GH25: 0 | GI25: 0 | GJ25: 0
E26: > 1 kv & < = 11 kv | F26: 0 | G26: 50 | H26: 7.071067812 | I26: 2 | J26: 6007.919 | K26: 6007.919 | L26: 6007.919 | M26: 6007.919 | N26: 6007.919 | O26: 6007.919 | P26: 6007.919 | Q26: 6007.919 | R26: 7672.703 | S26: 9337.487 | T26: 14138.327 | U26: 18939.167 | V26: 13967.334 | W26: 10072.961 | X26: 10438.328 | Y26: 9726.235 | Z26: 10123.71 | AA26: 10521.185 | AB26: 18931.194 | AC26: 27341.203 | AD26: 26016.358 | AE26: 24691.512 | AF26: 24558.23 | AG26: 30394.079 | AH26: 36334.657 | AI26: 36306.104 | AJ26: 36306.104 | AK26: 36306.104 | AL26: 38301.56 | AM26: 40297.017 | AN26: 40297.017 | AO26: 40297.017 | AP26: 40297.017 | AQ26: 50170.864 | AR26: 60044.71 | AS26: 60044.71 | AT26: 60044.71 | AU26: 60044.71 | AV26: 86938.121 | AW26: 113831.531 | AX26: 113831.531 | AY26: 113831.531 | AZ26: 113831.531 | BA26: 118286.183 | BB26: 122324.504 | BC26: 121908.174 | BD26: 121908.174 | BE26: 121908.174 | BF26: 121128.092 | BG26: 120348.011 | BH26: 120348.011 | BI26: 120348.011 | BJ26: 120348.011 | BK26: 110594.84 | BL26: 100841.669 | BM26: 100841.669 | BN26: 100841.669 | BO26: 100841.669 | BP26: 85459.845 | BQ26: 70078.021 | BR26: 70078.021 | BS26: 70078.021 | BT26: 70078.021 | BU26: 35508.783 | BV26: 939.545 | BW26: 939.545 | BX26: 939.545 | BY26: 939.545 | BZ26: 784.391 | CA26: 629.237 | CB26: 629.237 | CC26: 629.237 | CD26: 629.237 | CE26: 724.053 | CF26: 818.87 | CG26: 818.87 | CH26: 818.87 | CI26: 818.87 | CJ26: 409.435 | CK26: 0 | CL26: 0 | CM26: 0 | CN26: 0 | CO26: 0 | CP26: 0 | CQ26: 0 | CR26: 0 | CS26: 0 | CT26: 0 | CU26: 0 | CV26: 0 | CX26: 0 | CY26: 0 | CZ26: 0 | DA26: 0 | DB26: 0 | DC26: 0 | DD26: 0 | DE26: 0 | DF26: 0 | DG26: 0 | DH26: 0 | DI26: 0 | DJ26: 0 | DK26: 0 | DL26: 0 | DM26: 0 | DN26: 0 | DO26: 0 | DP26: 0 | DQ26: 0 | DR26: 0 | DS26: 0 | DT26: 0 | DU26: 0 | DV26: 0 | DW26: 0 | DX26: 0 | DY26: 0 | DZ26: 0 | EA26: 0 | EB26: 0 | EC26: 0 | ED26: 0 | EE26: 0 | EF26: 0 | EG26: 0 | EH26: 0 | EI26: 0 | EJ26: 0 | EK26: 0 | EL26: 0 | EM26: 0 | EN26: 0 | EO26: 0 | EP26: 0 | EQ26: 0 | ER26: 0 | ES26: 0 | ET26: 0 | EU26: 0 | EV26: 0 | EW26: 0 | EX26: 0 | EY26: 0 | EZ26: 0 | FA26: 0 | FB26: 0 | FC26: 0 | FD26: 0 | FE26: 0 | FF26: 0 | FG26: 0 | FH26: 0 | FI26: 0 | FJ26: 0 | FK26: 0 | FL26: 0 | FM26: 0 | FN26: 0 | FO26: 0 | FP26: 0 | FQ26: 0 | FR26: 0 | FS26: 0 | FT26: 0 | FU26: 0 | FV26: 0 | FW26: 0 | FX26: 0 | FY26: 0 | FZ26: 0 | GA26: 0 | GB26: 0 | GC26: 0 | GD26: 0 | GE26: 0 | GF26: 0 | GG26: 0 | GH26: 0 | GI26: 0 | GJ26: 0
E27: ˃ 11 kv & < = 22 kv | F27: 0 | G27: 50 | H27: 7.071067812 | I27: 2 | J27: 670.057 | K27: 670.057 | L27: 670.057 | M27: 670.057 | N27: 670.057 | O27: 670.057 | P27: 670.057 | Q27: 670.057 | R27: 855.728 | S27: 1041.4 | T27: 1576.832 | U27: 2112.264 | V27: 1557.761 | W27: 1123.426 | X27: 1164.175 | Y27: 1084.756 | Z27: 1129.086 | AA27: 1173.416 | AB27: 2111.375 | AC27: 3049.334 | AD27: 2901.576 | AE27: 2753.817 | AF27: 2738.952 | AG27: 3389.818 | AH27: 4052.364 | AI27: 4049.18 | AJ27: 4049.18 | AK27: 4049.18 | AL27: 4271.731 | AM27: 4494.282 | AN27: 4494.282 | AO27: 4494.282 | AP27: 4494.282 | AQ27: 5595.501 | AR27: 6696.72 | AS27: 6696.72 | AT27: 6696.72 | AU27: 6696.72 | AV27: 9696.112 | AW27: 12695.505 | AX27: 12695.505 | AY27: 12695.505 | AZ27: 12695.505 | BA27: 13192.327 | BB27: 13642.717 | BC27: 13596.284 | BD27: 13596.284 | BE27: 13596.284 | BF27: 13509.282 | BG27: 13422.28 | BH27: 13422.28 | BI27: 13422.28 | BJ27: 13422.28 | BK27: 12334.52 | BL27: 11246.76 | BM27: 11246.76 | BN27: 11246.76 | BO27: 11246.76 | BP27: 9531.242 | BQ27: 7815.724 | BR27: 7815.724 | BS27: 7815.724 | BT27: 7815.724 | BU27: 3960.255 | BV27: 104.786 | BW27: 104.786 | BX27: 104.786 | BY27: 104.786 | BZ27: 87.482 | CA27: 70.178 | CB27: 70.178 | CC27: 70.178 | CD27: 70.178 | CE27: 80.753 | CF27: 91.328 | CG27: 91.328 | CH27: 91.328 | CI27: 91.328 | CJ27: 45.664 | CK27: 0 | CL27: 0 | CM27: 0 | CN27: 0 | CO27: 0 | CP27: 0 | CQ27: 0 | CR27: 0 | CS27: 0 | CT27: 0 | CU27: 0 | CV27: 0 | CX27: 0 | CY27: 0 | CZ27: 0 | DA27: 0 | DB27: 0 | DC27: 0 | DD27: 0 | DE27: 0 | DF27: 0 | DG27: 0 | DH27: 0 | DI27: 0 | DJ27: 0 | DK27: 0 | DL27: 0 | DM27: 0 | DN27: 0 | DO27: 0 | DP27: 0 | DQ27: 0 | DR27: 0 | DS27: 0 | DT27: 0 | DU27: 0 | DV27: 0 | DW27: 0 | DX27: 0 | DY27: 0 | DZ27: 0 | EA27: 0 | EB27: 0 | EC27: 0 | ED27: 0 | EE27: 0 | EF27: 0 | EG27: 0 | EH27: 0 | EI27: 0 | EJ27: 0 | EK27: 0 | EL27: 0 | EM27: 0 | EN27: 0 | EO27: 0 | EP27: 0 | EQ27: 0 | ER27: 0 | ES27: 0 | ET27: 0 | EU27: 0 | EV27: 0 | EW27: 0 | EX27: 0 | EY27: 0 | EZ27: 0 | FA27: 0 | FB27: 0 | FC27: 0 | FD27: 0 | FE27: 0 | FF27: 0 | FG27: 0 | FH27: 0 | FI27: 0 | FJ27: 0 | FK27: 0 | FL27: 0 | FM27: 0 | FN27: 0 | FO27: 0 | FP27: 0 | FQ27: 0 | FR27: 0 | FS27: 0 | FT27: 0 | FU27: 0 | FV27: 0 | FW27: 0 | FX27: 0 | FY27: 0 | FZ27: 0 | GA27: 0 | GB27: 0 | GC27: 0 | GD27: 0 | GE27: 0 | GF27: 0 | GG27: 0 | GH27: 0 | GI27: 0 | GJ27: 0
E28: > 22 kv & < = 66 kv | F28: 0 | G28: 50 | H28: 7.071067812 | I28: 2 | J28: 1966.001 | K28: 1966.001 | L28: 1966.001 | M28: 1966.001 | N28: 1966.001 | O28: 1966.001 | P28: 1966.001 | Q28: 1966.001 | R28: 2510.777 | S28: 3055.553 | T28: 4626.556 | U28: 6197.559 | V28: 4570.601 | W28: 3296.226 | X28: 3415.786 | Y28: 3182.764 | Z28: 3312.832 | AA28: 3442.9 | AB28: 6194.949 | AC28: 8946.999 | AD28: 8513.463 | AE28: 8079.927 | AF28: 8036.313 | AG28: 9946.007 | AH28: 11889.972 | AI28: 11880.628 | AJ28: 11880.628 | AK28: 11880.628 | AL28: 12533.612 | AM28: 13186.595 | AN28: 13186.595 | AO28: 13186.595 | AP28: 13186.595 | AQ28: 16417.663 | AR28: 19648.732 | AS28: 19648.732 | AT28: 19648.732 | AU28: 19648.732 | AV28: 28449.197 | AW28: 37249.662 | AX28: 37249.662 | AY28: 37249.662 | AZ28: 37249.662 | BA28: 38707.381 | BB28: 40028.861 | BC28: 39892.623 | BD28: 39892.623 | BE28: 39892.623 | BF28: 39637.353 | BG28: 39382.083 | BH28: 39382.083 | BI28: 39382.083 | BJ28: 39382.083 | BK28: 36190.504 | BL28: 32998.925 | BM28: 32998.925 | BN28: 32998.925 | BO28: 32998.925 | BP28: 27965.453 | BQ28: 22931.982 | BR28: 22931.982 | BS28: 22931.982 | BT28: 22931.982 | BU28: 11619.717 | BV28: 307.452 | BW28: 307.452 | BX28: 307.452 | BY28: 307.452 | BZ28: 256.68 | CA28: 205.908 | CB28: 205.908 | CC28: 205.908 | CD28: 205.908 | CE28: 236.936 | CF28: 267.963 | CG28: 267.963 | CH28: 267.963 | CI28: 267.963 | CJ28: 133.981 | CK28: 0 | CL28: 0 | CM28: 0 | CN28: 0 | CO28: 0 | CP28: 0 | CQ28: 0 | CR28: 0 | CS28: 0 | CT28: 0 | CU28: 0 | CV28: 0 | CX28: 0 | CY28: 0 | CZ28: 0 | DA28: 0 | DB28: 0 | DC28: 0 | DD28: 0 | DE28: 0 | DF28: 0 | DG28: 0 | DH28: 0 | DI28: 0 | DJ28: 0 | DK28: 0 | DL28: 0 | DM28: 0 | DN28: 0 | DO28: 0 | DP28: 0 | DQ28: 0 | DR28: 0 | DS28: 0 | DT28: 0 | DU28: 0 | DV28: 0 | DW28: 0 | DX28: 0 | DY28: 0 | DZ28: 0 | EA28: 0 | EB28: 0 | EC28: 0 | ED28: 0 | EE28: 0 | EF28: 0 | EG28: 0 | EH28: 0 | EI28: 0 | EJ28: 0 | EK28: 0 | EL28: 0 | EM28: 0 | EN28: 0 | EO28: 0 | EP28: 0 | EQ28: 0 | ER28: 0 | ES28: 0 | ET28: 0 | EU28: 0 | EV28: 0 | EW28: 0 | EX28: 0 | EY28: 0 | EZ28: 0 | FA28: 0 | FB28: 0 | FC28: 0 | FD28: 0 | FE28: 0 | FF28: 0 | FG28: 0 | FH28: 0 | FI28: 0 | FJ28: 0 | FK28: 0 | FL28: 0 | FM28: 0 | FN28: 0 | FO28: 0 | FP28: 0 | FQ28: 0 | FR28: 0 | FS28: 0 | FT28: 0 | FU28: 0 | FV28: 0 | FW28: 0 | FX28: 0 | FY28: 0 | FZ28: 0 | GA28: 0 | GB28: 0 | GC28: 0 | GD28: 0 | GE28: 0 | GF28: 0 | GG28: 0 | GH28: 0 | GI28: 0 | GJ28: 0
E29: > 66 kv & < = 132 kv | F29: 0 | G29: 0 | H29: 0 | I29: 2 | J29: 0 | K29: 0 | L29: 0 | M29: 0 | N29: 0 | O29: 0 | P29: 0 | Q29: 0 | R29: 0 | S29: 0 | T29: 0 | U29: 0 | V29: 0 | W29: 0 | X29: 0 | Y29: 0 | Z29: 0 | AA29: 0 | AB29: 0 | AC29: 0 | AD29: 0 | AE29: 0 | AF29: 0 | AG29: 0 | AH29: 0 | AI29: 0 | AJ29: 0 | AK29: 0 | AL29: 0 | AM29: 0 | AN29: 0 | AO29: 0 | AP29: 0 | AQ29: 0 | AR29: 0 | AS29: 0 | AT29: 0 | AU29: 0 | AV29: 0 | AW29: 0 | AX29: 0 | AY29: 0 | AZ29: 0 | BA29: 0 | BB29: 0 | BC29: 0 | BD29: 0 | BE29: 0 | BF29: 0 | BG29: 0 | BH29: 0 | BI29: 0 | BJ29: 0 | BK29: 0 | BL29: 0 | BM29: 0 | BN29: 0 | BO29: 0 | BP29: 0 | BQ29: 0 | BR29: 0 | BS29: 0 | BT29: 0 | BU29: 0 | BV29: 0 | BW29: 0 | BX29: 0 | BY29: 0 | BZ29: 0 | CA29: 0 | CB29: 0 | CC29: 0 | CD29: 0 | CE29: 0 | CF29: 0 | CG29: 0 | CH29: 0 | CI29: 0 | CJ29: 0 | CK29: 0 | CL29: 0 | CM29: 0 | CN29: 0 | CO29: 0 | CP29: 0 | CQ29: 0 | CR29: 0 | CS29: 0 | CT29: 0 | CU29: 0 | CV29: 0 | CX29: 0 | CY29: 0 | CZ29: 0 | DA29: 0 | DB29: 0 | DC29: 0 | DD29: 0 | DE29: 0 | DF29: 0 | DG29: 0 | DH29: 0 | DI29: 0 | DJ29: 0 | DK29: 0 | DL29: 0 | DM29: 0 | DN29: 0 | DO29: 0 | DP29: 0 | DQ29: 0 | DR29: 0 | DS29: 0 | DT29: 0 | DU29: 0 | DV29: 0 | DW29: 0 | DX29: 0 | DY29: 0 | DZ29: 0 | EA29: 0 | EB29: 0 | EC29: 0 | ED29: 0 | EE29: 0 | EF29: 0 | EG29: 0 | EH29: 0 | EI29: 0 | EJ29: 0 | EK29: 0 | EL29: 0 | EM29: 0 | EN29: 0 | EO29: 0 | EP29: 0 | EQ29: 0 | ER29: 0 | ES29: 0 | ET29: 0 | EU29: 0 | EV29: 0 | EW29: 0 | EX29: 0 | EY29: 0 | EZ29: 0 | FA29: 0 | FB29: 0 | FC29: 0 | FD29: 0 | FE29: 0 | FF29: 0 | FG29: 0 | FH29: 0 | FI29: 0 | FJ29: 0 | FK29: 0 | FL29: 0 | FM29: 0 | FN29: 0 | FO29: 0 | FP29: 0 | FQ29: 0 | FR29: 0 | FS29: 0 | FT29: 0 | FU29: 0 | FV29: 0 | FW29: 0 | FX29: 0 | FY29: 0 | FZ29: 0 | GA29: 0 | GB29: 0 | GC29: 0 | GD29: 0 | GE29: 0 | GF29: 0 | GG29: 0 | GH29: 0 | GI29: 0 | GJ29: 0
E30: > 132 kv | F30: 0 | G30: 0 | H30: 0 | I30: 2 | J30: 0 | K30: 0 | L30: 0 | M30: 0 | N30: 0 | O30: 0 | P30: 0 | Q30: 0 | R30: 0 | S30: 0 | T30: 0 | U30: 0 | V30: 0 | W30: 0 | X30: 0 | Y30: 0 | Z30: 0 | AA30: 0 | AB30: 0 | AC30: 0 | AD30: 0 | AE30: 0 | AF30: 0 | AG30: 0 | AH30: 0 | AI30: 0 | AJ30: 0 | AK30: 0 | AL30: 0 | AM30: 0 | AN30: 0 | AO30: 0 | AP30: 0 | AQ30: 0 | AR30: 0 | AS30: 0 | AT30: 0 | AU30: 0 | AV30: 0 | AW30: 0 | AX30: 0 | AY30: 0 | AZ30: 0 | BA30: 0 | BB30: 0 | BC30: 0 | BD30: 0 | BE30: 0 | BF30: 0 | BG30: 0 | BH30: 0 | BI30: 0 | BJ30: 0 | BK30: 0 | BL30: 0 | BM30: 0 | BN30: 0 | BO30: 0 | BP30: 0 | BQ30: 0 | BR30: 0 | BS30: 0 | BT30: 0 | BU30: 0 | BV30: 0 | BW30: 0 | BX30: 0 | BY30: 0 | BZ30: 0 | CA30: 0 | CB30: 0 | CC30: 0 | CD30: 0 | CE30: 0 | CF30: 0 | CG30: 0 | CH30: 0 | CI30: 0 | CJ30: 0 | CK30: 0 | CL30: 0 | CM30: 0 | CN30: 0 | CO30: 0 | CP30: 0 | CQ30: 0 | CR30: 0 | CS30: 0 | CT30: 0 | CU30: 0 | CV30: 0 | CX30: 0 | CY30: 0 | CZ30: 0 | DA30: 0 | DB30: 0 | DC30: 0 | DD30: 0 | DE30: 0 | DF30: 0 | DG30: 0 | DH30: 0 | DI30: 0 | DJ30: 0 | DK30: 0 | DL30: 0 | DM30: 0 | DN30: 0 | DO30: 0 | DP30: 0 | DQ30: 0 | DR30: 0 | DS30: 0 | DT30: 0 | DU30: 0 | DV30: 0 | DW30: 0 | DX30: 0 | DY30: 0 | DZ30: 0 | EA30: 0 | EB30: 0 | EC30: 0 | ED30: 0 | EE30: 0 | EF30: 0 | EG30: 0 | EH30: 0 | EI30: 0 | EJ30: 0 | EK30: 0 | EL30: 0 | EM30: 0 | EN30: 0 | EO30: 0 | EP30: 0 | EQ30: 0 | ER30: 0 | ES30: 0 | ET30: 0 | EU30: 0 | EV30: 0 | EW30: 0 | EX30: 0 | EY30: 0 | EZ30: 0 | FA30: 0 | FB30: 0 | FC30: 0 | FD30: 0 | FE30: 0 | FF30: 0 | FG30: 0 | FH30: 0 | FI30: 0 | FJ30: 0 | FK30: 0 | FL30: 0 | FM30: 0 | FN30: 0 | FO30: 0 | FP30: 0 | FQ30: 0 | FR30: 0 | FS30: 0 | FT30: 0 | FU30: 0 | FV30: 0 | FW30: 0 | FX30: 0 | FY30: 0 | FZ30: 0 | GA30: 0 | GB30: 0 | GC30: 0 | GD30: 0 | GE30: 0 | GF30: 0 | GG30: 0 | GH30: 0 | GI30: 0 | GJ30: 0
E31: other | F31: 0 | G31: 0 | H31: 0 | I31: 2 | J31: 0 | K31: 0 | L31: 0 | M31: 0 | N31: 0 | O31: 0 | P31: 0 | Q31: 0 | R31: 0 | S31: 0 | T31: 0 | U31: 0 | V31: 0 | W31: 0 | X31: 0 | Y31: 0 | Z31: 0 | AA31: 0 | AB31: 0 | AC31: 0 | AD31: 0 | AE31: 0 | AF31: 0 | AG31: 0 | AH31: 0 | AI31: 0 | AJ31: 0 | AK31: 0 | AL31: 0 | AM31: 0 | AN31: 0 | AO31: 0 | AP31: 0 | AQ31: 0 | AR31: 0 | AS31: 0 | AT31: 0 | AU31: 0 | AV31: 0 | AW31: 0 | AX31: 0 | AY31: 0 | AZ31: 0 | BA31: 0 | BB31: 0 | BC31: 0 | BD31: 0 | BE31: 0 | BF31: 0 | BG31: 0 | BH31: 0 | BI31: 0 | BJ31: 0 | BK31: 0 | BL31: 0 | BM31: 0 | BN31: 0 | BO31: 0 | BP31: 0 | BQ31: 0 | BR31: 0 | BS31: 0 | BT31: 0 | BU31: 0 | BV31: 0 | BW31: 0 | BX31: 0 | BY31: 0 | BZ31: 0 | CA31: 0 | CB31: 0 | CC31: 0 | CD31: 0 | CE31: 0 | CF31: 0 | CG31: 0 | CH31: 0 | CI31: 0 | CJ31: 0 | CK31: 0 | CL31: 0 | CM31: 0 | CN31: 0 | CO31: 0 | CP31: 0 | CQ31: 0 | CR31: 0 | CS31: 0 | CT31: 0 | CU31: 0 | CV31: 0 | CX31: 0 | CY31: 0 | CZ31: 0 | DA31: 0 | DB31: 0 | DC31: 0 | DD31: 0 | DE31: 0 | DF31: 0 | DG31: 0 | DH31: 0 | DI31: 0 | DJ31: 0 | DK31: 0 | DL31: 0 | DM31: 0 | DN31: 0 | DO31: 0 | DP31: 0 | DQ31: 0 | DR31: 0 | DS31: 0 | DT31: 0 | DU31: 0 | DV31: 0 | DW31: 0 | DX31: 0 | DY31: 0 | DZ31: 0 | EA31: 0 | EB31: 0 | EC31: 0 | ED31: 0 | EE31: 0 | EF31: 0 | EG31: 0 | EH31: 0 | EI31: 0 | EJ31: 0 | EK31: 0 | EL31: 0 | EM31: 0 | EN31: 0 | EO31: 0 | EP31: 0 | EQ31: 0 | ER31: 0 | ES31: 0 | ET31: 0 | EU31: 0 | EV31: 0 | EW31: 0 | EX31: 0 | EY31: 0 | EZ31: 0 | FA31: 0 | FB31: 0 | FC31: 0 | FD31: 0 | FE31: 0 | FF31: 0 | FG31: 0 | FH31: 0 | FI31: 0 | FJ31: 0 | FK31: 0 | FL31: 0 | FM31: 0 | FN31: 0 | FO31: 0 | FP31: 0 | FQ31: 0 | FR31: 0 | FS31: 0 | FT31: 0 | FU31: 0 | FV31: 0 | FW31: 0 | FX31: 0 | FY31: 0 | FZ31: 0 | GA31: 0 | GB31: 0 | GC31: 0 | GD31: 0 | GE31: 0 | GF31: 0 | GG31: 0 | GH31: 0 | GI31: 0 | GJ31: 0
A32: 2 | D32: OVERHEAD CONDUCTORS | E32: ˂ = 1 kv | F32: 33.8961 | G32: 86.25613562 | H32: 9.287418136 | I32: 2 | J32: 31 | K32: 336 | L32: 374 | M32: 425 | N32: 411 | O32: 306 | P32: 0 | Q32: 0 | R32: 0 | S32: 0 | T32: 0 | U32: 0 | V32: 5 | W32: 5 | X32: 0 | Y32: 1 | Z32: 1 | AA32: 0 | AB32: 0 | AC32: 0 | AD32: 0 | AE32: 99 | AF32: 99 | AG32: 7 | AH32: 118 | AI32: 318 | AJ32: 336 | AK32: 625 | AL32: 624 | AM32: 237 | AN32: 315 | AO32: 245 | AP32: 38 | AQ32: 98 | AR32: 105 | AS32: 34 | AT32: 218 | AU32: 1015 | AV32: 1115 | AW32: 532 | AX32: 331 | AY32: 392 | AZ32: 772 | BA32: 969 | BB32: 1058 | BC32: 1581 | BD32: 1555 | BE32: 4147 | BF32: 4617 | BG32: 2066 | BH32: 1723 | BI32: 1455 | BJ32: 1655 | BK32: 1386 | BL32: 983 | BM32: 1763 | BN32: 1746 | BO32: 7524 | BP32: 19354 | BQ32: 12282 | BR32: 40 | BS32: 41 | BT32: 22 | BU32: 17 | BV32: 11 | BW32: 0 | BX32: 0 | BY32: 40 | BZ32: 40 | CA32: 0 | CB32: 0 | CC32: 0 | CD32: 0 | CE32: 93 | CF32: 93 | CG32: 0 | CH32: 0 | CI32: 0 | CJ32: 0 | CK32: 0 | CL32: 0 | CM32: 0 | CN32: 0 | CO32: 0 | CP32: 0 | CQ32: 0 | CR32: 0 | CS32: 0 | CT32: 0 | CU32: 0 | CV32: 0 | CX32: 1050.7791 | CY32: 11389.0896 | CZ32: 12677.1414 | DA32: 14405.8425 | DB32: 13931.2971 | DC32: 10372.2066 | DD32: 0 | DE32: 0 | DF32: 0 | DG32: 0 | DH32: 0 | DI32: 0 | DJ32: 169.4805 | DK32: 169.4805 | DL32: 0 | DM32: 33.8961 | DN32: 33.8961 | DO32: 0 | DP32: 0 | DQ32: 0 | DR32: 0 | DS32: 3355.7139 | DT32: 3355.7139 | DU32: 237.2727 | DV32: 3999.7398 | DW32: 10778.9598 | DX32: 11389.0896 | DY32: 21185.0625 | DZ32: 21151.1664 | EA32: 8033.3757 | EB32: 10677.2715 | EC32: 8304.5445 | ED32: 1288.0518 | EE32: 3321.8178 | EF32: 3559.0905 | EG32: 1152.4674 | EH32: 7389.3498 | EI32: 34404.5415 | EJ32: 37794.1515 | EK32: 18032.7252 | EL32: 11219.6091 | EM32: 13287.2712 | EN32: 26167.7892 | EO32: 32845.3209 | EP32: 35862.0738 | EQ32: 53589.7341 | ER32: 52708.4355 | ES32: 140567.1267 | ET32: 156498.2937 | EU32: 70029.3426 | EV32: 58402.9803 | EW32: 49318.8255 | EX32: 56098.0455 | EY32: 46979.9946 | EZ32: 33319.8663 | FA32: 59758.8243 | FB32: 59182.5906 | FC32: 255034.2564 | FD32: 656025.1194 | FE32: 416311.9002 | FF32: 1355.844 | FG32: 1389.7401 | FH32: 745.7142 | FI32: 576.2337 | FJ32: 372.8571 | FK32: 0 | FL32: 0 | FM32: 1355.844 | FN32: 1355.844 | FO32: 0 | FP32: 0 | FQ32: 0 | FR32: 0 | FS32: 3152.3373 | FT32: 3152.3373 | FU32: 0 | FV32: 0 | FW32: 0 | FX32: 0 | FY32: 0 | FZ32: 0 | GA32: 0 | GB32: 0 | GC32: 0 | GD32: 0 | GE32: 0 | GF32: 0 | GG32: 0 | GH32: 0 | GI32: 0 | GJ32: 0
A33: 2 | D33: OVERHEAD CONDUCTORS | E33: > 1 kv & < = 11 kv | F33: 17.7758 | G33: 73.85639696 | H33: 8.593974457 | I33: 2 | J33: 93 | K33: 160 | L33: 149 | M33: 132 | N33: 179 | O33: 83 | P33: 0 | Q33: 0 | R33: 0 | S33: 0 | T33: 0 | U33: 0 | V33: 0 | W33: 3 | X33: 3 | Y33: 3 | Z33: 4 | AA33: 2 | AB33: 0 | AC33: 0 | AD33: 11 | AE33: 31 | AF33: 20 | AG33: 0 | AH33: 96 | AI33: 233 | AJ33: 283 | AK33: 500 | AL33: 415 | AM33: 335 | AN33: 364 | AO33: 97 | AP33: 7 | AQ33: 91 | AR33: 97 | AS33: 74 | AT33: 277 | AU33: 816 | AV33: 724 | AW33: 230 | AX33: 334 | AY33: 571 | AZ33: 808 | BA33: 1363 | BB33: 1210 | BC33: 1027 | BD33: 1021 | BE33: 2665 | BF33: 2975 | BG33: 1330 | BH33: 960 | BI33: 984 | BJ33: 1885 | BK33: 1675 | BL33: 1038 | BM33: 1689 | BN33: 1693 | BO33: 5760 | BP33: 11963 | BQ33: 6707 | BR33: 0 | BS33: 0 | BT33: 0 | BU33: 0 | BV33: 0 | BW33: 0 | BX33: 0 | BY33: 0 | BZ33: 0 | CA33: 0 | CB33: 0 | CC33: 0 | CD33: 0 | CE33: 0 | CF33: 0 | CG33: 0 | CH33: 0 | CI33: 0 | CJ33: 0 | CK33: 0 | CL33: 0 | CM33: 0 | CN33: 0 | CO33: 0 | CP33: 0 | CQ33: 0 | CR33: 0 | CS33: 0 | CT33: 0 | CU33: 0 | CV33: 0 | CX33: 1653.1494 | CY33: 2844.128 | CZ33: 2648.5942 | DA33: 2346.4056 | DB33: 3181.8682 | DC33: 1475.3914 | DD33: 0 | DE33: 0 | DF33: 0 | DG33: 0 | DH33: 0 | DI33: 0 | DJ33: 0 | DK33: 53.3274 | DL33: 53.3274 | DM33: 53.3274 | DN33: 71.1032 | DO33: 35.5516 | DP33: 0 | DQ33: 0 | DR33: 195.5338 | DS33: 551.0498 | DT33: 355.516 | DU33: 0 | DV33: 1706.4768 | DW33: 4141.7614 | DX33: 5030.5514 | DY33: 8887.9 | DZ33: 7376.957 | EA33: 5954.893 | EB33: 6470.3912 | EC33: 1724.2526 | ED33: 124.4306 | EE33: 1617.5978 | EF33: 1724.2526 | EG33: 1315.4092 | EH33: 4923.8966 | EI33: 14505.0528 | EJ33: 12869.6792 | EK33: 4088.434 | EL33: 5937.1172 | EM33: 10149.9818 | EN33: 14362.8464 | EO33: 24228.4154 | EP33: 21508.718 | EQ33: 18255.7466 | ER33: 18149.0918 | ES33: 47372.507 | ET33: 52883.005 | EU33: 23641.814 | EV33: 17064.768 | EW33: 17491.3872 | EX33: 33507.383 | EY33: 29774.465 | EZ33: 18451.2804 | FA33: 30023.3262 | FB33: 30094.4294 | FC33: 102388.608 | FD33: 212651.8954 | FE33: 119222.2906 | FF33: 0 | FG33: 0 | FH33: 0 | FI33: 0 | FJ33: 0 | FK33: 0 | FL33: 0 | FM33: 0 | FN33: 0 | FO33: 0 | FP33: 0 | FQ33: 0 | FR33: 0 | FS33: 0 | FT33: 0 | FU33: 0 | FV33: 0 | FW33: 0 | FX33: 0 | FY33: 0 | FZ33: 0 | GA33: 0 | GB33: 0 | GC33: 0 | GD33: 0 | GE33: 0 | GF33: 0 | GG33: 0 | GH33: 0 | GI33: 0 | GJ33: 0
A34: 2 | D34: OVERHEAD CONDUCTORS | E34: ˃ 11 kv & < = 22 kv ; swer | F34: 15.2902 | G34: 78.80328732 | H34: 8.877121567 | I34: 2 | J34: 23 | K34: 10 | L34: 9 | M34: 33 | N34: 5 | O34: 11 | P34: 0 | Q34: 0 | R34: 0 | S34: 0 | T34: 0 | U34: 0 | V34: 0 | W34: 0 | X34: 0 | Y34: 0 | Z34: 0 | AA34: 0 | AB34: 6 | AC34: 6 | AD34: 0 | AE34: 0 | AF34: 0 | AG34: 25 | AH34: 83 | AI34: 441 | AJ34: 388 | AK34: 20 | AL34: 52 | AM34: 56 | AN34: 157 | AO34: 139 | AP34: 12 | AQ34: 61 | AR34: 49 | AS34: 69 | AT34: 71 | AU34: 374 | AV34: 502 | AW34: 478 | AX34: 552 | AY34: 599 | AZ34: 511 | BA34: 1655 | BB34: 1943 | BC34: 928 | BD34: 974 | BE34: 2844 | BF34: 3137 | BG34: 1410 | BH34: 977 | BI34: 944 | BJ34: 983 | BK34: 800 | BL34: 919 | BM34: 3331 | BN34: 2865 | BO34: 145 | BP34: 320 | BQ34: 175 | BR34: 0 | BS34: 0 | BT34: 0 | BU34: 0 | BV34: 0 | BW34: 0 | BX34: 0 | BY34: 0 | BZ34: 0 | CA34: 0 | CB34: 0 | CC34: 0 | CD34: 0 | CE34: 0 | CF34: 0 | CG34: 0 | CH34: 0 | CI34: 0 | CJ34: 0 | CK34: 0 | CL34: 0 | CM34: 0 | CN34: 0 | CO34: 0 | CP34: 0 | CQ34: 0 | CR34: 0 | CS34: 0 | CT34: 0 | CU34: 0 | CV34: 0 | CX34: 351.6746 | CY34: 152.902 | CZ34: 137.6118 | DA34: 504.5766 | DB34: 76.451 | DC34: 168.1922 | DD34: 0 | DE34: 0 | DF34: 0 | DG34: 0 | DH34: 0 | DI34: 0 | DJ34: 0 | DK34: 0 | DL34: 0 | DM34: 0 | DN34: 0 | DO34: 0 | DP34: 91.7412 | DQ34: 91.7412 | DR34: 0 | DS34: 0 | DT34: 0 | DU34: 382.255 | DV34: 1269.0866 | DW34: 6742.9782 | DX34: 5932.5976 | DY34: 305.804 | DZ34: 795.0904 | EA34: 856.2512 | EB34: 2400.5614 | EC34: 2125.3378 | ED34: 183.4824 | EE34: 932.7022 | EF34: 749.2198 | EG34: 1055.0238 | EH34: 1085.6042 | EI34: 5718.5348 | EJ34: 7675.6804 | EK34: 7308.7156 | EL34: 8440.1904 | EM34: 9158.8298 | EN34: 7813.2922 | EO34: 25305.281 | EP34: 29708.8586 | EQ34: 14189.3056 | ER34: 14892.6548 | ES34: 43485.3288 | ET34: 47965.3574 | EU34: 21559.182 | EV34: 14938.5254 | EW34: 14433.9488 | EX34: 15030.2666 | EY34: 12232.16 | EZ34: 14051.6938 | FA34: 50931.6562 | FB34: 43806.423 | FC34: 2217.079 | FD34: 4892.864 | FE34: 2675.785 | FF34: 0 | FG34: 0 | FH34: 0 | FI34: 0 | FJ34: 0 | FK34: 0 | FL34: 0 | FM34: 0 | FN34: 0 | FO34: 0 | FP34: 0 | FQ34: 0 | FR34: 0 | FS34: 0 | FT34: 0 | FU34: 0 | FV34: 0 | FW34: 0 | FX34: 0 | FY34: 0 | FZ34: 0 | GA34: 0 | GB34: 0 | GC34: 0 | GD34: 0 | GE34: 0 | GF34: 0 | GG34: 0 | GH34: 0 | GI34: 0 | GJ34: 0
E35: ˃ 11 kv & < = 22 kv ; single-phase | F35: 0 | G35: 0 | H35: 0 | I35: 2 | J35: 0 | K35: 0 | L35: 0 | M35: 0 | N35: 0 | O35: 0 | P35: 0 | Q35: 0 | R35: 0 | S35: 0 | T35: 0 | U35: 0 | V35: 0 | W35: 0 | X35: 0 | Y35: 0 | Z35: 0 | AA35: 0 | AB35: 0 | AC35: 0 | AD35: 0 | AE35: 0 | AF35: 0 | AG35: 0 | AH35: 0 | AI35: 0 | AJ35: 0 | AK35: 0 | AL35: 0 | AM35: 0 | AN35: 0 | AO35: 0 | AP35: 0 | AQ35: 0 | AR35: 0 | AS35: 0 | AT35: 0 | AU35: 0 | AV35: 0 | AW35: 0 | AX35: 0 | AY35: 0 | AZ35: 0 | BA35: 0 | BB35: 0 | BC35: 0 | BD35: 0 | BE35: 0 | BF35: 0 | BG35: 0 | BH35: 0 | BI35: 0 | BJ35: 0 | BK35: 0 | BL35: 0 | BM35: 0 | BN35: 0 | BO35: 0 | BP35: 0 | BQ35: 0 | BR35: 0 | BS35: 0 | BT35: 0 | BU35: 0 | BV35: 0 | BW35: 0 | BX35: 0 | BY35: 0 | BZ35: 0 | CA35: 0 | CB35: 0 | CC35: 0 | CD35: 0 | CE35: 0 | CF35: 0 | CG35: 0 | CH35: 0 | CI35: 0 | CJ35: 0 | CK35: 0 | CL35: 0 | CM35: 0 | CN35: 0 | CO35: 0 | CP35: 0 | CQ35: 0 | CR35: 0 | CS35: 0 | CT35: 0 | CU35: 0 | CV35: 0 | CX35: 0 | CY35: 0 | CZ35: 0 | DA35: 0 | DB35: 0 | DC35: 0 | DD35: 0 | DE35: 0 | DF35: 0 | DG35: 0 | DH35: 0 | DI35: 0 | DJ35: 0 | DK35: 0 | DL35: 0 | DM35: 0 | DN35: 0 | DO35: 0 | DP35: 0 | DQ35: 0 | DR35: 0 | DS35: 0 | DT35: 0 | DU35: 0 | DV35: 0 | DW35: 0 | DX35: 0 | DY35: 0 | DZ35: 0 | EA35: 0 | EB35: 0 | EC35: 0 | ED35: 0 | EE35: 0 | EF35: 0 | EG35: 0 | EH35: 0 | EI35: 0 | EJ35: 0 | EK35: 0 | EL35: 0 | EM35: 0 | EN35: 0 | EO35: 0 | EP35: 0 | EQ35: 0 | ER35: 0 | ES35: 0 | ET35: 0 | EU35: 0 | EV35: 0 | EW35: 0 | EX35: 0 | EY35: 0 | EZ35: 0 | FA35: 0 | FB35: 0 | FC35: 0 | FD35: 0 | FE35: 0 | FF35: 0 | FG35: 0 | FH35: 0 | FI35: 0 | FJ35: 0 | FK35: 0 | FL35: 0 | FM35: 0 | FN35: 0 | FO35: 0 | FP35: 0 | FQ35: 0 | FR35: 0 | FS35: 0 | FT35: 0 | FU35: 0 | FV35: 0 | FW35: 0 | FX35: 0 | FY35: 0 | FZ35: 0 | GA35: 0 | GB35: 0 | GC35: 0 | GD35: 0 | GE35: 0 | GF35: 0 | GG35: 0 | GH35: 0 | GI35: 0 | GJ35: 0
E36: ˃ 11 kv & < = 22 kv ; multiple-phase | F36: 1101.501908 | G36: 0 | H36: 0 | I36: 2 | J36: 0 | K36: 0 | L36: 0 | M36: 0 | N36: 0 | O36: 0 | P36: 0 | Q36: 0 | R36: 0 | S36: 0 | T36: 0 | U36: 0 | V36: 0 | W36: 0 | X36: 0 | Y36: 0 | Z36: 0 | AA36: 0 | AB36: 0 | AC36: 0 | AD36: 0 | AE36: 0 | AF36: 0 | AG36: 0 | AH36: 0 | AI36: 0 | AJ36: 0 | AK36: 0 | AL36: 0 | AM36: 0 | AN36: 0 | AO36: 0 | AP36: 0 | AQ36: 0 | AR36: 0 | AS36: 0 | AT36: 0 | AU36: 0 | AV36: 0 | AW36: 0 | AX36: 0 | AY36: 0 | AZ36: 0 | BA36: 0 | BB36: 0 | BC36: 0 | BD36: 0 | BE36: 0 | BF36: 0 | BG36: 0 | BH36: 0 | BI36: 0 | BJ36: 0 | BK36: 0 | BL36: 0 | BM36: 0 | BN36: 0 | BO36: 0 | BP36: 0 | BQ36: 0 | BR36: 0 | BS36: 0 | BT36: 0 | BU36: 0 | BV36: 0 | BW36: 0 | BX36: 0 | BY36: 0 | BZ36: 0 | CA36: 0 | CB36: 0 | CC36: 0 | CD36: 0 | CE36: 0 | CF36: 0 | CG36: 0 | CH36: 0 | CI36: 0 | CJ36: 0 | CK36: 0 | CL36: 0 | CM36: 0 | CN36: 0 | CO36: 0 | CP36: 0 | CQ36: 0 | CR36: 0 | CS36: 0 | CT36: 0 | CU36: 0 | CV36: 0 | CX36: 0 | CY36: 0 | CZ36: 0 | DA36: 0 | DB36: 0 | DC36: 0 | DD36: 0 | DE36: 0 | DF36: 0 | DG36: 0 | DH36: 0 | DI36: 0 | DJ36: 0 | DK36: 0 | DL36: 0 | DM36: 0 | DN36: 0 | DO36: 0 | DP36: 0 | DQ36: 0 | DR36: 0 | DS36: 0 | DT36: 0 | DU36: 0 | DV36: 0 | DW36: 0 | DX36: 0 | DY36: 0 | DZ36: 0 | EA36: 0 | EB36: 0 | EC36: 0 | ED36: 0 | EE36: 0 | EF36: 0 | EG36: 0 | EH36: 0 | EI36: 0 | EJ36: 0 | EK36: 0 | EL36: 0 | EM36: 0 | EN36: 0 | EO36: 0 | EP36: 0 | EQ36: 0 | ER36: 0 | ES36: 0 | ET36: 0 | EU36: 0 | EV36: 0 | EW36: 0 | EX36: 0 | EY36: 0 | EZ36: 0 | FA36: 0 | FB36: 0 | FC36: 0 | FD36: 0 | FE36: 0 | FF36: 0 | FG36: 0 | FH36: 0 | FI36: 0 | FJ36: 0 | FK36: 0 | FL36: 0 | FM36: 0 | FN36: 0 | FO36: 0 | FP36: 0 | FQ36: 0 | FR36: 0 | FS36: 0 | FT36: 0 | FU36: 0 | FV36: 0 | FW36: 0 | FX36: 0 | FY36: 0 | FZ36: 0 | GA36: 0 | GB36: 0 | GC36: 0 | GD36: 0 | GE36: 0 | GF36: 0 | GG36: 0 | GH36: 0 | GI36: 0 | GJ36: 0
A37: 2 | D37: OVERHEAD CONDUCTORS | E37: > 22 kv & < = 66 kv | F37: 20.8002 | G37: 89.7606796 | H37: 9.474211292 | I37: 2 | J37: 89 | K37: 0.875 | L37: 75.231 | M37: 105.323 | N37: 71.032 | O37: 40.94 | P37: 10.847 | Q37: 11.722 | R37: 42.864 | S37: 64.209 | T37: 24.844 | U37: 47.151 | V37: 173.468 | W37: 165.858 | X37: 41.045 | Y37: 3.254 | Z37: 0 | AA37: 0 | AB37: 0 | AC37: 14.696 | AD37: 14.696 | AE37: 20.382 | AF37: 20.382 | AG37: 23.094 | AH37: 48.288 | AI37: 88.178 | AJ37: 175.13 | AK37: 113.896 | AL37: 438.963 | AM37: 597.823 | AN37: 168.832 | AO37: 13.472 | AP37: 21.52 | AQ37: 169.532 | AR37: 160.609 | AS37: 170.232 | AT37: 368.456 | AU37: 228.667 | AV37: 44.089 | AW37: 55.111 | AX37: 202.983 | AY37: 413.805 | AZ37: 307.222 | BA37: 472.03 | BB37: 621.057 | BC37: 425.159 | BD37: 449.303 | BE37: 721.481 | BF37: 842.58 | BG37: 539.674 | BH37: 415.951 | BI37: 475.931 | BJ37: 586.888 | BK37: 580.152 | BL37: 323.876 | BM37: 171.7 | BN37: 181.461 | BO37: 182.054 | BP37: 325.515 | BQ37: 320.216 | BR37: 144.507 | BS37: 254.964 | BT37: 319.635 | BU37: 636.998 | BV37: 506.436 | BW37: 0 | BX37: 70.589 | BY37: 205.334 | BZ37: 188.434 | CA37: 53.689 | CB37: 0 | CC37: 34.514 | CD37: 34.514 | CE37: 211.897 | CF37: 315.614 | CG37: 103.717 | CH37: 51.51 | CI37: 51.51 | CJ37: 9.587 | CK37: 9.587 | CL37: 0 | CM37: 0 | CN37: 0 | CO37: 236.545 | CP37: 236.545 | CQ37: 0 | CR37: 0 | CS37: 0 | CT37: 0 | CU37: 0 | CV37: 0 | CX37: 1851.2178 | CY37: 18.200175 | CZ37: 1564.819846 | DA37: 2190.739465 | DB37: 1477.479806 | DC37: 851.560188 | DD37: 225.6197694 | DE37: 243.8199444 | DF37: 891.5797728 | DG37: 1335.560042 | DH37: 516.7601688 | DI37: 980.7502302 | DJ37: 3608.169094 | DK37: 3449.879572 | DL37: 853.744209 | DM37: 67.6838508 | DN37: 0 | DO37: 0 | DP37: 0 | DQ37: 305.6797392 | DR37: 305.6797392 | DS37: 423.9496764 | DT37: 423.9496764 | DU37: 480.3598188 | DV37: 1004.400058 | DW37: 1834.120036 | DX37: 3642.739026 | DY37: 2369.059579 | DZ37: 9130.518193 | EA37: 12434.83796 | EB37: 3511.739366 | EC37: 280.2202944 | ED37: 447.620304 | EE37: 3526.299506 | EF37: 3340.699322 | EG37: 3540.859646 | EH37: 7663.958491 | EI37: 4756.319333 | EJ37: 917.0600178 | EK37: 1146.319822 | EL37: 4222.086997 | EM37: 8607.226761 | EN37: 6390.279044 | EO37: 9818.318406 | EP37: 12918.10981 | EQ37: 8843.392232 | ER37: 9345.592261 | ES37: 15006.9491 | ET37: 17525.83252 | EU37: 11225.32713 | EV37: 8651.86399 | EW37: 9899.459986 | EX37: 12207.38778 | EY37: 12067.27763 | EZ37: 6736.685575 | FA37: 3571.39434 | FB37: 3774.425092 | FC37: 3786.759611 | FD37: 6770.777103 | FE37: 6660.556843 | FF37: 3005.774501 | FG37: 5303.302193 | FH37: 6648.471927 | FI37: 13249.6858 | FJ37: 10533.97009 | FK37: 0 | FL37: 1468.265318 | FM37: 4270.988267 | FN37: 3919.464887 | FO37: 1116.741938 | FP37: 0 | FQ37: 717.8981028 | FR37: 717.8981028 | FS37: 4407.499979 | FT37: 6564.834323 | FU37: 2157.334343 | FV37: 1071.418302 | FW37: 1071.418302 | FX37: 199.4115174 | FY37: 199.4115174 | FZ37: 0 | GA37: 0 | GB37: 0 | GC37: 4920.183309 | GD37: 4920.183309 | GE37: 0 | GF37: 0 | GG37: 0 | GH37: 0 | GI37: 0 | GJ37: 0
A38: 2 | D38: OVERHEAD CONDUCTORS | E38: > 66 kv & < = 132 kv | F38: 1213.614 | G38: 10.29774871 | H38: 3.20901055 | I38: 2 | J38: 0 | K38: 0 | L38: 0 | M38: 0 | N38: 0 | O38: 0 | P38: 0 | Q38: 33 | R38: 0 | S38: 0 | T38: 0 | U38: 0 | V38: 0 | W38: 0 | X38: 0 | Y38: 0 | Z38: 0 | AA38: 0 | AB38: 0 | AC38: 0 | AD38: 0 | AE38: 0 | AF38: 0 | AG38: 0 | AH38: 0 | AI38: 0 | AJ38: 0 | AK38: 0 | AL38: 0 | AM38: 0 | AN38: 0 | AO38: 0 | AP38: 0 | AQ38: 0 | AR38: 0 | AS38: 0 | AT38: 0 | AU38: 0 | AV38: 0 | AW38: 0 | AX38: 0 | AY38: 0 | AZ38: 0 | BA38: 0 | BB38: 0 | BC38: 0 | BD38: 0 | BE38: 0 | BF38: 0 | BG38: 0 | BH38: 0 | BI38: 0 | BJ38: 0 | BK38: 0 | BL38: 0 | BM38: 0 | BN38: 0 | BO38: 0 | BP38: 0 | BQ38: 0 | BR38: 0 | BS38: 0 | BT38: 0 | BU38: 0 | BV38: 0 | BW38: 0 | BX38: 0 | BY38: 0 | BZ38: 0 | CA38: 0 | CB38: 0 | CC38: 0 | CD38: 0 | CE38: 0 | CF38: 0 | CG38: 0 | CH38: 0 | CI38: 0 | CJ38: 0 | CK38: 0 | CL38: 0 | CM38: 0 | CN38: 0 | CO38: 0 | CP38: 0 | CQ38: 0 | CR38: 0 | CS38: 0 | CT38: 0 | CU38: 0 | CV38: 0 | CX38: 0 | CY38: 0 | CZ38: 0 | DA38: 0 | DB38: 0 | DC38: 0 | DD38: 0 | DE38: 40049.262 | DF38: 0 | DG38: 0 | DH38: 0 | DI38: 0 | DJ38: 0 | DK38: 0 | DL38: 0 | DM38: 0 | DN38: 0 | DO38: 0 | DP38: 0 | DQ38: 0 | DR38: 0 | DS38: 0 | DT38: 0 | DU38: 0 | DV38: 0 | DW38: 0 | DX38: 0 | DY38: 0 | DZ38: 0 | EA38: 0 | EB38: 0 | EC38: 0 | ED38: 0 | EE38: 0 | EF38: 0 | EG38: 0 | EH38: 0 | EI38: 0 | EJ38: 0 | EK38: 0 | EL38: 0 | EM38: 0 | EN38: 0 | EO38: 0 | EP38: 0 | EQ38: 0 | ER38: 0 | ES38: 0 | ET38: 0 | EU38: 0 | EV38: 0 | EW38: 0 | EX38: 0 | EY38: 0 | EZ38: 0 | FA38: 0 | FB38: 0 | FC38: 0 | FD38: 0 | FE38: 0 | FF38: 0 | FG38: 0 | FH38: 0 | FI38: 0 | FJ38: 0 | FK38: 0 | FL38: 0 | FM38: 0 | FN38: 0 | FO38: 0 | FP38: 0 | FQ38: 0 | FR38: 0 | FS38: 0 | FT38: 0 | FU38: 0 | FV38: 0 | FW38: 0 | FX38: 0 | FY38: 0 | FZ38: 0 | GA38: 0 | GB38: 0 | GC38: 0 | GD38: 0 | GE38: 0 | GF38: 0 | GG38: 0 | GH38: 0 | GI38: 0 | GJ38: 0
E39: > 132 kv | F39: 0 | G39: 0 | H39: 0 | I39: 2 | J39: 0 | K39: 0 | L39: 0 | M39: 0 | N39: 0 | O39: 0 | P39: 0 | Q39: 0 | R39: 0 | S39: 0 | T39: 0 | U39: 0 | V39: 0 | W39: 0 | X39: 0 | Y39: 0 | Z39: 0 | AA39: 0 | AB39: 0 | AC39: 0 | AD39: 0 | AE39: 0 | AF39: 0 | AG39: 0 | AH39: 0 | AI39: 0 | AJ39: 0 | AK39: 0 | AL39: 0 | AM39: 0 | AN39: 0 | AO39: 0 | AP39: 0 | AQ39: 0 | AR39: 0 | AS39: 0 | AT39: 0 | AU39: 0 | AV39: 0 | AW39: 0 | AX39: 0 | AY39: 0 | AZ39: 0 | BA39: 0 | BB39: 0 | BC39: 0 | BD39: 0 | BE39: 0 | BF39: 0 | BG39: 0 | BH39: 0 | BI39: 0 | BJ39: 0 | BK39: 0 | BL39: 0 | BM39: 0 | BN39: 0 | BO39: 0 | BP39: 0 | BQ39: 0 | BR39: 0 | BS39: 0 | BT39: 0 | BU39: 0 | BV39: 0 | BW39: 0 | BX39: 0 | BY39: 0 | BZ39: 0 | CA39: 0 | CB39: 0 | CC39: 0 | CD39: 0 | CE39: 0 | CF39: 0 | CG39: 0 | CH39: 0 | CI39: 0 | CJ39: 0 | CK39: 0 | CL39: 0 | CM39: 0 | CN39: 0 | CO39: 0 | CP39: 0 | CQ39: 0 | CR39: 0 | CS39: 0 | CT39: 0 | CU39: 0 | CV39: 0 | CX39: 0 | CY39: 0 | CZ39: 0 | DA39: 0 | DB39: 0 | DC39: 0 | DD39: 0 | DE39: 0 | DF39: 0 | DG39: 0 | DH39: 0 | DI39: 0 | DJ39: 0 | DK39: 0 | DL39: 0 | DM39: 0 | DN39: 0 | DO39: 0 | DP39: 0 | DQ39: 0 | DR39: 0 | DS39: 0 | DT39: 0 | DU39: 0 | DV39: 0 | DW39: 0 | DX39: 0 | DY39: 0 | DZ39: 0 | EA39: 0 | EB39: 0 | EC39: 0 | ED39: 0 | EE39: 0 | EF39: 0 | EG39: 0 | EH39: 0 | EI39: 0 | EJ39: 0 | EK39: 0 | EL39: 0 | EM39: 0 | EN39: 0 | EO39: 0 | EP39: 0 | EQ39: 0 | ER39: 0 | ES39: 0 | ET39: 0 | EU39: 0 | EV39: 0 | EW39: 0 | EX39: 0 | EY39: 0 | EZ39: 0 | FA39: 0 | FB39: 0 | FC39: 0 | FD39: 0 | FE39: 0 | FF39: 0 | FG39: 0 | FH39: 0 | FI39: 0 | FJ39: 0 | FK39: 0 | FL39: 0 | FM39: 0 | FN39: 0 | FO39: 0 | FP39: 0 | FQ39: 0 | FR39: 0 | FS39: 0 | FT39: 0 | FU39: 0 | FV39: 0 | FW39: 0 | FX39: 0 | FY39: 0 | FZ39: 0 | GA39: 0 | GB39: 0 | GC39: 0 | GD39: 0 | GE39: 0 | GF39: 0 | GG39: 0 | GH39: 0 | GI39: 0 | GJ39: 0
E40: other | F40: 0 | G40: 0 | H40: 0 | I40: 2 | J40: 0 | K40: 0 | L40: 0 | M40: 0 | N40: 0 | O40: 0 | P40: 0 | Q40: 0 | R40: 0 | S40: 0 | T40: 0 | U40: 0 | V40: 0 | W40: 0 | X40: 0 | Y40: 0 | Z40: 0 | AA40: 0 | AB40: 0 | AC40: 0 | AD40: 0 | AE40: 0 | AF40: 0 | AG40: 0 | AH40: 0 | AI40: 0 | AJ40: 0 | AK40: 0 | AL40: 0 | AM40: 0 | AN40: 0 | AO40: 0 | AP40: 0 | AQ40: 0 | AR40: 0 | AS40: 0 | AT40: 0 | AU40: 0 | AV40: 0 | AW40: 0 | AX40: 0 | AY40: 0 | AZ40: 0 | BA40: 0 | BB40: 0 | BC40: 0 | BD40: 0 | BE40: 0 | BF40: 0 | BG40: 0 | BH40: 0 | BI40: 0 | BJ40: 0 | BK40: 0 | BL40: 0 | BM40: 0 | BN40: 0 | BO40: 0 | BP40: 0 | BQ40: 0 | BR40: 0 | BS40: 0 | BT40: 0 | BU40: 0 | BV40: 0 | BW40: 0 | BX40: 0 | BY40: 0 | BZ40: 0 | CA40: 0 | CB40: 0 | CC40: 0 | CD40: 0 | CE40: 0 | CF40: 0 | CG40: 0 | CH40: 0 | CI40: 0 | CJ40: 0 | CK40: 0 | CL40: 0 | CM40: 0 | CN40: 0 | CO40: 0 | CP40: 0 | CQ40: 0 | CR40: 0 | CS40: 0 | CT40: 0 | CU40: 0 | CV40: 0 | CX40: 0 | CY40: 0 | CZ40: 0 | DA40: 0 | DB40: 0 | DC40: 0 | DD40: 0 | DE40: 0 | DF40: 0 | DG40: 0 | DH40: 0 | DI40: 0 | DJ40: 0 | DK40: 0 | DL40: 0 | DM40: 0 | DN40: 0 | DO40: 0 | DP40: 0 | DQ40: 0 | DR40: 0 | DS40: 0 | DT40: 0 | DU40: 0 | DV40: 0 | DW40: 0 | DX40: 0 | DY40: 0 | DZ40: 0 | EA40: 0 | EB40: 0 | EC40: 0 | ED40: 0 | EE40: 0 | EF40: 0 | EG40: 0 | EH40: 0 | EI40: 0 | EJ40: 0 | EK40: 0 | EL40: 0 | EM40: 0 | EN40: 0 | EO40: 0 | EP40: 0 | EQ40: 0 | ER40: 0 | ES40: 0 | ET40: 0 | EU40: 0 | EV40: 0 | EW40: 0 | EX40: 0 | EY40: 0 | EZ40: 0 | FA40: 0 | FB40: 0 | FC40: 0 | FD40: 0 | FE40: 0 | FF40: 0 | FG40: 0 | FH40: 0 | FI40: 0 | FJ40: 0 | FK40: 0 | FL40: 0 | FM40: 0 | FN40: 0 | FO40: 0 | FP40: 0 | FQ40: 0 | FR40: 0 | FS40: 0 | FT40: 0 | FU40: 0 | FV40: 0 | FW40: 0 | FX40: 0 | FY40: 0 | FZ40: 0 | GA40: 0 | GB40: 0 | GC40: 0 | GD40: 0 | GE40: 0 | GF40: 0 | GG40: 0 | GH40: 0 | GI40: 0 | GJ40: 0
A41: 3 | D41: UNDERGROUND CABLES | E41: ˂ = 1 kv | F41: 181.1611 | G41: 74.36436526 | H41: 8.623477562 | I41: 2 | J41: 138 | K41: 0 | L41: 112 | M41: 126 | N41: 90 | O41: 100 | P41: 31 | Q41: 7 | R41: 5 | S41: 13 | T41: 7 | U41: 97 | V41: 97 | W41: 1 | X41: 46 | Y41: 50 | Z41: 52 | AA41: 48 | AB41: 2 | AC41: 0 | AD41: 15 | AE41: 15 | AF41: 0 | AG41: 445 | AH41: 450 | AI41: 35 | AJ41: 84 | AK41: 70 | AL41: 55 | AM41: 196 | AN41: 211 | AO41: 113 | AP41: 66 | AQ41: 335 | AR41: 393 | AS41: 155 | AT41: 151 | AU41: 360 | AV41: 533 | AW41: 303 | AX41: 219 | AY41: 577 | AZ41: 649 | BA41: 827 | BB41: 955 | BC41: 657 | BD41: 585 | BE41: 455 | BF41: 483 | BG41: 501 | BH41: 357 | BI41: 234 | BJ41: 175 | BK41: 314 | BL41: 328 | BM41: 125 | BN41: 59 | BO41: 108 | BP41: 124 | BQ41: 68 | BR41: 1 | BS41: 0 | BT41: 1 | BU41: 1 | BV41: 1 | BW41: 0 | BX41: 0 | BY41: 0 | BZ41: 0 | CA41: 0 | CB41: 0 | CC41: 0 | CD41: 0 | CE41: 2 | CF41: 5 | CG41: 3 | CH41: 0 | CI41: 0 | CJ41: 0 | CK41: 0 | CL41: 0 | CM41: 0 | CN41: 0 | CO41: 4 | CP41: 4 | CQ41: 0 | CR41: 0 | CS41: 0 | CT41: 0 | CU41: 0 | CV41: 0 | CX41: 25000.2318 | CY41: 0 | CZ41: 20290.0432 | DA41: 22826.2986 | DB41: 16304.499 | DC41: 18116.11 | DD41: 5615.9941 | DE41: 1268.1277 | DF41: 905.8055 | DG41: 2355.0943 | DH41: 1268.1277 | DI41: 17572.6267 | DJ41: 17572.6267 | DK41: 181.1611 | DL41: 8333.4106 | DM41: 9058.055 | DN41: 9420.3772 | DO41: 8695.7328 | DP41: 362.3222 | DQ41: 0 | DR41: 2717.4165 | DS41: 2717.4165 | DT41: 0 | DU41: 80616.6895 | DV41: 81522.495 | DW41: 6340.6385 | DX41: 15217.5324 | DY41: 12681.277 | DZ41: 9963.8605 | EA41: 35507.5756 | EB41: 38224.9921 | EC41: 20471.2043 | ED41: 11956.6326 | EE41: 60688.9685 | EF41: 71196.3123 | EG41: 28079.9705 | EH41: 27355.3261 | EI41: 65217.996 | EJ41: 96558.8663 | EK41: 54891.8133 | EL41: 39674.2809 | EM41: 104529.9547 | EN41: 117573.5539 | EO41: 149820.2297 | EP41: 173008.8505 | EQ41: 119022.8427 | ER41: 105979.2435 | ES41: 82428.3005 | ET41: 87500.8113 | EU41: 90761.7111 | EV41: 64674.5127 | EW41: 42391.6974 | EX41: 31703.1925 | EY41: 56884.5854 | EZ41: 59420.8408 | FA41: 22645.1375 | FB41: 10688.5049 | FC41: 19565.3988 | FD41: 22463.9764 | FE41: 12318.9548 | FF41: 181.1611 | FG41: 0 | FH41: 181.1611 | FI41: 181.1611 | FJ41: 181.1611 | FK41: 0 | FL41: 0 | FM41: 0 | FN41: 0 | FO41: 0 | FP41: 0 | FQ41: 0 | FR41: 0 | FS41: 362.3222 | FT41: 905.8055 | FU41: 543.4833 | FV41: 0 | FW41: 0 | FX41: 0 | FY41: 0 | FZ41: 0 | GA41: 0 | GB41: 0 | GC41: 724.6444 | GD41: 724.6444 | GE41: 0 | GF41: 0 | GG41: 0 | GH41: 0 | GI41: 0 | GJ41: 0
A42: 3 | D42: UNDERGROUND CABLES | E42: > 1 kv & < = 11 kv | F42: 1356.5981 | G42: 69.34665976 | H42: 8.327464186 | I42: 2 | J42: 63 | K42: 50 | L42: 145 | M42: 173 | N42: 159 | O42: 141 | P42: 104 | Q42: 87 | R42: 75 | S42: 66 | T42: 69 | U42: 68 | V42: 61 | W42: 40 | X42: 13 | Y42: 3 | Z42: 12 | AA42: 11 | AB42: 2 | AC42: 2 | AD42: 4 | AE42: 5 | AF42: 2 | AG42: 106 | AH42: 107 | AI42: 11 | AJ42: 13 | AK42: 9 | AL42: 16 | AM42: 43 | AN42: 55 | AO42: 32 | AP42: 12 | AQ42: 75 | AR42: 85 | AS42: 37 | AT42: 38 | AU42: 72 | AV42: 105 | AW42: 66 | AX42: 47 | AY42: 88 | AZ42: 121 | BA42: 198 | BB42: 199 | BC42: 119 | BD42: 129 | BE42: 115 | BF42: 116 | BG42: 111 | BH42: 66 | BI42: 49 | BJ42: 47 | BK42: 70 | BL42: 66 | BM42: 31 | BN42: 14 | BO42: 16 | BP42: 22 | BQ42: 12 | BR42: 0 | BS42: 0 | BT42: 0 | BU42: 0 | BV42: 0 | BW42: 0 | BX42: 0 | BY42: 0 | BZ42: 0 | CA42: 0 | CB42: 0 | CC42: 0 | CD42: 0 | CE42: 0 | CF42: 0 | CG42: 0 | CH42: 0 | CI42: 0 | CJ42: 0 | CK42: 0 | CL42: 0 | CM42: 0 | CN42: 0 | CO42: 0 | CP42: 0 | CQ42: 0 | CR42: 0 | CS42: 0 | CT42: 0 | CU42: 0 | CV42: 0 | CX42: 85465.6803 | CY42: 67829.905 | CZ42: 196706.7245 | DA42: 234691.4713 | DB42: 215699.0979 | DC42: 191280.3321 | DD42: 141086.2024 | DE42: 118024.0347 | DF42: 101744.8575 | DG42: 89535.4746 | DH42: 93605.2689 | DI42: 92248.6708 | DJ42: 82752.4841 | DK42: 54263.924 | DL42: 17635.7753 | DM42: 4069.7943 | DN42: 16279.1772 | DO42: 14922.5791 | DP42: 2713.1962 | DQ42: 2713.1962 | DR42: 5426.3924 | DS42: 6782.9905 | DT42: 2713.1962 | DU42: 143799.3986 | DV42: 145155.9967 | DW42: 14922.5791 | DX42: 17635.7753 | DY42: 12209.3829 | DZ42: 21705.5696 | EA42: 58333.7183 | EB42: 74612.8955 | EC42: 43411.1392 | ED42: 16279.1772 | EE42: 101744.8575 | EF42: 115310.8385 | EG42: 50194.1297 | EH42: 51550.7278 | EI42: 97675.0632 | EJ42: 142442.8005 | EK42: 89535.4746 | EL42: 63760.1107 | EM42: 119380.6328 | EN42: 164148.3701 | EO42: 268606.4238 | EP42: 269963.0219 | EQ42: 161435.1739 | ER42: 175001.1549 | ES42: 156008.7815 | ET42: 157365.3796 | EU42: 150582.3891 | EV42: 89535.4746 | EW42: 66473.3069 | EX42: 63760.1107 | EY42: 94961.867 | EZ42: 89535.4746 | FA42: 42054.5411 | FB42: 18992.3734 | FC42: 21705.5696 | FD42: 29845.1582 | FE42: 16279.1772 | FF42: 0 | FG42: 0 | FH42: 0 | FI42: 0 | FJ42: 0 | FK42: 0 | FL42: 0 | FM42: 0 | FN42: 0 | FO42: 0 | FP42: 0 | FQ42: 0 | FR42: 0 | FS42: 0 | FT42: 0 | FU42: 0 | FV42: 0 | FW42: 0 | FX42: 0 | FY42: 0 | FZ42: 0 | GA42: 0 | GB42: 0 | GC42: 0 | GD42: 0 | GE42: 0 | GF42: 0 | GG42: 0 | GH42: 0 | GI42: 0 | GJ42: 0
A43: 3 | D43: UNDERGROUND CABLES | E43: > 11 kv & < = 22 kv | F43: 2186.261 | G43: 74.24528224 | H43: 8.616570213 | I43: 2 | J43: 3 | K43: 0 | L43: 0 | M43: 1 | N43: 1 | O43: 1 | P43: 1 | Q43: 0 | R43: 0 | S43: 1 | T43: 1 | U43: 0 | V43: 0 | W43: 0 | X43: 0 | Y43: 0 | Z43: 0 | AA43: 0 | AB43: 0 | AC43: 0 | AD43: 0 | AE43: 0 | AF43: 0 | AG43: 1 | AH43: 1 | AI43: 0 | AJ43: 1 | AK43: 2 | AL43: 1 | AM43: 0 | AN43: 0 | AO43: 0 | AP43: 0 | AQ43: 0 | AR43: 0 | AS43: 0 | AT43: 0 | AU43: 0 | AV43: 1 | AW43: 1 | AX43: 1 | AY43: 1 | AZ43: 3 | BA43: 4 | BB43: 2 | BC43: 1 | BD43: 1 | BE43: 1 | BF43: 1 | BG43: 1 | BH43: 3 | BI43: 6 | BJ43: 5 | BK43: 5 | BL43: 4 | BM43: 0 | BN43: 0 | BO43: 0 | BP43: 0 | BQ43: 0 | BR43: 0 | BS43: 0 | BT43: 0 | BU43: 0 | BV43: 0 | BW43: 0 | BX43: 0 | BY43: 0 | BZ43: 0 | CA43: 0 | CB43: 0 | CC43: 0 | CD43: 0 | CE43: 0 | CF43: 0 | CG43: 0 | CH43: 0 | CI43: 0 | CJ43: 0 | CK43: 0 | CL43: 0 | CM43: 0 | CN43: 0 | CO43: 0 | CP43: 0 | CQ43: 0 | CR43: 0 | CS43: 0 | CT43: 0 | CU43: 0 | CV43: 0 | CX43: 6558.783 | CY43: 0 | CZ43: 0 | DA43: 2186.261 | DB43: 2186.261 | DC43: 2186.261 | DD43: 2186.261 | DE43: 0 | DF43: 0 | DG43: 2186.261 | DH43: 2186.261 | DI43: 0 | DJ43: 0 | DK43: 0 | DL43: 0 | DM43: 0 | DN43: 0 | DO43: 0 | DP43: 0 | DQ43: 0 | DR43: 0 | DS43: 0 | DT43: 0 | DU43: 2186.261 | DV43: 2186.261 | DW43: 0 | DX43: 2186.261 | DY43: 4372.522 | DZ43: 2186.261 | EA43: 0 | EB43: 0 | EC43: 0 | ED43: 0 | EE43: 0 | EF43: 0 | EG43: 0 | EH43: 0 | EI43: 0 | EJ43: 2186.261 | EK43: 2186.261 | EL43: 2186.261 | EM43: 2186.261 | EN43: 6558.783 | EO43: 8745.044 | EP43: 4372.522 | EQ43: 2186.261 | ER43: 2186.261 | ES43: 2186.261 | ET43: 2186.261 | EU43: 2186.261 | EV43: 6558.783 | EW43: 13117.566 | EX43: 10931.305 | EY43: 10931.305 | EZ43: 8745.044 | FA43: 0 | FB43: 0 | FC43: 0 | FD43: 0 | FE43: 0 | FF43: 0 | FG43: 0 | FH43: 0 | FI43: 0 | FJ43: 0 | FK43: 0 | FL43: 0 | FM43: 0 | FN43: 0 | FO43: 0 | FP43: 0 | FQ43: 0 | FR43: 0 | FS43: 0 | FT43: 0 | FU43: 0 | FV43: 0 | FW43: 0 | FX43: 0 | FY43: 0 | FZ43: 0 | GA43: 0 | GB43: 0 | GC43: 0 | GD43: 0 | GE43: 0 | GF43: 0 | GG43: 0 | GH43: 0 | GI43: 0 | GJ43: 0
A44: 3 | D44: UNDERGROUND CABLES | E44: > 22 kv & < = 33 kv | F44: 1415.1719 | G44: 89.22928383 | H44: 9.446125334 | I44: 2 | J44: 3 | K44: 1 | L44: 5 | M44: 4 | N44: 2 | O44: 8 | P44: 9 | Q44: 6 | R44: 9 | S44: 6 | T44: 2 | U44: 1 | V44: 1 | W44: 1 | X44: 0 | Y44: 0 | Z44: 0 | AA44: 0 | AB44: 1 | AC44: 1 | AD44: 0 | AE44: 0 | AF44: 1 | AG44: 1 | AH44: 1 | AI44: 1 | AJ44: 1 | AK44: 1 | AL44: 0 | AM44: 0 | AN44: 0 | AO44: 0 | AP44: 0 | AQ44: 0 | AR44: 0 | AS44: 0 | AT44: 0 | AU44: 0 | AV44: 0 | AW44: 0 | AX44: 2 | AY44: 2 | AZ44: 1 | BA44: 1 | BB44: 0 | BC44: 0 | BD44: 2 | BE44: 2 | BF44: 5 | BG44: 5 | BH44: 0 | BI44: 3 | BJ44: 3 | BK44: 4 | BL44: 4 | BM44: 1 | BN44: 2 | BO44: 2 | BP44: 1 | BQ44: 0 | BR44: 0 | BS44: 0 | BT44: 0 | BU44: 1 | BV44: 1 | BW44: 0 | BX44: 0 | BY44: 1 | BZ44: 1 | CA44: 0 | CB44: 0 | CC44: 0 | CD44: 0 | CE44: 1 | CF44: 3 | CG44: 2 | CH44: 0 | CI44: 0 | CJ44: 0 | CK44: 0 | CL44: 0 | CM44: 0 | CN44: 0 | CO44: 0 | CP44: 0 | CQ44: 0 | CR44: 0 | CS44: 0 | CT44: 0 | CU44: 0 | CV44: 0 | CX44: 4245.5157 | CY44: 1415.1719 | CZ44: 7075.8595 | DA44: 5660.6876 | DB44: 2830.3438 | DC44: 11321.3752 | DD44: 12736.5471 | DE44: 8491.0314 | DF44: 12736.5471 | DG44: 8491.0314 | DH44: 2830.3438 | DI44: 1415.1719 | DJ44: 1415.1719 | DK44: 1415.1719 | DL44: 0 | DM44: 0 | DN44: 0 | DO44: 0 | DP44: 1415.1719 | DQ44: 1415.1719 | DR44: 0 | DS44: 0 | DT44: 1415.1719 | DU44: 1415.1719 | DV44: 1415.1719 | DW44: 1415.1719 | DX44: 1415.1719 | DY44: 1415.1719 | DZ44: 0 | EA44: 0 | EB44: 0 | EC44: 0 | ED44: 0 | EE44: 0 | EF44: 0 | EG44: 0 | EH44: 0 | EI44: 0 | EJ44: 0 | EK44: 0 | EL44: 2830.3438 | EM44: 2830.3438 | EN44: 1415.1719 | EO44: 1415.1719 | EP44: 0 | EQ44: 0 | ER44: 2830.3438 | ES44: 2830.3438 | ET44: 7075.8595 | EU44: 7075.8595 | EV44: 0 | EW44: 4245.5157 | EX44: 4245.5157 | EY44: 5660.6876 | EZ44: 5660.6876 | FA44: 1415.1719 | FB44: 2830.3438 | FC44: 2830.3438 | FD44: 1415.1719 | FE44: 0 | FF44: 0 | FG44: 0 | FH44: 0 | FI44: 1415.1719 | FJ44: 1415.1719 | FK44: 0 | FL44: 0 | FM44: 1415.1719 | FN44: 1415.1719 | FO44: 0 | FP44: 0 | FQ44: 0 | FR44: 0 | FS44: 1415.1719 | FT44: 4245.5157 | FU44: 2830.3438 | FV44: 0 | FW44: 0 | FX44: 0 | FY44: 0 | FZ44: 0 | GA44: 0 | GB44: 0 | GC44: 0 | GD44: 0 | GE44: 0 | GF44: 0 | GG44: 0 | GH44: 0 | GI44: 0 | GJ44: 0
A45: 3 | D45: UNDERGROUND CABLES | E45: > 33 kv & < = 66 kv | F45: 0.5757 | G45: 80 | H45: 8.94427191 | I45: 2 | J45: 0 | K45: 0 | L45: 1 | M45: 3 | N45: 3 | O45: 1 | P45: 0 | Q45: 0 | R45: 0 | S45: 0 | T45: 0 | U45: 0 | V45: 0 | W45: 0 | X45: 5 | Y45: 0 | Z45: 0 | AA45: 1 | AB45: 1 | AC45: 0 | AD45: 0 | AE45: 0 | AF45: 2 | AG45: 4 | AH45: 1 | AI45: 0 | AJ45: 1 | AK45: 1 | AL45: 0 | AM45: 0 | AN45: 0 | AO45: 0 | AP45: 0 | AQ45: 0 | AR45: 6 | AS45: 6 | AT45: 1 | AU45: 0 | AV45: 0 | AW45: 0 | AX45: 2 | AY45: 2 | AZ45: 0 | BA45: 0 | BB45: 1 | BC45: 1 | BD45: 1 | BE45: 0 | BF45: 0 | BG45: 0 | BH45: 0 | BI45: 0 | BJ45: 0 | BK45: 0 | BL45: 0 | BM45: 0 | BN45: 0 | BO45: 0 | BP45: 0 | BQ45: 0 | BR45: 0 | BS45: 0 | BT45: 0 | BU45: 0 | BV45: 0 | BW45: 0 | BX45: 0 | BY45: 0 | BZ45: 0 | CA45: 0 | CB45: 0 | CC45: 0 | CD45: 0 | CE45: 0 | CF45: 0 | CG45: 0 | CH45: 0 | CI45: 0 | CJ45: 0 | CK45: 0 | CL45: 0 | CM45: 0 | CN45: 0 | CO45: 0 | CP45: 0 | CQ45: 0 | CR45: 0 | CS45: 0 | CT45: 0 | CU45: 0 | CV45: 0 | CX45: 0 | CY45: 0 | CZ45: 0.5757 | DA45: 1.7271 | DB45: 1.7271 | DC45: 0.5757 | DD45: 0 | DE45: 0 | DF45: 0 | DG45: 0 | DH45: 0 | DI45: 0 | DJ45: 0 | DK45: 0 | DL45: 2.8785 | DM45: 0 | DN45: 0 | DO45: 0.5757 | DP45: 0.5757 | DQ45: 0 | DR45: 0 | DS45: 0 | DT45: 1.1514 | DU45: 2.3028 | DV45: 0.5757 | DW45: 0 | DX45: 0.5757 | DY45: 0.5757 | DZ45: 0 | EA45: 0 | EB45: 0 | EC45: 0 | ED45: 0 | EE45: 0 | EF45: 3.4542 | EG45: 3.4542 | EH45: 0.5757 | EI45: 0 | EJ45: 0 | EK45: 0 | EL45: 1.1514 | EM45: 1.1514 | EN45: 0 | EO45: 0 | EP45: 0.5757 | EQ45: 0.5757 | ER45: 0.5757 | ES45: 0 | ET45: 0 | EU45: 0 | EV45: 0 | EW45: 0 | EX45: 0 | EY45: 0 | EZ45: 0 | FA45: 0 | FB45: 0 | FC45: 0 | FD45: 0 | FE45: 0 | FF45: 0 | FG45: 0 | FH45: 0 | FI45: 0 | FJ45: 0 | FK45: 0 | FL45: 0 | FM45: 0 | FN45: 0 | FO45: 0 | FP45: 0 | FQ45: 0 | FR45: 0 | FS45: 0 | FT45: 0 | FU45: 0 | FV45: 0 | FW45: 0 | FX45: 0 | FY45: 0 | FZ45: 0 | GA45: 0 | GB45: 0 | GC45: 0 | GD45: 0 | GE45: 0 | GF45: 0 | GG45: 0 | GH45: 0 | GI45: 0 | GJ45: 0
E46: > 66 kv & < = 132 kv | F46: 0 | G46: 0 | H46: 0 | I46: 2 | J46: 0 | K46: 0 | L46: 0 | M46: 0 | N46: 0 | O46: 0 | P46: 0 | Q46: 0 | R46: 0 | S46: 0 | T46: 0 | U46: 0 | V46: 0 | W46: 0 | X46: 0 | Y46: 0 | Z46: 0 | AA46: 0 | AB46: 0 | AC46: 0 | AD46: 0 | AE46: 0 | AF46: 0 | AG46: 0 | AH46: 0 | AI46: 0 | AJ46: 0 | AK46: 0 | AL46: 0 | AM46: 0 | AN46: 0 | AO46: 0 | AP46: 0 | AQ46: 0 | AR46: 0 | AS46: 0 | AT46: 0 | AU46: 0 | AV46: 0 | AW46: 0 | AX46: 0 | AY46: 0 | AZ46: 0 | BA46: 0 | BB46: 0 | BC46: 0 | BD46: 0 | BE46: 0 | BF46: 0 | BG46: 0 | BH46: 0 | BI46: 0 | BJ46: 0 | BK46: 0 | BL46: 0 | BM46: 0 | BN46: 0 | BO46: 0 | BP46: 0 | BQ46: 0 | BR46: 0 | BS46: 0 | BT46: 0 | BU46: 0 | BV46: 0 | BW46: 0 | BX46: 0 | BY46: 0 | BZ46: 0 | CA46: 0 | CB46: 0 | CC46: 0 | CD46: 0 | CE46: 0 | CF46: 0 | CG46: 0 | CH46: 0 | CI46: 0 | CJ46: 0 | CK46: 0 | CL46: 0 | CM46: 0 | CN46: 0 | CO46: 0 | CP46: 0 | CQ46: 0 | CR46: 0 | CS46: 0 | CT46: 0 | CU46: 0 | CV46: 0 | CX46: 0 | CY46: 0 | CZ46: 0 | DA46: 0 | DB46: 0 | DC46: 0 | DD46: 0 | DE46: 0 | DF46: 0 | DG46: 0 | DH46: 0 | DI46: 0 | DJ46: 0 | DK46: 0 | DL46: 0 | DM46: 0 | DN46: 0 | DO46: 0 | DP46: 0 | DQ46: 0 | DR46: 0 | DS46: 0 | DT46: 0 | DU46: 0 | DV46: 0 | DW46: 0 | DX46: 0 | DY46: 0 | DZ46: 0 | EA46: 0 | EB46: 0 | EC46: 0 | ED46: 0 | EE46: 0 | EF46: 0 | EG46: 0 | EH46: 0 | EI46: 0 | EJ46: 0 | EK46: 0 | EL46: 0 | EM46: 0 | EN46: 0 | EO46: 0 | EP46: 0 | EQ46: 0 | ER46: 0 | ES46: 0 | ET46: 0 | EU46: 0 | EV46: 0 | EW46: 0 | EX46: 0 | EY46: 0 | EZ46: 0 | FA46: 0 | FB46: 0 | FC46: 0 | FD46: 0 | FE46: 0 | FF46: 0 | FG46: 0 | FH46: 0 | FI46: 0 | FJ46: 0 | FK46: 0 | FL46: 0 | FM46: 0 | FN46: 0 | FO46: 0 | FP46: 0 | FQ46: 0 | FR46: 0 | FS46: 0 | FT46: 0 | FU46: 0 | FV46: 0 | FW46: 0 | FX46: 0 | FY46: 0 | FZ46: 0 | GA46: 0 | GB46: 0 | GC46: 0 | GD46: 0 | GE46: 0 | GF46: 0 | GG46: 0 | GH46: 0 | GI46: 0 | GJ46: 0
E47: > 132 kv | F47: 0 | G47: 0 | H47: 0 | I47: 2 | J47: 0 | K47: 0 | L47: 0 | M47: 0 | N47: 0 | O47: 0 | P47: 0 | Q47: 0 | R47: 0 | S47: 0 | T47: 0 | U47: 0 | V47: 0 | W47: 0 | X47: 0 | Y47: 0 | Z47: 0 | AA47: 0 | AB47: 0 | AC47: 0 | AD47: 0 | AE47: 0 | AF47: 0 | AG47: 0 | AH47: 0 | AI47: 0 | AJ47: 0 | AK47: 0 | AL47: 0 | AM47: 0 | AN47: 0 | AO47: 0 | AP47: 0 | AQ47: 0 | AR47: 0 | AS47: 0 | AT47: 0 | AU47: 0 | AV47: 0 | AW47: 0 | AX47: 0 | AY47: 0 | AZ47: 0 | BA47: 0 | BB47: 0 | BC47: 0 | BD47: 0 | BE47: 0 | BF47: 0 | BG47: 0 | BH47: 0 | BI47: 0 | BJ47: 0 | BK47: 0 | BL47: 0 | BM47: 0 | BN47: 0 | BO47: 0 | BP47: 0 | BQ47: 0 | BR47: 0 | BS47: 0 | BT47: 0 | BU47: 0 | BV47: 0 | BW47: 0 | BX47: 0 | BY47: 0 | BZ47: 0 | CA47: 0 | CB47: 0 | CC47: 0 | CD47: 0 | CE47: 0 | CF47: 0 | CG47: 0 | CH47: 0 | CI47: 0 | CJ47: 0 | CK47: 0 | CL47: 0 | CM47: 0 | CN47: 0 | CO47: 0 | CP47: 0 | CQ47: 0 | CR47: 0 | CS47: 0 | CT47: 0 | CU47: 0 | CV47: 0 | CX47: 0 | CY47: 0 | CZ47: 0 | DA47: 0 | DB47: 0 | DC47: 0 | DD47: 0 | DE47: 0 | DF47: 0 | DG47: 0 | DH47: 0 | DI47: 0 | DJ47: 0 | DK47: 0 | DL47: 0 | DM47: 0 | DN47: 0 | DO47: 0 | DP47: 0 | DQ47: 0 | DR47: 0 | DS47: 0 | DT47: 0 | DU47: 0 | DV47: 0 | DW47: 0 | DX47: 0 | DY47: 0 | DZ47: 0 | EA47: 0 | EB47: 0 | EC47: 0 | ED47: 0 | EE47: 0 | EF47: 0 | EG47: 0 | EH47: 0 | EI47: 0 | EJ47: 0 | EK47: 0 | EL47: 0 | EM47: 0 | EN47: 0 | EO47: 0 | EP47: 0 | EQ47: 0 | ER47: 0 | ES47: 0 | ET47: 0 | EU47: 0 | EV47: 0 | EW47: 0 | EX47: 0 | EY47: 0 | EZ47: 0 | FA47: 0 | FB47: 0 | FC47: 0 | FD47: 0 | FE47: 0 | FF47: 0 | FG47: 0 | FH47: 0 | FI47: 0 | FJ47: 0 | FK47: 0 | FL47: 0 | FM47: 0 | FN47: 0 | FO47: 0 | FP47: 0 | FQ47: 0 | FR47: 0 | FS47: 0 | FT47: 0 | FU47: 0 | FV47: 0 | FW47: 0 | FX47: 0 | FY47: 0 | FZ47: 0 | GA47: 0 | GB47: 0 | GC47: 0 | GD47: 0 | GE47: 0 | GF47: 0 | GG47: 0 | GH47: 0 | GI47: 0 | GJ47: 0
E48: other | F48: 0 | G48: 0 | H48: 0 | I48: 2 | J48: 0 | K48: 0 | L48: 0 | M48: 0 | N48: 0 | O48: 0 | P48: 0 | Q48: 0 | R48: 0 | S48: 0 | T48: 0 | U48: 0 | V48: 0 | W48: 0 | X48: 0 | Y48: 0 | Z48: 0 | AA48: 0 | AB48: 0 | AC48: 0 | AD48: 0 | AE48: 0 | AF48: 0 | AG48: 0 | AH48: 0 | AI48: 0 | AJ48: 0 | AK48: 0 | AL48: 0 | AM48: 0 | AN48: 0 | AO48: 0 | AP48: 0 | AQ48: 0 | AR48: 0 | AS48: 0 | AT48: 0 | AU48: 0 | AV48: 0 | AW48: 0 | AX48: 0 | AY48: 0 | AZ48: 0 | BA48: 0 | BB48: 0 | BC48: 0 | BD48: 0 | BE48: 0 | BF48: 0 | BG48: 0 | BH48: 0 | BI48: 0 | BJ48: 0 | BK48: 0 | BL48: 0 | BM48: 0 | BN48: 0 | BO48: 0 | BP48: 0 | BQ48: 0 | BR48: 0 | BS48: 0 | BT48: 0 | BU48: 0 | BV48: 0 | BW48: 0 | BX48: 0 | BY48: 0 | BZ48: 0 | CA48: 0 | CB48: 0 | CC48: 0 | CD48: 0 | CE48: 0 | CF48: 0 | CG48: 0 | CH48: 0 | CI48: 0 | CJ48: 0 | CK48: 0 | CL48: 0 | CM48: 0 | CN48: 0 | CO48: 0 | CP48: 0 | CQ48: 0 | CR48: 0 | CS48: 0 | CT48: 0 | CU48: 0 | CV48: 0 | CX48: 0 | CY48: 0 | CZ48: 0 | DA48: 0 | DB48: 0 | DC48: 0 | DD48: 0 | DE48: 0 | DF48: 0 | DG48: 0 | DH48: 0 | DI48: 0 | DJ48: 0 | DK48: 0 | DL48: 0 | DM48: 0 | DN48: 0 | DO48: 0 | DP48: 0 | DQ48: 0 | DR48: 0 | DS48: 0 | DT48: 0 | DU48: 0 | DV48: 0 | DW48: 0 | DX48: 0 | DY48: 0 | DZ48: 0 | EA48: 0 | EB48: 0 | EC48: 0 | ED48: 0 | EE48: 0 | EF48: 0 | EG48: 0 | EH48: 0 | EI48: 0 | EJ48: 0 | EK48: 0 | EL48: 0 | EM48: 0 | EN48: 0 | EO48: 0 | EP48: 0 | EQ48: 0 | ER48: 0 | ES48: 0 | ET48: 0 | EU48: 0 | EV48: 0 | EW48: 0 | EX48: 0 | EY48: 0 | EZ48: 0 | FA48: 0 | FB48: 0 | FC48: 0 | FD48: 0 | FE48: 0 | FF48: 0 | FG48: 0 | FH48: 0 | FI48: 0 | FJ48: 0 | FK48: 0 | FL48: 0 | FM48: 0 | FN48: 0 | FO48: 0 | FP48: 0 | FQ48: 0 | FR48: 0 | FS48: 0 | FT48: 0 | FU48: 0 | FV48: 0 | FW48: 0 | FX48: 0 | FY48: 0 | FZ48: 0 | GA48: 0 | GB48: 0 | GC48: 0 | GD48: 0 | GE48: 0 | GF48: 0 | GG48: 0 | GH48: 0 | GI48: 0 | GJ48: 0
A49: 4 | D49: SERVICE LINES | E49: ˂ = 11 kv ; residential ; simple type | F49: 0.525 | G49: 57.093362 | H49: 7.556014955 | I49: 2 | J49: 13315 | K49: 5803 | L49: 6454 | M49: 7928 | N49: 8539 | O49: 8756 | P49: 8607 | Q49: 8302 | R49: 8357 | S49: 8631 | T49: 9607 | U49: 11477 | V49: 13145 | W49: 14986 | X49: 14238 | Y49: 11711 | Z49: 10625 | AA49: 10196 | AB49: 11618 | AC49: 14504 | AD49: 15997 | AE49: 16273 | AF49: 16491 | AG49: 15826 | AH49: 15392 | AI49: 15612 | AJ49: 16043 | AK49: 16566 | AL49: 16276 | AM49: 16247 | AN49: 15054 | AO49: 12707 | AP49: 11648 | AQ49: 10039 | AR49: 7843 | AS49: 6923 | AT49: 7564 | AU49: 11936 | AV49: 15690 | AW49: 15583 | AX49: 17652 | AY49: 14908 | AZ49: 15049 | BA49: 10068 | BB49: 8741 | BC49: 8708 | BD49: 9871 | BE49: 9873 | BF49: 9841 | BG49: 9840 | BH49: 6875 | BI49: 6878 | BJ49: 21947 | BK49: 21950 | BL49: 4216 | BM49: 4209 | BN49: 2098 | BO49: 2098 | BP49: 483 | BQ49: 483 | BR49: 171 | BS49: 171 | BT49: 143 | BU49: 144 | BV49: 85 | BW49: 84 | BX49: 37 | BY49: 37 | BZ49: 11 | CA49: 11 | CB49: 4 | CC49: 4 | CD49: 17 | CE49: 17 | CF49: 0 | CG49: 0 | CH49: 0 | CI49: 0 | CJ49: 0 | CK49: 0 | CL49: 0 | CM49: 0 | CN49: 0 | CO49: 0 | CP49: 0 | CQ49: 0 | CR49: 0 | CS49: 0 | CT49: 0 | CU49: 0 | CV49: 0 | CX49: 6990.375 | CY49: 3046.575 | CZ49: 3388.35 | DA49: 4162.2 | DB49: 4482.975 | DC49: 4596.9 | DD49: 4518.675 | DE49: 4358.55 | DF49: 4387.425 | DG49: 4531.275 | DH49: 5043.675 | DI49: 6025.425 | DJ49: 6901.125 | DK49: 7867.65 | DL49: 7474.95 | DM49: 6148.275 | DN49: 5578.125 | DO49: 5352.9 | DP49: 6099.45 | DQ49: 7614.6 | DR49: 8398.425 | DS49: 8543.325 | DT49: 8657.775 | DU49: 8308.65 | DV49: 8080.8 | DW49: 8196.3 | DX49: 8422.575 | DY49: 8697.15 | DZ49: 8544.9 | EA49: 8529.675 | EB49: 7903.35 | EC49: 6671.175 | ED49: 6115.2 | EE49: 5270.475 | EF49: 4117.575 | EG49: 3634.575 | EH49: 3971.1 | EI49: 6266.4 | EJ49: 8237.25 | EK49: 8181.075 | EL49: 9267.3 | EM49: 7826.7 | EN49: 7900.725 | EO49: 5285.7 | EP49: 4589.025 | EQ49: 4571.7 | ER49: 5182.275 | ES49: 5183.325 | ET49: 5166.525 | EU49: 5166 | EV49: 3609.375 | EW49: 3610.95 | EX49: 11522.175 | EY49: 11523.75 | EZ49: 2213.4 | FA49: 2209.725 | FB49: 1101.45 | FC49: 1101.45 | FD49: 253.575 | FE49: 253.575 | FF49: 89.775 | FG49: 89.775 | FH49: 75.075 | FI49: 75.6 | FJ49: 44.625 | FK49: 44.1 | FL49: 19.425 | FM49: 19.425 | FN49: 5.775 | FO49: 5.775 | FP49: 2.1 | FQ49: 2.1 | FR49: 8.925 | FS49: 8.925 | FT49: 0 | FU49: 0 | FV49: 0 | FW49: 0 | FX49: 0 | FY49: 0 | FZ49: 0 | GA49: 0 | GB49: 0 | GC49: 0 | GD49: 0 | GE49: 0 | GF49: 0 | GG49: 0 | GH49: 0 | GI49: 0 | GJ49: 0
E50: ˂ = 11 kv ; commercial & industrial ; simple type | F50: 0 | G50: 0 | H50: 0 | I50: 2 | J50: 0 | K50: 0 | L50: 0 | M50: 0 | N50: 0 | O50: 0 | P50: 0 | Q50: 0 | R50: 0 | S50: 0 | T50: 0 | U50: 0 | V50: 0 | W50: 0 | X50: 0 | Y50: 0 | Z50: 0 | AA50: 0 | AB50: 0 | AC50: 0 | AD50: 0 | AE50: 0 | AF50: 0 | AG50: 0 | AH50: 0 | AI50: 0 | AJ50: 0 | AK50: 0 | AL50: 0 | AM50: 0 | AN50: 0 | AO50: 0 | AP50: 0 | AQ50: 0 | AR50: 0 | AS50: 0 | AT50: 0 | AU50: 0 | AV50: 0 | AW50: 0 | AX50: 0 | AY50: 0 | AZ50: 0 | BA50: 0 | BB50: 0 | BC50: 0 | BD50: 0 | BE50: 0 | BF50: 0 | BG50: 0 | BH50: 0 | BI50: 0 | BJ50: 0 | BK50: 0 | BL50: 0 | BM50: 0 | BN50: 0 | BO50: 0 | BP50: 0 | BQ50: 0 | BR50: 0 | BS50: 0 | BT50: 0 | BU50: 0 | BV50: 0 | BW50: 0 | BX50: 0 | BY50: 0 | BZ50: 0 | CA50: 0 | CB50: 0 | CC50: 0 | CD50: 0 | CE50: 0 | CF50: 0 | CG50: 0 | CH50: 0 | CI50: 0 | CJ50: 0 | CK50: 0 | CL50: 0 | CM50: 0 | CN50: 0 | CO50: 0 | CP50: 0 | CQ50: 0 | CR50: 0 | CS50: 0 | CT50: 0 | CU50: 0 | CV50: 0 | CX50: 0 | CY50: 0 | CZ50: 0 | DA50: 0 | DB50: 0 | DC50: 0 | DD50: 0 | DE50: 0 | DF50: 0 | DG50: 0 | DH50: 0 | DI50: 0 | DJ50: 0 | DK50: 0 | DL50: 0 | DM50: 0 | DN50: 0 | DO50: 0 | DP50: 0 | DQ50: 0 | DR50: 0 | DS50: 0 | DT50: 0 | DU50: 0 | DV50: 0 | DW50: 0 | DX50: 0 | DY50: 0 | DZ50: 0 | EA50: 0 | EB50: 0 | EC50: 0 | ED50: 0 | EE50: 0 | EF50: 0 | EG50: 0 | EH50: 0 | EI50: 0 | EJ50: 0 | EK50: 0 | EL50: 0 | EM50: 0 | EN50: 0 | EO50: 0 | EP50: 0 | EQ50: 0 | ER50: 0 | ES50: 0 | ET50: 0 | EU50: 0 | EV50: 0 | EW50: 0 | EX50: 0 | EY50: 0 | EZ50: 0 | FA50: 0 | FB50: 0 | FC50: 0 | FD50: 0 | FE50: 0 | FF50: 0 | FG50: 0 | FH50: 0 | FI50: 0 | FJ50: 0 | FK50: 0 | FL50: 0 | FM50: 0 | FN50: 0 | FO50: 0 | FP50: 0 | FQ50: 0 | FR50: 0 | FS50: 0 | FT50: 0 | FU50: 0 | FV50: 0 | FW50: 0 | FX50: 0 | FY50: 0 | FZ50: 0 | GA50: 0 | GB50: 0 | GC50: 0 | GD50: 0 | GE50: 0 | GF50: 0 | GG50: 0 | GH50: 0 | GI50: 0 | GJ50: 0
E51: ˂ = 11 kv ; residential ; complex type | F51: 0 | G51: 0 | H51: 0 | I51: 2 | J51: 0 | K51: 0 | L51: 0 | M51: 0 | N51: 0 | O51: 0 | P51: 0 | Q51: 0 | R51: 0 | S51: 0 | T51: 0 | U51: 0 | V51: 0 | W51: 0 | X51: 0 | Y51: 0 | Z51: 0 | AA51: 0 | AB51: 0 | AC51: 0 | AD51: 0 | AE51: 0 | AF51: 0 | AG51: 0 | AH51: 0 | AI51: 0 | AJ51: 0 | AK51: 0 | AL51: 0 | AM51: 0 | AN51: 0 | AO51: 0 | AP51: 0 | AQ51: 0 | AR51: 0 | AS51: 0 | AT51: 0 | AU51: 0 | AV51: 0 | AW51: 0 | AX51: 0 | AY51: 0 | AZ51: 0 | BA51: 0 | BB51: 0 | BC51: 0 | BD51: 0 | BE51: 0 | BF51: 0 | BG51: 0 | BH51: 0 | BI51: 0 | BJ51: 0 | BK51: 0 | BL51: 0 | BM51: 0 | BN51: 0 | BO51: 0 | BP51: 0 | BQ51: 0 | BR51: 0 | BS51: 0 | BT51: 0 | BU51: 0 | BV51: 0 | BW51: 0 | BX51: 0 | BY51: 0 | BZ51: 0 | CA51: 0 | CB51: 0 | CC51: 0 | CD51: 0 | CE51: 0 | CF51: 0 | CG51: 0 | CH51: 0 | CI51: 0 | CJ51: 0 | CK51: 0 | CL51: 0 | CM51: 0 | CN51: 0 | CO51: 0 | CP51: 0 | CQ51: 0 | CR51: 0 | CS51: 0 | CT51: 0 | CU51: 0 | CV51: 0 | CX51: 0 | CY51: 0 | CZ51: 0 | DA51: 0 | DB51: 0 | DC51: 0 | DD51: 0 | DE51: 0 | DF51: 0 | DG51: 0 | DH51: 0 | DI51: 0 | DJ51: 0 | DK51: 0 | DL51: 0 | DM51: 0 | DN51: 0 | DO51: 0 | DP51: 0 | DQ51: 0 | DR51: 0 | DS51: 0 | DT51: 0 | DU51: 0 | DV51: 0 | DW51: 0 | DX51: 0 | DY51: 0 | DZ51: 0 | EA51: 0 | EB51: 0 | EC51: 0 | ED51: 0 | EE51: 0 | EF51: 0 | EG51: 0 | EH51: 0 | EI51: 0 | EJ51: 0 | EK51: 0 | EL51: 0 | EM51: 0 | EN51: 0 | EO51: 0 | EP51: 0 | EQ51: 0 | ER51: 0 | ES51: 0 | ET51: 0 | EU51: 0 | EV51: 0 | EW51: 0 | EX51: 0 | EY51: 0 | EZ51: 0 | FA51: 0 | FB51: 0 | FC51: 0 | FD51: 0 | FE51: 0 | FF51: 0 | FG51: 0 | FH51: 0 | FI51: 0 | FJ51: 0 | FK51: 0 | FL51: 0 | FM51: 0 | FN51: 0 | FO51: 0 | FP51: 0 | FQ51: 0 | FR51: 0 | FS51: 0 | FT51: 0 | FU51: 0 | FV51: 0 | FW51: 0 | FX51: 0 | FY51: 0 | FZ51: 0 | GA51: 0 | GB51: 0 | GC51: 0 | GD51: 0 | GE51: 0 | GF51: 0 | GG51: 0 | GH51: 0 | GI51: 0 | GJ51: 0
A52: 4 | D52: SERVICE LINES | E52: ˂ = 11 kv ; commercial & industrial ; complex type | F52: 0.567 | G52: 56.06536246 | H52: 7.487680713 | I52: 2 | J52: 1709 | K52: 901 | L52: 864 | M52: 844 | N52: 831 | O52: 868 | P52: 891 | Q52: 909 | R52: 956 | S52: 922 | T52: 1349 | U52: 1740 | V52: 2211 | W52: 2454 | X52: 2137 | Y52: 2025 | Z52: 1860 | AA52: 2012 | AB52: 2191 | AC52: 2126 | AD52: 1954 | AE52: 1909 | AF52: 1980 | AG52: 2048 | AH52: 2354 | AI52: 2413 | AJ52: 2354 | AK52: 2505 | AL52: 2251 | AM52: 1849 | AN52: 1836 | AO52: 1854 | AP52: 1736 | AQ52: 1608 | AR52: 1305 | AS52: 1070 | AT52: 1020 | AU52: 1111 | AV52: 1213 | AW52: 1197 | AX52: 1320 | AY52: 1181 | AZ52: 1402 | BA52: 933 | BB52: 943 | BC52: 937 | BD52: 1043 | BE52: 1045 | BF52: 1175 | BG52: 1173 | BH52: 781 | BI52: 782 | BJ52: 1481 | BK52: 1483 | BL52: 412 | BM52: 408 | BN52: 206 | BO52: 206 | BP52: 76 | BQ52: 76 | BR52: 30 | BS52: 30 | BT52: 27 | BU52: 27 | BV52: 16 | BW52: 16 | BX52: 9 | BY52: 9 | BZ52: 3 | CA52: 3 | CB52: 0 | CC52: 0 | CD52: 9 | CE52: 9 | CF52: 0 | CG52: 0 | CH52: 0 | CI52: 0 | CJ52: 0 | CK52: 0 | CL52: 0 | CM52: 0 | CN52: 0 | CO52: 0 | CP52: 0 | CQ52: 0 | CR52: 0 | CS52: 0 | CT52: 0 | CU52: 0 | CV52: 0 | CX52: 969.003 | CY52: 510.867 | CZ52: 489.888 | DA52: 478.548 | DB52: 471.177 | DC52: 492.156 | DD52: 505.197 | DE52: 515.403 | DF52: 542.052 | DG52: 522.774 | DH52: 764.883 | DI52: 986.58 | DJ52: 1253.637 | DK52: 1391.418 | DL52: 1211.679 | DM52: 1148.175 | DN52: 1054.62 | DO52: 1140.804 | DP52: 1242.297 | DQ52: 1205.442 | DR52: 1107.918 | DS52: 1082.403 | DT52: 1122.66 | DU52: 1161.216 | DV52: 1334.718 | DW52: 1368.171 | DX52: 1334.718 | DY52: 1420.335 | DZ52: 1276.317 | EA52: 1048.383 | EB52: 1041.012 | EC52: 1051.218 | ED52: 984.312 | EE52: 911.736 | EF52: 739.935 | EG52: 606.69 | EH52: 578.34 | EI52: 629.937 | EJ52: 687.771 | EK52: 678.699 | EL52: 748.44 | EM52: 669.627 | EN52: 794.934 | EO52: 529.011 | EP52: 534.681 | EQ52: 531.279 | ER52: 591.381 | ES52: 592.515 | ET52: 666.225 | EU52: 665.091 | EV52: 442.827 | EW52: 443.394 | EX52: 839.727 | EY52: 840.861 | EZ52: 233.604 | FA52: 231.336 | FB52: 116.802 | FC52: 116.802 | FD52: 43.092 | FE52: 43.092 | FF52: 17.01 | FG52: 17.01 | FH52: 15.309 | FI52: 15.309 | FJ52: 9.072 | FK52: 9.072 | FL52: 5.103 | FM52: 5.103 | FN52: 1.701 | FO52: 1.701 | FP52: 0 | FQ52: 0 | FR52: 5.103 | FS52: 5.103 | FT52: 0 | FU52: 0 | FV52: 0 | FW52: 0 | FX52: 0 | FY52: 0 | FZ52: 0 | GA52: 0 | GB52: 0 | GC52: 0 | GD52: 0 | GE52: 0 | GF52: 0 | GG52: 0 | GH52: 0 | GI52: 0 | GJ52: 0
E53: ˂ = 11 kv ; subdivision ; complex type | F53: 0 | G53: 0 | H53: 0 | I53: 2 | J53: 0 | K53: 0 | L53: 0 | M53: 0 | N53: 0 | O53: 0 | P53: 0 | Q53: 0 | R53: 0 | S53: 0 | T53: 0 | U53: 0 | V53: 0 | W53: 0 | X53: 0 | Y53: 0 | Z53: 0 | AA53: 0 | AB53: 0 | AC53: 0 | AD53: 0 | AE53: 0 | AF53: 0 | AG53: 0 | AH53: 0 | AI53: 0 | AJ53: 0 | AK53: 0 | AL53: 0 | AM53: 0 | AN53: 0 | AO53: 0 | AP53: 0 | AQ53: 0 | AR53: 0 | AS53: 0 | AT53: 0 | AU53: 0 | AV53: 0 | AW53: 0 | AX53: 0 | AY53: 0 | AZ53: 0 | BA53: 0 | BB53: 0 | BC53: 0 | BD53: 0 | BE53: 0 | BF53: 0 | BG53: 0 | BH53: 0 | BI53: 0 | BJ53: 0 | BK53: 0 | BL53: 0 | BM53: 0 | BN53: 0 | BO53: 0 | BP53: 0 | BQ53: 0 | BR53: 0 | BS53: 0 | BT53: 0 | BU53: 0 | BV53: 0 | BW53: 0 | BX53: 0 | BY53: 0 | BZ53: 0 | CA53: 0 | CB53: 0 | CC53: 0 | CD53: 0 | CE53: 0 | CF53: 0 | CG53: 0 | CH53: 0 | CI53: 0 | CJ53: 0 | CK53: 0 | CL53: 0 | CM53: 0 | CN53: 0 | CO53: 0 | CP53: 0 | CQ53: 0 | CR53: 0 | CS53: 0 | CT53: 0 | CU53: 0 | CV53: 0 | CX53: 0 | CY53: 0 | CZ53: 0 | DA53: 0 | DB53: 0 | DC53: 0 | DD53: 0 | DE53: 0 | DF53: 0 | DG53: 0 | DH53: 0 | DI53: 0 | DJ53: 0 | DK53: 0 | DL53: 0 | DM53: 0 | DN53: 0 | DO53: 0 | DP53: 0 | DQ53: 0 | DR53: 0 | DS53: 0 | DT53: 0 | DU53: 0 | DV53: 0 | DW53: 0 | DX53: 0 | DY53: 0 | DZ53: 0 | EA53: 0 | EB53: 0 | EC53: 0 | ED53: 0 | EE53: 0 | EF53: 0 | EG53: 0 | EH53: 0 | EI53: 0 | EJ53: 0 | EK53: 0 | EL53: 0 | EM53: 0 | EN53: 0 | EO53: 0 | EP53: 0 | EQ53: 0 | ER53: 0 | ES53: 0 | ET53: 0 | EU53: 0 | EV53: 0 | EW53: 0 | EX53: 0 | EY53: 0 | EZ53: 0 | FA53: 0 | FB53: 0 | FC53: 0 | FD53: 0 | FE53: 0 | FF53: 0 | FG53: 0 | FH53: 0 | FI53: 0 | FJ53: 0 | FK53: 0 | FL53: 0 | FM53: 0 | FN53: 0 | FO53: 0 | FP53: 0 | FQ53: 0 | FR53: 0 | FS53: 0 | FT53: 0 | FU53: 0 | FV53: 0 | FW53: 0 | FX53: 0 | FY53: 0 | FZ53: 0 | GA53: 0 | GB53: 0 | GC53: 0 | GD53: 0 | GE53: 0 | GF53: 0 | GG53: 0 | GH53: 0 | GI53: 0 | GJ53: 0
E54: > 11 kv & < = 22 kv ; commercial & industrial | F54: 0 | G54: 0 | H54: 0 | I54: 2 | J54: 0 | K54: 0 | L54: 0 | M54: 0 | N54: 0 | O54: 0 | P54: 0 | Q54: 0 | R54: 0 | S54: 0 | T54: 0 | U54: 0 | V54: 0 | W54: 0 | X54: 0 | Y54: 0 | Z54: 0 | AA54: 0 | AB54: 0 | AC54: 0 | AD54: 0 | AE54: 0 | AF54: 0 | AG54: 0 | AH54: 0 | AI54: 0 | AJ54: 0 | AK54: 0 | AL54: 0 | AM54: 0 | AN54: 0 | AO54: 0 | AP54: 0 | AQ54: 0 | AR54: 0 | AS54: 0 | AT54: 0 | AU54: 0 | AV54: 0 | AW54: 0 | AX54: 0 | AY54: 0 | AZ54: 0 | BA54: 0 | BB54: 0 | BC54: 0 | BD54: 0 | BE54: 0 | BF54: 0 | BG54: 0 | BH54: 0 | BI54: 0 | BJ54: 0 | BK54: 0 | BL54: 0 | BM54: 0 | BN54: 0 | BO54: 0 | BP54: 0 | BQ54: 0 | BR54: 0 | BS54: 0 | BT54: 0 | BU54: 0 | BV54: 0 | BW54: 0 | BX54: 0 | BY54: 0 | BZ54: 0 | CA54: 0 | CB54: 0 | CC54: 0 | CD54: 0 | CE54: 0 | CF54: 0 | CG54: 0 | CH54: 0 | CI54: 0 | CJ54: 0 | CK54: 0 | CL54: 0 | CM54: 0 | CN54: 0 | CO54: 0 | CP54: 0 | CQ54: 0 | CR54: 0 | CS54: 0 | CT54: 0 | CU54: 0 | CV54: 0 | CX54: 0 | CY54: 0 | CZ54: 0 | DA54: 0 | DB54: 0 | DC54: 0 | DD54: 0 | DE54: 0 | DF54: 0 | DG54: 0 | DH54: 0 | DI54: 0 | DJ54: 0 | DK54: 0 | DL54: 0 | DM54: 0 | DN54: 0 | DO54: 0 | DP54: 0 | DQ54: 0 | DR54: 0 | DS54: 0 | DT54: 0 | DU54: 0 | DV54: 0 | DW54: 0 | DX54: 0 | DY54: 0 | DZ54: 0 | EA54: 0 | EB54: 0 | EC54: 0 | ED54: 0 | EE54: 0 | EF54: 0 | EG54: 0 | EH54: 0 | EI54: 0 | EJ54: 0 | EK54: 0 | EL54: 0 | EM54: 0 | EN54: 0 | EO54: 0 | EP54: 0 | EQ54: 0 | ER54: 0 | ES54: 0 | ET54: 0 | EU54: 0 | EV54: 0 | EW54: 0 | EX54: 0 | EY54: 0 | EZ54: 0 | FA54: 0 | FB54: 0 | FC54: 0 | FD54: 0 | FE54: 0 | FF54: 0 | FG54: 0 | FH54: 0 | FI54: 0 | FJ54: 0 | FK54: 0 | FL54: 0 | FM54: 0 | FN54: 0 | FO54: 0 | FP54: 0 | FQ54: 0 | FR54: 0 | FS54: 0 | FT54: 0 | FU54: 0 | FV54: 0 | FW54: 0 | FX54: 0 | FY54: 0 | FZ54: 0 | GA54: 0 | GB54: 0 | GC54: 0 | GD54: 0 | GE54: 0 | GF54: 0 | GG54: 0 | GH54: 0 | GI54: 0 | GJ54: 0
E55: > 11 kv & < = 22 kv ; subdivision | F55: 0 | G55: 0 | H55: 0 | I55: 2 | J55: 0 | K55: 0 | L55: 0 | M55: 0 | N55: 0 | O55: 0 | P55: 0 | Q55: 0 | R55: 0 | S55: 0 | T55: 0 | U55: 0 | V55: 0 | W55: 0 | X55: 0 | Y55: 0 | Z55: 0 | AA55: 0 | AB55: 0 | AC55: 0 | AD55: 0 | AE55: 0 | AF55: 0 | AG55: 0 | AH55: 0 | AI55: 0 | AJ55: 0 | AK55: 0 | AL55: 0 | AM55: 0 | AN55: 0 | AO55: 0 | AP55: 0 | AQ55: 0 | AR55: 0 | AS55: 0 | AT55: 0 | AU55: 0 | AV55: 0 | AW55: 0 | AX55: 0 | AY55: 0 | AZ55: 0 | BA55: 0 | BB55: 0 | BC55: 0 | BD55: 0 | BE55: 0 | BF55: 0 | BG55: 0 | BH55: 0 | BI55: 0 | BJ55: 0 | BK55: 0 | BL55: 0 | BM55: 0 | BN55: 0 | BO55: 0 | BP55: 0 | BQ55: 0 | BR55: 0 | BS55: 0 | BT55: 0 | BU55: 0 | BV55: 0 | BW55: 0 | BX55: 0 | BY55: 0 | BZ55: 0 | CA55: 0 | CB55: 0 | CC55: 0 | CD55: 0 | CE55: 0 | CF55: 0 | CG55: 0 | CH55: 0 | CI55: 0 | CJ55: 0 | CK55: 0 | CL55: 0 | CM55: 0 | CN55: 0 | CO55: 0 | CP55: 0 | CQ55: 0 | CR55: 0 | CS55: 0 | CT55: 0 | CU55: 0 | CV55: 0 | CX55: 0 | CY55: 0 | CZ55: 0 | DA55: 0 | DB55: 0 | DC55: 0 | DD55: 0 | DE55: 0 | DF55: 0 | DG55: 0 | DH55: 0 | DI55: 0 | DJ55: 0 | DK55: 0 | DL55: 0 | DM55: 0 | DN55: 0 | DO55: 0 | DP55: 0 | DQ55: 0 | DR55: 0 | DS55: 0 | DT55: 0 | DU55: 0 | DV55: 0 | DW55: 0 | DX55: 0 | DY55: 0 | DZ55: 0 | EA55: 0 | EB55: 0 | EC55: 0 | ED55: 0 | EE55: 0 | EF55: 0 | EG55: 0 | EH55: 0 | EI55: 0 | EJ55: 0 | EK55: 0 | EL55: 0 | EM55: 0 | EN55: 0 | EO55: 0 | EP55: 0 | EQ55: 0 | ER55: 0 | ES55: 0 | ET55: 0 | EU55: 0 | EV55: 0 | EW55: 0 | EX55: 0 | EY55: 0 | EZ55: 0 | FA55: 0 | FB55: 0 | FC55: 0 | FD55: 0 | FE55: 0 | FF55: 0 | FG55: 0 | FH55: 0 | FI55: 0 | FJ55: 0 | FK55: 0 | FL55: 0 | FM55: 0 | FN55: 0 | FO55: 0 | FP55: 0 | FQ55: 0 | FR55: 0 | FS55: 0 | FT55: 0 | FU55: 0 | FV55: 0 | FW55: 0 | FX55: 0 | FY55: 0 | FZ55: 0 | GA55: 0 | GB55: 0 | GC55: 0 | GD55: 0 | GE55: 0 | GF55: 0 | GG55: 0 | GH55: 0 | GI55: 0 | GJ55: 0
E56: > 22 kv & < = 33 kv ; commercial & industrial | F56: 0 | G56: 0 | H56: 0 | I56: 2 | J56: 0 | K56: 0 | L56: 0 | M56: 0 | N56: 0 | O56: 0 | P56: 0 | Q56: 0 | R56: 0 | S56: 0 | T56: 0 | U56: 0 | V56: 0 | W56: 0 | X56: 0 | Y56: 0 | Z56: 0 | AA56: 0 | AB56: 0 | AC56: 0 | AD56: 0 | AE56: 0 | AF56: 0 | AG56: 0 | AH56: 0 | AI56: 0 | AJ56: 0 | AK56: 0 | AL56: 0 | AM56: 0 | AN56: 0 | AO56: 0 | AP56: 0 | AQ56: 0 | AR56: 0 | AS56: 0 | AT56: 0 | AU56: 0 | AV56: 0 | AW56: 0 | AX56: 0 | AY56: 0 | AZ56: 0 | BA56: 0 | BB56: 0 | BC56: 0 | BD56: 0 | BE56: 0 | BF56: 0 | BG56: 0 | BH56: 0 | BI56: 0 | BJ56: 0 | BK56: 0 | BL56: 0 | BM56: 0 | BN56: 0 | BO56: 0 | BP56: 0 | BQ56: 0 | BR56: 0 | BS56: 0 | BT56: 0 | BU56: 0 | BV56: 0 | BW56: 0 | BX56: 0 | BY56: 0 | BZ56: 0 | CA56: 0 | CB56: 0 | CC56: 0 | CD56: 0 | CE56: 0 | CF56: 0 | CG56: 0 | CH56: 0 | CI56: 0 | CJ56: 0 | CK56: 0 | CL56: 0 | CM56: 0 | CN56: 0 | CO56: 0 | CP56: 0 | CQ56: 0 | CR56: 0 | CS56: 0 | CT56: 0 | CU56: 0 | CV56: 0 | CX56: 0 | CY56: 0 | CZ56: 0 | DA56: 0 | DB56: 0 | DC56: 0 | DD56: 0 | DE56: 0 | DF56: 0 | DG56: 0 | DH56: 0 | DI56: 0 | DJ56: 0 | DK56: 0 | DL56: 0 | DM56: 0 | DN56: 0 | DO56: 0 | DP56: 0 | DQ56: 0 | DR56: 0 | DS56: 0 | DT56: 0 | DU56: 0 | DV56: 0 | DW56: 0 | DX56: 0 | DY56: 0 | DZ56: 0 | EA56: 0 | EB56: 0 | EC56: 0 | ED56: 0 | EE56: 0 | EF56: 0 | EG56: 0 | EH56: 0 | EI56: 0 | EJ56: 0 | EK56: 0 | EL56: 0 | EM56: 0 | EN56: 0 | EO56: 0 | EP56: 0 | EQ56: 0 | ER56: 0 | ES56: 0 | ET56: 0 | EU56: 0 | EV56: 0 | EW56: 0 | EX56: 0 | EY56: 0 | EZ56: 0 | FA56: 0 | FB56: 0 | FC56: 0 | FD56: 0 | FE56: 0 | FF56: 0 | FG56: 0 | FH56: 0 | FI56: 0 | FJ56: 0 | FK56: 0 | FL56: 0 | FM56: 0 | FN56: 0 | FO56: 0 | FP56: 0 | FQ56: 0 | FR56: 0 | FS56: 0 | FT56: 0 | FU56: 0 | FV56: 0 | FW56: 0 | FX56: 0 | FY56: 0 | FZ56: 0 | GA56: 0 | GB56: 0 | GC56: 0 | GD56: 0 | GE56: 0 | GF56: 0 | GG56: 0 | GH56: 0 | GI56: 0 | GJ56: 0
E57: > 22 kv & < = 33 kv ; subdivision | F57: 0 | G57: 0 | H57: 0 | I57: 2 | J57: 0 | K57: 0 | L57: 0 | M57: 0 | N57: 0 | O57: 0 | P57: 0 | Q57: 0 | R57: 0 | S57: 0 | T57: 0 | U57: 0 | V57: 0 | W57: 0 | X57: 0 | Y57: 0 | Z57: 0 | AA57: 0 | AB57: 0 | AC57: 0 | AD57: 0 | AE57: 0 | AF57: 0 | AG57: 0 | AH57: 0 | AI57: 0 | AJ57: 0 | AK57: 0 | AL57: 0 | AM57: 0 | AN57: 0 | AO57: 0 | AP57: 0 | AQ57: 0 | AR57: 0 | AS57: 0 | AT57: 0 | AU57: 0 | AV57: 0 | AW57: 0 | AX57: 0 | AY57: 0 | AZ57: 0 | BA57: 0 | BB57: 0 | BC57: 0 | BD57: 0 | BE57: 0 | BF57: 0 | BG57: 0 | BH57: 0 | BI57: 0 | BJ57: 0 | BK57: 0 | BL57: 0 | BM57: 0 | BN57: 0 | BO57: 0 | BP57: 0 | BQ57: 0 | BR57: 0 | BS57: 0 | BT57: 0 | BU57: 0 | BV57: 0 | BW57: 0 | BX57: 0 | BY57: 0 | BZ57: 0 | CA57: 0 | CB57: 0 | CC57: 0 | CD57: 0 | CE57: 0 | CF57: 0 | CG57: 0 | CH57: 0 | CI57: 0 | CJ57: 0 | CK57: 0 | CL57: 0 | CM57: 0 | CN57: 0 | CO57: 0 | CP57: 0 | CQ57: 0 | CR57: 0 | CS57: 0 | CT57: 0 | CU57: 0 | CV57: 0 | CX57: 0 | CY57: 0 | CZ57: 0 | DA57: 0 | DB57: 0 | DC57: 0 | DD57: 0 | DE57: 0 | DF57: 0 | DG57: 0 | DH57: 0 | DI57: 0 | DJ57: 0 | DK57: 0 | DL57: 0 | DM57: 0 | DN57: 0 | DO57: 0 | DP57: 0 | DQ57: 0 | DR57: 0 | DS57: 0 | DT57: 0 | DU57: 0 | DV57: 0 | DW57: 0 | DX57: 0 | DY57: 0 | DZ57: 0 | EA57: 0 | EB57: 0 | EC57: 0 | ED57: 0 | EE57: 0 | EF57: 0 | EG57: 0 | EH57: 0 | EI57: 0 | EJ57: 0 | EK57: 0 | EL57: 0 | EM57: 0 | EN57: 0 | EO57: 0 | EP57: 0 | EQ57: 0 | ER57: 0 | ES57: 0 | ET57: 0 | EU57: 0 | EV57: 0 | EW57: 0 | EX57: 0 | EY57: 0 | EZ57: 0 | FA57: 0 | FB57: 0 | FC57: 0 | FD57: 0 | FE57: 0 | FF57: 0 | FG57: 0 | FH57: 0 | FI57: 0 | FJ57: 0 | FK57: 0 | FL57: 0 | FM57: 0 | FN57: 0 | FO57: 0 | FP57: 0 | FQ57: 0 | FR57: 0 | FS57: 0 | FT57: 0 | FU57: 0 | FV57: 0 | FW57: 0 | FX57: 0 | FY57: 0 | FZ57: 0 | GA57: 0 | GB57: 0 | GC57: 0 | GD57: 0 | GE57: 0 | GF57: 0 | GG57: 0 | GH57: 0 | GI57: 0 | GJ57: 0
E58: > 33 kv & < = 66 kv ; commercial & industrial | F58: 0 | G58: 0 | H58: 0 | I58: 2 | J58: 0 | K58: 0 | L58: 0 | M58: 0 | N58: 0 | O58: 0 | P58: 0 | Q58: 0 | R58: 0 | S58: 0 | T58: 0 | U58: 0 | V58: 0 | W58: 0 | X58: 0 | Y58: 0 | Z58: 0 | AA58: 0 | AB58: 0 | AC58: 0 | AD58: 0 | AE58: 0 | AF58: 0 | AG58: 0 | AH58: 0 | AI58: 0 | AJ58: 0 | AK58: 0 | AL58: 0 | AM58: 0 | AN58: 0 | AO58: 0 | AP58: 0 | AQ58: 0 | AR58: 0 | AS58: 0 | AT58: 0 | AU58: 0 | AV58: 0 | AW58: 0 | AX58: 0 | AY58: 0 | AZ58: 0 | BA58: 0 | BB58: 0 | BC58: 0 | BD58: 0 | BE58: 0 | BF58: 0 | BG58: 0 | BH58: 0 | BI58: 0 | BJ58: 0 | BK58: 0 | BL58: 0 | BM58: 0 | BN58: 0 | BO58: 0 | BP58: 0 | BQ58: 0 | BR58: 0 | BS58: 0 | BT58: 0 | BU58: 0 | BV58: 0 | BW58: 0 | BX58: 0 | BY58: 0 | BZ58: 0 | CA58: 0 | CB58: 0 | CC58: 0 | CD58: 0 | CE58: 0 | CF58: 0 | CG58: 0 | CH58: 0 | CI58: 0 | CJ58: 0 | CK58: 0 | CL58: 0 | CM58: 0 | CN58: 0 | CO58: 0 | CP58: 0 | CQ58: 0 | CR58: 0 | CS58: 0 | CT58: 0 | CU58: 0 | CV58: 0 | CX58: 0 | CY58: 0 | CZ58: 0 | DA58: 0 | DB58: 0 | DC58: 0 | DD58: 0 | DE58: 0 | DF58: 0 | DG58: 0 | DH58: 0 | DI58: 0 | DJ58: 0 | DK58: 0 | DL58: 0 | DM58: 0 | DN58: 0 | DO58: 0 | DP58: 0 | DQ58: 0 | DR58: 0 | DS58: 0 | DT58: 0 | DU58: 0 | DV58: 0 | DW58: 0 | DX58: 0 | DY58: 0 | DZ58: 0 | EA58: 0 | EB58: 0 | EC58: 0 | ED58: 0 | EE58: 0 | EF58: 0 | EG58: 0 | EH58: 0 | EI58: 0 | EJ58: 0 | EK58: 0 | EL58: 0 | EM58: 0 | EN58: 0 | EO58: 0 | EP58: 0 | EQ58: 0 | ER58: 0 | ES58: 0 | ET58: 0 | EU58: 0 | EV58: 0 | EW58: 0 | EX58: 0 | EY58: 0 | EZ58: 0 | FA58: 0 | FB58: 0 | FC58: 0 | FD58: 0 | FE58: 0 | FF58: 0 | FG58: 0 | FH58: 0 | FI58: 0 | FJ58: 0 | FK58: 0 | FL58: 0 | FM58: 0 | FN58: 0 | FO58: 0 | FP58: 0 | FQ58: 0 | FR58: 0 | FS58: 0 | FT58: 0 | FU58: 0 | FV58: 0 | FW58: 0 | FX58: 0 | FY58: 0 | FZ58: 0 | GA58: 0 | GB58: 0 | GC58: 0 | GD58: 0 | GE58: 0 | GF58: 0 | GG58: 0 | GH58: 0 | GI58: 0 | GJ58: 0
E59: > 33 kv & < = 66 kv ; subdivision | F59: 0 | G59: 0 | H59: 0 | I59: 2 | J59: 0 | K59: 0 | L59: 0 | M59: 0 | N59: 0 | O59: 0 | P59: 0 | Q59: 0 | R59: 0 | S59: 0 | T59: 0 | U59: 0 | V59: 0 | W59: 0 | X59: 0 | Y59: 0 | Z59: 0 | AA59: 0 | AB59: 0 | AC59: 0 | AD59: 0 | AE59: 0 | AF59: 0 | AG59: 0 | AH59: 0 | AI59: 0 | AJ59: 0 | AK59: 0 | AL59: 0 | AM59: 0 | AN59: 0 | AO59: 0 | AP59: 0 | AQ59: 0 | AR59: 0 | AS59: 0 | AT59: 0 | AU59: 0 | AV59: 0 | AW59: 0 | AX59: 0 | AY59: 0 | AZ59: 0 | BA59: 0 | BB59: 0 | BC59: 0 | BD59: 0 | BE59: 0 | BF59: 0 | BG59: 0 | BH59: 0 | BI59: 0 | BJ59: 0 | BK59: 0 | BL59: 0 | BM59: 0 | BN59: 0 | BO59: 0 | BP59: 0 | BQ59: 0 | BR59: 0 | BS59: 0 | BT59: 0 | BU59: 0 | BV59: 0 | BW59: 0 | BX59: 0 | BY59: 0 | BZ59: 0 | CA59: 0 | CB59: 0 | CC59: 0 | CD59: 0 | CE59: 0 | CF59: 0 | CG59: 0 | CH59: 0 | CI59: 0 | CJ59: 0 | CK59: 0 | CL59: 0 | CM59: 0 | CN59: 0 | CO59: 0 | CP59: 0 | CQ59: 0 | CR59: 0 | CS59: 0 | CT59: 0 | CU59: 0 | CV59: 0 | CX59: 0 | CY59: 0 | CZ59: 0 | DA59: 0 | DB59: 0 | DC59: 0 | DD59: 0 | DE59: 0 | DF59: 0 | DG59: 0 | DH59: 0 | DI59: 0 | DJ59: 0 | DK59: 0 | DL59: 0 | DM59: 0 | DN59: 0 | DO59: 0 | DP59: 0 | DQ59: 0 | DR59: 0 | DS59: 0 | DT59: 0 | DU59: 0 | DV59: 0 | DW59: 0 | DX59: 0 | DY59: 0 | DZ59: 0 | EA59: 0 | EB59: 0 | EC59: 0 | ED59: 0 | EE59: 0 | EF59: 0 | EG59: 0 | EH59: 0 | EI59: 0 | EJ59: 0 | EK59: 0 | EL59: 0 | EM59: 0 | EN59: 0 | EO59: 0 | EP59: 0 | EQ59: 0 | ER59: 0 | ES59: 0 | ET59: 0 | EU59: 0 | EV59: 0 | EW59: 0 | EX59: 0 | EY59: 0 | EZ59: 0 | FA59: 0 | FB59: 0 | FC59: 0 | FD59: 0 | FE59: 0 | FF59: 0 | FG59: 0 | FH59: 0 | FI59: 0 | FJ59: 0 | FK59: 0 | FL59: 0 | FM59: 0 | FN59: 0 | FO59: 0 | FP59: 0 | FQ59: 0 | FR59: 0 | FS59: 0 | FT59: 0 | FU59: 0 | FV59: 0 | FW59: 0 | FX59: 0 | FY59: 0 | FZ59: 0 | GA59: 0 | GB59: 0 | GC59: 0 | GD59: 0 | GE59: 0 | GF59: 0 | GG59: 0 | GH59: 0 | GI59: 0 | GJ59: 0
E60: > 66 kv & < = 132 kv ; commercial & industrial | F60: 0 | G60: 0 | H60: 0 | I60: 2 | J60: 0 | K60: 0 | L60: 0 | M60: 0 | N60: 0 | O60: 0 | P60: 0 | Q60: 0 | R60: 0 | S60: 0 | T60: 0 | U60: 0 | V60: 0 | W60: 0 | X60: 0 | Y60: 0 | Z60: 0 | AA60: 0 | AB60: 0 | AC60: 0 | AD60: 0 | AE60: 0 | AF60: 0 | AG60: 0 | AH60: 0 | AI60: 0 | AJ60: 0 | AK60: 0 | AL60: 0 | AM60: 0 | AN60: 0 | AO60: 0 | AP60: 0 | AQ60: 0 | AR60: 0 | AS60: 0 | AT60: 0 | AU60: 0 | AV60: 0 | AW60: 0 | AX60: 0 | AY60: 0 | AZ60: 0 | BA60: 0 | BB60: 0 | BC60: 0 | BD60: 0 | BE60: 0 | BF60: 0 | BG60: 0 | BH60: 0 | BI60: 0 | BJ60: 0 | BK60: 0 | BL60: 0 | BM60: 0 | BN60: 0 | BO60: 0 | BP60: 0 | BQ60: 0 | BR60: 0 | BS60: 0 | BT60: 0 | BU60: 0 | BV60: 0 | BW60: 0 | BX60: 0 | BY60: 0 | BZ60: 0 | CA60: 0 | CB60: 0 | CC60: 0 | CD60: 0 | CE60: 0 | CF60: 0 | CG60: 0 | CH60: 0 | CI60: 0 | CJ60: 0 | CK60: 0 | CL60: 0 | CM60: 0 | CN60: 0 | CO60: 0 | CP60: 0 | CQ60: 0 | CR60: 0 | CS60: 0 | CT60: 0 | CU60: 0 | CV60: 0 | CX60: 0 | CY60: 0 | CZ60: 0 | DA60: 0 | DB60: 0 | DC60: 0 | DD60: 0 | DE60: 0 | DF60: 0 | DG60: 0 | DH60: 0 | DI60: 0 | DJ60: 0 | DK60: 0 | DL60: 0 | DM60: 0 | DN60: 0 | DO60: 0 | DP60: 0 | DQ60: 0 | DR60: 0 | DS60: 0 | DT60: 0 | DU60: 0 | DV60: 0 | DW60: 0 | DX60: 0 | DY60: 0 | DZ60: 0 | EA60: 0 | EB60: 0 | EC60: 0 | ED60: 0 | EE60: 0 | EF60: 0 | EG60: 0 | EH60: 0 | EI60: 0 | EJ60: 0 | EK60: 0 | EL60: 0 | EM60: 0 | EN60: 0 | EO60: 0 | EP60: 0 | EQ60: 0 | ER60: 0 | ES60: 0 | ET60: 0 | EU60: 0 | EV60: 0 | EW60: 0 | EX60: 0 | EY60: 0 | EZ60: 0 | FA60: 0 | FB60: 0 | FC60: 0 | FD60: 0 | FE60: 0 | FF60: 0 | FG60: 0 | FH60: 0 | FI60: 0 | FJ60: 0 | FK60: 0 | FL60: 0 | FM60: 0 | FN60: 0 | FO60: 0 | FP60: 0 | FQ60: 0 | FR60: 0 | FS60: 0 | FT60: 0 | FU60: 0 | FV60: 0 | FW60: 0 | FX60: 0 | FY60: 0 | FZ60: 0 | GA60: 0 | GB60: 0 | GC60: 0 | GD60: 0 | GE60: 0 | GF60: 0 | GG60: 0 | GH60: 0 | GI60: 0 | GJ60: 0
E61: > 66 kv & < = 132 kv ; subdivision | F61: 0 | G61: 0 | H61: 0 | I61: 2 | J61: 0 | K61: 0 | L61: 0 | M61: 0 | N61: 0 | O61: 0 | P61: 0 | Q61: 0 | R61: 0 | S61: 0 | T61: 0 | U61: 0 | V61: 0 | W61: 0 | X61: 0 | Y61: 0 | Z61: 0 | AA61: 0 | AB61: 0 | AC61: 0 | AD61: 0 | AE61: 0 | AF61: 0 | AG61: 0 | AH61: 0 | AI61: 0 | AJ61: 0 | AK61: 0 | AL61: 0 | AM61: 0 | AN61: 0 | AO61: 0 | AP61: 0 | AQ61: 0 | AR61: 0 | AS61: 0 | AT61: 0 | AU61: 0 | AV61: 0 | AW61: 0 | AX61: 0 | AY61: 0 | AZ61: 0 | BA61: 0 | BB61: 0 | BC61: 0 | BD61: 0 | BE61: 0 | BF61: 0 | BG61: 0 | BH61: 0 | BI61: 0 | BJ61: 0 | BK61: 0 | BL61: 0 | BM61: 0 | BN61: 0 | BO61: 0 | BP61: 0 | BQ61: 0 | BR61: 0 | BS61: 0 | BT61: 0 | BU61: 0 | BV61: 0 | BW61: 0 | BX61: 0 | BY61: 0 | BZ61: 0 | CA61: 0 | CB61: 0 | CC61: 0 | CD61: 0 | CE61: 0 | CF61: 0 | CG61: 0 | CH61: 0 | CI61: 0 | CJ61: 0 | CK61: 0 | CL61: 0 | CM61: 0 | CN61: 0 | CO61: 0 | CP61: 0 | CQ61: 0 | CR61: 0 | CS61: 0 | CT61: 0 | CU61: 0 | CV61: 0 | CX61: 0 | CY61: 0 | CZ61: 0 | DA61: 0 | DB61: 0 | DC61: 0 | DD61: 0 | DE61: 0 | DF61: 0 | DG61: 0 | DH61: 0 | DI61: 0 | DJ61: 0 | DK61: 0 | DL61: 0 | DM61: 0 | DN61: 0 | DO61: 0 | DP61: 0 | DQ61: 0 | DR61: 0 | DS61: 0 | DT61: 0 | DU61: 0 | DV61: 0 | DW61: 0 | DX61: 0 | DY61: 0 | DZ61: 0 | EA61: 0 | EB61: 0 | EC61: 0 | ED61: 0 | EE61: 0 | EF61: 0 | EG61: 0 | EH61: 0 | EI61: 0 | EJ61: 0 | EK61: 0 | EL61: 0 | EM61: 0 | EN61: 0 | EO61: 0 | EP61: 0 | EQ61: 0 | ER61: 0 | ES61: 0 | ET61: 0 | EU61: 0 | EV61: 0 | EW61: 0 | EX61: 0 | EY61: 0 | EZ61: 0 | FA61: 0 | FB61: 0 | FC61: 0 | FD61: 0 | FE61: 0 | FF61: 0 | FG61: 0 | FH61: 0 | FI61: 0 | FJ61: 0 | FK61: 0 | FL61: 0 | FM61: 0 | FN61: 0 | FO61: 0 | FP61: 0 | FQ61: 0 | FR61: 0 | FS61: 0 | FT61: 0 | FU61: 0 | FV61: 0 | FW61: 0 | FX61: 0 | FY61: 0 | FZ61: 0 | GA61: 0 | GB61: 0 | GC61: 0 | GD61: 0 | GE61: 0 | GF61: 0 | GG61: 0 | GH61: 0 | GI61: 0 | GJ61: 0
E62: > 132 kv ; commercial & industrial | F62: 0 | G62: 0 | H62: 0 | I62: 2 | J62: 0 | K62: 0 | L62: 0 | M62: 0 | N62: 0 | O62: 0 | P62: 0 | Q62: 0 | R62: 0 | S62: 0 | T62: 0 | U62: 0 | V62: 0 | W62: 0 | X62: 0 | Y62: 0 | Z62: 0 | AA62: 0 | AB62: 0 | AC62: 0 | AD62: 0 | AE62: 0 | AF62: 0 | AG62: 0 | AH62: 0 | AI62: 0 | AJ62: 0 | AK62: 0 | AL62: 0 | AM62: 0 | AN62: 0 | AO62: 0 | AP62: 0 | AQ62: 0 | AR62: 0 | AS62: 0 | AT62: 0 | AU62: 0 | AV62: 0 | AW62: 0 | AX62: 0 | AY62: 0 | AZ62: 0 | BA62: 0 | BB62: 0 | BC62: 0 | BD62: 0 | BE62: 0 | BF62: 0 | BG62: 0 | BH62: 0 | BI62: 0 | BJ62: 0 | BK62: 0 | BL62: 0 | BM62: 0 | BN62: 0 | BO62: 0 | BP62: 0 | BQ62: 0 | BR62: 0 | BS62: 0 | BT62: 0 | BU62: 0 | BV62: 0 | BW62: 0 | BX62: 0 | BY62: 0 | BZ62: 0 | CA62: 0 | CB62: 0 | CC62: 0 | CD62: 0 | CE62: 0 | CF62: 0 | CG62: 0 | CH62: 0 | CI62: 0 | CJ62: 0 | CK62: 0 | CL62: 0 | CM62: 0 | CN62: 0 | CO62: 0 | CP62: 0 | CQ62: 0 | CR62: 0 | CS62: 0 | CT62: 0 | CU62: 0 | CV62: 0 | CX62: 0 | CY62: 0 | CZ62: 0 | DA62: 0 | DB62: 0 | DC62: 0 | DD62: 0 | DE62: 0 | DF62: 0 | DG62: 0 | DH62: 0 | DI62: 0 | DJ62: 0 | DK62: 0 | DL62: 0 | DM62: 0 | DN62: 0 | DO62: 0 | DP62: 0 | DQ62: 0 | DR62: 0 | DS62: 0 | DT62: 0 | DU62: 0 | DV62: 0 | DW62: 0 | DX62: 0 | DY62: 0 | DZ62: 0 | EA62: 0 | EB62: 0 | EC62: 0 | ED62: 0 | EE62: 0 | EF62: 0 | EG62: 0 | EH62: 0 | EI62: 0 | EJ62: 0 | EK62: 0 | EL62: 0 | EM62: 0 | EN62: 0 | EO62: 0 | EP62: 0 | EQ62: 0 | ER62: 0 | ES62: 0 | ET62: 0 | EU62: 0 | EV62: 0 | EW62: 0 | EX62: 0 | EY62: 0 | EZ62: 0 | FA62: 0 | FB62: 0 | FC62: 0 | FD62: 0 | FE62: 0 | FF62: 0 | FG62: 0 | FH62: 0 | FI62: 0 | FJ62: 0 | FK62: 0 | FL62: 0 | FM62: 0 | FN62: 0 | FO62: 0 | FP62: 0 | FQ62: 0 | FR62: 0 | FS62: 0 | FT62: 0 | FU62: 0 | FV62: 0 | FW62: 0 | FX62: 0 | FY62: 0 | FZ62: 0 | GA62: 0 | GB62: 0 | GC62: 0 | GD62: 0 | GE62: 0 | GF62: 0 | GG62: 0 | GH62: 0 | GI62: 0 | GJ62: 0
E63: > 132 kv ; subdivision | F63: 0 | G63: 0 | H63: 0 | I63: 2 | J63: 0 | K63: 0 | L63: 0 | M63: 0 | N63: 0 | O63: 0 | P63: 0 | Q63: 0 | R63: 0 | S63: 0 | T63: 0 | U63: 0 | V63: 0 | W63: 0 | X63: 0 | Y63: 0 | Z63: 0 | AA63: 0 | AB63: 0 | AC63: 0 | AD63: 0 | AE63: 0 | AF63: 0 | AG63: 0 | AH63: 0 | AI63: 0 | AJ63: 0 | AK63: 0 | AL63: 0 | AM63: 0 | AN63: 0 | AO63: 0 | AP63: 0 | AQ63: 0 | AR63: 0 | AS63: 0 | AT63: 0 | AU63: 0 | AV63: 0 | AW63: 0 | AX63: 0 | AY63: 0 | AZ63: 0 | BA63: 0 | BB63: 0 | BC63: 0 | BD63: 0 | BE63: 0 | BF63: 0 | BG63: 0 | BH63: 0 | BI63: 0 | BJ63: 0 | BK63: 0 | BL63: 0 | BM63: 0 | BN63: 0 | BO63: 0 | BP63: 0 | BQ63: 0 | BR63: 0 | BS63: 0 | BT63: 0 | BU63: 0 | BV63: 0 | BW63: 0 | BX63: 0 | BY63: 0 | BZ63: 0 | CA63: 0 | CB63: 0 | CC63: 0 | CD63: 0 | CE63: 0 | CF63: 0 | CG63: 0 | CH63: 0 | CI63: 0 | CJ63: 0 | CK63: 0 | CL63: 0 | CM63: 0 | CN63: 0 | CO63: 0 | CP63: 0 | CQ63: 0 | CR63: 0 | CS63: 0 | CT63: 0 | CU63: 0 | CV63: 0 | CX63: 0 | CY63: 0 | CZ63: 0 | DA63: 0 | DB63: 0 | DC63: 0 | DD63: 0 | DE63: 0 | DF63: 0 | DG63: 0 | DH63: 0 | DI63: 0 | DJ63: 0 | DK63: 0 | DL63: 0 | DM63: 0 | DN63: 0 | DO63: 0 | DP63: 0 | DQ63: 0 | DR63: 0 | DS63: 0 | DT63: 0 | DU63: 0 | DV63: 0 | DW63: 0 | DX63: 0 | DY63: 0 | DZ63: 0 | EA63: 0 | EB63: 0 | EC63: 0 | ED63: 0 | EE63: 0 | EF63: 0 | EG63: 0 | EH63: 0 | EI63: 0 | EJ63: 0 | EK63: 0 | EL63: 0 | EM63: 0 | EN63: 0 | EO63: 0 | EP63: 0 | EQ63: 0 | ER63: 0 | ES63: 0 | ET63: 0 | EU63: 0 | EV63: 0 | EW63: 0 | EX63: 0 | EY63: 0 | EZ63: 0 | FA63: 0 | FB63: 0 | FC63: 0 | FD63: 0 | FE63: 0 | FF63: 0 | FG63: 0 | FH63: 0 | FI63: 0 | FJ63: 0 | FK63: 0 | FL63: 0 | FM63: 0 | FN63: 0 | FO63: 0 | FP63: 0 | FQ63: 0 | FR63: 0 | FS63: 0 | FT63: 0 | FU63: 0 | FV63: 0 | FW63: 0 | FX63: 0 | FY63: 0 | FZ63: 0 | GA63: 0 | GB63: 0 | GC63: 0 | GD63: 0 | GE63: 0 | GF63: 0 | GG63: 0 | GH63: 0 | GI63: 0 | GJ63: 0
E64: other | F64: 0 | G64: 0 | H64: 0 | I64: 2 | J64: 0 | K64: 0 | L64: 0 | M64: 0 | N64: 0 | O64: 0 | P64: 0 | Q64: 0 | R64: 0 | S64: 0 | T64: 0 | U64: 0 | V64: 0 | W64: 0 | X64: 0 | Y64: 0 | Z64: 0 | AA64: 0 | AB64: 0 | AC64: 0 | AD64: 0 | AE64: 0 | AF64: 0 | AG64: 0 | AH64: 0 | AI64: 0 | AJ64: 0 | AK64: 0 | AL64: 0 | AM64: 0 | AN64: 0 | AO64: 0 | AP64: 0 | AQ64: 0 | AR64: 0 | AS64: 0 | AT64: 0 | AU64: 0 | AV64: 0 | AW64: 0 | AX64: 0 | AY64: 0 | AZ64: 0 | BA64: 0 | BB64: 0 | BC64: 0 | BD64: 0 | BE64: 0 | BF64: 0 | BG64: 0 | BH64: 0 | BI64: 0 | BJ64: 0 | BK64: 0 | BL64: 0 | BM64: 0 | BN64: 0 | BO64: 0 | BP64: 0 | BQ64: 0 | BR64: 0 | BS64: 0 | BT64: 0 | BU64: 0 | BV64: 0 | BW64: 0 | BX64: 0 | BY64: 0 | BZ64: 0 | CA64: 0 | CB64: 0 | CC64: 0 | CD64: 0 | CE64: 0 | CF64: 0 | CG64: 0 | CH64: 0 | CI64: 0 | CJ64: 0 | CK64: 0 | CL64: 0 | CM64: 0 | CN64: 0 | CO64: 0 | CP64: 0 | CQ64: 0 | CR64: 0 | CS64: 0 | CT64: 0 | CU64: 0 | CV64: 0 | CX64: 0 | CY64: 0 | CZ64: 0 | DA64: 0 | DB64: 0 | DC64: 0 | DD64: 0 | DE64: 0 | DF64: 0 | DG64: 0 | DH64: 0 | DI64: 0 | DJ64: 0 | DK64: 0 | DL64: 0 | DM64: 0 | DN64: 0 | DO64: 0 | DP64: 0 | DQ64: 0 | DR64: 0 | DS64: 0 | DT64: 0 | DU64: 0 | DV64: 0 | DW64: 0 | DX64: 0 | DY64: 0 | DZ64: 0 | EA64: 0 | EB64: 0 | EC64: 0 | ED64: 0 | EE64: 0 | EF64: 0 | EG64: 0 | EH64: 0 | EI64: 0 | EJ64: 0 | EK64: 0 | EL64: 0 | EM64: 0 | EN64: 0 | EO64: 0 | EP64: 0 | EQ64: 0 | ER64: 0 | ES64: 0 | ET64: 0 | EU64: 0 | EV64: 0 | EW64: 0 | EX64: 0 | EY64: 0 | EZ64: 0 | FA64: 0 | FB64: 0 | FC64: 0 | FD64: 0 | FE64: 0 | FF64: 0 | FG64: 0 | FH64: 0 | FI64: 0 | FJ64: 0 | FK64: 0 | FL64: 0 | FM64: 0 | FN64: 0 | FO64: 0 | FP64: 0 | FQ64: 0 | FR64: 0 | FS64: 0 | FT64: 0 | FU64: 0 | FV64: 0 | FW64: 0 | FX64: 0 | FY64: 0 | FZ64: 0 | GA64: 0 | GB64: 0 | GC64: 0 | GD64: 0 | GE64: 0 | GF64: 0 | GG64: 0 | GH64: 0 | GI64: 0 | GJ64: 0
A65: 5 | D65: TRANSFORMERS | E65: pole mounted ; < = 22kv ; < = 60 kva ; single phase | F65: 11.963 | G65: 63.12693268 | H65: 7.945245917 | I65: 2 | J65: 301 | K65: 210 | L65: 311 | M65: 349 | N65: 366 | O65: 386 | P65: 411 | Q65: 442 | R65: 455 | S65: 440 | T65: 423 | U65: 467 | V65: 512 | W65: 600 | X65: 663 | Y65: 588 | Z65: 556 | AA65: 600 | AB65: 739 | AC65: 1026 | AD65: 1027 | AE65: 834 | AF65: 963 | AG65: 1244 | AH65: 1166 | AI65: 928 | AJ65: 942 | AK65: 976 | AL65: 1051 | AM65: 1066 | AN65: 1041 | AO65: 1107 | AP65: 1109 | AQ65: 1006 | AR65: 884 | AS65: 794 | AT65: 699 | AU65: 711 | AV65: 942 | AW65: 878 | AX65: 616 | AY65: 585 | AZ65: 661 | BA65: 963 | BB65: 939 | BC65: 603 | BD65: 523 | BE65: 661 | BF65: 844 | BG65: 712 | BH65: 502 | BI65: 516 | BJ65: 496 | BK65: 591 | BL65: 539 | BM65: 519 | BN65: 409 | BO65: 148 | BP65: 319 | BQ65: 215 | BR65: 17 | BS65: 9 | BT65: 3 | BU65: 4 | BV65: 2 | BW65: 1 | BX65: 1 | BY65: 0 | BZ65: 0 | CA65: 0 | CB65: 0 | CC65: 0 | CD65: 0 | CE65: 0 | CF65: 1 | CG65: 1 | CH65: 1 | CI65: 0 | CJ65: 0 | CK65: 0 | CL65: 0 | CM65: 1 | CN65: 1 | CO65: 0 | CP65: 0 | CQ65: 0 | CR65: 0 | CS65: 0 | CT65: 0 | CU65: 0 | CV65: 0 | CX65: 3600.863 | CY65: 2512.23 | CZ65: 3720.493 | DA65: 4175.087 | DB65: 4378.458 | DC65: 4617.718 | DD65: 4916.793 | DE65: 5287.646 | DF65: 5443.165 | DG65: 5263.72 | DH65: 5060.349 | DI65: 5586.721 | DJ65: 6125.056 | DK65: 7177.8 | DL65: 7931.469 | DM65: 7034.244 | DN65: 6651.428 | DO65: 7177.8 | DP65: 8840.657 | DQ65: 12274.038 | DR65: 12286.001 | DS65: 9977.142 | DT65: 11520.369 | DU65: 14881.972 | DV65: 13948.858 | DW65: 11101.664 | DX65: 11269.146 | DY65: 11675.888 | DZ65: 12573.113 | EA65: 12752.558 | EB65: 12453.483 | EC65: 13243.041 | ED65: 13266.967 | EE65: 12034.778 | EF65: 10575.292 | EG65: 9498.622 | EH65: 8362.137 | EI65: 8505.693 | EJ65: 11269.146 | EK65: 10503.514 | EL65: 7369.208 | EM65: 6998.355 | EN65: 7907.543 | EO65: 11520.369 | EP65: 11233.257 | EQ65: 7213.689 | ER65: 6256.649 | ES65: 7907.543 | ET65: 10096.772 | EU65: 8517.656 | EV65: 6005.426 | EW65: 6172.908 | EX65: 5933.648 | EY65: 7070.133 | EZ65: 6448.057 | FA65: 6208.797 | FB65: 4892.867 | FC65: 1770.524 | FD65: 3816.197 | FE65: 2572.045 | FF65: 203.371 | FG65: 107.667 | FH65: 35.889 | FI65: 47.852 | FJ65: 23.926 | FK65: 11.963 | FL65: 11.963 | FM65: 0 | FN65: 0 | FO65: 0 | FP65: 0 | FQ65: 0 | FR65: 0 | FS65: 0 | FT65: 11.963 | FU65: 11.963 | FV65: 11.963 | FW65: 0 | FX65: 0 | FY65: 0 | FZ65: 0 | GA65: 11.963 | GB65: 11.963 | GC65: 0 | GD65: 0 | GE65: 0 | GF65: 0 | GG65: 0 | GH65: 0 | GI65: 0 | GJ65: 0
A66: 5 | D66: TRANSFORMERS | E66: pole mounted ; < = 22kv ; > 600 kva ; single phase | F66: 73.1489 | G66: 66.1 | H66: 8.13019065 | I66: 2 | J66: 0 | K66: 0 | L66: 0 | M66: 0 | N66: 0 | O66: 1 | P66: 1 | Q66: 1 | R66: 1 | S66: 1 | T66: 1 | U66: 1 | V66: 1 | W66: 1 | X66: 1 | Y66: 1 | Z66: 1 | AA66: 0 | AB66: 0 | AC66: 0 | AD66: 1 | AE66: 1 | AF66: 0 | AG66: 0 | AH66: 1 | AI66: 2 | AJ66: 2 | AK66: 1 | AL66: 0 | AM66: 0 | AN66: 0 | AO66: 2 | AP66: 3 | AQ66: 2 | AR66: 1 | AS66: 4 | AT66: 8 | AU66: 5 | AV66: 2 | AW66: 4 | AX66: 2 | AY66: 0 | AZ66: 4 | BA66: 29 | BB66: 26 | BC66: 1 | BD66: 2 | BE66: 6 | BF66: 8 | BG66: 6 | BH66: 4 | BI66: 13 | BJ66: 11 | BK66: 6 | BL66: 6 | BM66: 6 | BN66: 8 | BO66: 7 | BP66: 13 | BQ66: 8 | BR66: 1 | BS66: 1 | BT66: 0 | BU66: 1 | BV66: 1 | BW66: 0 | BX66: 0 | BY66: 0 | BZ66: 0 | CA66: 0 | CB66: 0 | CC66: 0 | CD66: 0 | CE66: 0 | CF66: 0 | CG66: 0 | CH66: 0 | CI66: 0 | CJ66: 0 | CK66: 0 | CL66: 0 | CM66: 0 | CN66: 0 | CO66: 0 | CP66: 0 | CQ66: 0 | CR66: 0 | CS66: 0 | CT66: 0 | CU66: 0 | CV66: 0 | CX66: 0 | CY66: 0 | CZ66: 0 | DA66: 0 | DB66: 0 | DC66: 73.1489 | DD66: 73.1489 | DE66: 73.1489 | DF66: 73.1489 | DG66: 73.1489 | DH66: 73.1489 | DI66: 73.1489 | DJ66: 73.1489 | DK66: 73.1489 | DL66: 73.1489 | DM66: 73.1489 | DN66: 73.1489 | DO66: 0 | DP66: 0 | DQ66: 0 | DR66: 73.1489 | DS66: 73.1489 | DT66: 0 | DU66: 0 | DV66: 73.1489 | DW66: 146.2978 | DX66: 146.2978 | DY66: 73.1489 | DZ66: 0 | EA66: 0 | EB66: 0 | EC66: 146.2978 | ED66: 219.4467 | EE66: 146.2978 | EF66: 73.1489 | EG66: 292.5956 | EH66: 585.1912 | EI66: 365.7445 | EJ66: 146.2978 | EK66: 292.5956 | EL66: 146.2978 | EM66: 0 | EN66: 292.5956 | EO66: 2121.3181 | EP66: 1901.8714 | EQ66: 73.1489 | ER66: 146.2978 | ES66: 438.8934 | ET66: 585.1912 | EU66: 438.8934 | EV66: 292.5956 | EW66: 950.9357 | EX66: 804.6379 | EY66: 438.8934 | EZ66: 438.8934 | FA66: 438.8934 | FB66: 585.1912 | FC66: 512.0423 | FD66: 950.9357 | FE66: 585.1912 | FF66: 73.1489 | FG66: 73.1489 | FH66: 0 | FI66: 73.1489 | FJ66: 73.1489 | FK66: 0 | FL66: 0 | FM66: 0 | FN66: 0 | FO66: 0 | FP66: 0 | FQ66: 0 | FR66: 0 | FS66: 0 | FT66: 0 | FU66: 0 | FV66: 0 | FW66: 0 | FX66: 0 | FY66: 0 | FZ66: 0 | GA66: 0 | GB66: 0 | GC66: 0 | GD66: 0 | GE66: 0 | GF66: 0 | GG66: 0 | GH66: 0 | GI66: 0 | GJ66: 0
A67: 5 | D67: TRANSFORMERS | E67: pole mounted ; < = 22kv ; < = 60 kva ; multiple phase | F67: 18.5171 | G67: 56.41729074 | H67: 7.511144436 | I67: 2 | J67: 60 | K67: 23 | L67: 29 | M67: 26 | N67: 23 | O67: 12 | P67: 2 | Q67: 2 | R67: 3 | S67: 3 | T67: 2 | U67: 1 | V67: 2 | W67: 3 | X67: 3 | Y67: 12 | Z67: 39 | AA67: 37 | AB67: 49 | AC67: 69 | AD67: 64 | AE67: 67 | AF67: 71 | AG67: 86 | AH67: 102 | AI67: 87 | AJ67: 67 | AK67: 66 | AL67: 72 | AM67: 77 | AN67: 65 | AO67: 80 | AP67: 89 | AQ67: 82 | AR67: 71 | AS67: 59 | AT67: 59 | AU67: 60 | AV67: 56 | AW67: 54 | AX67: 54 | AY67: 51 | AZ67: 42 | BA67: 44 | BB67: 38 | BC67: 36 | BD67: 35 | BE67: 35 | BF67: 40 | BG67: 31 | BH67: 23 | BI67: 27 | BJ67: 20 | BK67: 20 | BL67: 16 | BM67: 10 | BN67: 10 | BO67: 28 | BP67: 56 | BQ67: 32 | BR67: 2 | BS67: 1 | BT67: 0 | BU67: 0 | BV67: 0 | BW67: 0 | BX67: 0 | BY67: 0 | BZ67: 0 | CA67: 0 | CB67: 0 | CC67: 0 | CD67: 0 | CE67: 0 | CF67: 0 | CG67: 0 | CH67: 0 | CI67: 0 | CJ67: 0 | CK67: 0 | CL67: 0 | CM67: 0 | CN67: 0 | CO67: 0 | CP67: 0 | CQ67: 0 | CR67: 0 | CS67: 0 | CT67: 0 | CU67: 0 | CV67: 0 | CX67: 1111.026 | CY67: 425.8933 | CZ67: 536.9959 | DA67: 481.4446 | DB67: 425.8933 | DC67: 222.2052 | DD67: 37.0342 | DE67: 37.0342 | DF67: 55.5513 | DG67: 55.5513 | DH67: 37.0342 | DI67: 18.5171 | DJ67: 37.0342 | DK67: 55.5513 | DL67: 55.5513 | DM67: 222.2052 | DN67: 722.1669 | DO67: 685.1327 | DP67: 907.3379 | DQ67: 1277.6799 | DR67: 1185.0944 | DS67: 1240.6457 | DT67: 1314.7141 | DU67: 1592.4706 | DV67: 1888.7442 | DW67: 1610.9877 | DX67: 1240.6457 | DY67: 1222.1286 | DZ67: 1333.2312 | EA67: 1425.8167 | EB67: 1203.6115 | EC67: 1481.368 | ED67: 1648.0219 | EE67: 1518.4022 | EF67: 1314.7141 | EG67: 1092.5089 | EH67: 1092.5089 | EI67: 1111.026 | EJ67: 1036.9576 | EK67: 999.9234 | EL67: 999.9234 | EM67: 944.3721 | EN67: 777.7182 | EO67: 814.7524 | EP67: 703.6498 | EQ67: 666.6156 | ER67: 648.0985 | ES67: 648.0985 | ET67: 740.684 | EU67: 574.0301 | EV67: 425.8933 | EW67: 499.9617 | EX67: 370.342 | EY67: 370.342 | EZ67: 296.2736 | FA67: 185.171 | FB67: 185.171 | FC67: 518.4788 | FD67: 1036.9576 | FE67: 592.5472 | FF67: 37.0342 | FG67: 18.5171 | FH67: 0 | FI67: 0 | FJ67: 0 | FK67: 0 | FL67: 0 | FM67: 0 | FN67: 0 | FO67: 0 | FP67: 0 | FQ67: 0 | FR67: 0 | FS67: 0 | FT67: 0 | FU67: 0 | FV67: 0 | FW67: 0 | FX67: 0 | FY67: 0 | FZ67: 0 | GA67: 0 | GB67: 0 | GC67: 0 | GD67: 0 | GE67: 0 | GF67: 0 | GG67: 0 | GH67: 0 | GI67: 0 | GJ67: 0
A68: 5 | D68: TRANSFORMERS | E68: pole mounted ; < = 22kv ; > 60 kva and < = 600 kva ; multiple phase | F68: 17.7917 | G68: 55.75119241 | H68: 7.466672111 | I68: 2 | J68: 220 | K68: 191 | L68: 270 | M68: 333 | N68: 280 | O68: 103 | P68: 15 | Q68: 22 | R68: 20 | S68: 7 | T68: 7 | U68: 8 | V68: 9 | W68: 3 | X68: 1 | Y68: 11 | Z68: 38 | AA68: 38 | AB68: 49 | AC68: 63 | AD68: 46 | AE68: 54 | AF68: 58 | AG68: 67 | AH68: 66 | AI68: 68 | AJ68: 81 | AK68: 76 | AL68: 68 | AM68: 72 | AN68: 64 | AO68: 66 | AP68: 65 | AQ68: 58 | AR68: 51 | AS68: 71 | AT68: 76 | AU68: 55 | AV68: 51 | AW68: 47 | AX68: 35 | AY68: 35 | AZ68: 33 | BA68: 31 | BB68: 31 | BC68: 22 | BD68: 21 | BE68: 23 | BF68: 41 | BG68: 44 | BH68: 22 | BI68: 10 | BJ68: 7 | BK68: 36 | BL68: 34 | BM68: 6 | BN68: 8 | BO68: 32 | BP68: 77 | BQ68: 49 | BR68: 1 | BS68: 2 | BT68: 1 | BU68: 3 | BV68: 3 | BW68: 0 | BX68: 0 | BY68: 0 | BZ68: 0 | CA68: 0 | CB68: 0 | CC68: 0 | CD68: 0 | CE68: 0 | CF68: 0 | CG68: 0 | CH68: 0 | CI68: 0 | CJ68: 0 | CK68: 0 | CL68: 0 | CM68: 0 | CN68: 0 | CO68: 0 | CP68: 0 | CQ68: 0 | CR68: 0 | CS68: 0 | CT68: 0 | CU68: 0 | CV68: 0 | CX68: 3914.174 | CY68: 3398.2147 | CZ68: 4803.759 | DA68: 5924.6361 | DB68: 4981.676 | DC68: 1832.5451 | DD68: 266.8755 | DE68: 391.4174 | DF68: 355.834 | DG68: 124.5419 | DH68: 124.5419 | DI68: 142.3336 | DJ68: 160.1253 | DK68: 53.3751 | DL68: 17.7917 | DM68: 195.7087 | DN68: 676.0846 | DO68: 676.0846 | DP68: 871.7933 | DQ68: 1120.8771 | DR68: 818.4182 | DS68: 960.7518 | DT68: 1031.9186 | DU68: 1192.0439 | DV68: 1174.2522 | DW68: 1209.8356 | DX68: 1441.1277 | DY68: 1352.1692 | DZ68: 1209.8356 | EA68: 1281.0024 | EB68: 1138.6688 | EC68: 1174.2522 | ED68: 1156.4605 | EE68: 1031.9186 | EF68: 907.3767 | EG68: 1263.2107 | EH68: 1352.1692 | EI68: 978.5435 | EJ68: 907.3767 | EK68: 836.2099 | EL68: 622.7095 | EM68: 622.7095 | EN68: 587.1261 | EO68: 551.5427 | EP68: 551.5427 | EQ68: 391.4174 | ER68: 373.6257 | ES68: 409.2091 | ET68: 729.4597 | EU68: 782.8348 | EV68: 391.4174 | EW68: 177.917 | EX68: 124.5419 | EY68: 640.5012 | EZ68: 604.9178 | FA68: 106.7502 | FB68: 142.3336 | FC68: 569.3344 | FD68: 1369.9609 | FE68: 871.7933 | FF68: 17.7917 | FG68: 35.5834 | FH68: 17.7917 | FI68: 53.3751 | FJ68: 53.3751 | FK68: 0 | FL68: 0 | FM68: 0 | FN68: 0 | FO68: 0 | FP68: 0 | FQ68: 0 | FR68: 0 | FS68: 0 | FT68: 0 | FU68: 0 | FV68: 0 | FW68: 0 | FX68: 0 | FY68: 0 | FZ68: 0 | GA68: 0 | GB68: 0 | GC68: 0 | GD68: 0 | GE68: 0 | GF68: 0 | GG68: 0 | GH68: 0 | GI68: 0 | GJ68: 0
A69: 5 | D69: TRANSFORMERS | E69: pole mounted ; < = 22kv ; > 600 kva ; multiple phase | F69: 73.1489 | G69: 66.1 | H69: 8.13019065 | I69: 2 | J69: 0 | K69: 0 | L69: 0 | M69: 1 | N69: 1 | O69: 0 | P69: 0 | Q69: 0 | R69: 0 | S69: 0 | T69: 0 | U69: 1 | V69: 1 | W69: 1 | X69: 0 | Y69: 0 | Z69: 0 | AA69: 0 | AB69: 0 | AC69: 0 | AD69: 0 | AE69: 0 | AF69: 0 | AG69: 0 | AH69: 0 | AI69: 0 | AJ69: 0 | AK69: 0 | AL69: 0 | AM69: 0 | AN69: 0 | AO69: 0 | AP69: 1 | AQ69: 1 | AR69: 0 | AS69: 0 | AT69: 0 | AU69: 1 | AV69: 1 | AW69: 1 | AX69: 0 | AY69: 0 | AZ69: 0 | BA69: 4 | BB69: 4 | BC69: 0 | BD69: 0 | BE69: 0 | BF69: 0 | BG69: 0 | BH69: 1 | BI69: 2 | BJ69: 1 | BK69: 1 | BL69: 1 | BM69: 0 | BN69: 0 | BO69: 1 | BP69: 2 | BQ69: 1 | BR69: 0 | BS69: 0 | BT69: 0 | BU69: 0 | BV69: 0 | BW69: 0 | BX69: 0 | BY69: 0 | BZ69: 0 | CA69: 0 | CB69: 0 | CC69: 0 | CD69: 0 | CE69: 0 | CF69: 0 | CG69: 0 | CH69: 0 | CI69: 0 | CJ69: 0 | CK69: 0 | CL69: 0 | CM69: 0 | CN69: 0 | CO69: 0 | CP69: 0 | CQ69: 0 | CR69: 0 | CS69: 0 | CT69: 0 | CU69: 0 | CV69: 0 | CX69: 0 | CY69: 0 | CZ69: 0 | DA69: 73.1489 | DB69: 73.1489 | DC69: 0 | DD69: 0 | DE69: 0 | DF69: 0 | DG69: 0 | DH69: 0 | DI69: 73.1489 | DJ69: 73.1489 | DK69: 73.1489 | DL69: 0 | DM69: 0 | DN69: 0 | DO69: 0 | DP69: 0 | DQ69: 0 | DR69: 0 | DS69: 0 | DT69: 0 | DU69: 0 | DV69: 0 | DW69: 0 | DX69: 0 | DY69: 0 | DZ69: 0 | EA69: 0 | EB69: 0 | EC69: 0 | ED69: 73.1489 | EE69: 73.1489 | EF69: 0 | EG69: 0 | EH69: 0 | EI69: 73.1489 | EJ69: 73.1489 | EK69: 73.1489 | EL69: 0 | EM69: 0 | EN69: 0 | EO69: 292.5956 | EP69: 292.5956 | EQ69: 0 | ER69: 0 | ES69: 0 | ET69: 0 | EU69: 0 | EV69: 73.1489 | EW69: 146.2978 | EX69: 73.1489 | EY69: 73.1489 | EZ69: 73.1489 | FA69: 0 | FB69: 0 | FC69: 73.1489 | FD69: 146.2978 | FE69: 73.1489 | FF69: 0 | FG69: 0 | FH69: 0 | FI69: 0 | FJ69: 0 | FK69: 0 | FL69: 0 | FM69: 0 | FN69: 0 | FO69: 0 | FP69: 0 | FQ69: 0 | FR69: 0 | FS69: 0 | FT69: 0 | FU69: 0 | FV69: 0 | FW69: 0 | FX69: 0 | FY69: 0 | FZ69: 0 | GA69: 0 | GB69: 0 | GC69: 0 | GD69: 0 | GE69: 0 | GF69: 0 | GG69: 0 | GH69: 0 | GI69: 0 | GJ69: 0
A70: 5 | D70: TRANSFORMERS | E70: kiosk mounted ; < = 22kv ; < = 60 kva ; single phase | F70: 21.1825 | G70: 49.83146604 | H70: 7.059140602 | I70: 2 | J70: 0 | K70: 1 | L70: 2 | M70: 2 | N70: 1 | O70: 4 | P70: 8 | Q70: 9 | R70: 10 | S70: 7 | T70: 6 | U70: 8 | V70: 5 | W70: 3 | X70: 7 | Y70: 8 | Z70: 8 | AA70: 9 | AB70: 9 | AC70: 10 | AD70: 12 | AE70: 14 | AF70: 16 | AG70: 17 | AH70: 14 | AI70: 19 | AJ70: 31 | AK70: 25 | AL70: 8 | AM70: 4 | AN70: 2 | AO70: 1 | AP70: 1 | AQ70: 1 | AR70: 1 | AS70: 1 | AT70: 1 | AU70: 0 | AV70: 0 | AW70: 0 | AX70: 1 | AY70: 1 | AZ70: 0 | BA70: 2 | BB70: 2 | BC70: 0 | BD70: 0 | BE70: 0 | BF70: 1 | BG70: 1 | BH70: 2 | BI70: 2 | BJ70: 1 | BK70: 2 | BL70: 2 | BM70: 0 | BN70: 0 | BO70: 2 | BP70: 3 | BQ70: 2 | BR70: 1 | BS70: 0 | BT70: 0 | BU70: 0 | BV70: 0 | BW70: 0 | BX70: 0 | BY70: 0 | BZ70: 0 | CA70: 0 | CB70: 0 | CC70: 0 | CD70: 0 | CE70: 0 | CF70: 0 | CG70: 0 | CH70: 0 | CI70: 0 | CJ70: 0 | CK70: 0 | CL70: 0 | CM70: 0 | CN70: 0 | CO70: 0 | CP70: 0 | CQ70: 0 | CR70: 0 | CS70: 0 | CT70: 0 | CU70: 0 | CV70: 0 | CX70: 0 | CY70: 21.1825 | CZ70: 42.365 | DA70: 42.365 | DB70: 21.1825 | DC70: 84.73 | DD70: 169.46 | DE70: 190.6425 | DF70: 211.825 | DG70: 148.2775 | DH70: 127.095 | DI70: 169.46 | DJ70: 105.9125 | DK70: 63.5475 | DL70: 148.2775 | DM70: 169.46 | DN70: 169.46 | DO70: 190.6425 | DP70: 190.6425 | DQ70: 211.825 | DR70: 254.19 | DS70: 296.555 | DT70: 338.92 | DU70: 360.1025 | DV70: 296.555 | DW70: 402.4675 | DX70: 656.6575 | DY70: 529.5625 | DZ70: 169.46 | EA70: 84.73 | EB70: 42.365 | EC70: 21.1825 | ED70: 21.1825 | EE70: 21.1825 | EF70: 21.1825 | EG70: 21.1825 | EH70: 21.1825 | EI70: 0 | EJ70: 0 | EK70: 0 | EL70: 21.1825 | EM70: 21.1825 | EN70: 0 | EO70: 42.365 | EP70: 42.365 | EQ70: 0 | ER70: 0 | ES70: 0 | ET70: 21.1825 | EU70: 21.1825 | EV70: 42.365 | EW70: 42.365 | EX70: 21.1825 | EY70: 42.365 | EZ70: 42.365 | FA70: 0 | FB70: 0 | FC70: 42.365 | FD70: 63.5475 | FE70: 42.365 | FF70: 21.1825 | FG70: 0 | FH70: 0 | FI70: 0 | FJ70: 0 | FK70: 0 | FL70: 0 | FM70: 0 | FN70: 0 | FO70: 0 | FP70: 0 | FQ70: 0 | FR70: 0 | FS70: 0 | FT70: 0 | FU70: 0 | FV70: 0 | FW70: 0 | FX70: 0 | FY70: 0 | FZ70: 0 | GA70: 0 | GB70: 0 | GC70: 0 | GD70: 0 | GE70: 0 | GF70: 0 | GG70: 0 | GH70: 0 | GI70: 0 | GJ70: 0
A71: 5 | D71: TRANSFORMERS | E71: kiosk mounted ; < = 22kv ; > 60 kva and < = 600 kva ; single phase | F71: 66.476 | G71: 71.61300921 | H71: 8.462446999 | I71: 2 | J71: 0 | K71: 13 | L71: 27 | M71: 41 | N71: 134 | O71: 263 | P71: 245 | Q71: 210 | R71: 253 | S71: 263 | T71: 238 | U71: 218 | V71: 172 | W71: 153 | X71: 167 | Y71: 171 | Z71: 143 | AA71: 115 | AB71: 163 | AC71: 229 | AD71: 233 | AE71: 199 | AF71: 243 | AG71: 321 | AH71: 347 | AI71: 305 | AJ71: 277 | AK71: 341 | AL71: 378 | AM71: 304 | AN71: 190 | AO71: 162 | AP71: 158 | AQ71: 132 | AR71: 134 | AS71: 201 | AT71: 268 | AU71: 230 | AV71: 188 | AW71: 153 | AX71: 86 | AY71: 48 | AZ71: 43 | BA71: 38 | BB71: 21 | BC71: 6 | BD71: 17 | BE71: 30 | BF71: 79 | BG71: 80 | BH71: 32 | BI71: 31 | BJ71: 22 | BK71: 69 | BL71: 67 | BM71: 9 | BN71: 16 | BO71: 50 | BP71: 104 | BQ71: 63 | BR71: 4 | BS71: 6 | BT71: 2 | BU71: 5 | BV71: 5 | BW71: 0 | BX71: 0 | BY71: 0 | BZ71: 0 | CA71: 0 | CB71: 0 | CC71: 0 | CD71: 0 | CE71: 0 | CF71: 0 | CG71: 0 | CH71: 0 | CI71: 0 | CJ71: 0 | CK71: 0 | CL71: 0 | CM71: 0 | CN71: 0 | CO71: 0 | CP71: 0 | CQ71: 0 | CR71: 0 | CS71: 0 | CT71: 0 | CU71: 0 | CV71: 0 | CX71: 0 | CY71: 864.188 | CZ71: 1794.852 | DA71: 2725.516 | DB71: 8907.784 | DC71: 17483.188 | DD71: 16286.62 | DE71: 13959.96 | DF71: 16818.428 | DG71: 17483.188 | DH71: 15821.288 | DI71: 14491.768 | DJ71: 11433.872 | DK71: 10170.828 | DL71: 11101.492 | DM71: 11367.396 | DN71: 9506.068 | DO71: 7644.74 | DP71: 10835.588 | DQ71: 15223.004 | DR71: 15488.908 | DS71: 13228.724 | DT71: 16153.668 | DU71: 21338.796 | DV71: 23067.172 | DW71: 20275.18 | DX71: 18413.852 | DY71: 22668.316 | DZ71: 25127.928 | EA71: 20208.704 | EB71: 12630.44 | EC71: 10769.112 | ED71: 10503.208 | EE71: 8774.832 | EF71: 8907.784 | EG71: 13361.676 | EH71: 17815.568 | EI71: 15289.48 | EJ71: 12497.488 | EK71: 10170.828 | EL71: 5716.936 | EM71: 3190.848 | EN71: 2858.468 | EO71: 2526.088 | EP71: 1395.996 | EQ71: 398.856 | ER71: 1130.092 | ES71: 1994.28 | ET71: 5251.604 | EU71: 5318.08 | EV71: 2127.232 | EW71: 2060.756 | EX71: 1462.472 | EY71: 4586.844 | EZ71: 4453.892 | FA71: 598.284 | FB71: 1063.616 | FC71: 3323.8 | FD71: 6913.504 | FE71: 4187.988 | FF71: 265.904 | FG71: 398.856 | FH71: 132.952 | FI71: 332.38 | FJ71: 332.38 | FK71: 0 | FL71: 0 | FM71: 0 | FN71: 0 | FO71: 0 | FP71: 0 | FQ71: 0 | FR71: 0 | FS71: 0 | FT71: 0 | FU71: 0 | FV71: 0 | FW71: 0 | FX71: 0 | FY71: 0 | FZ71: 0 | GA71: 0 | GB71: 0 | GC71: 0 | GD71: 0 | GE71: 0 | GF71: 0 | GG71: 0 | GH71: 0 | GI71: 0 | GJ71: 0
A72: 5 | D72: TRANSFORMERS | E72: kiosk mounted ; < = 22kv ; > 600 kva ; single phase | F72: 74.5248 | G72: 66.1 | H72: 8.13019065 | I72: 2 | J72: 0 | K72: 2 | L72: 1 | M72: 0 | N72: 11 | O72: 33 | P72: 39 | Q72: 40 | R72: 53 | S72: 60 | T72: 61 | U72: 50 | V72: 38 | W72: 40 | X72: 48 | Y72: 53 | Z72: 36 | AA72: 20 | AB72: 23 | AC72: 27 | AD72: 31 | AE72: 25 | AF72: 18 | AG72: 28 | AH72: 35 | AI72: 34 | AJ72: 27 | AK72: 27 | AL72: 28 | AM72: 15 | AN72: 10 | AO72: 17 | AP72: 14 | AQ72: 9 | AR72: 10 | AS72: 17 | AT72: 22 | AU72: 11 | AV72: 3 | AW72: 8 | AX72: 9 | AY72: 17 | AZ72: 17 | BA72: 7 | BB72: 5 | BC72: 5 | BD72: 4 | BE72: 7 | BF72: 12 | BG72: 8 | BH72: 5 | BI72: 23 | BJ72: 23 | BK72: 19 | BL72: 17 | BM72: 4 | BN72: 5 | BO72: 21 | BP72: 33 | BQ72: 15 | BR72: 1 | BS72: 2 | BT72: 1 | BU72: 6 | BV72: 6 | BW72: 0 | BX72: 0 | BY72: 0 | BZ72: 0 | CA72: 0 | CB72: 0 | CC72: 0 | CD72: 0 | CE72: 1 | CF72: 1 | CG72: 0 | CH72: 0 | CI72: 0 | CJ72: 0 | CK72: 0 | CL72: 0 | CM72: 0 | CN72: 0 | CO72: 0 | CP72: 0 | CQ72: 0 | CR72: 0 | CS72: 0 | CT72: 0 | CU72: 0 | CV72: 0 | CX72: 0 | CY72: 149.0496 | CZ72: 74.5248 | DA72: 0 | DB72: 819.7728 | DC72: 2459.3184 | DD72: 2906.4672 | DE72: 2980.992 | DF72: 3949.8144 | DG72: 4471.488 | DH72: 4546.0128 | DI72: 3726.24 | DJ72: 2831.9424 | DK72: 2980.992 | DL72: 3577.1904 | DM72: 3949.8144 | DN72: 2682.8928 | DO72: 1490.496 | DP72: 1714.0704 | DQ72: 2012.1696 | DR72: 2310.2688 | DS72: 1863.12 | DT72: 1341.4464 | DU72: 2086.6944 | DV72: 2608.368 | DW72: 2533.8432 | DX72: 2012.1696 | DY72: 2012.1696 | DZ72: 2086.6944 | EA72: 1117.872 | EB72: 745.248 | EC72: 1266.9216 | ED72: 1043.3472 | EE72: 670.7232 | EF72: 745.248 | EG72: 1266.9216 | EH72: 1639.5456 | EI72: 819.7728 | EJ72: 223.5744 | EK72: 596.1984 | EL72: 670.7232 | EM72: 1266.9216 | EN72: 1266.9216 | EO72: 521.6736 | EP72: 372.624 | EQ72: 372.624 | ER72: 298.0992 | ES72: 521.6736 | ET72: 894.2976 | EU72: 596.1984 | EV72: 372.624 | EW72: 1714.0704 | EX72: 1714.0704 | EY72: 1415.9712 | EZ72: 1266.9216 | FA72: 298.0992 | FB72: 372.624 | FC72: 1565.0208 | FD72: 2459.3184 | FE72: 1117.872 | FF72: 74.5248 | FG72: 149.0496 | FH72: 74.5248 | FI72: 447.1488 | FJ72: 447.1488 | FK72: 0 | FL72: 0 | FM72: 0 | FN72: 0 | FO72: 0 | FP72: 0 | FQ72: 0 | FR72: 0 | FS72: 74.5248 | FT72: 74.5248 | FU72: 0 | FV72: 0 | FW72: 0 | FX72: 0 | FY72: 0 | FZ72: 0 | GA72: 0 | GB72: 0 | GC72: 0 | GD72: 0 | GE72: 0 | GF72: 0 | GG72: 0 | GH72: 0 | GI72: 0 | GJ72: 0
A73: 5 | D73: TRANSFORMERS | E73: kiosk mounted ; < = 22kv ; < = 60 kva ; multiple phase | F73: 98.9126 | G73: 54.87850713 | H73: 7.408002911 | I73: 2 | J73: 6 | K73: 0 | L73: 0 | M73: 0 | N73: 0 | O73: 0 | P73: 0 | Q73: 0 | R73: 0 | S73: 0 | T73: 0 | U73: 0 | V73: 0 | W73: 0 | X73: 0 | Y73: 0 | Z73: 0 | AA73: 0 | AB73: 0 | AC73: 0 | AD73: 0 | AE73: 0 | AF73: 0 | AG73: 0 | AH73: 0 | AI73: 1 | AJ73: 1 | AK73: 1 | AL73: 0 | AM73: 0 | AN73: 0 | AO73: 0 | AP73: 0 | AQ73: 0 | AR73: 0 | AS73: 0 | AT73: 0 | AU73: 0 | AV73: 0 | AW73: 0 | AX73: 0 | AY73: 0 | AZ73: 0 | BA73: 0 | BB73: 0 | BC73: 0 | BD73: 0 | BE73: 0 | BF73: 0 | BG73: 0 | BH73: 0 | BI73: 1 | BJ73: 1 | BK73: 1 | BL73: 1 | BM73: 0 | BN73: 0 | BO73: 1 | BP73: 2 | BQ73: 1 | BR73: 0 | BS73: 0 | BT73: 0 | BU73: 0 | BV73: 0 | BW73: 0 | BX73: 0 | BY73: 0 | BZ73: 0 | CA73: 0 | CB73: 0 | CC73: 0 | CD73: 0 | CE73: 0 | CF73: 0 | CG73: 0 | CH73: 0 | CI73: 0 | CJ73: 0 | CK73: 0 | CL73: 0 | CM73: 0 | CN73: 0 | CO73: 0 | CP73: 0 | CQ73: 0 | CR73: 0 | CS73: 0 | CT73: 0 | CU73: 0 | CV73: 0 | CX73: 593.4756 | CY73: 0 | CZ73: 0 | DA73: 0 | DB73: 0 | DC73: 0 | DD73: 0 | DE73: 0 | DF73: 0 | DG73: 0 | DH73: 0 | DI73: 0 | DJ73: 0 | DK73: 0 | DL73: 0 | DM73: 0 | DN73: 0 | DO73: 0 | DP73: 0 | DQ73: 0 | DR73: 0 | DS73: 0 | DT73: 0 | DU73: 0 | DV73: 0 | DW73: 98.9126 | DX73: 98.9126 | DY73: 98.9126 | DZ73: 0 | EA73: 0 | EB73: 0 | EC73: 0 | ED73: 0 | EE73: 0 | EF73: 0 | EG73: 0 | EH73: 0 | EI73: 0 | EJ73: 0 | EK73: 0 | EL73: 0 | EM73: 0 | EN73: 0 | EO73: 0 | EP73: 0 | EQ73: 0 | ER73: 0 | ES73: 0 | ET73: 0 | EU73: 0 | EV73: 0 | EW73: 98.9126 | EX73: 98.9126 | EY73: 98.9126 | EZ73: 98.9126 | FA73: 0 | FB73: 0 | FC73: 98.9126 | FD73: 197.8252 | FE73: 98.9126 | FF73: 0 | FG73: 0 | FH73: 0 | FI73: 0 | FJ73: 0 | FK73: 0 | FL73: 0 | FM73: 0 | FN73: 0 | FO73: 0 | FP73: 0 | FQ73: 0 | FR73: 0 | FS73: 0 | FT73: 0 | FU73: 0 | FV73: 0 | FW73: 0 | FX73: 0 | FY73: 0 | FZ73: 0 | GA73: 0 | GB73: 0 | GC73: 0 | GD73: 0 | GE73: 0 | GF73: 0 | GG73: 0 | GH73: 0 | GI73: 0 | GJ73: 0
A74: 5 | D74: TRANSFORMERS | E74: kiosk mounted ; < = 22kv ; > 60 kva and < = 600 kva ; multiple phase | F74: 23.4445 | G74: 56.5632315 | H74: 7.52085311 | I74: 2 | J74: 193 | K74: 82 | L74: 163 | M74: 237 | N74: 174 | O74: 46 | P74: 23 | Q74: 31 | R74: 22 | S74: 16 | T74: 5 | U74: 7 | V74: 7 | W74: 4 | X74: 2 | Y74: 2 | Z74: 23 | AA74: 23 | AB74: 28 | AC74: 52 | AD74: 47 | AE74: 56 | AF74: 61 | AG74: 42 | AH74: 33 | AI74: 35 | AJ74: 35 | AK74: 43 | AL74: 52 | AM74: 41 | AN74: 24 | AO74: 27 | AP74: 28 | AQ74: 25 | AR74: 24 | AS74: 21 | AT74: 23 | AU74: 24 | AV74: 25 | AW74: 20 | AX74: 16 | AY74: 9 | AZ74: 3 | BA74: 11 | BB74: 10 | BC74: 2 | BD74: 4 | BE74: 7 | BF74: 17 | BG74: 15 | BH74: 3 | BI74: 6 | BJ74: 6 | BK74: 15 | BL74: 16 | BM74: 2 | BN74: 5 | BO74: 11 | BP74: 22 | BQ74: 14 | BR74: 1 | BS74: 1 | BT74: 1 | BU74: 1 | BV74: 1 | BW74: 0 | BX74: 0 | BY74: 0 | BZ74: 0 | CA74: 0 | CB74: 0 | CC74: 0 | CD74: 0 | CE74: 0 | CF74: 0 | CG74: 0 | CH74: 0 | CI74: 0 | CJ74: 0 | CK74: 0 | CL74: 0 | CM74: 0 | CN74: 0 | CO74: 0 | CP74: 0 | CQ74: 0 | CR74: 0 | CS74: 0 | CT74: 0 | CU74: 0 | CV74: 0 | CX74: 4524.7885 | CY74: 1922.449 | CZ74: 3821.4535 | DA74: 5556.3465 | DB74: 4079.343 | DC74: 1078.447 | DD74: 539.2235 | DE74: 726.7795 | DF74: 515.779 | DG74: 375.112 | DH74: 117.2225 | DI74: 164.1115 | DJ74: 164.1115 | DK74: 93.778 | DL74: 46.889 | DM74: 46.889 | DN74: 539.2235 | DO74: 539.2235 | DP74: 656.446 | DQ74: 1219.114 | DR74: 1101.8915 | DS74: 1312.892 | DT74: 1430.1145 | DU74: 984.669 | DV74: 773.6685 | DW74: 820.5575 | DX74: 820.5575 | DY74: 1008.1135 | DZ74: 1219.114 | EA74: 961.2245 | EB74: 562.668 | EC74: 633.0015 | ED74: 656.446 | EE74: 586.1125 | EF74: 562.668 | EG74: 492.3345 | EH74: 539.2235 | EI74: 562.668 | EJ74: 586.1125 | EK74: 468.89 | EL74: 375.112 | EM74: 211.0005 | EN74: 70.3335 | EO74: 257.8895 | EP74: 234.445 | EQ74: 46.889 | ER74: 93.778 | ES74: 164.1115 | ET74: 398.5565 | EU74: 351.6675 | EV74: 70.3335 | EW74: 140.667 | EX74: 140.667 | EY74: 351.6675 | EZ74: 375.112 | FA74: 46.889 | FB74: 117.2225 | FC74: 257.8895 | FD74: 515.779 | FE74: 328.223 | FF74: 23.4445 | FG74: 23.4445 | FH74: 23.4445 | FI74: 23.4445 | FJ74: 23.4445 | FK74: 0 | FL74: 0 | FM74: 0 | FN74: 0 | FO74: 0 | FP74: 0 | FQ74: 0 | FR74: 0 | FS74: 0 | FT74: 0 | FU74: 0 | FV74: 0 | FW74: 0 | FX74: 0 | FY74: 0 | FZ74: 0 | GA74: 0 | GB74: 0 | GC74: 0 | GD74: 0 | GE74: 0 | GF74: 0 | GG74: 0 | GH74: 0 | GI74: 0 | GJ74: 0
A75: 5 | D75: TRANSFORMERS | E75: kiosk mounted ; < = 22kv ; > 600 kva ; multiple phase | F75: 74.5248 | G75: 66.1 | H75: 8.13019065 | I75: 2 | J75: 38 | K75: 23 | L75: 33 | M75: 41 | N75: 28 | O75: 7 | P75: 7 | Q75: 8 | R75: 3 | S75: 1 | T75: 1 | U75: 2 | V75: 3 | W75: 3 | X75: 1 | Y75: 0 | Z75: 5 | AA75: 5 | AB75: 4 | AC75: 6 | AD75: 5 | AE75: 4 | AF75: 4 | AG75: 5 | AH75: 5 | AI75: 1 | AJ75: 2 | AK75: 3 | AL75: 3 | AM75: 2 | AN75: 1 | AO75: 3 | AP75: 4 | AQ75: 4 | AR75: 3 | AS75: 2 | AT75: 3 | AU75: 2 | AV75: 0 | AW75: 0 | AX75: 0 | AY75: 2 | AZ75: 2 | BA75: 1 | BB75: 1 | BC75: 0 | BD75: 2 | BE75: 2 | BF75: 3 | BG75: 3 | BH75: 1 | BI75: 4 | BJ75: 4 | BK75: 2 | BL75: 2 | BM75: 0 | BN75: 0 | BO75: 3 | BP75: 7 | BQ75: 4 | BR75: 0 | BS75: 0 | BT75: 0 | BU75: 1 | BV75: 1 | BW75: 0 | BX75: 0 | BY75: 0 | BZ75: 0 | CA75: 0 | CB75: 0 | CC75: 0 | CD75: 0 | CE75: 0 | CF75: 0 | CG75: 0 | CH75: 0 | CI75: 0 | CJ75: 0 | CK75: 0 | CL75: 0 | CM75: 0 | CN75: 0 | CO75: 0 | CP75: 0 | CQ75: 0 | CR75: 0 | CS75: 0 | CT75: 0 | CU75: 0 | CV75: 0 | CX75: 2831.9424 | CY75: 1714.0704 | CZ75: 2459.3184 | DA75: 3055.5168 | DB75: 2086.6944 | DC75: 521.6736 | DD75: 521.6736 | DE75: 596.1984 | DF75: 223.5744 | DG75: 74.5248 | DH75: 74.5248 | DI75: 149.0496 | DJ75: 223.5744 | DK75: 223.5744 | DL75: 74.5248 | DM75: 0 | DN75: 372.624 | DO75: 372.624 | DP75: 298.0992 | DQ75: 447.1488 | DR75: 372.624 | DS75: 298.0992 | DT75: 298.0992 | DU75: 372.624 | DV75: 372.624 | DW75: 74.5248 | DX75: 149.0496 | DY75: 223.5744 | DZ75: 223.5744 | EA75: 149.0496 | EB75: 74.5248 | EC75: 223.5744 | ED75: 298.0992 | EE75: 298.0992 | EF75: 223.5744 | EG75: 149.0496 | EH75: 223.5744 | EI75: 149.0496 | EJ75: 0 | EK75: 0 | EL75: 0 | EM75: 149.0496 | EN75: 149.0496 | EO75: 74.5248 | EP75: 74.5248 | EQ75: 0 | ER75: 149.0496 | ES75: 149.0496 | ET75: 223.5744 | EU75: 223.5744 | EV75: 74.5248 | EW75: 298.0992 | EX75: 298.0992 | EY75: 149.0496 | EZ75: 149.0496 | FA75: 0 | FB75: 0 | FC75: 223.5744 | FD75: 521.6736 | FE75: 298.0992 | FF75: 0 | FG75: 0 | FH75: 0 | FI75: 74.5248 | FJ75: 74.5248 | FK75: 0 | FL75: 0 | FM75: 0 | FN75: 0 | FO75: 0 | FP75: 0 | FQ75: 0 | FR75: 0 | FS75: 0 | FT75: 0 | FU75: 0 | FV75: 0 | FW75: 0 | FX75: 0 | FY75: 0 | FZ75: 0 | GA75: 0 | GB75: 0 | GC75: 0 | GD75: 0 | GE75: 0 | GF75: 0 | GG75: 0 | GH75: 0 | GI75: 0 | GJ75: 0
A76: 5 | D76: TRANSFORMERS | E76: ground outdoor / indoor chamber mounted; ˂ 22 kv ; < = 60 kva ; single phase | F76: 0.0001 | G76: 66.1 | H76: 8.13019065 | I76: 2 | J76: 0 | K76: 0 | L76: 0 | M76: 0 | N76: 0 | O76: 0 | P76: 0 | Q76: 0 | R76: 0 | S76: 0 | T76: 0 | U76: 0 | V76: 0 | W76: 0 | X76: 0 | Y76: 0 | Z76: 0 | AA76: 0 | AB76: 0 | AC76: 0 | AD76: 0 | AE76: 0 | AF76: 0 | AG76: 0 | AH76: 0 | AI76: 0 | AJ76: 1 | AK76: 2 | AL76: 1 | AM76: 0 | AN76: 0 | AO76: 0 | AP76: 0 | AQ76: 0 | AR76: 0 | AS76: 0 | AT76: 0 | AU76: 0 | AV76: 0 | AW76: 0 | AX76: 0 | AY76: 1 | AZ76: 1 | BA76: 0 | BB76: 0 | BC76: 0 | BD76: 0 | BE76: 0 | BF76: 0 | BG76: 0 | BH76: 0 | BI76: 0 | BJ76: 1 | BK76: 1 | BL76: 1 | BM76: 0 | BN76: 0 | BO76: 0 | BP76: 1 | BQ76: 1 | BR76: 0 | BS76: 0 | BT76: 0 | BU76: 0 | BV76: 0 | BW76: 0 | BX76: 0 | BY76: 0 | BZ76: 0 | CA76: 0 | CB76: 0 | CC76: 0 | CD76: 0 | CE76: 0 | CF76: 0 | CG76: 0 | CH76: 0 | CI76: 0 | CJ76: 0 | CK76: 0 | CL76: 0 | CM76: 0 | CN76: 0 | CO76: 0 | CP76: 0 | CQ76: 0 | CR76: 0 | CS76: 0 | CT76: 0 | CU76: 0 | CV76: 0 | CX76: 0 | CY76: 0 | CZ76: 0 | DA76: 0 | DB76: 0 | DC76: 0 | DD76: 0 | DE76: 0 | DF76: 0 | DG76: 0 | DH76: 0 | DI76: 0 | DJ76: 0 | DK76: 0 | DL76: 0 | DM76: 0 | DN76: 0 | DO76: 0 | DP76: 0 | DQ76: 0 | DR76: 0 | DS76: 0 | DT76: 0 | DU76: 0 | DV76: 0 | DW76: 0 | DX76: 0.0001 | DY76: 0.0002 | DZ76: 0.0001 | EA76: 0 | EB76: 0 | EC76: 0 | ED76: 0 | EE76: 0 | EF76: 0 | EG76: 0 | EH76: 0 | EI76: 0 | EJ76: 0 | EK76: 0 | EL76: 0 | EM76: 0.0001 | EN76: 0.0001 | EO76: 0 | EP76: 0 | EQ76: 0 | ER76: 0 | ES76: 0 | ET76: 0 | EU76: 0 | EV76: 0 | EW76: 0 | EX76: 0.0001 | EY76: 0.0001 | EZ76: 0.0001 | FA76: 0 | FB76: 0 | FC76: 0 | FD76: 0.0001 | FE76: 0.0001 | FF76: 0 | FG76: 0 | FH76: 0 | FI76: 0 | FJ76: 0 | FK76: 0 | FL76: 0 | FM76: 0 | FN76: 0 | FO76: 0 | FP76: 0 | FQ76: 0 | FR76: 0 | FS76: 0 | FT76: 0 | FU76: 0 | FV76: 0 | FW76: 0 | FX76: 0 | FY76: 0 | FZ76: 0 | GA76: 0 | GB76: 0 | GC76: 0 | GD76: 0 | GE76: 0 | GF76: 0 | GG76: 0 | GH76: 0 | GI76: 0 | GJ76: 0
A77: 5 | D77: TRANSFORMERS | E77: ground outdoor / indoor chamber mounted; ˂ 22 kv ; > 60 kva and < = 600 kva ; single phase | F77: 148.3687 | G77: 72.9250582 | H77: 8.539616982 | I77: 2 | J77: 0 | K77: 0 | L77: 0 | M77: 0 | N77: 1 | O77: 2 | P77: 1 | Q77: 2 | R77: 2 | S77: 1 | T77: 1 | U77: 1 | V77: 2 | W77: 3 | X77: 5 | Y77: 4 | Z77: 4 | AA77: 2 | AB77: 1 | AC77: 1 | AD77: 1 | AE77: 2 | AF77: 3 | AG77: 2 | AH77: 2 | AI77: 3 | AJ77: 5 | AK77: 7 | AL77: 9 | AM77: 9 | AN77: 7 | AO77: 15 | AP77: 17 | AQ77: 8 | AR77: 4 | AS77: 2 | AT77: 3 | AU77: 6 | AV77: 25 | AW77: 27 | AX77: 12 | AY77: 20 | AZ77: 21 | BA77: 17 | BB77: 17 | BC77: 17 | BD77: 17 | BE77: 14 | BF77: 14 | BG77: 10 | BH77: 5 | BI77: 4 | BJ77: 3 | BK77: 5 | BL77: 4 | BM77: 1 | BN77: 3 | BO77: 5 | BP77: 6 | BQ77: 3 | BR77: 0 | BS77: 0 | BT77: 0 | BU77: 1 | BV77: 1 | BW77: 0 | BX77: 0 | BY77: 0 | BZ77: 0 | CA77: 0 | CB77: 0 | CC77: 0 | CD77: 0 | CE77: 0 | CF77: 0 | CG77: 0 | CH77: 0 | CI77: 0 | CJ77: 0 | CK77: 0 | CL77: 0 | CM77: 0 | CN77: 0 | CO77: 0 | CP77: 0 | CQ77: 0 | CR77: 0 | CS77: 0 | CT77: 0 | CU77: 0 | CV77: 0 | CX77: 0 | CY77: 0 | CZ77: 0 | DA77: 0 | DB77: 148.3687 | DC77: 296.7374 | DD77: 148.3687 | DE77: 296.7374 | DF77: 296.7374 | DG77: 148.3687 | DH77: 148.3687 | DI77: 148.3687 | DJ77: 296.7374 | DK77: 445.1061 | DL77: 741.8435 | DM77: 593.4748 | DN77: 593.4748 | DO77: 296.7374 | DP77: 148.3687 | DQ77: 148.3687 | DR77: 148.3687 | DS77: 296.7374 | DT77: 445.1061 | DU77: 296.7374 | DV77: 296.7374 | DW77: 445.1061 | DX77: 741.8435 | DY77: 1038.5809 | DZ77: 1335.3183 | EA77: 1335.3183 | EB77: 1038.5809 | EC77: 2225.5305 | ED77: 2522.2679 | EE77: 1186.9496 | EF77: 593.4748 | EG77: 296.7374 | EH77: 445.1061 | EI77: 890.2122 | EJ77: 3709.2175 | EK77: 4005.9549 | EL77: 1780.4244 | EM77: 2967.374 | EN77: 3115.7427 | EO77: 2522.2679 | EP77: 2522.2679 | EQ77: 2522.2679 | ER77: 2522.2679 | ES77: 2077.1618 | ET77: 2077.1618 | EU77: 1483.687 | EV77: 741.8435 | EW77: 593.4748 | EX77: 445.1061 | EY77: 741.8435 | EZ77: 593.4748 | FA77: 148.3687 | FB77: 445.1061 | FC77: 741.8435 | FD77: 890.2122 | FE77: 445.1061 | FF77: 0 | FG77: 0 | FH77: 0 | FI77: 148.3687 | FJ77: 148.3687 | FK77: 0 | FL77: 0 | FM77: 0 | FN77: 0 | FO77: 0 | FP77: 0 | FQ77: 0 | FR77: 0 | FS77: 0 | FT77: 0 | FU77: 0 | FV77: 0 | FW77: 0 | FX77: 0 | FY77: 0 | FZ77: 0 | GA77: 0 | GB77: 0 | GC77: 0 | GD77: 0 | GE77: 0 | GF77: 0 | GG77: 0 | GH77: 0 | GI77: 0 | GJ77: 0
A78: 5 | D78: TRANSFORMERS | E78: ground outdoor / indoor chamber mounted; ˂ 22 kv ; > 600 kva ; single phase | F78: 784.9499 | G78: 72.12626475 | H78: 8.492718337 | I78: 2 | J78: 0 | K78: 0 | L78: 0 | M78: 0 | N78: 0 | O78: 0 | P78: 0 | Q78: 0 | R78: 0 | S78: 0 | T78: 1 | U78: 2 | V78: 2 | W78: 2 | X78: 1 | Y78: 1 | Z78: 2 | AA78: 2 | AB78: 4 | AC78: 5 | AD78: 4 | AE78: 3 | AF78: 3 | AG78: 2 | AH78: 5 | AI78: 5 | AJ78: 4 | AK78: 8 | AL78: 7 | AM78: 6 | AN78: 7 | AO78: 9 | AP78: 9 | AQ78: 8 | AR78: 7 | AS78: 3 | AT78: 3 | AU78: 4 | AV78: 7 | AW78: 7 | AX78: 5 | AY78: 3 | AZ78: 1 | BA78: 5 | BB78: 6 | BC78: 4 | BD78: 5 | BE78: 4 | BF78: 2 | BG78: 0 | BH78: 0 | BI78: 7 | BJ78: 8 | BK78: 2 | BL78: 2 | BM78: 0 | BN78: 0 | BO78: 2 | BP78: 2 | BQ78: 0 | BR78: 0 | BS78: 1 | BT78: 1 | BU78: 2 | BV78: 2 | BW78: 0 | BX78: 0 | BY78: 0 | BZ78: 0 | CA78: 0 | CB78: 0 | CC78: 0 | CD78: 0 | CE78: 0 | CF78: 0 | CG78: 0 | CH78: 0 | CI78: 0 | CJ78: 0 | CK78: 0 | CL78: 0 | CM78: 0 | CN78: 0 | CO78: 0 | CP78: 0 | CQ78: 0 | CR78: 0 | CS78: 0 | CT78: 0 | CU78: 0 | CV78: 0 | CX78: 0 | CY78: 0 | CZ78: 0 | DA78: 0 | DB78: 0 | DC78: 0 | DD78: 0 | DE78: 0 | DF78: 0 | DG78: 0 | DH78: 784.9499 | DI78: 1569.8998 | DJ78: 1569.8998 | DK78: 1569.8998 | DL78: 784.9499 | DM78: 784.9499 | DN78: 1569.8998 | DO78: 1569.8998 | DP78: 3139.7996 | DQ78: 3924.7495 | DR78: 3139.7996 | DS78: 2354.8497 | DT78: 2354.8497 | DU78: 1569.8998 | DV78: 3924.7495 | DW78: 3924.7495 | DX78: 3139.7996 | DY78: 6279.5992 | DZ78: 5494.6493 | EA78: 4709.6994 | EB78: 5494.6493 | EC78: 7064.5491 | ED78: 7064.5491 | EE78: 6279.5992 | EF78: 5494.6493 | EG78: 2354.8497 | EH78: 2354.8497 | EI78: 3139.7996 | EJ78: 5494.6493 | EK78: 5494.6493 | EL78: 3924.7495 | EM78: 2354.8497 | EN78: 784.9499 | EO78: 3924.7495 | EP78: 4709.6994 | EQ78: 3139.7996 | ER78: 3924.7495 | ES78: 3139.7996 | ET78: 1569.8998 | EU78: 0 | EV78: 0 | EW78: 5494.6493 | EX78: 6279.5992 | EY78: 1569.8998 | EZ78: 1569.8998 | FA78: 0 | FB78: 0 | FC78: 1569.8998 | FD78: 1569.8998 | FE78: 0 | FF78: 0 | FG78: 784.9499 | FH78: 784.9499 | FI78: 1569.8998 | FJ78: 1569.8998 | FK78: 0 | FL78: 0 | FM78: 0 | FN78: 0 | FO78: 0 | FP78: 0 | FQ78: 0 | FR78: 0 | FS78: 0 | FT78: 0 | FU78: 0 | FV78: 0 | FW78: 0 | FX78: 0 | FY78: 0 | FZ78: 0 | GA78: 0 | GB78: 0 | GC78: 0 | GD78: 0 | GE78: 0 | GF78: 0 | GG78: 0 | GH78: 0 | GI78: 0 | GJ78: 0
E79: ground outdoor / indoor chamber mounted; ˂ 22 kv ; < = 60 kva ; multiple phase | F79: 0 | G79: 50 | H79: 7.071067812 | I79: 2 | J79: 0 | K79: 0 | L79: 0 | M79: 0 | N79: 0 | O79: 0 | P79: 0 | Q79: 0 | R79: 0 | S79: 0 | T79: 0 | U79: 0 | V79: 0 | W79: 0 | X79: 0 | Y79: 0 | Z79: 0 | AA79: 0 | AB79: 0 | AC79: 0 | AD79: 0 | AE79: 0 | AF79: 0 | AG79: 0 | AH79: 0 | AI79: 0 | AJ79: 0 | AK79: 0 | AL79: 0 | AM79: 0 | AN79: 0 | AO79: 0 | AP79: 0 | AQ79: 0 | AR79: 0 | AS79: 0 | AT79: 0 | AU79: 0 | AV79: 0 | AW79: 0 | AX79: 0 | AY79: 0 | AZ79: 0 | BA79: 0 | BB79: 0 | BC79: 0 | BD79: 0 | BE79: 0 | BF79: 0 | BG79: 0 | BH79: 0 | BI79: 0 | BJ79: 0 | BK79: 0 | BL79: 0 | BM79: 0 | BN79: 0 | BO79: 0 | BP79: 0 | BQ79: 0 | BR79: 0 | BS79: 0 | BT79: 0 | BU79: 0 | BV79: 0 | BW79: 0 | BX79: 0 | BY79: 0 | BZ79: 0 | CA79: 0 | CB79: 0 | CC79: 0 | CD79: 0 | CE79: 0 | CF79: 0 | CG79: 0 | CH79: 0 | CI79: 0 | CJ79: 0 | CK79: 0 | CL79: 0 | CM79: 0 | CN79: 0 | CO79: 0 | CP79: 0 | CQ79: 0 | CR79: 0 | CS79: 0 | CT79: 0 | CU79: 0 | CV79: 0 | CX79: 0 | CY79: 0 | CZ79: 0 | DA79: 0 | DB79: 0 | DC79: 0 | DD79: 0 | DE79: 0 | DF79: 0 | DG79: 0 | DH79: 0 | DI79: 0 | DJ79: 0 | DK79: 0 | DL79: 0 | DM79: 0 | DN79: 0 | DO79: 0 | DP79: 0 | DQ79: 0 | DR79: 0 | DS79: 0 | DT79: 0 | DU79: 0 | DV79: 0 | DW79: 0 | DX79: 0 | DY79: 0 | DZ79: 0 | EA79: 0 | EB79: 0 | EC79: 0 | ED79: 0 | EE79: 0 | EF79: 0 | EG79: 0 | EH79: 0 | EI79: 0 | EJ79: 0 | EK79: 0 | EL79: 0 | EM79: 0 | EN79: 0 | EO79: 0 | EP79: 0 | EQ79: 0 | ER79: 0 | ES79: 0 | ET79: 0 | EU79: 0 | EV79: 0 | EW79: 0 | EX79: 0 | EY79: 0 | EZ79: 0 | FA79: 0 | FB79: 0 | FC79: 0 | FD79: 0 | FE79: 0 | FF79: 0 | FG79: 0 | FH79: 0 | FI79: 0 | FJ79: 0 | FK79: 0 | FL79: 0 | FM79: 0 | FN79: 0 | FO79: 0 | FP79: 0 | FQ79: 0 | FR79: 0 | FS79: 0 | FT79: 0 | FU79: 0 | FV79: 0 | FW79: 0 | FX79: 0 | FY79: 0 | FZ79: 0 | GA79: 0 | GB79: 0 | GC79: 0 | GD79: 0 | GE79: 0 | GF79: 0 | GG79: 0 | GH79: 0 | GI79: 0 | GJ79: 0
A80: 5 | D80: TRANSFORMERS | E80: ground outdoor / indoor chamber mounted; ˂ 22 kv ; > 60 kva and < = 600 kva ; multiple phase | F80: 27.7312 | G80: 66.40612981 | H80: 8.148995632 | I80: 2 | J80: 0 | K80: 0 | L80: 0 | M80: 0 | N80: 0 | O80: 0 | P80: 1 | Q80: 1 | R80: 0 | S80: 0 | T80: 0 | U80: 0 | V80: 0 | W80: 0 | X80: 0 | Y80: 0 | Z80: 0 | AA80: 0 | AB80: 0 | AC80: 0 | AD80: 0 | AE80: 0 | AF80: 0 | AG80: 0 | AH80: 0 | AI80: 0 | AJ80: 0 | AK80: 0 | AL80: 0 | AM80: 0 | AN80: 0 | AO80: 0 | AP80: 0 | AQ80: 0 | AR80: 0 | AS80: 0 | AT80: 0 | AU80: 0 | AV80: 0 | AW80: 0 | AX80: 0 | AY80: 0 | AZ80: 0 | BA80: 0 | BB80: 0 | BC80: 1 | BD80: 0 | BE80: 0 | BF80: 0 | BG80: 0 | BH80: 0 | BI80: 0 | BJ80: 0 | BK80: 0 | BL80: 2 | BM80: 0 | BN80: 0 | BO80: 0 | BP80: 0 | BQ80: 0 | BR80: 0 | BS80: 1 | BT80: 1 | BU80: 0 | BV80: 0 | BW80: 0 | BX80: 0 | BY80: 0 | BZ80: 0 | CA80: 0 | CB80: 0 | CC80: 0 | CD80: 0 | CE80: 0 | CF80: 0 | CG80: 0 | CH80: 0 | CI80: 0 | CJ80: 0 | CK80: 0 | CL80: 0 | CM80: 0 | CN80: 0 | CO80: 0 | CP80: 0 | CQ80: 0 | CR80: 0 | CS80: 0 | CT80: 0 | CU80: 0 | CV80: 0 | CX80: 0 | CY80: 0 | CZ80: 0 | DA80: 0 | DB80: 0 | DC80: 0 | DD80: 27.7312 | DE80: 27.7312 | DF80: 0 | DG80: 0 | DH80: 0 | DI80: 0 | DJ80: 0 | DK80: 0 | DL80: 0 | DM80: 0 | DN80: 0 | DO80: 0 | DP80: 0 | DQ80: 0 | DR80: 0 | DS80: 0 | DT80: 0 | DU80: 0 | DV80: 0 | DW80: 0 | DX80: 0 | DY80: 0 | DZ80: 0 | EA80: 0 | EB80: 0 | EC80: 0 | ED80: 0 | EE80: 0 | EF80: 0 | EG80: 0 | EH80: 0 | EI80: 0 | EJ80: 0 | EK80: 0 | EL80: 0 | EM80: 0 | EN80: 0 | EO80: 0 | EP80: 0 | EQ80: 27.7312 | ER80: 0 | ES80: 0 | ET80: 0 | EU80: 0 | EV80: 0 | EW80: 0 | EX80: 0 | EY80: 0 | EZ80: 55.4624 | FA80: 0 | FB80: 0 | FC80: 0 | FD80: 0 | FE80: 0 | FF80: 0 | FG80: 27.7312 | FH80: 27.7312 | FI80: 0 | FJ80: 0 | FK80: 0 | FL80: 0 | FM80: 0 | FN80: 0 | FO80: 0 | FP80: 0 | FQ80: 0 | FR80: 0 | FS80: 0 | FT80: 0 | FU80: 0 | FV80: 0 | FW80: 0 | FX80: 0 | FY80: 0 | FZ80: 0 | GA80: 0 | GB80: 0 | GC80: 0 | GD80: 0 | GE80: 0 | GF80: 0 | GG80: 0 | GH80: 0 | GI80: 0 | GJ80: 0
